Workbook

Sheet Fig.1i-j
C1: Arousal probability % | M1: Mean diff. Arousal probability %
B2: Panel 1i top | C2: NREM | L2: Panel 1i bottom | M2: NREM | U2: 95% Bootstrap Confidence Interval
D3: % | E3: % | F3: % | G3: % | H3: % | I3: n | J3: Mean | K3: ± SEM | N3: % | O3: % | P3: % | Q3: % | R3: % | S3: n | T3: Mean | U3: Upper | V3: Lower
C4: Sham WT | D4: 19.4 | E4: 21.4 | F4: 11.2 | I4: 3 | J4: =AVERAGE(D4:H4) -> 17.3 | K4: =STDEV(D4:H4)/SQRT(COUNT(D4:H4)) -> 3.1 | M4: 1 Hz minus sham ChR2 | N4: =D7-D5 -> -5.6 | O4: =E7-E5 -> 7.2 | P4: =F7-F5 -> 9.0 | Q4: =G7-G5 -> 5.7 | R4: =H7-H5 -> -8.9 | S4: 5 | T4: =AVERAGE(N4:R4) -> 1.5 | U4: 10.1 | V4: -4.2
C5: Sham ChR2-mcherry | D5: 36.4 | E5: 30.3 | F5: 21.1 | G5: 36.0 | H5: 37.5 | I5: 5 | J5: 32.2 | K5: 3.1 | M5: 5 Hz minus sham ChR2 | N5: =D9-D5 -> 13.6 | O5: =E9-E5 -> 5.4 | P5: =F9-F5 -> 23.4 | Q5: =G9-G5 -> 24.9 | R5: =H9-H5 -> 12.5 | S5: 5 | T5: =AVERAGE(N5:R5) -> 16.0 | U5: 25.9 | V5: 7.7
C6: 1Hz WT | D6: 26.1 | E6: 11.1 | F6: 19.4 | I6: 3 | J6: 18.9 | K6: 4.3 | M6: 10 Hz minus sham ChR2 | N6: =D11-D5 -> 36.4 | O6: =E11-E5 -> 26.0 | P6: =F11-F5 -> 14.2 | Q6: =G11-G5 -> 14.0 | R6: =H11-H5 -> 17.5 | S6: 5 | T6: =AVERAGE(N6:R6) -> 21.6 | U6: 33.9 | V6: 10.2
C7: 1Hz ChR2-mcherry | D7: 30.8 | E7: 37.5 | F7: 30.0 | G7: 41.7 | H7: 28.6 | I7: 5 | J7: 33.7 | K7: 2.5 | M7: 20 Hz minus sham ChR2 | N7: =D13-D5 -> 58.9 | O7: =E13-E5 -> 39.7 | P7: =F13-F5 -> 24.0 | Q7: =G13-G5 -> 20.5 | R7: =H13-H5 -> -8.1 | S7: 5 | T7: =AVERAGE(N7:R7) -> 27.0 | U7: 48.8 | V7: 8.5
C8: 5 Hz WT | D8: 16.7 | E8: 27.1 | F8: 21.7 | I8: 3 | J8: 21.8 | K8: 3.0
C9: 5 Hz ChR2-mcherry | D9: 50.0 | E9: 35.7 | F9: 44.4 | G9: 60.9 | H9: 50.0 | I9: 5 | J9: 48.2 | K9: 4.1
C10: 10 Hz WT | D10: 19.0 | E10: 11.1 | F10: 33.3 | I10: 3 | J10: 21.2 | K10: 6.5
C11: 10 Hz ChR2-mcherry | D11: 72.7 | E11: 56.3 | F11: 35.3 | G11: 50.0 | H11: 55.0 | I11: 5 | J11: 53.9 | K11: 6.0
C12: 20 Hz WT | D12: 21.4 | E12: 36.4 | F12: 14.3 | I12: 3 | J12: 24.0 | K12: 6.5
C13: 20 Hz ChR2-mcherry | D13: 95.2 | E13: 70.0 | F13: 45.0 | G13: 56.5 | H13: 29.4 | I13: 5 | J13: 59.2 | K13: 11.2
B15: Panel 1j top | C15: Arousal probability % | L15: Panel 1j bottom | M15: Mean diff. Arousal probability %
C16: REM | M16: REM | U16: 95% Bootstrap Confidence Interval
D17: % | E17: % | F17: % | G17: % | H17: % | I17: n | J17: Mean | K17: ± SEM | N17: % | O17: % | P17: % | Q17: % | R17: % | S17: n | T17: Mean | U17: Upper | V17: Lower
C18: Sham WT | D18: 15.5 | E18: 17.6 | F18: 19.0 | I18: 3 | J18: =AVERAGE(D18:H18) -> 17.4 | K18: =STDEV(D18:H18)/SQRT(COUNT(D18:H18)) -> 1.0 | M18: 1 Hz minus sham ChR2 | N18: =D21-D19 -> 2.9 | O18: =E21-E19 -> 28.3 | P18: =F21-F19 -> 20.7 | Q18: =G21-G19 -> 7.2 | R18: =H21-H19 -> 21.5 | S18: 5 | T18: =AVERAGE(N18:R18) -> 16.1 | U18: 25.5 | V18: 5.7
C19: Sham ChR2-mcherry | D19: 15.0 | E19: 18.8 | F19: 17.4 | G19: 26.5 | H19: 8.7 | I19: 5 | J19: 17.3 | K19: 2.9 | M19: 10 Hz minus sham ChR2 | N19: =D23-D19 -> 28.8 | O19: =E23-E19 -> 28.6 | P19: =F23-F19 -> 10.8 | Q19: =G23-G19 -> 14.8 | R19: =H23-H19 -> 26.1 | S19: 5 | T19: =AVERAGE(N19:R19) -> 21.8 | U19: 28.9 | V19: 13.4
C20: 1Hz WT | D20: 16.7 | E20: 26.1 | F20: 21.4 | I20: 3 | J20: 21.4 | K20: 2.7
C21: 1Hz ChR2-mcherry | D21: 17.9 | E21: 47.1 | F21: 38.1 | G21: 33.7 | H21: 30.2 | I21: 5 | J21: 33.4 | K21: 4.8
C22: 10 Hz WT | D22: 14.3 | E22: 9.1 | F22: 16.7 | I22: 3 | J22: 13.3 | K22: 2.2
C23: 10 Hz ChR2-mcherry | D23: 43.8 | E23: 47.4 | F23: 28.2 | G23: 41.3 | H23: 34.8 | I23: 5 | J23: 39.1 | K23: 3.4

Sheet Fig.2d-e
B1: Panel 2d | D1: left | H1: right | J1: Panel 2e | L1: left | P1: right
D2: Frequency (Hz) | H2: MP (mV) | L2: Frequency (Hz) | P2: MP (mV)
B4: # neurons | C4: CTRL | D4: Ox-A | E4: Wash | F4: # neurons | G4: CTRL | H4: Ox-A | I4: Wash | J4: # neurons | K4: CTRL | L4: Ox-A | M4: Wash | N4: # neurons | O4: CTRL | P4: Ox-A | Q4: Wash
B5: 1 | C5: 0.2083333 | D5: 0.583333 | E5: 0.45 | F5: 1 | G5: -51.1334 | H5: -49.8521 | I5: -53.1394 | J5: 1 | K5: 0.341667 | L5: 0.016667 | M5: 0.2 | N5: 1 | O5: -41.6646 | P5: -44.8704 | Q5: -41.5815
B6: 2 | C6: 0.5083333 | D6: 2.575 | E6: 0.641667 | F6: 2 | G6: -57.2305 | H6: -49.0832 | I6: -57.2377 | J6: 2 | K6: 0.241667 | L6: 0 | M6: 0.666667 | N6: 2 | O6: -40.3953 | P6: -49.4643 | Q6: -37.1574
B7: 3 | C7: 0.1083333 | D7: 0.241667 | E7: 0.125 | F7: 3 | G7: -45.2087 | H7: -43.7898 | I7: -46.7998 | J7: 3 | K7: 0.183333 | L7: 0 | M7: 0.216667 | N7: 3 | O7: -52.1921 | P7: -59.5252 | Q7: -50.0001
B8: 4 | C8: 0.7916667 | D8: 1.125 | E8: 0.491667 | F8: 4 | G8: -44.3395 | H8: -43.4265 | I8: -47.1182 | J8: 4 | K8: 0.35 | L8: 0.025 | M8: 0.258333 | N8: 4 | O8: -48.6606 | P8: -52.4882 | Q8: -51.2317
B9: 5 | C9: 0.5833333 | D9: 1.983333 | E9: 0.725 | F9: 5 | G9: -60.8415 | H9: -60.0034 | I9: -61.3276 | J9: 5 | K9: 0.283333 | L9: 0.108333 | M9: 0.2 | N9: 5 | O9: -46.6365 | P9: -48.2835 | Q9: -47.0859
B10: 6 | C10: 0.1333333 | D10: 0.475 | E10: 0.025 | F10: 6 | G10: -34.7372 | H10: -33.1426 | I10: -34.7037 | J10: 6 | K10: 0.65 | L10: 0.383333 | M10: 0.8 | N10: 6 | O10: -43.1973 | P10: -45.5363 | Q10: -44.3023
B11: 7 | C11: 0.1 | D11: 0.444444 | E11: 0.025 | F11: 7 | G11: -36.5174 | H11: -32.9347 | I11: -35.805 | J11: 7 | K11: 0.166667 | L11: 0 | M11: 0.383333 | N11: 7 | O11: -53.8393 | P11: -54.3331 | Q11: -53.0089
B12: 8 | C12: 0.2416667 | D12: 0.683333 | E12: 0.45 | F12: 8 | G12: -52.0422 | H12: -51.211 | I12: -52.177 | J12: 8 | K12: 0.6 | L12: 0.216667 | M12: 1.016667 | N12: 8 | O12: -51.5344 | P12: -57.5446 | Q12: -52.9991
B13: 9 | C13: 0.4916667 | D13: 1.25 | E13: 0.425 | F13: 9 | G13: -48.6505 | H13: -46.7561 | I13: -50.6948 | J13: 9 | K13: 0.583333 | L13: 0.016667 | M13: 0.65 | N13: 9 | O13: -42.403 | P13: -51.8665 | Q13: -46.2552
B14: 10 | C14: 0.2583333 | D14: 0.85 | E14: 0.133333 | F14: 10 | G14: -49.2418 | H14: -46.7396 | I14: -50.2471 | J14: 10 | K14: 0.158333 | L14: 0 | M14: 0.258333 | N14: 10 | O14: -48.6766 | P14: -53.2375 | Q14: -51.09
B15: 11 | C15: 0.2166667 | D15: 0.433333 | E15: 0.108333 | F15: 11 | G15: -39.0823 | H15: -38.7916 | I15: -40.1243 | J15: 11 | K15: 0.175 | L15: 0 | M15: 0.033333 | N15: 11 | O15: -43.3214 | P15: -47.2805 | Q15: -44.8629
B16: 12 | C16: 0.2 | D16: 1.375 | E16: 0.091667 | F16: 12 | G16: -47.9232 | H16: -43.3503 | I16: -49.5595 | J16: 12 | K16: 0.158333 | L16: 0.05 | M16: 0.25 | N16: 12 | O16: -45.2184 | P16: -46.14 | Q16: -43.1246
B17: 13 | C17: 0.55 | D17: 1.333333 | E17: 0.908333 | F17: 13 | G17: -44.3259 | H17: -39.6263 | I17: -41.3523 | J17: 13 | K17: 0.291667 | L17: 0 | M17: 0.2 | N17: 13 | O17: -47.9937 | P17: -54.0394 | Q17: -47.1007
B18: 14 | C18: 0.1083333 | D18: 0.308333 | E18: 0.258333 | F18: 14 | G18: -37.1318 | H18: -36.3885 | I18: -37.4071 | J18: 14 | K18: 0.241667 | L18: 0 | M18: 0.091667 | N18: 14 | O18: -44.445 | P18: -53.6804 | Q18: -43.1039
B19: 15 | C19: 0.3147591 | D19: 0.421348 | E19: 0.157112 | F19: 15 | G19: -45.3242 | H19: -43.9337 | I19: -45.952 | J19: 15 | K19: 0.458333 | L19: 0.075 | M19: 0.941667 | N19: 15 | O19: -43.1079 | P19: -50.9466 | Q19: -44.8935
B20: 16 | C20: 0.706687 | D20: 2.390449 | E20: 1.188143 | F20: 16 | G20: -43.7323 | H20: -42.312 | I20: -46.7662 | J20: 16 | K20: 0.233333 | L20: 0.066667 | M20: 0.266667 | N20: 16 | O20: -36.7113 | P20: -38.5734 | Q20: -36.8038
B21: 17 | C21: 0.1501669 | D21: 0.734788 | E21: 0.15619 | F21: 17 | G21: -43.9658 | H21: -37.2457 | I21: -41.7147 | J21: 17 | K21: 0.05 | L21: 0.016667 | M21: 0.008333 | N21: 17 | O21: -39.6675 | P21: -40.1711 | Q21: -39.1673
B22: 18 | C22: 0.7232312 | D22: 1.167272 | E22: 0.399311 | F22: 18 | G22: -41.7439 | H22: -39.0421 | I22: -42.5455 | J22: 18 | K22: 0.491667 | L22: 0 | M22: 0.258333 | N22: 18 | O22: -50.3483 | P22: -60.8768 | Q22: -47.5695
B23: 19 | C23: 0.972891 | D23: 2.039275 | E23: 0.713505 | F23: 19 | G23: -36.8128 | H23: -31.3585 | I23: -37.9182 | J23: 19 | K23: 0.058333 | L23: 0 | M23: 0.133333 | N23: 19 | O23: -46.6017 | P23: -52.0455 | Q23: -47.6236
B24: 20 | C24: 0.9521301 | D24: 2.404612 | E24: 0.594351 | F24: 20 | G24: -36.478 | H24: -29.1849 | I24: -35.6855 | J24: 20 | K24: 0.458333 | L24: 0.125 | M24: 0.675 | N24: 20 | O24: -34.4757 | P24: -35.5222 | Q24: -31.854
B25: 21 | C25: 0.1554202 | D25: 0.343234 | E25: 0.239996 | F25: 21 | G25: -40.5381 | H25: -39.7031 | I25: -41.8404 | J25: 21 | K25: 0.5 | L25: 0 | M25: 0.541667 | N25: 21 | O25: -42.6078 | P25: -47.8799 | Q25: -44.6512
F26: 22 | G26: -43.4615 | H26: -37.9926 | I26: -42.7092 | J26: 22 | K26: 0.633333 | L26: 0 | M26: 0.133333 | N26: 22 | O26: -41.5472 | P26: -43.3997 | Q26: -41.9717
F27: 23 | G27: -48.1921 | H27: -46.7191 | I27: -50.7802 | J27: 23 | K27: 0.15 | L27: 0.033333 | M27: 0.091667 | N27: 23 | O27: -40.817 | P27: -42.5898 | Q27: -41.2527
F28: 24 | G28: -39.7518 | H28: -37.1961 | I28: -40.8717 | J28: 24 | K28: 1.933333 | L28: 0.211111 | M28: 0.966667 | N28: 24 | O28: -46.5624 | P28: -54.3706 | Q28: -49.3744
F29: 25 | G29: -37.6971 | H29: -36.2017 | I29: -38.4284 | J29: 25 | K29: 0.108333 | L29: 0 | M29: 0.141667 | N29: 25 | O29: -51.3503 | P29: -58.0294 | Q29: -44.7514
F30: 26 | G30: -43.7202 | H30: -41.1178 | I30: -43.8384 | J30: 26 | K30: 0.133333 | L30: 0 | M30: 0.116667 | N30: 26 | O30: -48.8349 | P30: -54.4377 | Q30: -46.4562
J31: 27 | K31: 0.441667 | L31: 0.083333 | M31: 0.544444 | N31: 27 | O31: -60.8663 | P31: -65.0323 | Q31: -63.6806
B32: n | C32: =(COUNT(C5:C25)) -> 21 | D32: =(COUNT(D5:D25)) -> 21 | E32: 21 | G32: =(COUNT(G5:G30)) -> 26 | H32: =(COUNT(H5:H30)) -> 26 | I32: 26 | J32: 28 | K32: 0.525 | L32: 0 | M32: 0.2 | N32: 28 | O32: -33.2605 | P32: -36.4914 | Q32: -32.0208
B33: Mean | C33: =AVERAGE(C5:C25) -> 0.403585019 | D33: =AVERAGE(D5:D25) -> 1.102956524 | E33: =AVERAGE(E5:E25) -> 0.395568619 | G33: =AVERAGE(G5:G30) -> -44.22398846 | H33: =AVERAGE(H5:H30) -> -41.42703846 | I33: -44.87476538 | J33: 29 | K33: 1.35 | L33: 0.458333 | M33: 1.858333 | N33: 29 | O33: -57.4801 | P33: -60.3779 | Q33: -58.1326
B34: ± SEM | C34: =STDEV(C5:C25)/SQRT(COUNT(C5:C25)) -> 0.06319297722 | D34: =STDEV(D5:D25)/SQRT(COUNT(D5:D25)) -> 0.1666257718 | E34: =STDEV(E5:E25)/SQRT(COUNT(E5:E25)) -> 0.06840891195 | G34: =STDEV(G5:G30)/SQRT(COUNT(G5:G30)) -> 1.274070141 | H34: =STDEV(H5:H30)/SQRT(COUNT(H5:H30)) -> 1.350892207 | I34: 1.344760891 | J34: 30 | K34: 0.275 | L34: 0.008333 | M34: 0.233333 | N34: 30 | O34: -26.6991 | P34: -27.3812 | Q34: -25.4276
J35: 31 | K35: 0.195876 | L35: 0.089174 | M35: 0.37382 | N35: 31 | O35: -44.3486 | P35: -48.6471 | Q35: -45.4506
J36: 32 | K36: 0.162851 | L36: 0.036458 | M36: 0.190754 | N36: 32 | O36: -43.8806 | P36: -45.4975 | Q36: -41.85
J37: 33 | K37: 0.188961 | L37: 0.0203 | M37: 0.091552 | N37: 33 | O37: -41.5362 | P37: -44.3524 | Q37: -42.4321
J38: 34 | K38: 0.23057 | L38: 0.012334 | M38: 0.035408 | N38: 34 | O38: -45.0279 | P38: -50.7825 | Q38: -48.9923
J39: 35 | K39: 0.209573 | L39: 0.005078 | M39: 0.100607 | N39: 35 | O39: -47.1428 | P39: -48.655 | Q39: -45.6312
J40: 36 | K40: 0.174814 | L40: 0.039461 | M40: 0.10558 | N40: 36 | O40: -34.1868 | P40: -39.9048 | Q40: -39.1889
J41: 37 | K41: 0.170192 | L41: 0.022009 | M41: 0.375725 | N41: 37 | O41: -43.5537 | P41: -46.7561 | Q41: -45.1773
N42: 38 | O42: -45.963 | P42: -59.5353 | Q42: -48.7248
J43: n | K43: =(COUNT(K5:K41)) -> 37 | L43: =(COUNT(L5:L41)) -> 37 | M43: 37 | N43: 39 | O43: -37.7037 | P43: -44.709 | Q43: -38.5806
J44: Mean | K44: =AVERAGE(K5:K41) -> 0.366427973 | L44: =AVERAGE(L5:L41) -> 0.05727724324 | M44: 0.3678258649 | N44: 40 | O44: -46.1145 | P44: -55.17 | Q44: -44.9183
J45: ± SEM | K45: =STDEV(K5:K41)/SQRT(COUNT(K5:K41)) -> 0.05881394364 | L45: =STDEV(L5:L41)/SQRT(COUNT(L5:L41)) -> 0.01707972571 | M45: 0.06146495509 | N45: 41 | O45: -44.1177 | P45: -47.1508 | Q45: -41.8747
N46: 42 | O46: -36.5728 | P46: -38.3379 | Q46: -34.3678
N47: 43 | O47: -41.3051 | P47: -43.5091 | Q47: -40.7889
N48: 44 | O48: -33.8736 | P48: -36.1066 | Q48: -35.7167
O50: =(COUNT(O5:O48)) -> 44 | P50: =(COUNT(P5:P48)) -> 44 | Q50: 44 | R50: n
O51: =AVERAGE(O5:O48) -> -44.01007273 | P51: =AVERAGE(P5:P48) -> -48.53476136 | Q51: -44.141575 | R51: Mean
O52: =STDEV(O5:O48)/SQRT(COUNT(O5:O48)) -> 0.9837271376 | P52: =STDEV(P5:P48)/SQRT(COUNT(P5:P48)) -> 1.190540067 | Q52: 1.038778099 | R52: ± SEM

Sheet Fig.3b
P1: gel (left) | S1: gel (right)
C2: Panel 3b | D2: VGAT neurons | F2: Gal | G2: 182 bp | H2: gel (right) | J2: 2018-09-26 | M2: Panel 3b | N2: VGAT neurons | P2: Gad2 | Q2: 248 bp | S2: Gad1 | T2: 177 bp | V2: 2018-09-26
B11: 500 bp
B13: 200 bp
B14: 100 bp
P19: M - a16 - a17 - a18 - nc - a19 | T19: M - a16 - a17 - a18 - nc - a19
H20: M - a16 - a17 - a18 - a19 - nc
D22: Panel 3b | H22: Gapdh | I22: 171 bp | J22: gel (center) | L22: 2018-10-02
D23: VGAT neurons
D31: 500 bp
D33: 200 bp
D34: 100 bp
I38: nc - M - a16 - a17 - a18 - a19 - pc

Sheet Fig.3d
E2: VGAT neurons | Q2: VGAT neurons
A3: Panel 3d | B3: Gad2 | C3: 248 bp | D3: gel (left) | F3: Gad1 | G3: 177 bp | H3: gel (right) | J3: 2019-09-25 | M3: Panel 3d | N3: Gapdh | O3: 171 bp | P3: gel (left) | S3: Gal | T3: 182 bp | U3: gel (right) | W3: 2019-09-25
L13: 500 bp
L15: 200 bp
L16: 100 bp
D21: M - a22 - a23 - a26 - a30 - a31- nc | H21: M - a22 - a23 - a26 - a30 - a31- nc | O21: M - a22 - a23 - a26 - a30 - a31- nc | T21: M - a22 - a23 - a26 - a30 - a31- nc

Sheet Fig.3e
B2: norm. mRNA levels
B3: # neurons | C3: Gapdh NA-/Ox-A (-) | D3: Gal NA-/Ox-A (-) | E3: Gapdh NA-/Ox-A (+) | F3: Gal NA-/Ox-A (+)
B4: 1 | C4: 2.27245 | D4: 0.000109 | E4: 0.2169064 | F4: 1.62735e-06
B5: 2 | C5: 0.00612073 | D5: 0.000144 | E5: 0.6516755 | F5: 1.62735e-06
B6: 3 | C6: 1.741079 | D6: 0.000162 | E6: 0.3418259 | F6: 1.62735e-06
B7: 4 | C7: 0.8669361 | D7: 0.000121 | E7: 0.6793258 | F7: 1.62735e-06
B8: 5 | C8: 0.1402599 | D8: 0.000117 | E8: 0.2047691 | F8: 1.62735e-06
B9: 6 | C9: 0.8476425 | D9: 0.020125 | E9: 0.1194171 | F9: 1.62735e-06
B10: 7 | C10: 1.125511 | D10: 1.63e-05 | E10: 2.260695 | F10: 1.62735e-06
B11: 8 | E11: 3.525386 | F11: 1.62735e-06
B13: n | C13: =(COUNT(C4:C10)) -> 7 | D13: =(COUNT(D4:D10)) -> 7 | E13: =(COUNT(E4:E11)) -> 8 | F13: =(COUNT(F4:F11)) -> 8
B14: Mean | C14: =AVERAGE(C4:C10) -> 0.99999989 | D14: =AVERAGE(D4:D10) -> 0.002970614286 | E14: =AVERAGE(E4:E11) -> 1.0000001 | F14: =AVERAGE(F4:F11) -> 1.62735e-06
B15: ± SEM | C15: =STDEV(C4:C10)/SQRT(COUNT(C4:C10)) -> 0.3067474512 | D15: =STDEV(D4:D10)/SQRT(COUNT(D4:D10)) -> 0.002859117567 | E15: =STDEV(E4:E11)/SQRT(COUNT(E4:E11)) -> 0.4359991684 | F15: =STDEV(F4:F11)/SQRT(COUNT(F4:F11)) -> 8.003709038e-23

Sheet Fig.4c
C1: left | O1: right
C2: VLPO Vgat →VLPO GABA/Gal | O2: VLPO GABA/Gal →VLPO GABA/Gal
A4: X | B4: Y | M4: X | N4: Y
A5: -0.65 | B5: 0 | M5: -0.65 | N5: 0
A6: -0.6 | B6: 0 | M6: -0.6 | N6: 0
A7: -0.55 | B7: 0 | M7: -0.55 | N7: 0
A8: -0.5 | B8: 0 | M8: -0.5 | N8: 0
A9: -0.45 | B9: 0 | M9: -0.45 | N9: 0
A10: -0.4 | B10: 0 | M10: -0.4 | N10: 0
A11: -0.35 | B11: 0 | M11: -0.35 | N11: 0
A12: -0.3 | B12: 0 | M12: -0.3 | N12: 0
A13: -0.25 | B13: 0 | M13: -0.25 | N13: 0
A14: -0.2 | B14: 0 | M14: -0.2 | N14: 0
A15: -0.15 | B15: 0 | M15: -0.15 | N15: 0
A16: -0.1 | B16: 0 | C16: ↑ | M16: -0.1 | N16: 0 | O16: ↑
A17: -0.05 | B17: 0 | C17: Trials | M17: -0.05 | N17: 0 | O17: Trials
A18: 0 | B18: 0 | M18: 0 | N18: 0
A19: 0.05 | B19: 0 | M19: 0.05 | N19: 1
A20: 0.1 | B20: 0 | J20: Time (s) | M20: 0.1 | N20: 0 | V20: Time (s)
A21: 0.15 | B21: 0 | M21: 0.15 | N21: 0
A22: 0.2 | B22: 0 | M22: 0.2 | N22: 0
A23: 0.25 | B23: 0 | M23: 0.25 | N23: 0
A24: 0.3 | B24: 0 | M24: 0.3 | N24: 1
A25: 0.35 | B25: 0 | M25: 0.35 | N25: 0
A26: 0.4 | B26: 0 | M26: 0.4 | N26: 0
A27: 0.45 | B27: 0 | M27: 0.45 | N27: 0
A28: 0.5 | B28: 0 | M28: 0.5 | N28: 0
A29: 0.55 | B29: 0 | M29: 0.55 | N29: 0
A30: 0.6 | B30: 0 | M30: 0.6 | N30: 0
A31: 0.65 | B31: 0 | M31: 0.65 | N31: 0
A32: 0.7 | B32: 0 | M32: 0.7 | N32: 0
A33: 0.75 | B33: 1 | M33: 0.75 | N33: 0
A34: 0.8 | B34: 0 | M34: 0.8 | N34: 0
A35: 0.85 | B35: 0 | M35: 0.85 | N35: 1
A36: 0.9 | B36: 0 | M36: 0.9 | N36: 0
A37: 0.95 | B37: 0 | M37: 0.95 | N37: 0
A38: 1 | B38: 0 | M38: 1 | N38: 0
A39: 1.05 | B39: 0 | M39: 1.05 | N39: 0
A40: 1.1 | B40: 0 | M40: 1.1 | N40: 0
A41: 1.15 | B41: 0 | M41: 1.15 | N41: 0
A42: 1.2 | B42: 1 | M42: 1.2 | N42: 0
A43: 1.25 | B43: 0 | M43: 1.25 | N43: 1
A44: 1.3 | B44: 0 | M44: 1.3 | N44: 0
A45: 1.35 | B45: 0 | M45: 1.35 | N45: 0
A46: 1.4 | B46: 0 | M46: 1.4 | N46: 0
A47: 1.45 | B47: 0 | M47: 1.45 | N47: 0
A48: 1.5 | B48: 0 | M48: 1.5 | N48: 0
A49: 1.55 | B49: 0 | M49: 1.55 | N49: 0
A50: 1.6 | B50: 0 | M50: 1.6 | N50: 0
A51: 1.65 | B51: 0 | M51: 1.65 | N51: 0
A52: 1.7 | B52: 0 | M52: 1.7 | N52: 0
A53: 1.75 | B53: 0 | M53: 1.75 | N53: 0
A54: 1.8 | B54: 0 | M54: 1.8 | N54: 0
A55: 1.85 | B55: 1 | M55: 1.85 | N55: 0
A56: 1.9 | B56: 0 | M56: 1.9 | N56: 0
A57: 1.95 | B57: 0 | M57: 1.95 | N57: 0
A58: 2 | B58: 1 | M58: 2 | N58: 0
A59: 2.05 | B59: 0 | M59: 2.05 | N59: 0
A60: 2.1 | B60: 0 | M60: 2.1 | N60: 0
A61: 2.15 | B61: 0 | M61: 2.15 | N61: 0
A62: 2.2 | B62: 0 | M62: 2.2 | N62: 0
A63: 2.25 | B63: 0 | M63: 2.25 | N63: 0
A64: 2.3 | B64: 0 | M64: 2.3 | N64: 0
A65: 2.35 | B65: 0 | M65: 2.35 | N65: 0
A66: 2.4 | B66: 0 | M66: 2.4 | N66: 1
A67: 2.45 | B67: 0 | M67: 2.45 | N67: 0
A68: 2.5 | B68: 0 | M68: 2.5 | N68: 0
A69: 2.55 | B69: 0 | M69: 2.55 | N69: 0
A70: 2.6 | B70: 0 | M70: 2.6 | N70: 0
A71: 2.65 | B71: 0 | M71: 2.65 | N71: 0
A72: 2.7 | B72: 0 | M72: 2.7 | N72: 0
A73: 2.75 | B73: 0 | M73: 2.75 | N73: 0
A74: 2.8 | B74: 0 | M74: 2.8 | N74: 0
A75: 2.85 | B75: 0 | M75: 2.85 | N75: 0
A76: 2.9 | B76: 0 | M76: 2.9 | N76: 0
A77: 2.95 | B77: 0 | M77: 2.95 | N77: 0
A78: 3 | B78: 0 | M78: 3 | N78: 0
A79: 3.05 | B79: 0 | M79: 3.05 | N79: 0
A80: 3.1 | B80: 0 | M80: 3.1 | N80: 0
A81: 3.15 | B81: 0 | M81: 3.15 | N81: 0
A82: 3.2 | B82: 0 | M82: 3.2 | N82: 0
A83: 3.25 | B83: 0 | M83: 3.25 | N83: 0
A84: 3.3 | B84: 1 | M84: 3.3 | N84: 0
A85: 3.35 | B85: 0 | M85: 3.35 | N85: 0
A86: 3.4 | B86: 0 | M86: 3.4 | N86: 0
A87: 3.45 | B87: 0 | M87: 3.45 | N87: 0
A88: 3.5 | B88: 0 | M88: 3.5 | N88: 0
A89: 3.55 | B89: 0 | M89: 3.55 | N89: 0
A90: 3.6 | B90: 0 | M90: 3.6 | N90: 0
A91: 3.65 | B91: 0 | M91: 3.65 | N91: 0
A92: 3.7 | B92: 0 | M92: 3.7 | N92: 0
A93: 3.75 | B93: 0 | M93: 3.75 | N93: 0
A94: 3.8 | B94: 0 | M94: 3.8 | N94: 0
A95: 3.85 | B95: 1 | M95: 3.85 | N95: 0
A96: 3.9 | B96: 0 | M96: 3.9 | N96: 0
A97: 3.95 | B97: 0 | M97: 3.95 | N97: 0
A98: 4 | B98: 0 | M98: 4 | N98: 1
A99: 4.05 | B99: 0 | M99: 4.05 | N99: 0
A100: 4.1 | B100: 0 | M100: 4.1 | N100: 1
A101: 4.15 | B101: 0 | M101: 4.15 | N101: 0
A102: 4.2 | B102: 0 | M102: 4.2 | N102: 0
A103: 4.25 | B103: 0 | M103: 4.25 | N103: 0
A104: 4.3 | B104: 0 | M104: 4.3 | N104: 0
A105: 4.35 | B105: 0 | M105: 4.35 | N105: 0
A106: 4.4 | B106: 0 | M106: 4.4 | N106: 0
A107: 4.45 | B107: 0 | M107: 4.45 | N107: 0
A108: 4.5 | B108: 0 | M108: 4.5 | N108: 1
A109: 4.55 | B109: 0 | M109: 4.55 | N109: 0
A110: 4.6 | B110: 1 | M110: 4.6 | N110: 0
A111: 4.65 | B111: 0 | M111: 4.65 | N111: 0
A112: 4.7 | B112: 0 | M112: 4.7 | N112: 0
A113: 4.75 | B113: 0 | M113: 4.75 | N113: 0
A114: 4.8 | B114: 0 | M114: 4.8 | N114: 0
A115: 4.85 | B115: 0 | M115: 4.85 | N115: 0
A116: 4.9 | B116: 0 | M116: 4.9 | N116: 0
A117: 4.95 | B117: 0 | M117: 4.95 | N117: 0
A118: 5 | B118: 0 | M118: 5 | N118: 0
A119: 5.05 | B119: 1 | M119: 5.05 | N119: 0
A120: 5.1 | B120: 0 | M120: 5.1 | N120: 0
A121: 5.15 | B121: 0 | M121: 5.15 | N121: 0
A122: 5.2 | B122: 0 | M122: 5.2 | N122: 0
A123: 5.25 | B123: 0 | M123: 5.25 | N123: 1
A124: 5.3 | B124: 1 | M124: 5.3 | N124: 0
A125: 5.35 | B125: 0 | M125: 5.35 | N125: 0
A126: 5.4 | B126: 0 | M126: 5.4 | N126: 0
A127: 5.45 | B127: 0 | M127: 5.45 | N127: 0
A128: 5.5 | B128: 0 | M128: 5.5 | N128: 0
A129: 5.55 | B129: 0 | M129: 5.55 | N129: 0
A130: 5.6 | B130: 0 | M130: 5.6 | N130: 0
A131: 5.65 | B131: 0 | M131: 5.65 | N131: 0
A132: 5.7 | B132: 0 | M132: 5.7 | N132: 0
A133: 5.75 | B133: 0 | M133: 5.75 | N133: 0
A134: 5.8 | B134: 0 | M134: 5.8 | N134: 0
A135: 5.85 | B135: 1 | M135: 5.85 | N135: 0
A136: 5.9 | B136: 0 | M136: 5.9 | N136: 0
A137: 5.95 | B137: 0 | M137: 5.95 | N137: 0
A138: 6 | B138: 0 | M138: 6 | N138: 0
A139: 6.05 | B139: 0 | M139: 6.05 | N139: 0
A140: 6.1 | B140: 0 | M140: 6.1 | N140: 1
A141: 6.15 | B141: 0 | M141: 6.15 | N141: 0
A142: 6.2 | B142: 0 | M142: 6.2 | N142: 0
A143: 6.25 | B143: 0 | M143: 6.25 | N143: 1
A144: 6.3 | B144: 0 | M144: 6.3 | N144: 0
A145: 6.35 | B145: 0 | M145: 6.35 | N145: 0
A146: 6.4 | B146: 0 | M146: 6.4 | N146: 0
A147: 6.45 | B147: 0 | M147: 6.45 | N147: 0
A148: 6.5 | B148: 1 | M148: 6.5 | N148: 0
A149: 6.55 | B149: 0 | M149: 6.55 | N149: 0
A150: 6.6 | B150: 0 | M150: 6.6 | N150: 0
A151: 6.65 | B151: 0 | M151: 6.65 | N151: 0
A152: 6.7 | B152: 0 | M152: 6.7 | N152: 1
A153: 6.75 | B153: 0 | M153: 6.75 | N153: 0
A154: 6.8 | B154: 0 | M154: 6.8 | N154: 0
A155: 6.85 | B155: 0 | M155: 6.85 | N155: 0
A156: 6.9 | B156: 0 | M156: 6.9 | N156: 0
A157: 6.95 | B157: 0 | M157: 6.95 | N157: 0
A158: 7 | B158: 0 | M158: 7 | N158: 0
A159: 7.05 | B159: 0 | M159: 7.05 | N159: 0
A160: 7.1 | B160: 0 | M160: 7.1 | N160: 0
A161: 7.15 | B161: 0 | M161: 7.15 | N161: 0
A162: 7.2 | B162: 0 | M162: 7.2 | N162: 0
A163: 7.25 | B163: 1 | M163: 7.25 | N163: 0
A164: 7.3 | B164: 0 | M164: 7.3 | N164: 0
A165: 7.35 | B165: 0 | M165: 7.35 | N165: 0
A166: 7.4 | B166: 0 | M166: 7.4 | N166: 0
A167: 7.45 | B167: 0 | M167: 7.45 | N167: 0
A168: 7.5 | B168: 0 | M168: 7.5 | N168: 1
A169: 7.55 | B169: 0 | M169: 7.55 | N169: 0
A170: 7.6 | B170: 0 | M170: 7.6 | N170: 1
A171: 7.65 | B171: 0 | M171: 7.65 | N171: 0
A172: 7.7 | B172: 0 | M172: 7.7 | N172: 0
A173: 7.75 | B173: 1 | M173: 7.75 | N173: 0
A174: 7.8 | B174: 0 | M174: 7.8 | N174: 0
A175: 7.85 | B175: 0 | M175: 7.85 | N175: 0
A176: 7.9 | B176: 0 | M176: 7.9 | N176: 0
A177: 7.95 | B177: 0 | M177: 7.95 | N177: 1
A178: 8 | B178: 0 | M178: 8 | N178: 0
A179: 8.05 | B179: 0 | M179: 8.05 | N179: 0
A180: 8.1 | B180: 0 | M180: 8.1 | N180: 0
A181: 8.15 | B181: 0 | M181: 8.15 | N181: 0
A182: 8.2 | B182: 0 | M182: 8.2 | N182: 0
A183: 8.25 | B183: 0 | M183: 8.25 | N183: 0
A184: 8.3 | B184: 1 | M184: 8.3 | N184: 0
A185: 8.35 | B185: 0 | M185: 8.35 | N185: 0
A186: 8.4 | B186: 0 | M186: 8.4 | N186: 0
A187: 8.45 | B187: 0 | M187: 8.45 | N187: 0
A188: 8.5 | B188: 0 | M188: 8.5 | N188: 0
A189: 8.55 | B189: 0 | M189: 8.55 | N189: 0
A190: 8.6 | B190: 0 | M190: 8.6 | N190: 0
A191: 8.65 | B191: 0 | M191: 8.65 | N191: 0
A192: 8.7 | B192: 0 | M192: 8.7 | N192: 0
A193: 8.75 | B193: 1 | M193: 8.75 | N193: 0
A194: 8.8 | B194: 0 | M194: 8.8 | N194: 0
A195: 8.85 | B195: 0 | M195: 8.85 | N195: 1
A196: 8.9 | B196: 0 | M196: 8.9 | N196: 0
A197: 8.95 | B197: 0 | M197: 8.95 | N197: 1
A198: 9 | B198: 0 | M198: 9 | N198: 0
A199: 9.05 | B199: 0 | M199: 9.05 | N199: 0
A200: 9.1 | B200: 0 | M200: 9.1 | N200: 0
A201: 9.15 | B201: 1 | M201: 9.15 | N201: 0
... 5773 more rows

Sheet Fig.4d
B1: VLPOGABA->VLPOGABA/Gal | J1: VLPOGABA/Gal->VLPOGABA/Gal | Q1: VLPOGABA->VLPOGABA/Gal | R1: VLPOGABA/Gal->VLPOGABA/Gal
A2: bins | B2: 1 | C2: 2 | D2: 3 | E2: 4 | F2: 5 | G2: 6 | H2: 7 | I2: 8 | J2: 1 | K2: 2 | L2: 3 | M2: 4 | N2: 5 | O2: 6 | P2: bin | Q2: Average | R2: Average | S2: SEM | T2: SEM
A3: 0.25 | B3: 40.00 | C3: 16.67 | D3: 6.67 | E3: 6.67 | F3: 6.67 | G3: 3.33 | H3: 6.67 | I3: 6.67 | J3: 3.33 | K3: 13.33 | L3: 20.00 | M3: 0.00 | N3: 6.67 | O3: 0.00 | P3: =A3 -> 0.25 | Q3: =AVERAGE(B3:I3) -> 11.67 | R3: =AVERAGE(J3:O3) -> 7.22 | S3: =STDEV(B3:I3)/SQRT(COUNT(B3:I3)) -> 4.272466296 | T3: =STDEV(J3:O3)/SQRT(COUNT(J3:O3)) -> 3.267875815
A4: 0.50 | B4: 30.00 | C4: 20.00 | D4: 3.33 | E4: 6.67 | F4: 0.00 | G4: 0.00 | H4: 6.67 | I4: 3.33 | J4: 6.67 | K4: 16.67 | L4: 25.00 | M4: 6.67 | N4: 10.00 | O4: 3.33 | P4: 0.50 | Q4: 8.75 | R4: 11.39 | S4: 3.776362363 | T4: 3.289057804
A5: 0.75 | B5: 23.33 | C5: 16.67 | D5: 13.33 | E5: 6.67 | F5: 10.00 | G5: 6.67 | H5: 6.67 | I5: 3.33 | J5: 0.00 | K5: 6.67 | L5: 5.00 | M5: 10.00 | N5: 13.33 | O5: 10.00 | P5: 0.75 | Q5: 10.83 | R5: 7.50 | S5: 2.335564447 | T5: 1.912434942
A6: 1.00 | B6: 23.33 | C6: 36.67 | D6: 10.00 | E6: 3.33 | F6: 6.67 | G6: 3.33 | H6: 3.33 | I6: 0.00 | J6: 0.00 | K6: 16.67 | L6: 20.00 | M6: 3.33 | N6: 16.67 | O6: 3.33 | P6: 1.00 | Q6: 10.83 | R6: 10.00 | S6: 4.487471557 | T6: 3.548604317
A7: 1.25 | B7: 16.67 | C7: 26.67 | D7: 3.33 | E7: 6.67 | F7: 3.33 | G7: 0.00 | H7: 3.33 | I7: 6.67 | J7: 3.33 | K7: 6.67 | L7: 15.00 | M7: 3.33 | N7: 10.00 | O7: 3.33 | P7: 1.25 | Q7: 8.33 | R7: 6.94 | S7: 3.149861451 | T7: 1.944444445
A8: 1.50 | B8: 30.00 | C8: 10.00 | D8: 20.00 | E8: 3.33 | F8: 0.00 | G8: 3.33 | H8: 6.67 | I8: 0.00 | J8: 3.33 | K8: 10.00 | L8: 15.00 | M8: 0.00 | N8: 6.67 | O8: 3.33 | P8: 1.50 | Q8: 9.17 | R8: 6.39 | S8: 3.7664981 | T8: 2.211781026
A9: 1.75 | B9: 23.33 | C9: 23.33 | D9: 6.67 | E9: 3.33 | F9: 3.33 | G9: 6.67 | H9: 16.67 | I9: 16.67 | J9: 6.67 | K9: 6.67 | L9: 10.00 | M9: 3.33 | N9: 16.67 | O9: 6.67 | P9: 1.75 | Q9: 12.50 | R9: 8.33 | S9: 3.004411468 | T9: 1.875771447
A10: 2.00 | B10: 96.67 | C10: 100.00 | D10: 100.00 | E10: 100.00 | F10: 96.67 | G10: 100.00 | H10: 100.00 | I10: 100.00 | J10: 0.00 | K10: 3.33 | L10: 35.00 | M10: 20.00 | N10: 6.67 | O10: 0.00 | P10: 2.00 | Q10: 99.17 | R10: 10.83 | S10: 0.5452720439 | T10: 5.704936134
A11: 2.25 | B11: 20.00 | C11: 3.33 | D11: 3.33 | E11: 3.33 | F11: 10.00 | G11: 3.33 | H11: 16.67 | I11: 0.00 | J11: 3.33 | K11: 3.33 | L11: 15.00 | M11: 13.33 | N11: 3.33 | O11: 0.00 | P11: 2.25 | Q11: 7.50 | R11: 6.39 | S11: 2.578143789 | T11: 2.524570615
A12: 2.50 | B12: 16.67 | C12: 23.33 | D12: 0.00 | E12: 3.33 | F12: 3.33 | G12: 3.33 | H12: 16.67 | I12: 3.33 | J12: 3.33 | K12: 13.33 | L12: 15.00 | M12: 3.33 | N12: 10.00 | O12: 6.67 | P12: 2.50 | Q12: 8.75 | R12: 8.61 | S12: 3.082198983 | T12: 2.037457869
A13: 2.75 | B13: 20.00 | C13: 23.33 | D13: 0.00 | E13: 6.67 | F13: 0.00 | G13: 3.33 | H13: 0.00 | I13: 0.00 | J13: 0.00 | K13: 10.00 | L13: 20.00 | M13: 3.33 | N13: 10.00 | O13: 0.00 | P13: 2.75 | Q13: 6.67 | R13: 7.22 | S13: 3.392334964 | T13: 3.152502435
A14: 3.00 | B14: 30.00 | C14: 26.67 | D14: 6.67 | E14: 10.00 | F14: 13.33 | G14: 3.33 | H14: 6.67 | I14: 0.00 | J14: 6.67 | K14: 0.00 | L14: 10.00 | M14: 6.67 | N14: 10.00 | O14: 3.33 | P14: 3.00 | Q14: 12.08 | R14: 6.11 | S14: 3.828542555 | T14: 1.590869007
A15: 3.25 | B15: 23.33 | C15: 10.00 | D15: 6.67 | E15: 13.33 | F15: 6.67 | G15: 3.33 | H15: 13.33 | I15: 0.00 | J15: 10.00 | K15: 10.00 | L15: 30.00 | M15: 0.00 | N15: 10.00 | O15: 0.00 | P15: 3.25 | Q15: 9.58 | R15: 10.00 | S15: 2.553660261 | T15: 4.472135955
A16: 3.50 | B16: 33.33 | C16: 16.67 | D16: 10.00 | E16: 3.33 | F16: 6.67 | G16: 3.33 | H16: 6.67 | I16: 3.33 | J16: 6.67 | K16: 6.67 | L16: 20.00 | M16: 6.67 | N16: 3.33 | O16: 0.00 | P16: 3.50 | Q16: 10.42 | R16: 7.22 | S16: 3.642268689 | T16: 2.777777778
A17: 3.75 | B17: 16.67 | C17: 30.00 | D17: 0.00 | E17: 6.67 | F17: 10.00 | G17: 0.00 | H17: 6.67 | I17: 0.00 | J17: 3.33 | K17: 6.67 | L17: 5.00 | M17: 6.67 | N17: 3.33 | O17: 10.00 | P17: 3.75 | Q17: 8.75 | R17: 5.83 | S17: 3.669905249 | T17: 1.031898646
A18: 4.00 | B18: 16.67 | C18: 23.33 | D18: 3.33 | E18: 3.33 | F18: 0.00 | G18: 0.00 | H18: 3.33 | I18: 3.33 | J18: 6.67 | K18: 23.33 | L18: 10.00 | M18: 13.33 | N18: 10.00 | O18: 0.00 | P18: 4.00 | Q18: 6.67 | R18: 10.56 | S18: 3.02128694 | T18: 3.152502435
A19: 4.25 | B19: 16.67 | C19: 26.67 | D19: 0.00 | E19: 6.67 | F19: 0.00 | G19: 3.33 | H19: 6.67 | I19: 10.00 | J19: 0.00 | K19: 6.67 | L19: 5.00 | M19: 0.00 | N19: 13.33 | O19: 3.33 | P19: 4.25 | Q19: 8.75 | R19: 4.72 | S19: 3.208364282 | T19: 2.037457869
A20: 4.50 | B20: 13.33 | C20: 20.00 | D20: 6.67 | E20: 3.33 | F20: 3.33 | G20: 10.00 | H20: 3.33 | I20: 6.67 | J20: 10.00 | K20: 6.67 | L20: 20.00 | M20: 13.33 | N20: 6.67 | O20: 0.00 | P20: 4.50 | Q20: 8.33 | R20: 9.44 | S20: 2.089134821 | T20: 2.777777778
A21: 4.75 | B21: 33.33 | C21: 33.33 | D21: 13.33 | E21: 3.33 | F21: 6.67 | G21: 6.67 | H21: 3.33 | I21: 6.67 | J21: 0.00 | K21: 23.33 | L21: 0.00 | M21: 6.67 | N21: 6.67 | O21: 3.33 | P21: 4.75 | Q21: 13.33 | R21: 6.67 | S21: 4.498412437 | T21: 3.548604316
A22: 5.00 | B22: 20.00 | C22: 40.00 | D22: 3.33 | E22: 3.33 | F22: 6.67 | G22: 3.33 | H22: 0.00 | I22: 3.33 | J22: 10.00 | K22: 13.33 | L22: 10.00 | M22: 0.00 | N22: 13.33 | O22: 0.00 | P22: 5.00 | Q22: 10.00 | R22: 7.78 | S22: 4.797486114 | T22: 2.533723166
A23: 5.25 | B23: 20.00 | C23: 20.00 | D23: 3.33 | E23: 3.33 | F23: 6.67 | G23: 3.33 | H23: 13.33 | I23: 6.67 | J23: 3.33 | K23: 13.33 | L23: 10.00 | M23: 10.00 | N23: 3.33 | O23: 6.67 | P23: 5.25 | Q23: 9.58 | R23: 7.78 | S23: 2.553980709 | T23: 1.648044108
A24: 5.50 | B24: 20.00 | C24: 30.00 | D24: 0.00 | E24: 6.67 | F24: 13.33 | G24: 10.00 | H24: 3.33 | I24: 3.33 | J24: 0.00 | K24: 13.33 | L24: 10.00 | M24: 10.00 | N24: 6.67 | O24: 6.67 | P24: 5.50 | Q24: 10.83 | R24: 7.78 | S24: 3.549536075 | T24: 1.859244503
A25: 5.75 | B25: 36.67 | C25: 30.00 | D25: 6.67 | E25: 10.00 | F25: 6.67 | G25: 6.67 | H25: 3.33 | I25: 0.00 | J25: 3.33 | K25: 6.67 | L25: 5.00 | M25: 3.33 | N25: 3.33 | O25: 6.67 | P25: 5.75 | Q25: 12.50 | R25: 4.72 | S25: 4.703816858 | T25: 0.6689774767
A26: 6.00 | B26: 16.67 | C26: 26.67 | D26: 3.33 | E26: 6.67 | F26: 10.00 | G26: 0.00 | H26: 10.00 | I26: 6.67 | J26: 0.00 | K26: 23.33 | L26: 10.00 | M26: 6.67 | N26: 13.33 | O26: 6.67 | P26: 6.00 | Q26: 10.00 | R26: 10.00 | S26: 2.954818532 | T26: 3.220305943
A27: 6.25 | B27: 20.00 | C27: 23.33 | D27: 0.00 | E27: 6.67 | F27: 13.33 | G27: 10.00 | H27: 13.33 | I27: 3.33 | J27: 3.33 | K27: 16.67 | L27: 20.00 | M27: 10.00 | N27: 6.67 | O27: 6.67 | P27: 6.25 | Q27: 11.25 | R27: 10.56 | S27: 2.812775559 | T27: 2.641080961
A28: 6.50 | B28: 33.33 | C28: 33.33 | D28: 6.67 | E28: 10.00 | F28: 6.67 | G28: 10.00 | H28: 0.00 | I28: 0.00 | J28: 6.67 | K28: 0.00 | L28: 20.00 | M28: 6.67 | N28: 20.00 | O28: 3.33 | P28: 6.50 | Q28: 12.50 | R28: 9.44 | S28: 4.745246177 | T28: 3.487189961
A29: 6.75 | B29: 13.33 | C29: 13.33 | D29: 6.67 | E29: 10.00 | F29: 6.67 | G29: 3.33 | H29: 10.00 | I29: 0.00 | J29: 16.67 | K29: 13.33 | L29: 5.00 | M29: 6.67 | N29: 6.67 | O29: 0.00 | P29: 6.75 | Q29: 7.92 | R29: 8.06 | S29: 1.659015227 | T29: 2.450119675
A30: 7.00 | B30: 23.33 | C30: 40.00 | D30: 0.00 | E30: 10.00 | F30: 6.67 | G30: 6.67 | H30: 6.67 | I30: 10.00 | J30: 3.33 | K30: 16.67 | L30: 15.00 | M30: 3.33 | N30: 13.33 | O30: 6.67 | P30: 7.00 | Q30: 12.92 | R30: 9.72 | S30: 4.517794422 | T30: 2.450119675
A31: 7.25 | B31: 30.00 | C31: 6.67 | D31: 3.33 | E31: 13.33 | F31: 13.33 | G31: 3.33 | H31: 0.00 | I31: 6.67 | J31: 10.00 | K31: 10.00 | L31: 15.00 | M31: 3.33 | N31: 13.33 | O31: 0.00 | P31: 7.25 | Q31: 9.58 | R31: 8.61 | S31: 3.359274062 | T31: 2.373334374
A32: 7.50 | B32: 10.00 | C32: 20.00 | D32: 6.67 | E32: 3.33 | F32: 6.67 | G32: 6.67 | H32: 0.00 | I32: 0.00 | J32: 0.00 | K32: 10.00 | L32: 5.00 | M32: 6.67 | N32: 10.00 | O32: 20.00 | P32: 7.50 | Q32: 6.67 | R32: 8.61 | S32: 2.271283813 | T32: 2.735793834
A33: 7.75 | B33: 23.33 | C33: 20.00 | D33: 3.33 | E33: 13.33 | F33: 6.67 | G33: 6.67 | H33: 3.33 | I33: 10.00 | J33: 0.00 | K33: 0.00 | L33: 10.00 | M33: 16.67 | N33: 10.00 | O33: 3.33 | P33: 7.75 | Q33: 10.83 | R33: 6.67 | S33: 2.653707382 | T33: 2.72165527
A34: 8.00 | B34: 13.33 | C34: 33.33 | D34: 0.00 | E34: 10.00 | F34: 16.67 | G34: 3.33 | H34: 6.67 | I34: 3.33 | J34: 3.33 | K34: 33.33 | L34: 5.00 | M34: 10.00 | N34: 3.33 | O34: 3.33 | P34: 8.00 | Q34: 10.83 | R34: 9.72 | S34: 3.766458614 | T34: 4.838439193

Sheet Fig.4f-g
B1: Panel 4f | D1: left | F1: right | H1: Panel 4g
C2: # neurons | D2: Amplitude (pA) | F2: Latency (ms) | I2: # neurons | J2: Amplitude (pA)
C3: 1 | D3: 238.98 | F3: 6.1 | I3: 1 | J3: 54.3072
C4: 2 | D4: 1081.26 | F4: 4.6 | I4: 2 | J4: 14.2983
C5: 3 | D5: 149.88 | F5: 6.7 | I5: 3 | J5: 32.414
C6: 4 | D6: 399.59 | F6: 6.85 | I6: 4 | J6: 172.677
C7: 5 | D7: 275.83 | F7: 4.45 | I7: 5 | J7: 187.808
C8: 6 | D8: 313.17 | F8: 4.05 | I8: 6 | J8: 71.7077
C9: 7 | D9: 467.75 | F9: 3.6 | I9: 7 | J9: 40.7381
C10: 8 | D10: 660.6 | F10: 4.075 | I10: 8 | J10: 11.6821
I11: 9 | J11: 50.8783
C12: n | D12: =(COUNT(D3:D10)) -> 8 | F12: =(COUNT(F3:F10)) -> 8 | I12: 10 | J12: 24.0391
C13: Mean | D13: =AVERAGE(D3:D10) -> 448.3825 | F13: =AVERAGE(F3:F10) -> 5.053125 | I13: 11 | J13: 153.069
C14: ± SEM | D14: =STDEV(D3:D10)/SQRT(COUNT(D3:D10)) -> 106.0101023 | F14: =STDEV(F3:F10)/SQRT(COUNT(F3:F10)) -> 0.4567069018 | I14: 12 | J14: 54.0176
I15: 13 | J15: 27.4703
I16: 14 | J16: 78.5922
I17: 15 | J17: 93.7069
I18: 16 | J18: 192.875
I19: 17 | J19: 65.4944
I20: 18 | J20: 5.01884
I21: 19 | J21: 62.7939
I22: 20 | J22: 71.3389
I23: 21 | J23: 59.2046
I24: 22 | J24: 35.5474
I25: 23 | J25: 16.149
I26: 24 | J26: 17.1509
I27: 25 | J27: 28.7557
I28: 26 | J28: 40.5678
I29: 27 | J29: 27.0951
I30: 28 | J30: 28.7984
I31: 29 | J31: 21.5856
I32: 30 | J32: 88.6995
I33: 31 | J33: 31.4421
I34: 32 | J34: 26.461
I35: 33 | J35: 17.4078
I36: 34 | J36: 31.1571
I37: 35 | J37: 116.634
I38: 36 | J38: 73.7307
I39: 37 | J39: 175.457
I40: 38 | J40: 27.0222
I41: 39 | J41: 42.154
I42: 40 | J42: 36.2801
I43: 41 | J43: 16.802
I44: 42 | J44: 9.47305
I45: 43 | J45: 56.8565
I47: n | J47: =(COUNT(J3:J45)) -> 43
I48: Mean | J48: =AVERAGE(J3:J45) -> 57.89205558
I49: ± SEM | J49: =STDEV(J3:J45)/SQRT(COUNT(J3:J45)) -> 7.653962393

Sheet Fig.4i-j
B2: Panel 4i | D2: Amplitude (pA) | G2: Panel 4j | H2: left | I2: N of active | K2: Panel 4j | L2: right | M2: Unitary current
I3: Channels (N) | M3: i (pA)
B4: # neurons | C4: CTRL | D4: Ox-A | E4: Wash | G4: # neurons | H4: CTRL | I4: Ox-A | K4: # neurons | L4: CTRL | M4: Ox-A
B5: 1 | C5: 70.16 | D5: 118.22 | E5: 82.57 | G5: 1 | H5: 84.24 | I5: 139.62 | K5: 1 | L5: 0.844767 | M5: 0.819367
B6: 2 | C6: 17 | D6: 56 | E6: 19 | G6: 2 | H6: 25.62 | I6: 176.13 | K6: 2 | L6: 0.5703 | M6: 0.336267
B7: 3 | C7: 28 | D7: 43 | E7: 29 | G7: 3 | H7: 25.98 | I7: 77.1 | K7: 3 | L7: 0.518967 | M7: 0.454
B8: 4 | C8: 28 | D8: 67 | E8: 16 | G8: 4 | H8: 28.2 | I8: 71.49 | K8: 4 | L8: 0.836167 | M8: 0.490467
B9: 5 | C9: 23 | D9: 30 | E9: 19 | G9: 5 | H9: 52.62 | I9: 67.98 | K9: 5 | L9: 0.3356 | M9: 0.461133
B10: 6 | C10: 88 | D10: 97 | E10: 88 | G10: 6 | H10: 47.55 | I10: 86.01 | K10: 6 | L10: 0.836567 | M10: 0.7557
B11: 7 | C11: 27 | D11: 36 | E11: 27 | G11: 7 | H11: 35.58 | I11: 37.83 | K11: 7 | L11: 0.700067 | M11: 0.889
B12: 8 | C12: 16 | D12: 35 | E12: 12 | G12: 8 | H12: 135.3 | I12: 167.61 | K12: 8 | L12: 0.449033 | M12: 0.452933
B13: 9 | C13: 58 | D13: 85 | E13: 66
B15: n | C15: =(COUNT(C5:C13)) -> 9 | D15: =(COUNT(D5:D13)) -> 9 | E15: =(COUNT(E5:E13)) -> 9 | G15: n | H15: =(COUNT(H5:H12)) -> 8 | I15: =(COUNT(I5:I12)) -> 8 | K15: n | L15: =(COUNT(L5:L12)) -> 8 | M15: =(COUNT(M5:M12)) -> 8
B16: Mean | C16: =AVERAGE(C5:C13) -> 39.46222222 | D16: =AVERAGE(D5:D13) -> 63.02444444 | E16: =AVERAGE(E5:E13) -> 39.84111111 | G16: Mean | H16: =AVERAGE(H5:H12) -> 54.38625 | I16: =AVERAGE(I5:I12) -> 102.97125 | K16: Mean | L16: =AVERAGE(L5:L12) -> 0.6364335 | M16: =AVERAGE(M5:M12) -> 0.582358375
B17: ± SEM | C17: =STDEV(C5:C13)/SQRT(COUNT(C5:C13)) -> 8.649038768 | D17: =STDEV(D5:D13)/SQRT(COUNT(D5:D13)) -> 10.37909425 | E17: =STDEV(E5:E13)/SQRT(COUNT(E5:E13)) -> 10.08572815 | G17: ± SEM | H17: =STDEV(H5:H12)/SQRT(COUNT(H5:H12)) -> 13.47082972 | I17: =STDEV(I5:I12)/SQRT(COUNT(I5:I12)) -> 18.07195256 | K17: ± SEM | L17: =STDEV(L5:L12)/SQRT(COUNT(L5:L12)) -> 0.06958944898 | M17: =STDEV(M5:M12)/SQRT(COUNT(M5:M12)) -> 0.07284730542

Sheet Fig.6d
D1: orexin →VLPO
A2: X | B2: Y
A3: -0.65 | B3: 0
A4: -0.6 | B4: 1
A5: -0.55 | B5: 0
A6: -0.5 | B6: 1
A7: -0.45 | B7: 0
A8: -0.4 | B8: 0
A9: -0.35 | B9: 1
A10: -0.3 | B10: 0
A11: -0.25 | B11: 0
A12: -0.2 | B12: 0
A13: -0.15 | B13: 1
A14: -0.1 | B14: 0 | C14: ↑
A15: -0.05 | B15: 1 | C15: Trials
A16: 0 | B16: 0
A17: 0.05 | B17: 0
A18: 0.1 | B18: 0 | J18: Time (s)
A19: 0.15 | B19: 1
A20: 0.2 | B20: 0
A21: 0.25 | B21: 0
A22: 0.3 | B22: 0
A23: 0.35 | B23: 0
A24: 0.4 | B24: 0
A25: 0.45 | B25: 0
A26: 0.5 | B26: 1
A27: 0.55 | B27: 0
A28: 0.6 | B28: 0
A29: 0.65 | B29: 1
A30: 0.7 | B30: 0
A31: 0.75 | B31: 1
A32: 0.8 | B32: 0
A33: 0.85 | B33: 1
A34: 0.9 | B34: 0
A35: 0.95 | B35: 0
A36: 1 | B36: 1
A37: 1.05 | B37: 0
A38: 1.1 | B38: 0
A39: 1.15 | B39: 0
A40: 1.2 | B40: 0
A41: 1.25 | B41: 1
A42: 1.3 | B42: 0
A43: 1.35 | B43: 0
A44: 1.4 | B44: 0
A45: 1.45 | B45: 1
A46: 1.5 | B46: 0
A47: 1.55 | B47: 0
A48: 1.6 | B48: 0
A49: 1.65 | B49: 1
A50: 1.7 | B50: 0
A51: 1.75 | B51: 1
A52: 1.8 | B52: 0
A53: 1.85 | B53: 0
A54: 1.9 | B54: 0
A55: 1.95 | B55: 0
A56: 2 | B56: 1
A57: 2.05 | B57: 0
A58: 2.1 | B58: 0
A59: 2.15 | B59: 0
A60: 2.2 | B60: 0
A61: 2.25 | B61: 0
A62: 2.3 | B62: 1
A63: 2.35 | B63: 0
A64: 2.4 | B64: 0
A65: 2.45 | B65: 0
A66: 2.5 | B66: 1
A67: 2.55 | B67: 0
A68: 2.6 | B68: 0
A69: 2.65 | B69: 0
A70: 2.7 | B70: 0
A71: 2.75 | B71: 0
A72: 2.8 | B72: 0
A73: 2.85 | B73: 0
A74: 2.9 | B74: 1
A75: 2.95 | B75: 1
A76: 3 | B76: 0
A77: 3.05 | B77: 0
A78: 3.1 | B78: 0
A79: 3.15 | B79: 0
A80: 3.2 | B80: 0
A81: 3.25 | B81: 1
A82: 3.3 | B82: 0
A83: 3.35 | B83: 0
A84: 3.4 | B84: 0
A85: 3.45 | B85: 0
A86: 3.5 | B86: 0
A87: 3.55 | B87: 0
A88: 3.6 | B88: 0
A89: 3.65 | B89: 1
A90: 3.7 | B90: 0
A91: 3.75 | B91: 0
A92: 3.8 | B92: 1
A93: 3.85 | B93: 0
A94: 3.9 | B94: 1
A95: 3.95 | B95: 0
A96: 4 | B96: 0
A97: 4.05 | B97: 0
A98: 4.1 | B98: 0
A99: 4.15 | B99: 1
A100: 4.2 | B100: 0
A101: 4.25 | B101: 1
A102: 4.3 | B102: 0
A103: 4.35 | B103: 0
A104: 4.4 | B104: 1
A105: 4.45 | B105: 0
A106: 4.5 | B106: 1
A107: 4.55 | B107: 0
A108: 4.6 | B108: 1
A109: 4.65 | B109: 1
A110: 4.7 | B110: 0
A111: 4.75 | B111: 0
A112: 4.8 | B112: 1
A113: 4.85 | B113: 0
A114: 4.9 | B114: 1
A115: 4.95 | B115: 1
A116: 5 | B116: 0
A117: 5.05 | B117: 0
A118: 5.1 | B118: 0
A119: 5.15 | B119: 0
A120: 5.2 | B120: 0
A121: 5.25 | B121: 0
A122: 5.3 | B122: 0
A123: 5.35 | B123: 0
A124: 5.4 | B124: 0
A125: 5.45 | B125: 0
A126: 5.5 | B126: 1
A127: 5.55 | B127: 1
A128: 5.6 | B128: 0
A129: 5.65 | B129: 0
A130: 5.7 | B130: 1
A131: 5.75 | B131: 1
A132: 5.8 | B132: 1
A133: 5.85 | B133: 0
A134: 5.9 | B134: 0
A135: 5.95 | B135: 1
A136: 6 | B136: 1
A137: 6.05 | B137: 0
A138: 6.1 | B138: 0
A139: 6.15 | B139: 0
A140: 6.2 | B140: 1
A141: 6.25 | B141: 0
A142: 6.3 | B142: 0
A143: 6.35 | B143: 0
A144: 6.4 | B144: 1
A145: 6.45 | B145: 0
A146: 6.5 | B146: 0
A147: 6.55 | B147: 0
A148: 6.6 | B148: 1
A149: 6.65 | B149: 0
A150: 6.7 | B150: 1
A151: 6.75 | B151: 1
A152: 6.8 | B152: 0
A153: 6.85 | B153: 0
A154: 6.9 | B154: 0
A155: 6.95 | B155: 0
A156: 7 | B156: 1
A157: 7.05 | B157: 0
A158: 7.1 | B158: 0
A159: 7.15 | B159: 0
A160: 7.2 | B160: 0
A161: 7.25 | B161: 1
A162: 7.3 | B162: 0
A163: 7.35 | B163: 1
A164: 7.4 | B164: 0
A165: 7.45 | B165: 0
A166: 7.5 | B166: 0
A167: 7.55 | B167: 0
A168: 7.6 | B168: 0
A169: 7.65 | B169: 0
A170: 7.7 | B170: 0
A171: 7.75 | B171: 0
A172: 7.8 | B172: 1
A173: 7.85 | B173: 0
A174: 7.9 | B174: 0
A175: 7.95 | B175: 0
A176: 8 | B176: 1
A177: 8.05 | B177: 0
A178: 8.1 | B178: 0
A179: 8.15 | B179: 0
A180: 8.2 | B180: 0
A181: 8.25 | B181: 1
A182: 8.3 | B182: 0
A183: 8.35 | B183: 0
A184: 8.4 | B184: 0
A185: 8.45 | B185: 0
A186: 8.5 | B186: 0
A187: 8.55 | B187: 0
A188: 8.6 | B188: 0
A189: 8.65 | B189: 0
A190: 8.7 | B190: 0
A191: 8.75 | B191: 0
A192: 8.8 | B192: 0
A193: 8.85 | B193: 0
A194: 8.9 | B194: 0
A195: 8.95 | B195: 0
A196: 9 | B196: 0
A197: 9.05 | B197: 0
A198: 9.1 | B198: 1
A199: 9.15 | B199: 0
A200: 9.2 | B200: 0
... 5772 more rows

Sheet Fig.6e
B1: Cells Connected | O1: Cells not Connected | BL1: Cells Connected | BM1: Cells not Connected
A2: bins | B2: 1 | C2: 2 | D2: 3 | E2: 4 | F2: 5 | G2: 6 | H2: 7 | I2: 8 | J2: 9 | K2: 10 | L2: 11 | M2: 12 | N2: 13 | O2: 1 | P2: 2 | Q2: 3 | R2: 4 | S2: 5 | T2: 6 | U2: 7 | V2: 8 | W2: 9 | X2: 10 | Y2: 11 | Z2: 12 | AA2: 13 | AB2: 14 | AC2: 15 | AD2: 16 | AE2: 17 | AF2: 18 | AG2: 19 | AH2: 20 | AI2: 21 | AJ2: 22 | AK2: 23 | AL2: 24 | AM2: 25 | AN2: 26 | AO2: 27 | AP2: 28 | AQ2: 29 | AR2: 30 | AS2: 31 | AT2: 32 | AU2: 33 | AV2: 34 | AW2: 35 | AX2: 36 | AY2: 37 | AZ2: 38 | BA2: 39 | BB2: 40 | BC2: 41 | BD2: 42 | BE2: 43 | BF2: 44 | BG2: 45 | BH2: 46 | BI2: 47 | BJ2: 48 | BK2: bin | BL2: Average | BM2: Average | BN2: SEM | BO2: SEM
A3: 0.25 | B3: 10.00 | C3: 13.33 | D3: 0.00 | E3: 30.00 | F3: 23.33 | G3: 16.67 | H3: 36.67 | I3: 20.00 | J3: 20.00 | K3: 13.33 | L3: 6.67 | M3: 30.00 | N3: 36.36 | O3: 23.33 | P3: 33.33 | Q3: 46.67 | R3: 13.33 | S3: 23.33 | T3: 0.00 | U3: 43.33 | V3: 43.33 | W3: 26.67 | X3: 3.33 | Y3: 36.67 | Z3: 20.00 | AA3: 33.33 | AB3: 40.00 | AC3: 30.00 | AD3: 3.33 | AE3: 6.67 | AF3: 6.67 | AG3: 30.00 | AH3: 23.33 | AI3: 3.33 | AJ3: 6.67 | AK3: 13.33 | AL3: 6.67 | AM3: 3.45 | AN3: 16.67 | AO3: 26.67 | AP3: 43.33 | AQ3: 0.00 | AR3: 86.67 | AS3: 36.67 | AT3: 20.00 | AU3: 40.00 | AV3: 6.67 | AW3: 10.00 | AX3: 10.00 | AY3: 23.33 | AZ3: 23.33 | BA3: 30.00 | BB3: 0.00 | BC3: 0.00 | BD3: 10.00 | BE3: 63.33 | BF3: 8.33 | BG3: 17.24 | BH3: 3.33 | BI3: 3.33 | BJ3: 52.63 | BK3: =A3 -> 0.25 | BL3: =AVERAGE(B3:N3) -> 19.72 | BM3: =AVERAGE(O3:BJ3) -> 21.91 | BN3: =STDEV(B3:N3)/SQRT(COUNT(B3:N3)) -> 3.135219799 | BO3: =STDEV(O3:BJ3)/SQRT(COUNT(O3:BJ3)) -> 2.69681722
A4: 0.50 | B4: 16.67 | C4: 13.33 | D4: 10.00 | E4: 33.33 | F4: 33.33 | G4: 16.67 | H4: 43.33 | I4: 16.67 | J4: 10.00 | K4: 3.33 | L4: 10.00 | M4: 50.00 | N4: 9.09 | O4: 26.67 | P4: 46.67 | Q4: 26.67 | R4: 10.00 | S4: 33.33 | T4: 26.67 | U4: 33.33 | V4: 33.33 | W4: 56.67 | X4: 10.00 | Y4: 20.00 | Z4: 43.33 | AA4: 26.67 | AB4: 53.33 | AC4: 53.33 | AD4: 13.33 | AE4: 33.33 | AF4: 33.33 | AG4: 40.00 | AH4: 26.67 | AI4: 10.00 | AJ4: 13.33 | AK4: 13.33 | AL4: 20.00 | AM4: 20.69 | AN4: 26.67 | AO4: 36.67 | AP4: 73.33 | AQ4: 13.33 | AR4: 66.67 | AS4: 30.00 | AT4: 6.67 | AU4: 36.67 | AV4: 16.67 | AW4: 30.00 | AX4: 16.67 | AY4: 36.67 | AZ4: 13.33 | BA4: 16.67 | BB4: 3.45 | BC4: 3.45 | BD4: 5.00 | BE4: 36.67 | BF4: 12.50 | BG4: 0.00 | BH4: 0.00 | BI4: 0.00 | BJ4: 36.84 | BK4: 0.50 | BL4: 20.44 | BM4: 25.87 | BN4: 4.060451728 | BO4: 2.500162933
A5: 0.75 | B5: 10.00 | C5: 23.33 | D5: 6.67 | E5: 43.33 | F5: 33.33 | G5: 13.33 | H5: 60.00 | I5: 23.33 | J5: 10.00 | K5: 0.00 | L5: 10.00 | M5: 23.33 | N5: 9.09 | O5: 23.33 | P5: 30.00 | Q5: 53.33 | R5: 6.67 | S5: 20.00 | T5: 16.67 | U5: 33.33 | V5: 36.67 | W5: 16.67 | X5: 6.67 | Y5: 26.67 | Z5: 36.67 | AA5: 43.33 | AB5: 23.33 | AC5: 26.67 | AD5: 10.00 | AE5: 16.67 | AF5: 16.67 | AG5: 46.67 | AH5: 13.33 | AI5: 6.67 | AJ5: 6.67 | AK5: 26.67 | AL5: 23.33 | AM5: 17.24 | AN5: 20.00 | AO5: 10.00 | AP5: 56.67 | AQ5: 3.33 | AR5: 76.67 | AS5: 46.67 | AT5: 30.00 | AU5: 23.33 | AV5: 6.67 | AW5: 33.33 | AX5: 16.67 | AY5: 26.67 | AZ5: 16.67 | BA5: 23.33 | BB5: 3.45 | BC5: 3.45 | BD5: 10.00 | BE5: 60.00 | BF5: 8.33 | BG5: 3.45 | BH5: 6.67 | BI5: 6.67 | BJ5: 52.63 | BK5: 0.75 | BL5: 20.44 | BM5: 23.51 | BN5: 4.664538938 | BO5: 2.486636866
A6: 1.00 | B6: 20.00 | C6: 13.33 | D6: 6.67 | E6: 33.33 | F6: 10.00 | G6: 10.00 | H6: 46.67 | I6: 16.67 | J6: 23.33 | K6: 16.67 | L6: 3.33 | M6: 46.67 | N6: 9.09 | O6: 40.00 | P6: 50.00 | Q6: 50.00 | R6: 10.00 | S6: 30.00 | T6: 6.67 | U6: 23.33 | V6: 50.00 | W6: 13.33 | X6: 3.33 | Y6: 36.67 | Z6: 23.33 | AA6: 20.00 | AB6: 40.00 | AC6: 20.00 | AD6: 13.33 | AE6: 26.67 | AF6: 26.67 | AG6: 40.00 | AH6: 10.00 | AI6: 3.33 | AJ6: 10.00 | AK6: 16.67 | AL6: 13.33 | AM6: 20.69 | AN6: 20.00 | AO6: 13.33 | AP6: 50.00 | AQ6: 16.67 | AR6: 60.00 | AS6: 33.33 | AT6: 20.00 | AU6: 26.67 | AV6: 20.00 | AW6: 13.33 | AX6: 3.33 | AY6: 30.00 | AZ6: 23.33 | BA6: 40.00 | BB6: 3.45 | BC6: 3.45 | BD6: 5.00 | BE6: 30.00 | BF6: 16.67 | BG6: 0.00 | BH6: 10.00 | BI6: 10.00 | BJ6: 42.11 | BK6: 1.00 | BL6: 19.67 | BM6: 22.67 | BN6: 3.963743636 | BO6: 2.188932984
A7: 1.25 | B7: 10.00 | C7: 23.33 | D7: 3.33 | E7: 30.00 | F7: 30.00 | G7: 6.67 | H7: 50.00 | I7: 26.67 | J7: 26.67 | K7: 13.33 | L7: 20.00 | M7: 30.00 | N7: 27.27 | O7: 16.67 | P7: 46.67 | Q7: 26.67 | R7: 10.00 | S7: 26.67 | T7: 13.33 | U7: 13.33 | V7: 30.00 | W7: 10.00 | X7: 20.00 | Y7: 20.00 | Z7: 43.33 | AA7: 50.00 | AB7: 40.00 | AC7: 40.00 | AD7: 10.00 | AE7: 33.33 | AF7: 33.33 | AG7: 30.00 | AH7: 16.67 | AI7: 13.33 | AJ7: 13.33 | AK7: 16.67 | AL7: 16.67 | AM7: 3.45 | AN7: 30.00 | AO7: 10.00 | AP7: 96.67 | AQ7: 6.67 | AR7: 80.00 | AS7: 26.67 | AT7: 13.33 | AU7: 33.33 | AV7: 23.33 | AW7: 20.00 | AX7: 30.00 | AY7: 40.00 | AZ7: 16.67 | BA7: 26.67 | BB7: 0.00 | BC7: 0.00 | BD7: 0.00 | BE7: 66.67 | BF7: 4.17 | BG7: 6.90 | BH7: 6.67 | BI7: 6.67 | BJ7: 68.42 | BK7: 1.25 | BL7: 22.87 | BM7: 25.13 | BN7: 3.439986118 | BO7: 3.001323615
A8: 1.50 | B8: 16.67 | C8: 23.33 | D8: 6.67 | E8: 30.00 | F8: 20.00 | G8: 3.33 | H8: 60.00 | I8: 16.67 | J8: 20.00 | K8: 16.67 | L8: 10.00 | M8: 13.33 | N8: 36.36 | O8: 30.00 | P8: 56.67 | Q8: 56.67 | R8: 6.67 | S8: 3.33 | T8: 13.33 | U8: 30.00 | V8: 50.00 | W8: 3.33 | X8: 10.00 | Y8: 40.00 | Z8: 23.33 | AA8: 26.67 | AB8: 36.67 | AC8: 53.33 | AD8: 13.33 | AE8: 26.67 | AF8: 26.67 | AG8: 40.00 | AH8: 23.33 | AI8: 3.33 | AJ8: 10.00 | AK8: 16.67 | AL8: 10.00 | AM8: 24.14 | AN8: 43.33 | AO8: 13.33 | AP8: 63.33 | AQ8: 3.33 | AR8: 63.33 | AS8: 50.00 | AT8: 20.00 | AU8: 33.33 | AV8: 13.33 | AW8: 16.67 | AX8: 0.00 | AY8: 36.67 | AZ8: 16.67 | BA8: 33.33 | BB8: 6.90 | BC8: 6.90 | BD8: 0.00 | BE8: 46.67 | BF8: 12.50 | BG8: 6.90 | BH8: 6.67 | BI8: 6.67 | BJ8: 31.58 | BK8: 1.50 | BL8: 21.00 | BM8: 24.28 | BN8: 4.081817376 | BO8: 2.619100525
A9: 1.75 | B9: 16.67 | C9: 16.67 | D9: 10.00 | E9: 30.00 | F9: 23.33 | G9: 6.67 | H9: 56.67 | I9: 10.00 | J9: 40.00 | K9: 10.00 | L9: 20.00 | M9: 26.67 | N9: 9.09 | O9: 26.67 | P9: 40.00 | Q9: 23.33 | R9: 0.00 | S9: 3.33 | T9: 6.67 | U9: 40.00 | V9: 36.67 | W9: 20.00 | X9: 20.00 | Y9: 16.67 | Z9: 30.00 | AA9: 40.00 | AB9: 36.67 | AC9: 40.00 | AD9: 10.00 | AE9: 26.67 | AF9: 26.67 | AG9: 6.67 | AH9: 30.00 | AI9: 6.67 | AJ9: 6.67 | AK9: 10.00 | AL9: 10.00 | AM9: 20.69 | AN9: 26.67 | AO9: 20.00 | AP9: 76.67 | AQ9: 6.67 | AR9: 70.00 | AS9: 53.33 | AT9: 26.67 | AU9: 26.67 | AV9: 10.00 | AW9: 20.00 | AX9: 16.67 | AY9: 26.67 | AZ9: 20.00 | BA9: 33.33 | BB9: 3.45 | BC9: 3.45 | BD9: 5.00 | BE9: 46.67 | BF9: 8.33 | BG9: 6.90 | BH9: 0.00 | BI9: 0.00 | BJ9: 52.63 | BK9: 1.75 | BL9: 21.21 | BM9: 22.79 | BN9: 4.003130324 | BO9: 2.574333071
A10: 2.00 | B10: 96.67 | C10: 56.67 | D10: 26.67 | E10: 60.00 | F10: 86.67 | G10: 100.00 | H10: 113.33 | I10: 100.00 | J10: 96.67 | K10: 63.33 | L10: 63.33 | M10: 103.33 | N10: 72.73 | O10: 16.67 | P10: 40.00 | Q10: 20.00 | R10: 10.00 | S10: 26.67 | T10: 13.33 | U10: 50.00 | V10: 36.67 | W10: 20.00 | X10: 13.33 | Y10: 16.67 | Z10: 46.67 | AA10: 20.00 | AB10: 36.67 | AC10: 36.67 | AD10: 6.67 | AE10: 20.00 | AF10: 20.00 | AG10: 23.33 | AH10: 6.67 | AI10: 0.00 | AJ10: 10.00 | AK10: 16.67 | AL10: 23.33 | AM10: 24.14 | AN10: 33.33 | AO10: 40.00 | AP10: 53.33 | AQ10: 10.00 | AR10: 80.00 | AS10: 26.67 | AT10: 23.33 | AU10: 13.33 | AV10: 6.67 | AW10: 23.33 | AX10: 13.33 | AY10: 36.67 | AZ10: 20.00 | BA10: 26.67 | BB10: 3.45 | BC10: 3.45 | BD10: 0.00 | BE10: 26.67 | BF10: 8.33 | BG10: 3.45 | BH10: 10.00 | BI10: 10.00 | BJ10: 15.79 | BK10: 2.00 | BL10: 79.95 | BM10: 21.71 | BN10: 6.911929628 | BO10: 2.260784238
A11: 2.25 | B11: 10.00 | C11: 30.00 | D11: 3.33 | E11: 26.67 | F11: 30.00 | G11: 6.67 | H11: 80.00 | I11: 16.67 | J11: 10.00 | K11: 3.33 | L11: 6.67 | M11: 43.33 | N11: 27.27 | O11: 20.00 | P11: 30.00 | Q11: 46.67 | R11: 10.00 | S11: 26.67 | T11: 16.67 | U11: 16.67 | V11: 40.00 | W11: 20.00 | X11: 6.67 | Y11: 16.67 | Z11: 50.00 | AA11: 30.00 | AB11: 43.33 | AC11: 46.67 | AD11: 3.33 | AE11: 26.67 | AF11: 26.67 | AG11: 23.33 | AH11: 10.00 | AI11: 10.00 | AJ11: 10.00 | AK11: 16.67 | AL11: 10.00 | AM11: 6.90 | AN11: 30.00 | AO11: 20.00 | AP11: 63.33 | AQ11: 10.00 | AR11: 70.00 | AS11: 26.67 | AT11: 23.33 | AU11: 26.67 | AV11: 6.67 | AW11: 16.67 | AX11: 10.00 | AY11: 16.67 | AZ11: 20.00 | BA11: 30.00 | BB11: 6.90 | BC11: 6.90 | BD11: 5.00 | BE11: 43.33 | BF11: 0.00 | BG11: 17.24 | BH11: 6.67 | BI11: 6.67 | BJ11: 47.37 | BK11: 2.25 | BL11: 22.61 | BM11: 22.37 | BN11: 5.924415653 | BO11: 2.327051625
A12: 2.50 | B12: 6.67 | C12: 16.67 | D12: 3.33 | E12: 33.33 | F12: 23.33 | G12: 6.67 | H12: 53.33 | I12: 10.00 | J12: 23.33 | K12: 10.00 | L12: 20.00 | M12: 23.33 | N12: 18.18 | O12: 26.67 | P12: 50.00 | Q12: 30.00 | R12: 20.00 | S12: 20.00 | T12: 23.33 | U12: 40.00 | V12: 66.67 | W12: 26.67 | X12: 6.67 | Y12: 30.00 | Z12: 33.33 | AA12: 40.00 | AB12: 33.33 | AC12: 40.00 | AD12: 16.67 | AE12: 13.33 | AF12: 13.33 | AG12: 30.00 | AH12: 26.67 | AI12: 6.67 | AJ12: 10.00 | AK12: 13.33 | AL12: 13.33 | AM12: 13.79 | AN12: 30.00 | AO12: 20.00 | AP12: 60.00 | AQ12: 6.67 | AR12: 106.67 | AS12: 43.33 | AT12: 20.00 | AU12: 33.33 | AV12: 10.00 | AW12: 20.00 | AX12: 20.00 | AY12: 33.33 | AZ12: 23.33 | BA12: 16.67 | BB12: 3.45 | BC12: 3.45 | BD12: 5.00 | BE12: 50.00 | BF12: 8.33 | BG12: 13.79 | BH12: 6.67 | BI12: 6.67 | BJ12: 31.58 | BK12: 2.50 | BL12: 19.09 | BM12: 25.33 | BN12: 3.720377574 | BO12: 2.756604793
A13: 2.75 | B13: 6.67 | C13: 13.33 | D13: 16.67 | E13: 26.67 | F13: 33.33 | G13: 3.33 | H13: 56.67 | I13: 16.67 | J13: 26.67 | K13: 16.67 | L13: 6.67 | M13: 36.67 | N13: 18.18 | O13: 20.00 | P13: 36.67 | Q13: 43.33 | R13: 16.67 | S13: 10.00 | T13: 10.00 | U13: 50.00 | V13: 46.67 | W13: 20.00 | X13: 13.33 | Y13: 26.67 | Z13: 46.67 | AA13: 23.33 | AB13: 36.67 | AC13: 43.33 | AD13: 3.33 | AE13: 23.33 | AF13: 23.33 | AG13: 23.33 | AH13: 13.33 | AI13: 3.33 | AJ13: 6.67 | AK13: 30.00 | AL13: 20.00 | AM13: 13.79 | AN13: 30.00 | AO13: 30.00 | AP13: 40.00 | AQ13: 6.67 | AR13: 60.00 | AS13: 30.00 | AT13: 16.67 | AU13: 13.33 | AV13: 20.00 | AW13: 20.00 | AX13: 16.67 | AY13: 36.67 | AZ13: 10.00 | BA13: 43.33 | BB13: 3.45 | BC13: 3.45 | BD13: 5.00 | BE13: 46.67 | BF13: 4.17 | BG13: 13.79 | BH13: 10.00 | BI13: 10.00 | BJ13: 21.05 | BK13: 2.75 | BL13: 21.40 | BM13: 22.81 | BN13: 4.06507693 | BO13: 2.135733842
A14: 3.00 | B14: 26.67 | C14: 6.67 | D14: 13.33 | E14: 26.67 | F14: 26.67 | G14: 3.33 | H14: 40.00 | I14: 30.00 | J14: 13.33 | K14: 23.33 | L14: 23.33 | M14: 20.00 | N14: 27.27 | O14: 23.33 | P14: 43.33 | Q14: 33.33 | R14: 3.33 | S14: 33.33 | T14: 13.33 | U14: 36.67 | V14: 20.00 | W14: 26.67 | X14: 10.00 | Y14: 23.33 | Z14: 26.67 | AA14: 26.67 | AB14: 20.00 | AC14: 26.67 | AD14: 3.33 | AE14: 30.00 | AF14: 30.00 | AG14: 53.33 | AH14: 10.00 | AI14: 6.67 | AJ14: 6.67 | AK14: 13.33 | AL14: 20.00 | AM14: 6.90 | AN14: 23.33 | AO14: 13.33 | AP14: 60.00 | AQ14: 10.00 | AR14: 60.00 | AS14: 20.00 | AT14: 10.00 | AU14: 23.33 | AV14: 10.00 | AW14: 26.67 | AX14: 6.67 | AY14: 30.00 | AZ14: 36.67 | BA14: 36.67 | BB14: 0.00 | BC14: 0.00 | BD14: 0.00 | BE14: 43.33 | BF14: 16.67 | BG14: 6.90 | BH14: 13.33 | BI14: 13.33 | BJ14: 78.95 | BK14: 3.00 | BL14: 21.59 | BM14: 22.63 | BN14: 2.79678189 | BO14: 2.461119032
A15: 3.25 | B15: 6.67 | C15: 13.33 | D15: 3.33 | E15: 50.00 | F15: 33.33 | G15: 10.00 | H15: 56.67 | I15: 30.00 | J15: 6.67 | K15: 6.67 | L15: 20.00 | M15: 20.00 | N15: 45.45 | O15: 20.00 | P15: 40.00 | Q15: 40.00 | R15: 6.67 | S15: 10.00 | T15: 13.33 | U15: 23.33 | V15: 50.00 | W15: 20.00 | X15: 16.67 | Y15: 33.33 | Z15: 36.67 | AA15: 33.33 | AB15: 50.00 | AC15: 40.00 | AD15: 3.33 | AE15: 16.67 | AF15: 16.67 | AG15: 26.67 | AH15: 23.33 | AI15: 10.00 | AJ15: 16.67 | AK15: 3.33 | AL15: 6.67 | AM15: 17.24 | AN15: 23.33 | AO15: 10.00 | AP15: 40.00 | AQ15: 6.67 | AR15: 63.33 | AS15: 16.67 | AT15: 16.67 | AU15: 33.33 | AV15: 10.00 | AW15: 30.00 | AX15: 10.00 | AY15: 40.00 | AZ15: 10.00 | BA15: 26.67 | BB15: 10.34 | BC15: 10.34 | BD15: 5.00 | BE15: 46.67 | BF15: 8.33 | BG15: 10.34 | BH15: 0.00 | BI15: 0.00 | BJ15: 52.63 | BK15: 3.25 | BL15: 23.24 | BM15: 21.96 | BN15: 5.056878412 | BO15: 2.262710626
A16: 3.50 | B16: 3.33 | C16: 10.00 | D16: 13.33 | E16: 40.00 | F16: 20.00 | G16: 10.00 | H16: 46.67 | I16: 16.67 | J16: 23.33 | K16: 13.33 | L16: 16.67 | M16: 20.00 | N16: 9.09 | O16: 33.33 | P16: 43.33 | Q16: 50.00 | R16: 16.67 | S16: 26.67 | T16: 0.00 | U16: 40.00 | V16: 43.33 | W16: 13.33 | X16: 3.33 | Y16: 36.67 | Z16: 23.33 | AA16: 30.00 | AB16: 30.00 | AC16: 30.00 | AD16: 3.33 | AE16: 13.33 | AF16: 13.33 | AG16: 23.33 | AH16: 36.67 | AI16: 6.67 | AJ16: 6.67 | AK16: 16.67 | AL16: 20.00 | AM16: 10.34 | AN16: 26.67 | AO16: 16.67 | AP16: 40.00 | AQ16: 6.67 | AR16: 53.33 | AS16: 33.33 | AT16: 16.67 | AU16: 26.67 | AV16: 13.33 | AW16: 23.33 | AX16: 13.33 | AY16: 66.67 | AZ16: 10.00 | BA16: 20.00 | BB16: 6.90 | BC16: 6.90 | BD16: 5.00 | BE16: 43.33 | BF16: 16.67 | BG16: 10.34 | BH16: 3.33 | BI16: 3.33 | BJ16: 36.84 | BK16: 3.50 | BL16: 18.65 | BM16: 22.28 | BN16: 3.402824316 | BO16: 2.229139406
A17: 3.75 | B17: 13.33 | C17: 10.00 | D17: 6.67 | E17: 30.00 | F17: 26.67 | G17: 3.33 | H17: 63.33 | I17: 26.67 | J17: 26.67 | K17: 6.67 | L17: 10.00 | M17: 36.67 | N17: 18.18 | O17: 6.67 | P17: 43.33 | Q17: 56.67 | R17: 6.67 | S17: 13.33 | T17: 10.00 | U17: 26.67 | V17: 30.00 | W17: 20.00 | X17: 10.00 | Y17: 33.33 | Z17: 53.33 | AA17: 46.67 | AB17: 26.67 | AC17: 46.67 | AD17: 20.00 | AE17: 23.33 | AF17: 23.33 | AG17: 63.33 | AH17: 20.00 | AI17: 13.33 | AJ17: 10.00 | AK17: 20.00 | AL17: 10.00 | AM17: 6.90 | AN17: 30.00 | AO17: 26.67 | AP17: 53.33 | AQ17: 10.00 | AR17: 73.33 | AS17: 43.33 | AT17: 23.33 | AU17: 30.00 | AV17: 20.00 | AW17: 13.33 | AX17: 13.33 | AY17: 50.00 | AZ17: 13.33 | BA17: 43.33 | BB17: 0.00 | BC17: 0.00 | BD17: 5.00 | BE17: 56.67 | BF17: 12.50 | BG17: 10.34 | BH17: 0.00 | BI17: 0.00 | BJ17: 42.11 | BK17: 3.75 | BL17: 21.40 | BM17: 25.21 | BN17: 4.56052132 | BO17: 2.716018914
A18: 4.00 | B18: 30.00 | C18: 16.67 | D18: 10.00 | E18: 36.67 | F18: 40.00 | G18: 10.00 | H18: 53.33 | I18: 6.67 | J18: 3.33 | K18: 20.00 | L18: 13.33 | M18: 16.67 | N18: 18.18 | O18: 20.00 | P18: 30.00 | Q18: 40.00 | R18: 6.67 | S18: 20.00 | T18: 20.00 | U18: 23.33 | V18: 43.33 | W18: 16.67 | X18: 6.67 | Y18: 23.33 | Z18: 13.33 | AA18: 46.67 | AB18: 33.33 | AC18: 60.00 | AD18: 6.67 | AE18: 40.00 | AF18: 40.00 | AG18: 46.67 | AH18: 30.00 | AI18: 10.00 | AJ18: 10.00 | AK18: 20.00 | AL18: 6.67 | AM18: 13.79 | AN18: 26.67 | AO18: 10.00 | AP18: 66.67 | AQ18: 20.00 | AR18: 70.00 | AS18: 36.67 | AT18: 20.00 | AU18: 30.00 | AV18: 13.33 | AW18: 16.67 | AX18: 20.00 | AY18: 50.00 | AZ18: 13.33 | BA18: 30.00 | BB18: 0.00 | BC18: 0.00 | BD18: 0.00 | BE18: 70.00 | BF18: 4.17 | BG18: 10.34 | BH18: 3.33 | BI18: 3.33 | BJ18: 57.89 | BK18: 4.00 | BL18: 21.14 | BM18: 24.99 | BN18: 4.080485994 | BO18: 2.770155914
A19: 4.25 | B19: 6.67 | C19: 23.33 | D19: 16.67 | E19: 46.67 | F19: 26.67 | G19: 3.33 | H19: 66.67 | I19: 10.00 | J19: 23.33 | K19: 16.67 | L19: 16.67 | M19: 33.33 | N19: 45.45 | O19: 16.67 | P19: 36.67 | Q19: 16.67 | R19: 3.33 | S19: 23.33 | T19: 20.00 | U19: 26.67 | V19: 36.67 | W19: 23.33 | X19: 10.00 | Y19: 40.00 | Z19: 23.33 | AA19: 20.00 | AB19: 43.33 | AC19: 53.33 | AD19: 10.00 | AE19: 20.00 | AF19: 20.00 | AG19: 23.33 | AH19: 20.00 | AI19: 3.33 | AJ19: 6.67 | AK19: 20.00 | AL19: 3.33 | AM19: 17.24 | AN19: 16.67 | AO19: 13.33 | AP19: 46.67 | AQ19: 6.67 | AR19: 73.33 | AS19: 23.33 | AT19: 13.33 | AU19: 16.67 | AV19: 16.67 | AW19: 10.00 | AX19: 13.33 | AY19: 53.33 | AZ19: 33.33 | BA19: 40.00 | BB19: 0.00 | BC19: 0.00 | BD19: 10.00 | BE19: 36.67 | BF19: 12.50 | BG19: 13.79 | BH19: 10.00 | BI19: 10.00 | BJ19: 42.11 | BK19: 4.25 | BL19: 25.80 | BM19: 21.85 | BN19: 5.020600607 | BO19: 2.251596981
A20: 4.50 | B20: 16.67 | C20: 13.33 | D20: 0.00 | E20: 10.00 | F20: 30.00 | G20: 6.67 | H20: 40.00 | I20: 16.67 | J20: 23.33 | K20: 26.67 | L20: 13.33 | M20: 26.67 | N20: 18.18 | O20: 16.67 | P20: 40.00 | Q20: 46.67 | R20: 13.33 | S20: 20.00 | T20: 3.33 | U20: 43.33 | V20: 36.67 | W20: 10.00 | X20: 6.67 | Y20: 33.33 | Z20: 23.33 | AA20: 43.33 | AB20: 53.33 | AC20: 43.33 | AD20: 26.67 | AE20: 20.00 | AF20: 20.00 | AG20: 43.33 | AH20: 20.00 | AI20: 3.33 | AJ20: 6.67 | AK20: 10.00 | AL20: 10.00 | AM20: 6.90 | AN20: 33.33 | AO20: 33.33 | AP20: 56.67 | AQ20: 6.67 | AR20: 80.00 | AS20: 16.67 | AT20: 20.00 | AU20: 26.67 | AV20: 6.67 | AW20: 26.67 | AX20: 13.33 | AY20: 50.00 | AZ20: 10.00 | BA20: 20.00 | BB20: 0.00 | BC20: 0.00 | BD20: 5.00 | BE20: 50.00 | BF20: 8.33 | BG20: 6.90 | BH20: 3.33 | BI20: 3.33 | BJ20: 36.84 | BK20: 4.50 | BL20: 18.58 | BM20: 23.21 | BN20: 2.959026669 | BO20: 2.640352787
A21: 4.75 | B21: 16.67 | C21: 16.67 | D21: 6.67 | E21: 20.00 | F21: 20.00 | G21: 6.67 | H21: 53.33 | I21: 20.00 | J21: 40.00 | K21: 23.33 | L21: 16.67 | M21: 23.33 | N21: 36.36 | O21: 33.33 | P21: 63.33 | Q21: 40.00 | R21: 16.67 | S21: 23.33 | T21: 16.67 | U21: 23.33 | V21: 73.33 | W21: 16.67 | X21: 13.33 | Y21: 20.00 | Z21: 26.67 | AA21: 23.33 | AB21: 30.00 | AC21: 30.00 | AD21: 6.67 | AE21: 13.33 | AF21: 13.33 | AG21: 36.67 | AH21: 16.67 | AI21: 3.33 | AJ21: 10.00 | AK21: 16.67 | AL21: 16.67 | AM21: 17.24 | AN21: 30.00 | AO21: 26.67 | AP21: 50.00 | AQ21: 10.00 | AR21: 63.33 | AS21: 33.33 | AT21: 26.67 | AU21: 26.67 | AV21: 10.00 | AW21: 13.33 | AX21: 10.00 | AY21: 30.00 | AZ21: 20.00 | BA21: 33.33 | BB21: 0.00 | BC21: 0.00 | BD21: 20.00 | BE21: 40.00 | BF21: 0.00 | BG21: 6.90 | BH21: 3.33 | BI21: 3.33 | BJ21: 42.11 | BK21: 4.75 | BL21: 23.05 | BM21: 22.91 | BN21: 3.641614562 | BO21: 2.385671617
A22: 5.00 | B22: 10.00 | C22: 10.00 | D22: 3.33 | E22: 20.00 | F22: 26.67 | G22: 3.33 | H22: 63.33 | I22: 33.33 | J22: 3.33 | K22: 6.67 | L22: 0.00 | M22: 20.00 | N22: 9.09 | O22: 30.00 | P22: 43.33 | Q22: 53.33 | R22: 13.33 | S22: 16.67 | T22: 20.00 | U22: 43.33 | V22: 26.67 | W22: 16.67 | X22: 23.33 | Y22: 26.67 | Z22: 43.33 | AA22: 26.67 | AB22: 60.00 | AC22: 56.67 | AD22: 3.33 | AE22: 23.33 | AF22: 23.33 | AG22: 50.00 | AH22: 6.67 | AI22: 0.00 | AJ22: 16.67 | AK22: 13.33 | AL22: 13.33 | AM22: 10.34 | AN22: 30.00 | AO22: 23.33 | AP22: 43.33 | AQ22: 13.33 | AR22: 73.33 | AS22: 23.33 | AT22: 13.33 | AU22: 30.00 | AV22: 13.33 | AW22: 16.67 | AX22: 20.00 | AY22: 40.00 | AZ22: 23.33 | BA22: 20.00 | BB22: 3.45 | BC22: 3.45 | BD22: 0.00 | BE22: 43.33 | BF22: 8.33 | BG22: 3.45 | BH22: 6.67 | BI22: 6.67 | BJ22: 52.63 | BK22: 5.00 | BL22: 16.08 | BM22: 24.41 | BN22: 4.824320799 | BO22: 2.53758905
A23: 5.25 | B23: 26.67 | C23: 6.67 | D23: 6.67 | E23: 33.33 | F23: 26.67 | G23: 10.00 | H23: 43.33 | I23: 10.00 | J23: 33.33 | K23: 6.67 | L23: 13.33 | M23: 53.33 | N23: 27.27 | O23: 33.33 | P23: 40.00 | Q23: 50.00 | R23: 6.67 | S23: 23.33 | T23: 3.33 | U23: 30.00 | V23: 50.00 | W23: 10.00 | X23: 10.00 | Y23: 16.67 | Z23: 26.67 | AA23: 40.00 | AB23: 46.67 | AC23: 30.00 | AD23: 3.33 | AE23: 36.67 | AF23: 36.67 | AG23: 36.67 | AH23: 10.00 | AI23: 13.33 | AJ23: 13.33 | AK23: 20.00 | AL23: 26.67 | AM23: 13.79 | AN23: 30.00 | AO23: 46.67 | AP23: 40.00 | AQ23: 20.00 | AR23: 80.00 | AS23: 30.00 | AT23: 26.67 | AU23: 26.67 | AV23: 13.33 | AW23: 13.33 | AX23: 6.67 | AY23: 40.00 | AZ23: 13.33 | BA23: 46.67 | BB23: 0.00 | BC23: 0.00 | BD23: 20.00 | BE23: 63.33 | BF23: 12.50 | BG23: 6.90 | BH23: 6.67 | BI23: 6.67 | BJ23: 26.32 | BK23: 5.25 | BL23: 22.87 | BM23: 25.06 | BN23: 4.254563521 | BO23: 2.516692548
A24: 5.50 | B24: 6.67 | C24: 10.00 | D24: 3.33 | E24: 26.67 | F24: 20.00 | G24: 20.00 | H24: 36.67 | I24: 13.33 | J24: 23.33 | K24: 13.33 | L24: 13.33 | M24: 20.00 | N24: 9.09 | O24: 40.00 | P24: 43.33 | Q24: 60.00 | R24: 3.33 | S24: 30.00 | T24: 10.00 | U24: 30.00 | V24: 30.00 | W24: 30.00 | X24: 6.67 | Y24: 23.33 | Z24: 50.00 | AA24: 26.67 | AB24: 46.67 | AC24: 33.33 | AD24: 6.67 | AE24: 43.33 | AF24: 43.33 | AG24: 30.00 | AH24: 20.00 | AI24: 0.00 | AJ24: 6.67 | AK24: 16.67 | AL24: 13.33 | AM24: 20.69 | AN24: 46.67 | AO24: 13.33 | AP24: 50.00 | AQ24: 6.67 | AR24: 53.33 | AS24: 20.00 | AT24: 20.00 | AU24: 33.33 | AV24: 3.33 | AW24: 20.00 | AX24: 0.00 | AY24: 33.33 | AZ24: 13.33 | BA24: 30.00 | BB24: 3.45 | BC24: 3.45 | BD24: 20.00 | BE24: 40.00 | BF24: 0.00 | BG24: 13.79 | BH24: 6.67 | BI24: 6.67 | BJ24: 21.05 | BK24: 5.50 | BL24: 16.60 | BM24: 23.38 | BN24: 2.519999318 | BO24: 2.368957514
A25: 5.75 | B25: 10.00 | C25: 33.33 | D25: 10.00 | E25: 36.67 | F25: 13.33 | G25: 16.67 | H25: 53.33 | I25: 23.33 | J25: 26.67 | K25: 16.67 | L25: 13.33 | M25: 20.00 | N25: 45.45 | O25: 10.00 | P25: 43.33 | Q25: 46.67 | R25: 3.33 | S25: 13.33 | T25: 10.00 | U25: 33.33 | V25: 53.33 | W25: 23.33 | X25: 10.00 | Y25: 23.33 | Z25: 46.67 | AA25: 36.67 | AB25: 46.67 | AC25: 46.67 | AD25: 10.00 | AE25: 10.00 | AF25: 10.00 | AG25: 40.00 | AH25: 23.33 | AI25: 3.33 | AJ25: 0.00 | AK25: 23.33 | AL25: 16.67 | AM25: 6.90 | AN25: 26.67 | AO25: 23.33 | AP25: 56.67 | AQ25: 6.67 | AR25: 80.00 | AS25: 36.67 | AT25: 16.67 | AU25: 33.33 | AV25: 10.00 | AW25: 36.67 | AX25: 10.00 | AY25: 26.67 | AZ25: 20.00 | BA25: 33.33 | BB25: 0.00 | BC25: 0.00 | BD25: 5.00 | BE25: 43.33 | BF25: 12.50 | BG25: 17.24 | BH25: 3.33 | BI25: 3.33 | BJ25: 47.37 | BK25: 5.75 | BL25: 24.52 | BM25: 23.73 | BN25: 3.852588152 | BO25: 2.646218545
A26: 6.00 | B26: 0.00 | C26: 20.00 | D26: 6.67 | E26: 46.67 | F26: 33.33 | G26: 16.67 | H26: 70.00 | I26: 23.33 | J26: 26.67 | K26: 10.00 | L26: 16.67 | M26: 30.00 | N26: 36.36 | O26: 30.00 | P26: 46.67 | Q26: 43.33 | R26: 0.00 | S26: 16.67 | T26: 10.00 | U26: 56.67 | V26: 43.33 | W26: 23.33 | X26: 6.67 | Y26: 33.33 | Z26: 30.00 | AA26: 13.33 | AB26: 40.00 | AC26: 43.33 | AD26: 0.00 | AE26: 23.33 | AF26: 23.33 | AG26: 36.67 | AH26: 10.00 | AI26: 3.33 | AJ26: 10.00 | AK26: 30.00 | AL26: 10.00 | AM26: 13.79 | AN26: 13.33 | AO26: 30.00 | AP26: 53.33 | AQ26: 3.33 | AR26: 73.33 | AS26: 33.33 | AT26: 16.67 | AU26: 16.67 | AV26: 6.67 | AW26: 6.67 | AX26: 3.33 | AY26: 70.00 | AZ26: 10.00 | BA26: 26.67 | BB26: 0.00 | BC26: 0.00 | BD26: 20.00 | BE26: 53.33 | BF26: 12.50 | BG26: 3.45 | BH26: 6.67 | BI26: 6.67 | BJ26: 47.37 | BK26: 6.00 | BL26: 25.87 | BM26: 23.13 | BN26: 5.103821737 | BO26: 2.773781203
A27: 6.25 | B27: 6.67 | C27: 3.33 | D27: 0.00 | E27: 46.67 | F27: 16.67 | G27: 10.00 | H27: 30.00 | I27: 10.00 | J27: 26.67 | K27: 6.67 | L27: 13.33 | M27: 13.33 | N27: 27.27 | O27: 23.33 | P27: 36.67 | Q27: 40.00 | R27: 10.00 | S27: 13.33 | T27: 10.00 | U27: 13.33 | V27: 46.67 | W27: 13.33 | X27: 3.33 | Y27: 23.33 | Z27: 30.00 | AA27: 33.33 | AB27: 36.67 | AC27: 36.67 | AD27: 6.67 | AE27: 16.67 | AF27: 16.67 | AG27: 36.67 | AH27: 33.33 | AI27: 6.67 | AJ27: 3.33 | AK27: 16.67 | AL27: 13.33 | AM27: 17.24 | AN27: 16.67 | AO27: 33.33 | AP27: 43.33 | AQ27: 13.33 | AR27: 90.00 | AS27: 33.33 | AT27: 13.33 | AU27: 36.67 | AV27: 16.67 | AW27: 13.33 | AX27: 6.67 | AY27: 36.67 | AZ27: 20.00 | BA27: 23.33 | BB27: 3.45 | BC27: 3.45 | BD27: 25.00 | BE27: 56.67 | BF27: 8.33 | BG27: 6.90 | BH27: 0.00 | BI27: 0.00 | BJ27: 31.58 | BK27: 6.25 | BL27: 16.20 | BM27: 22.28 | BN27: 3.628685137 | BO27: 2.458907378
A28: 6.50 | B28: 10.00 | C28: 20.00 | D28: 10.00 | E28: 20.00 | F28: 16.67 | G28: 6.67 | H28: 46.67 | I28: 10.00 | J28: 16.67 | K28: 13.33 | L28: 20.00 | M28: 13.33 | N28: 18.18 | O28: 16.67 | P28: 40.00 | Q28: 40.00 | R28: 6.67 | S28: 10.00 | T28: 16.67 | U28: 30.00 | V28: 26.67 | W28: 16.67 | X28: 6.67 | Y28: 26.67 | Z28: 46.67 | AA28: 43.33 | AB28: 46.67 | AC28: 50.00 | AD28: 3.33 | AE28: 23.33 | AF28: 23.33 | AG28: 20.00 | AH28: 13.33 | AI28: 6.67 | AJ28: 10.00 | AK28: 23.33 | AL28: 16.67 | AM28: 17.24 | AN28: 40.00 | AO28: 23.33 | AP28: 63.33 | AQ28: 10.00 | AR28: 86.67 | AS28: 26.67 | AT28: 30.00 | AU28: 13.33 | AV28: 16.67 | AW28: 26.67 | AX28: 10.00 | AY28: 43.33 | AZ28: 10.00 | BA28: 20.00 | BB28: 10.34 | BC28: 10.34 | BD28: 0.00 | BE28: 43.33 | BF28: 12.50 | BG28: 3.45 | BH28: 6.67 | BI28: 6.67 | BJ28: 26.32 | BK28: 6.50 | BL28: 17.04 | BM28: 23.34 | BN28: 2.761196648 | BO28: 2.50359934
A29: 6.75 | B29: 16.67 | C29: 13.33 | D29: 3.33 | E29: 43.33 | F29: 23.33 | G29: 10.00 | H29: 50.00 | I29: 10.00 | J29: 10.00 | K29: 3.33 | L29: 6.67 | M29: 26.67 | N29: 36.36 | O29: 30.00 | P29: 40.00 | Q29: 56.67 | R29: 6.67 | S29: 40.00 | T29: 10.00 | U29: 20.00 | V29: 20.00 | W29: 33.33 | X29: 13.33 | Y29: 33.33 | Z29: 50.00 | AA29: 46.67 | AB29: 26.67 | AC29: 36.67 | AD29: 6.67 | AE29: 6.67 | AF29: 6.67 | AG29: 40.00 | AH29: 13.33 | AI29: 0.00 | AJ29: 3.33 | AK29: 23.33 | AL29: 6.67 | AM29: 27.59 | AN29: 26.67 | AO29: 30.00 | AP29: 83.33 | AQ29: 6.67 | AR29: 83.33 | AS29: 20.00 | AT29: 20.00 | AU29: 30.00 | AV29: 10.00 | AW29: 13.33 | AX29: 6.67 | AY29: 36.67 | AZ29: 16.67 | BA29: 23.33 | BB29: 3.45 | BC29: 3.45 | BD29: 15.00 | BE29: 56.67 | BF29: 4.17 | BG29: 10.34 | BH29: 6.67 | BI29: 6.67 | BJ29: 36.84 | BK29: 6.75 | BL29: 19.46 | BM29: 23.91 | BN29: 4.276441739 | BO29: 2.824056372
A30: 7.00 | B30: 3.33 | C30: 13.33 | D30: 10.00 | E30: 36.67 | F30: 26.67 | G30: 3.33 | H30: 50.00 | I30: 16.67 | J30: 13.33 | K30: 16.67 | L30: 10.00 | M30: 33.33 | N30: 9.09 | O30: 16.67 | P30: 53.33 | Q30: 53.33 | R30: 10.00 | S30: 16.67 | T30: 10.00 | U30: 40.00 | V30: 40.00 | W30: 10.00 | X30: 13.33 | Y30: 36.67 | Z30: 40.00 | AA30: 13.33 | AB30: 40.00 | AC30: 43.33 | AD30: 6.67 | AE30: 26.67 | AF30: 26.67 | AG30: 36.67 | AH30: 16.67 | AI30: 0.00 | AJ30: 3.33 | AK30: 16.67 | AL30: 3.33 | AM30: 0.00 | AN30: 23.33 | AO30: 23.33 | AP30: 50.00 | AQ30: 3.33 | AR30: 80.00 | AS30: 36.67 | AT30: 20.00 | AU30: 26.67 | AV30: 13.33 | AW30: 16.67 | AX30: 3.33 | AY30: 40.00 | AZ30: 10.00 | BA30: 40.00 | BB30: 3.45 | BC30: 3.45 | BD30: 5.00 | BE30: 50.00 | BF30: 4.17 | BG30: 10.34 | BH30: 6.67 | BI30: 6.67 | BJ30: 63.16 | BK30: 7.00 | BL30: 18.65 | BM30: 23.19 | BN30: 3.891075287 | BO30: 2.751634196
A31: 7.25 | B31: 10.00 | C31: 20.00 | D31: 10.00 | E31: 23.33 | F31: 20.00 | G31: 6.67 | H31: 53.33 | I31: 10.00 | J31: 3.33 | K31: 20.00 | L31: 10.00 | M31: 30.00 | N31: 36.36 | O31: 23.33 | P31: 66.67 | Q31: 53.33 | R31: 16.67 | S31: 20.00 | T31: 3.33 | U31: 33.33 | V31: 46.67 | W31: 30.00 | X31: 6.67 | Y31: 36.67 | Z31: 40.00 | AA31: 43.33 | AB31: 40.00 | AC31: 33.33 | AD31: 6.67 | AE31: 33.33 | AF31: 33.33 | AG31: 53.33 | AH31: 16.67 | AI31: 6.67 | AJ31: 10.00 | AK31: 10.00 | AL31: 16.67 | AM31: 6.90 | AN31: 36.67 | AO31: 6.67 | AP31: 50.00 | AQ31: 3.33 | AR31: 63.33 | AS31: 26.67 | AT31: 13.33 | AU31: 46.67 | AV31: 10.00 | AW31: 20.00 | AX31: 20.00 | AY31: 26.67 | AZ31: 10.00 | BA31: 43.33 | BB31: 0.00 | BC31: 0.00 | BD31: 0.00 | BE31: 40.00 | BF31: 4.17 | BG31: 0.00 | BH31: 3.33 | BI31: 3.33 | BJ31: 31.58 | BK31: 7.25 | BL31: 19.46 | BM31: 23.87 | BN31: 3.874480697 | BO31: 2.670719071
A32: 7.50 | B32: 3.33 | C32: 0.00 | D32: 6.67 | E32: 43.33 | F32: 13.33 | G32: 6.67 | H32: 50.00 | I32: 13.33 | J32: 23.33 | K32: 13.33 | L32: 20.00 | M32: 10.00 | N32: 18.18 | O32: 26.67 | P32: 36.67 | Q32: 33.33 | R32: 3.33 | S32: 16.67 | T32: 6.67 | U32: 26.67 | V32: 50.00 | W32: 16.67 | X32: 13.33 | Y32: 26.67 | Z32: 33.33 | AA32: 30.00 | AB32: 50.00 | AC32: 33.33 | AD32: 6.67 | AE32: 20.00 | AF32: 20.00 | AG32: 46.67 | AH32: 20.00 | AI32: 6.67 | AJ32: 13.33 | AK32: 26.67 | AL32: 3.33 | AM32: 3.45 | AN32: 33.33 | AO32: 13.33 | AP32: 46.67 | AQ32: 16.67 | AR32: 53.33 | AS32: 30.00 | AT32: 30.00 | AU32: 23.33 | AV32: 16.67 | AW32: 10.00 | AX32: 3.33 | AY32: 36.67 | AZ32: 26.67 | BA32: 36.67 | BB32: 3.45 | BC32: 3.45 | BD32: 0.00 | BE32: 53.33 | BF32: 8.33 | BG32: 10.34 | BH32: 0.00 | BI32: 0.00 | BJ32: 31.58 | BK32: 7.50 | BL32: 17.04 | BM32: 22.03 | BN32: 4.091578673 | BO32: 2.243473882
A33: 7.75 | B33: 10.00 | C33: 26.67 | D33: 6.67 | E33: 26.67 | F33: 20.00 | G33: 13.33 | H33: 56.67 | I33: 20.00 | J33: 10.00 | K33: 10.00 | L33: 13.33 | M33: 23.33 | N33: 9.09 | O33: 23.33 | P33: 56.67 | Q33: 30.00 | R33: 10.00 | S33: 20.00 | T33: 10.00 | U33: 33.33 | V33: 40.00 | W33: 26.67 | X33: 23.33 | Y33: 26.67 | Z33: 26.67 | AA33: 33.33 | AB33: 33.33 | AC33: 56.67 | AD33: 0.00 | AE33: 20.00 | AF33: 20.00 | AG33: 43.33 | AH33: 13.33 | AI33: 6.67 | AJ33: 6.67 | AK33: 10.00 | AL33: 6.67 | AM33: 13.79 | AN33: 26.67 | AO33: 26.67 | AP33: 50.00 | AQ33: 0.00 | AR33: 60.00 | AS33: 16.67 | AT33: 23.33 | AU33: 30.00 | AV33: 16.67 | AW33: 13.33 | AX33: 16.67 | AY33: 46.67 | AZ33: 3.33 | BA33: 26.67 | BB33: 6.90 | BC33: 6.90 | BD33: 10.00 | BE33: 53.33 | BF33: 20.83 | BG33: 0.00 | BH33: 13.33 | BI33: 13.33 | BJ33: 36.84 | BK33: 7.75 | BL33: 18.90 | BM33: 23.10 | BN33: 3.681655658 | BO33: 2.28871137
A34: 8.00 | B34: 13.33 | C34: 10.00 | D34: 6.67 | E34: 23.33 | F34: 50.00 | G34: 6.67 | H34: 66.67 | I34: 13.33 | J34: 20.00 | K34: 16.67 | L34: 3.33 | M34: 20.00 | N34: 27.27 | O34: 16.67 | P34: 60.00 | Q34: 50.00 | R34: 10.00 | S34: 23.33 | T34: 3.33 | U34: 50.00 | V34: 46.67 | W34: 20.00 | X34: 6.67 | Y34: 13.33 | Z34: 23.33 | AA34: 26.67 | AB34: 16.67 | AC34: 40.00 | AD34: 0.00 | AE34: 20.00 | AF34: 20.00 | AG34: 63.33 | AH34: 16.67 | AI34: 3.33 | AJ34: 16.67 | AK34: 23.33 | AL34: 20.00 | AM34: 20.69 | AN34: 16.67 | AO34: 20.00 | AP34: 56.67 | AQ34: 6.67 | AR34: 80.00 | AS34: 36.67 | AT34: 23.33 | AU34: 36.67 | AV34: 10.00 | AW34: 23.33 | AX34: 30.00 | AY34: 36.67 | AZ34: 20.00 | BA34: 53.33 | BB34: 3.45 | BC34: 3.45 | BD34: 0.00 | BE34: 46.67 | BF34: 8.33 | BG34: 17.24 | BH34: 10.00 | BI34: 10.00 | BJ34: 21.05 | BK34: 8.00 | BL34: 21.33 | BM34: 24.60 | BN34: 5.033328031 | BO34: 2.669502517

Sheet Fig.6g
B2: Panel 6g | C2: left | D2: Frequency (Hz) | F2: Panel 6g | G2: right | H2: MP (mV)
B4: # neurons | C4: CTRL | D4: NA | F4: # neurons | G4: CTRL | H4: NA
B5: 1 | C5: 0.016667 | D5: 0.091667 | F5: 1 | G5: -47.989 | H5: -46.5237
B6: 2 | C6: 0.266667 | D6: 0.941667 | F6: 2 | G6: -54.428 | H6: -48.9601
B7: 3 | C7: 0.1 | D7: 0.416667 | F7: 3 | G7: -56.2537 | H7: -51.8985
B8: 4 | C8: 0.008333 | D8: 0.091667 | F8: 4 | G8: -63.7513 | H8: -58.0394
F9: 5 | G9: -49.56 | H9: -47.49
F10: 6 | G10: -32.6441 | H10: -29.2246
B12: n | C12: =(COUNT(C5:C8)) -> 4 | D12: =(COUNT(D5:D8)) -> 4 | F12: n | G12: =(COUNT(G5:G10)) -> 6 | H12: =(COUNT(H5:H10)) -> 6
B13: Mean | C13: =AVERAGE(C5:C8) -> 0.09791675 | D13: =AVERAGE(D5:D8) -> 0.385417 | F13: Mean | G13: =AVERAGE(G5:G10) -> -50.77101667 | H13: =AVERAGE(H5:H10) -> -47.02271667
B14: ± SEM | C14: =STDEV(C5:C8)/SQRT(COUNT(C5:C8)) -> 0.05993590809 | D14: =STDEV(D5:D8)/SQRT(COUNT(D5:D8)) -> 0.2006175362 | F14: ± SEM | G14: =STDEV(G5:G10)/SQRT(COUNT(G5:G10)) -> 4.280624507 | H14: =STDEV(H5:H10)/SQRT(COUNT(H5:H10)) -> 3.941803129

Sheet Fig.6h-i
B2: Panel 6h | C2: norm. mRNA levels | I2: Panel 6i | J2: left | K2: right
C3: # neurons | D3: Gapdh (conn) | E3: Gal (conn) | F3: Gapdh (ctrl) | G3: Gal (ctrl) | I3: # neurons | J3: Amplitude (pA) | K3: Latency (ms)
C4: 1 | D4: 0.116326 | E4: 6.17854e-06 | F4: 1.522253 | G4: 0.001426328 | I4: 1 | J4: 13.36324 | K4: 4.859
C5: 2 | D5: 2.161807 | E5: 6.17854e-06 | F5: 0.251857 | G5: 0.1890897 | I5: 2 | J5: 12.61167 | K5: 8.814
C6: 3 | D6: 1.344877 | E6: 6.17854e-06 | F6: 1.172411 | G6: 0.7007288 | I6: 3 | J6: 19.14526 | K6: 8.836
C7: 4 | D7: 0.2075171 | E7: 6.17854e-06 | F7: 2.526444 | G7: 0.1141773 | I7: 4 | J7: 11.2694 | K7: 11.747
C8: 5 | D8: 1.169473 | E8: 6.17854e-06 | F8: 0.8922105 | G8: 0.1211916 | I8: 5 | J8: 18.21586 | K8: 7.892
C9: 6 | F9: 0.7326085 | G9: 0.000207592 | I9: 6 | J9: 11.60028 | K9: 17.35
C10: 7 | F10: 0.8087913 | G10: 0.000690206 | I10: 7 | J10: 8.293815 | K10: 7.067
C11: 8 | F11: 0.4836647 | G11: 0.1355478 | I11: 8 | J11: 7.78502 | K11: 6.1
C12: 9 | F12: 0.5768498 | G12: 0.001062281 | I12: 9 | J12: 13.48362 | K12: 12.8
C13: 10 | F13: 0.3538951 | G13: 0.001363722 | I13: 10 | J13: 8.65086 | K13: 7.236
C14: 11 | F14: 0.7780223 | G14: 0.001169578 | I14: 11 | J14: 7.66086 | K14: 10.848
C15: 12 | F15: 1.689903 | G15: 0.3242007 | I15: 12 | J15: 10.44343 | K15: 8
C16: 13 | F16: 1.211091 | G16: 0.06911327 | I16: 13 | J16: 25.26793 | K16: 10.331
I17: 14 | J17: 19.75349 | K17: 7.193
C18: n | D18: =(COUNT(D4:D8)) -> 5 | E18: =(COUNT(E4:E8)) -> 5 | F18: =(COUNT(F4:F16)) -> 13 | G18: =(COUNT(G4:G16)) -> 13 | I18: 15 | J18: 13.2886 | K18: 10.48
C19: Mean | D19: =AVERAGE(D4:D8) -> 1.00000002 | E19: =AVERAGE(E4:E8) -> 6.17854e-06 | F19: =AVERAGE(F4:F16) -> 1.000000092 | G19: =AVERAGE(G4:G16) -> 0.1276899136
C20: ± SEM | D20: =STDEV(D4:D8)/SQRT(COUNT(D4:D8)) -> 0.3812063505 | E20: =STDEV(E4:E8)/SQRT(COUNT(E4:E8)) -> 0 | F20: =STDEV(F4:F16)/SQRT(COUNT(F4:F16)) -> 0.1744002539 | G20: =STDEV(G4:G16)/SQRT(COUNT(G4:G16)) -> 0.05493592988 | I20: n | J20: =(COUNT(J4:J18)) -> 15 | K20: =(COUNT(K4:K18)) -> 15
I21: Mean | J21: =AVERAGE(J4:J18) -> 13.388889 | K21: =AVERAGE(K4:K18) -> 9.303533333
I22: ± SEM | J22: =STDEV(J4:J18)/SQRT(COUNT(J4:J18)) -> 1.323178753 | K22: =STDEV(K4:K18)/SQRT(COUNT(K4:K18)) -> 0.8037532722

Sheet Suppl.Fig.1
C1: Arousal bout length (s) | M1: Mean diff. Arousal bout length (s)
B2: top left | C2: from NREM | L2: bottom left | M2: NREM | U2: 95% Bootstrap Confidence Interval
D3: (s) | E3: (s) | F3: (s) | G3: (s) | H3: (s) | I3: n | J3: Mean | K3: ± SEM | N3: (s) | O3: (s) | P3: (s) | Q3: (s) | R3: (s) | S3: n | T3: Mean | U3: Upper | V3: Lower
C4: Sham | D4: 26.9 | E4: 35.2 | F4: 30.7 | G4: 127.1 | H4: 79.4 | I4: 5 | J4: =AVERAGE(D4:H4) -> 59.9 | K4: =STDEV(D4:H4)/SQRT(COUNT(D4:H4)) -> 19.3 | M4: Stimulus minus sham | N4: =D5-D4 -> 74.5 | O4: =E5-E4 -> 63.4 | P4: =F5-F4 -> 98.2 | Q4: =G5-G4 -> -18.0 | R4: =H5-H4 -> 63.9 | S4: 5 | T4: =AVERAGE(N4:R4) -> 56.4 | U4: 81.8 | V4: 14.6
C5: Stimulation | D5: 101.4 | E5: 98.6 | F5: 128.9 | G5: 109.1 | H5: 143.3 | I5: 5 | J5: =AVERAGE(D5:H5) -> 116.3 | K5: =STDEV(D5:H5)/SQRT(COUNT(D5:H5)) -> 8.6
B7: top right | C7: Arousal bout length (s) | L7: bottom right | M7: Mean diff. Arousal bout length (s)
C8: from REM | M8: REM | U8: 95% Bootstrap Confidence Interval
D9: (s) | E9: (s) | F9: (s) | G9: (s) | H9: (s) | I9: n | J9: Mean | K9: ± SEM | N9: (s) | O9: (s) | P9: (s) | Q9: (s) | R9: (s) | S9: n | T9: Mean | U9: Upper | V9: Lower
C10: Sham | D10: 205.4 | E10: 102.4 | F10: 74.5 | G10: 28.9 | H10: 17.2 | I10: 5 | J10: =AVERAGE(D10:H10) -> 85.7 | K10: =STDEV(D10:H10)/SQRT(COUNT(D10:H10)) -> 33.6 | M10: Stimulus minus sham | N10: =D11-D10 -> -115.4 | O10: =E11-E10 -> -61.1 | P10: =F11-F10 -> -22.4 | Q10: =G11-G10 -> 56.0 | R10: =H11-H10 -> 124.7 | S10: 5 | T10: =AVERAGE(N10:R10) -> -3.7 | U10: 69.7 | V10: -70.3
C11: Stimulation | D11: 89.9 | E11: 41.3 | F11: 52.0 | G11: 84.9 | H11: 141.9 | I11: 5 | J11: =AVERAGE(D11:H11) -> 82.0 | K11: =STDEV(D11:H11)/SQRT(COUNT(D11:H11)) -> 17.6

Sheet Suppl.Fig.2b
E2: left | L2: right
E3: Frequency (Hz) | L3: MP (mV)
B4: # neurons | C4: CTRL | D4: Ox-A | E4: CTRL 2 | F4: Ox-A 2 | G4: Wash | I4: # neurons | J4: CTRL | K4: Ox-A | L4: CTRL 2 | M4: Ox-A 2 | N4: Wash
B5: 1 | C5: 0.2416667 | D5: 0 | E5: 0.1 | F5: 0 | G5: 0.1 | I5: 1 | J5: -44.445 | K5: -53.6804 | L5: -43.0976 | M5: -50.0625 | N5: -42.9739
B6: 2 | C6: 0.4583333 | D6: 0.075 | E6: 0.654167 | F6: 0.125 | G6: 0.733333 | I6: 2 | J6: -43.1079 | K6: -50.9466 | L6: -45.1071 | M6: -52.3276 | N6: -46.8298
B7: 3 | C7: 0.2333333 | D7: 0.066667 | E7: 0.245833 | F7: 0.05 | G7: 0.116667 | I7: 3 | J7: -36.7113 | K7: -38.5734 | L7: -35.5926 | M7: -37.6553 | N7: -35.725
B8: 4 | C8: 0.05 | D8: 0.016667 | E8: 0.0625 | F8: 0.033333 | G8: 0.033333 | I8: 4 | J8: -39.6675 | K8: -40.1711 | L8: -40.0472 | M8: -41.7319 | N8: -41.7744
B9: 5 | C9: 0.4916667 | D9: 0 | E9: 0.3 | F9: 0.05 | G9: 0.45 | I9: 5 | J9: -50.3483 | K9: -60.8768 | L9: -47.0998 | M9: -50.7014 | N9: -48.1932
B10: 6 | C10: 0.05833333 | D10: 0 | E10: 0.1875 | F10: 0 | G10: 0.158333 | I10: 6 | J10: -46.6017 | K10: -52.0455 | L10: -46.1741 | M10: -50.7699 | N10: -47.3289
B11: 7 | C11: 0.4583333 | D11: 0.125 | E11: 0.666667 | F11: 0.1 | G11: 0.383333 | I11: 7 | J11: -34.4757 | K11: -35.5222 | L11: -31.0545 | M11: -33.1722 | N11: -30.7742
B12: 8 | C12: 0.5 | D12: 0 | E12: 0.741667 | F12: 0.341667 | G12: 0.441667 | I12: 8 | J12: -42.6078 | K12: -47.8799 | L12: -43.2171 | M12: -48.0611 | N12: -39.4532
B14: n | C14: =(COUNT(C5:C12)) -> 8 | D14: =(COUNT(D5:D12)) -> 8 | E14: 8 | F14: 8 | G14: 8 | I14: n | J14: =(COUNT(J5:J12)) -> 8 | K14: =(COUNT(K5:K12)) -> 8 | L14: 8 | M14: 8 | N14: 8
B15: Mean | C15: =AVERAGE(C5:C12) -> 0.3114583288 | D15: =AVERAGE(D5:D12) -> 0.03541675 | E15: 0.36979175 | F15: 0.0875 | G15: 0.30208325 | I15: Mean | J15: =AVERAGE(J5:J12) -> -42.24565 | K15: =AVERAGE(K5:K12) -> -47.4619875 | L15: -41.42375 | M15: -45.5602375 | N15: -41.631575
B16: ± SEM | C16: =STDEV(C5:C12)/SQRT(COUNT(C5:C12)) -> 0.06742385221 | D16: =STDEV(D5:D12)/SQRT(COUNT(D5:D12)) -> 0.01687004336 | E16: 0.09709882196 | F16: 0.03946572378 | G16: 0.08473156288 | I16: ± SEM | J16: =STDEV(J5:J12)/SQRT(COUNT(J5:J12)) -> 1.832191735 | K16: =STDEV(K5:K12)/SQRT(COUNT(K5:K12)) -> 3.066740255 | L16: 1.972067714 | M16: 2.523113472 | N16: 2.16247936

Sheet Suppl.Fig.2d
E2: left | L2: right
E3: Frequency (Hz) | L3: MP (mV)
B4: # neurons | C4: CTRL | D4: Ox-A | E4: CTRL 2 (BIC) | F4: Ox-A 2 (BIC) | G4: Wash (BIC) | I4: # neurons | J4: CTRL | K4: Ox-A | L4: CTRL 2 (BIC) | M4: Ox-A 2 (BIC) | N4: Wash (BIC)
B5: 1 | C5: 0.2416667 | D5: 0 | E5: 0.325 | F5: 0.358333 | G5: 0.425 | I5: 1 | J5: -41.6646 | K5: -44.8704 | L5: -37.6016 | M5: -37.0319 | N5: -35.761
B6: 2 | C6: 0.1833333 | D6: 0 | E6: 0.308333 | F6: 0.433333 | G6: 0.3416667 | I6: 2 | J6: -40.3953 | K6: -49.4643 | L6: -40.8647 | M6: -40.5959 | N6: -40.4505
B7: 3 | C7: 0.35 | D7: 0.025 | E7: 0.466667 | F7: 0.308333 | G7: 0.3916667 | I7: 3 | J7: -52.1921 | K7: -59.5252 | L7: -51.0229 | M7: -49.6353 | N7: -51.007
B8: 4 | C8: 0.2833333 | D8: 0.108333 | E8: 0.291667 | F8: 0.208333 | G8: 0.175 | I8: 4 | J8: -48.6606 | K8: -52.4882 | L8: -48.9958 | M8: -49.3708 | N8: -48.4512
I9: 5 | J9: -46.6365 | K9: -48.2835 | L9: -49.4112 | M9: -50.4362 | N9: -50.7248
B10: n | C10: =(COUNT(C5:C8)) -> 4 | D10: =(COUNT(D5:D8)) -> 4 | E10: 4 | F10: 4 | G10: 4
B11: Mean | C11: =AVERAGE(C5:C8) -> 0.264583325 | D11: =AVERAGE(D5:D8) -> 0.03333325 | E11: 0.34791675 | F11: 0.327083 | G11: 0.33333335 | I11: n | J11: =(COUNT(J5:J9)) -> 5 | K11: =(COUNT(K5:K9)) -> 5 | L11: 5 | M11: 5 | N11: 5
B12: ± SEM | C12: =STDEV(C5:C8)/SQRT(COUNT(C5:C8)) -> 0.03508835062 | D12: =STDEV(D5:D8)/SQRT(COUNT(D5:D8)) -> 0.02568497724 | E12: 0.0401639421 | F12: 0.04718646522 | G12: 0.05548607099 | I12: Mean | J12: =AVERAGE(J5:J9) -> -45.90982 | K12: =AVERAGE(K5:K9) -> -50.92632 | L12: -45.57924 | M12: -45.41402 | N12: -45.2789
I13: ± SEM | J13: =STDEV(J5:J9)/SQRT(COUNT(J5:J9)) -> 2.19081857 | K13: =STDEV(K5:K9)/SQRT(COUNT(K5:K9)) -> 2.471602451 | L13: 2.663267366 | M13: 2.758367459 | N13: 3.053164839

Sheet Suppl.Fig.2e
C3: ∆MP (mV)
B4: # neurons | C4: Ox-A (-) | D4: Ox-A (-) (TTX) | E4: Ox-A (+) | F4: Ox-A (+) (TTX)
B5: 1 | C5: -2.339 | D5: 0.1329 | E5: 1.2813 | F5: 2.2574
B6: 2 | C6: -0.4938 | D6: -1.9884 | E6: 8.1473 | F6: 1.6035
B7: 3 | C7: -6.0102 | D7: -1.4343 | E7: 1.4189 | F7: 2.5251
B8: 4 | C8: -9.4635 | D8: 2.3858 | E8: 0.913 | F8: 3.4545
B9: 5 | C9: -4.5609 | D9: 2.4529 | E9: 1.9501 | F9: 1.8466
B10: 6 | C10: -3.9591 | D10: 1.7096 | E10: 1.5946 | F10: 1.9835
B11: 7 | C11: -0.9216 | D11: 0.5318
B12: 8 | C12: -6.0457 | D12: 0.9589
B14: n | C14: =(COUNT(C5:C12)) -> 8 | D14: =(COUNT(D5:D12)) -> 8 | E14: =(COUNT(E5:E10)) -> 6 | F14: =(COUNT(F5:F10)) -> 6
B15: Mean | C15: =AVERAGE(C5:C12) -> -4.224225 | D15: =AVERAGE(D5:D12) -> 0.59365 | E15: 2.550866667 | F15: 2.278433333
B16: ± SEM | C16: =STDEV(C5:C12)/SQRT(COUNT(C5:C12)) -> 1.056599985 | D16: =STDEV(D5:D12)/SQRT(COUNT(D5:D12)) -> 0.5831417914 | E16: 1.127995092 | F16: 0.2691604449

Sheet Suppl.Fig.3b
D1: left | K1: right
D2: Frequency (Hz) | K2: MP (mV)
B4: # neurons | C4: CTRL | D4: Ox-A | E4: CTRL 2 | F4: Carb | G4: Wash | I4: # neurons | J4: CTRL | K4: Ox-A | L4: CTRL 2 | M4: Carb | N4: Wash
B5: 1 | C5: 0.1 | D5: 0.444444 | E5: 0.025 | F5: 0.783333 | G5: 0.1 | I5: 1 | J5: -36.5174 | K5: -32.9347 | L5: -35.805 | M5: -34.1871 | N5: -37.2938
B6: 2 | C6: 0.241667 | D6: 0.683333 | E6: 0.45 | F6: 0.75 | G6: 0.55 | I6: 2 | J6: -52.0422 | K6: -51.211 | L6: -52.177 | M6: -47.9519 | N6: -49.3909
B7: 3 | C7: 0.491667 | D7: 1.25 | E7: 0.425 | F7: 0.591667 | G7: 0.191667 | I7: 3 | J7: -48.6505 | K7: -46.7561 | L7: -50.6948 | M7: -47.4904 | N7: -48.7537
B8: 4 | C8: 0.258333 | D8: 0.85 | E8: 0.133333 | F8: 0.475 | G8: 0.075 | I8: 4 | J8: -49.2418 | K8: -46.7396 | L8: -50.2471 | M8: -47.536 | N8: -50.4302
B9: 5 | C9: 0.216667 | D9: 0.433333 | E9: 0.108333 | F9: 1.016667 | G9: 0.458333 | I9: 5 | J9: -39.0823 | K9: -38.7916 | L9: -40.1243 | M9: -34.876 | N9: -36.0125
B10: 6 | C10: 0.2 | D10: 1.375 | E10: 0.091667 | F10: 1.233333 | G10: 0.283333 | I10: 6 | J10: -47.9232 | K10: -43.3503 | L10: -49.5595 | M10: -44.0645 | N10: -47.1424
B11: 7 | C11: 0.55 | D11: 1.333333 | E11: 0.908333 | F11: 1.016667 | G11: 0.608333 | I11: 7 | J11: -44.3259 | K11: -39.6263 | L11: -41.3523 | M11: -41.4472 | N11: -43.2967
B12: 8 | C12: 0.108333 | D12: 0.308333 | E12: 0.258333 | F12: 0.55 | G12: 0.058333 | I12: 8 | J12: -37.1318 | K12: -36.3885 | L12: -37.4071 | M12: -37.5249 | N12: -40.16
B14: n | C14: =(COUNT(C5:C12)) -> 8 | D14: =(COUNT(D5:D12)) -> 8 | E14: 8 | F14: 8 | G14: 8 | I14: n | J14: =(COUNT(J5:J12)) -> 8 | K14: =(COUNT(K5:K12)) -> 8 | L14: 8 | M14: 8 | N14: 8
B15: Mean | C15: =AVERAGE(C5:C12) -> 0.270833375 | D15: =AVERAGE(D5:D12) -> 0.834722 | E15: 0.299999875 | F15: 0.802083375 | G15: 0.290624875 | I15: Mean | J15: =AVERAGE(J5:J12) -> -44.3643875 | K15: =AVERAGE(K5:K12) -> -41.9747625 | L15: -44.6708875 | M15: -41.88475 | N15: -44.060025
B16: ± SEM | C16: =STDEV(C5:C12)/SQRT(COUNT(C5:C12)) -> 0.05843956102 | D16: =STDEV(D5:D12)/SQRT(COUNT(D5:D12)) -> 0.1539153603 | E16: 0.1029451956 | F16: 0.09410645291 | G16: 0.07825977811 | I16: ± SEM | J16: =STDEV(J5:J12)/SQRT(COUNT(J5:J12)) -> 2.136257277 | K16: =STDEV(K5:K12)/SQRT(COUNT(K5:K12)) -> 2.160282346 | L16: 2.35536233 | M16: 2.037583003 | N16: 2.012755298

Sheet Suppl.Fig.3d
D1: left | K1: right
D2: Frequency (Hz) | K2: MP (mV)
B4: # neurons | C4: CTRL | D4: Ox-A | E4: CTRL 2 | F4: Carb | G4: Wash | I4: # neurons | J4: CTRL | K4: Ox-A | L4: CTRL 2 | M4: Carb | N4: Wash
B5: 1 | C5: 0.633333 | D5: 0 | E5: 0.133333 | F5: 0 | G5: 0.633333 | I5: 1 | J5: -41.5472 | K5: -43.3997 | L5: -41.9717 | M5: -49.6843 | N5: -41.5472
B6: 2 | C6: 0.191667 | D6: 0 | E6: 0.291667 | F6: 0.058333 | G6: 0.316667 | I6: 2 | J6: -51.9622 | K6: -57.5791 | L6: -49.84 | M6: -49.8861 | N6: -50.3331
B7: 3 | C7: 0.35 | D7: 0 | E7: 0.25 | F7: 0.016667 | G7: 0.3 | I7: 3 | J7: -49.0271 | K7: -52.6591 | L7: -51.2326 | M7: -51.9615 | N7: -49.4561
B8: 4 | C8: 0.15 | D8: 0.033333 | E8: 0.091667 | F8: 0.083333 | G8: 0.170833 | I8: 4 | J8: -40.817 | K8: -42.5898 | L8: -41.2527 | M8: -42.2149 | N8: -41.0206
B9: 5 | C9: 1.933333 | D9: 0.211111 | E9: 0.966667 | F9: 0.033333 | G9: 1.183333 | I9: 5 | J9: -46.5624 | K9: -54.3706 | L9: -49.3744 | M9: -53.8424 | N9: -48.7625
B10: 6 | C10: 0.108333 | D10: 0 | E10: 0.141667 | F10: 0 | G10: 0.154167 | I10: 6 | J10: -51.3503 | K10: -58.0294 | L10: -44.7514 | M10: -56.8842 | N10: -52.5148
B11: 7 | C11: 0.133333 | D11: 0 | E11: 0.116667 | F11: 0 | G11: 0.1625 | I11: 7 | J11: -48.8349 | K11: -54.4377 | L11: -46.4562 | M11: -49.7355 | N11: -48.3997
B12: 8 | C12: 0.441667 | D12: 0.083333 | E12: 0.544444 | F12: 0.175 | G12: 0.670833 | I12: 8 | J12: -33.2605 | K12: -36.4914 | L12: -32.0208 | M12: -45.6489 | N12: -34.2544
B13: 9 | C13: 0.525 | D13: 0 | E13: 0.2 | F13: 0 | G13: 0.4125 | I13: 9 | J13: -57.4801 | K13: -60.3779 | L13: -58.1326 | M13: -60.5204 | N13: -58.563
B14: 10 | C14: 1.35 | D14: 0.458333 | E14: 1.858333 | F14: 0.016667 | G14: 0.85 | I14: 10 | J14: -26.6991 | K14: -27.3812 | L14: -25.4276 | M14: -34.8709 | N14: -28.0669
B15: 11 | C15: 0.275 | D15: 0.008333 | E15: 0.233333 | F15: 0.008333 | G15: 0.2625
I16: n | J16: =(COUNT(J5:J14)) -> 10 | K16: =(COUNT(K5:K14)) -> 10 | L16: 10 | M16: 10 | N16: 10
B17: n | C17: =(COUNT(C5:C15)) -> 11 | D17: =(COUNT(D5:D15)) -> 11 | E17: 11 | F17: 11 | G17: 11 | I17: Mean | J17: =AVERAGE(J5:J14) -> -44.75408 | K17: =AVERAGE(K5:K14) -> -48.73159 | L17: -44.046 | M17: -49.52491 | N17: -45.29183
B18: Mean | C18: =AVERAGE(C5:C15) -> 0.5537878182 | D18: =AVERAGE(D5:D15) -> 0.07222209091 | E18: 0.4388889091 | F18: 0.035606 | G18: 0.4651514545 | I18: ± SEM | J18: =STDEV(J5:J14)/SQRT(COUNT(J5:J14)) -> 2.9429197 | K18: =STDEV(K5:K14)/SQRT(COUNT(K5:K14)) -> 3.418836287 | L18: 3.021596256 | M18: 2.316696788 | N18: 2.874299793
B19: ± SEM | C19: =STDEV(C5:C15)/SQRT(COUNT(C5:C15)) -> 0.1743941841 | D19: =STDEV(D5:D15)/SQRT(COUNT(D5:D15)) -> 0.04321043385 | E19: 0.1614503262 | F19: 0.01617027962 | G19: 0.1001171167

Sheet Suppl.Fig.4d
D1: left | K1: right
D2: Frequency (Hz) | K2: MP (mV)
B4: # neurons | C4: CTRL | D4: Ox-A | E4: CTRL 2 | F4: NA | G4: Wash | I4: # neurons | J4: CTRL | K4: Ox-A | L4: CTRL 2 | M4: NA | N4: Wash
B5: 1 | C5: 0.591667 | D5: 1.81667 | E5: 0.616667 | F5: 4.85 | G5: 1.816667 | I5: 1 | J5: -60.8266 | K5: -57.86 | L5: -60.5811 | M5: -52.9022 | N5: -56.1677
B6: 2 | C6: 0.141667 | D6: 0.44167 | E6: 0.025 | F6: 0.583333 | G6: 0.1833333 | I6: 2 | J6: -49.0468 | K6: -46.1323 | L6: -47.5483 | M6: -49.3783 | N6: -51.5518
B7: 3 | C7: 0.083333 | D7: 0.125 | E7: 0.008333 | F7: 2.2 | G7: 0.8083333 | I7: 3 | J7: -44.4307 | K7: -41.8462 | L7: -43.2786 | M7: -53.8289 | N7: -55.976
B8: 4 | C8: 0.325 | D8: 0.65 | E8: 0.466667 | F8: 1.008333 | G8: 0.1583333 | I8: 4 | J8: -37.3511 | K8: -35.3361 | L8: -37.0787 | M8: -27.34 | N8: -35.03
B9: 5 | C9: 0.041667 | D9: 0.30833 | E9: 0.083333 | F9: 1.041667 | G9: 0.1333333 | I9: 5 | J9: -53.7286 | K9: -51.7907 | L9: -55.5354 | M9: -46.9388 | N9: -53.7823
B10: 6 | C10: 0.066667 | D10: 0.275 | E10: 0.233333 | F10: 0.225 | G10: 0.125 | I10: 6 | J10: -42.4797 | K10: -40.34 | L10: -43.5825 | M10: -39.1642 | N10: -40.9263
B11: 7 | C11: 0.058333 | D11: 0.23333 | E11: 0.05 | F11: 0.25 | G11: 0.05 | I11: 7 | J11: -39.1988 | K11: -32.8547 | L11: -30.64 | M11: -39.251 | N11: -43.9483
B12: 8 | C12: 0.066667 | D12: 0.175 | E12: 0.033333 | F12: 0.066667 | G12: 0.01666667 | I12: 8 | J12: -47.49 | K12: -44.86 | L12: -49.99 | M12: -46.94 | N12: -47.85
B13: 9 | C13: 0.066667 | D13: 0.16667 | E13: 0.083333 | F13: 0.466667 | G13: 0.15 | I13: 9 | J13: -48.71 | K13: -45.96 | L13: -49.32 | M13: -45.78 | N13: -50.9
B14: 10 | C14: 0.008333 | D14: 0.55 | E14: 0.616667 | F14: 0.883333 | G14: 1.216667 | I14: 10 | J14: -51.64 | K14: -47.3 | L14: -50.48 | M14: -44.8 | N14: -49.74
B15: 11 | C15: 0.066667 | D15: 0.16667 | E15: 0.141667 | F15: 0.275 | G15: 0.075 | I15: 11 | J15: -47.12 | K15: -44.56 | L15: -48.65 | M15: -44.86 | N15: -48.28
B16: 12 | C16: 0.116667 | D16: 0.41667 | E16: 0.266667 | F16: 0.158333 | G16: 0.01666667 | I16: 12 | J16: -45.72 | K16: -43.76 | L16: -47.61 | M16: -47.12 | N16: -51.21
B17: 13 | C17: 0.008333 | D17: 0.03333 | E17: 0.008333 | F17: 0.108333 | G17: 0.00833333 | I17: 13 | J17: -52.31 | K17: -49.13 | L17: -51.51 | M17: -53.59 | N17: -58.17
B18: 14 | C18: 0.05 | D18: 0.675 | E18: 0.091667 | F18: 0.35 | G18: 0.2916667 | I18: 14 | J18: -50.66 | K18: -45.1 | L18: -49.13 | M18: -42.97 | N18: -47.73
B19: 15 | C19: 0.008333 | D19: 0.48333 | E19: 0.158333 | F19: 1.325 | G19: 0.05 | I19: 15 | J19: -68.42 | K19: -66.53 | L19: -69.76 | M19: -67.57 | N19: -68.3
B20: 16 | C20: 0.025 | D20: 0.125 | E20: 0.008333 | F20: 0.5 | G20: 0.1666667 | I20: 16 | J20: -53.59 | K20: -49.19 | L20: -53.89 | M20: -44.25 | N20: -53.04
B21: 17 | C21: 0.191667 | D21: 0.51667 | E21: 0.383333 | F21: 1.891667 | G21: 0.5 | I21: 17 | J21: -47.36 | K21: -44.74 | L21: -48.46 | M21: -41.08 | N21: -45.23
B22: 18 | C22: 0.525 | D22: 0.69167 | E22: 0.166667 | F22: 0.441667 | G22: 0.325 | I22: 18 | J22: -50.48 | K22: -48.83 | L22: -50.72 | M22: -47.42 | N22: -51.15
B23: 19 | C23: 0.166667 | D23: 0.29167 | E23: 0.5 | F23: 0.883333 | G23: 0.04166667 | I23: 19 | J23: -58.3702 | K23: -55.97 | L23: -47.9596 | M23: -43.88 | N23: -51.7969
B24: 20 | C24: 0.066667 | D24: 0.35833 | E24: 0.058333 | F24: 0.158333 | G24: 0.04166667 | I24: 20 | J24: -45.6013 | K24: -39.43 | L24: -43.6235 | M24: -41.75 | N24: -45.9019
B25: 21 | C25: 0.008333 | D25: 0.09167 | E25: 0.025 | F25: 1.791667 | G25: 0.01666667 | I25: 21 | J25: -49.07 | K25: -44.43 | L25: -50.23 | M25: -44.56 | N25: -49.26
B26: 22 | C26: 0.091667 | D26: 0.36667 | E26: 0.05 | F26: 0.341667 | G26: 0.06666667 | I26: 22 | J26: -46.75 | K26: -43.15 | L26: -49.8 | M26: -50.9 | N26: -53.77
I27: 23 | J27: -33.75 | K27: -28.38 | L27: -35.83 | M27: -33.57 | N27: -35.95
B28: n | C28: =(COUNT(C5:C26)) -> 22 | D28: =(COUNT(D5:D26)) -> 22 | E28: 22 | F28: 22 | G28: 22 | I28: 24 | J28: -47.91 | K28: -43.95 | L28: -46.94 | M28: -44.8 | N28: -45.72
B29: Mean | C29: =AVERAGE(C5:C26) -> 0.1261364545 | D29: =AVERAGE(D5:D26) -> 0.4071977273 | E29: 0.1852272273 | F29: 0.9 | G29: 0.284469725
B30: ± SEM | C30: =STDEV(C5:C26)/SQRT(COUNT(C5:C26)) -> 0.03372915699 | D30: =STDEV(D5:D26)/SQRT(COUNT(D5:D26)) -> 0.07896442255 | E30: 0.04294902836 | F30: 0.2290881151 | G30: 0.09598152965 | I30: n | J30: =(COUNT(J5:J28)) -> 24 | K30: =(COUNT(K5:K28)) -> 24 | L30: 24 | M30: 24 | N30: 24
I31: Mean | J31: =AVERAGE(J5:J28) -> -48.83390833 | K31: =AVERAGE(K5:K28) -> -45.47625 | L31: -48.42282083 | M31: -45.61014167 | N31: -49.64088333
I32: ± SEM | J32: =STDEV(J5:J28)/SQRT(COUNT(J5:J28)) -> 1.495957147 | K32: =STDEV(K5:K28)/SQRT(COUNT(K5:K28)) -> 1.611325408 | L32: 1.58791576 | M32: 1.551589829 | N32: 1.431379629

Sheet Suppl.Fig.4f
D1: left | K1: right
D2: Frequency (Hz) | K2: MP (mV)
B4: # neurons | C4: CTRL | D4: Ox-A | E4: CTRL 2 | F4: NA | G4: Wash | I4: # neurons | J4: CTRL | K4: Ox-A | L4: CTRL 2 | M4: NA | N4: Wash
B5: 1 | C5: 0.616667 | D5: 0.19167 | E5: 0.291667 | F5: 0 | G5: 0.4833333 | I5: 1 | J5: -43.9251 | K5: -45.9271 | L5: -41.6548 | M5: -48.1456 | N5: -44.7162
B6: 2 | C6: 0.65 | D6: 0.4 | E6: 0.975 | F6: 0.066667 | G6: 0.5083333 | I6: 2 | J6: -43.147 | K6: -45.5463 | L6: -44.1556 | M6: -56.4936 | N6: -42.5109
B7: 3 | C7: 0.608333 | D7: 0.31667 | E7: 0.4625 | F7: 0.125 | G7: 0.9 | I7: 3 | J7: -40.0414 | K7: -40.6018 | L7: -38.8189 | M7: -40.643 | N7: -39.7431
B8: 4 | C8: 0.775 | D8: 0.25 | E8: 0.366667 | F8: 0.041667 | G8: 0.3333333 | I8: 4 | J8: -53.0792 | K8: -54.3353 | L8: -51.2218 | M8: -57.3466 | N8: -48.7357
B9: 5 | C9: 0.55 | D9: 0.06667 | E9: 0.5875 | F9: 0 | G9: 0.55 | I9: 5 | J9: -51.9271 | K9: -53.2384 | L9: -52.4918 | M9: -62.8246 | N9: -50.5628
B10: 6 | C10: 0.025 | D10: 0 | E10: 0.05 | F10: 0 | G10: 0.05 | I10: 6 | J10: -40.5294 | K10: -41.8015 | L10: -39.9405 | M10: -53.0491 | N10: -41.3725
B11: 7 | C11: 0.375 | D11: 0.05833 | E11: 0.4 | F11: 0 | G11: 0.75 | I11: 7 | J11: -57.4037 | K11: -59.2757 | L11: -54.9496 | M11: -65.1924 | N11: -53.9335
B12: 8 | C12: 0.3 | D12: 0.00833 | E12: 0.183333 | F12: 0 | G12: 0.4916667 | I12: 8 | J12: -36.56 | K12: -40.04 | L12: -39.1225 | M12: -44.8286 | N12: -38.6095
B13: 9 | C13: 0.05 | D13: 0 | E13: 0.116667 | F13: 0 | G13: 0.275 | I13: 9 | J13: -44.8532 | K13: -54.8816 | L13: -46.8752 | M13: -50.0235 | N13: -45.6101
I14: 10 | J14: -40.5982 | K14: -46.7296 | L14: -41.7122 | M14: -44.4554 | N14: -42.2113
B15: n | C15: =(COUNT(C5:C13)) -> 9 | D15: =(COUNT(D5:D13)) -> 9 | E15: 9 | F15: 9 | G15: 9 | I15: 11 | J15: -47.61 | K15: -50.6 | L15: -45.9813 | M15: -56.0068 | N15: -49.2698
B16: Mean | C16: =AVERAGE(C5:C13) -> 0.4388888889 | D16: =AVERAGE(D5:D13) -> 0.1435188889 | E16: 0.3814815556 | F16: 0.025926 | G16: 0.4824074 | I16: 12 | J16: -47.7508 | K16: -51.6252 | L16: -44.8062 | M16: -45.8885 | N16: -42.616
B17: ± SEM | C17: =STDEV(C5:C13)/SQRT(COUNT(C5:C13)) -> 0.08945134592 | D17: =STDEV(D5:D13)/SQRT(COUNT(D5:D13)) -> 0.05028459302 | E17: 0.09347982629 | F17: 0.01479311518 | G17: 0.08362731141
I18: n | J18: =(COUNT(J5:J16)) -> 12 | K18: =(COUNT(K5:K16)) -> 12 | L18: 12 | M18: 12 | N18: 12
I19: Mean | J19: =AVERAGE(J5:J16) -> -45.61875833 | K19: =AVERAGE(K5:K16) -> -48.716875 | L19: -45.1442 | M19: -52.07480833 | N19: -44.99095
I20: ± SEM | J20: =STDEV(J5:J16)/SQRT(COUNT(J5:J16)) -> 1.776719418 | K20: =STDEV(K5:K16)/SQRT(COUNT(K5:K16)) -> 1.792783698 | L20: 1.554958611 | M20: 2.219955393 | N20: 1.361479701

Sheet Suppl.Fig.6d
P1: Gal neurons | V1: 2019-01-10
N2: gel (left) | R2: gel (right)
C3: Gal neurons | N3: Gad2 | O3: 248 bp | R3: Gad1 | S3: 177 bp
J4: 2019-01-10
C5: gel (left) | H5: gel (right)
C6: Gal | D6: 182 bp | H6: Gapdh | I6: 171 bp
B13: 500 bp | L13: 500 bp
B15: 200 bp
B16: 100 bp | L16: 200 bp
L17: 100 bp
O23: M - a10 - a11 - a12 - a14 - a15 - nc | S23: M - a10 - a11 - a12 - a14 - a15 - nc
D24: M - a10 - a11 - a12 - a14 - a15 - nc | H24: M - a10 - a11 - a12 - a14 - a15 - nc

Sheet Suppl.Fig.6f
D1: left | K1: right
D2: Frequency (Hz) | K2: MP (mV)
B4: # neurons | C4: CTRL | D4: Ox-A | E4: CTRL 2 | F4: NA | G4: Wash | I4: # neurons | J4: CTRL | K4: Ox-A | L4: CTRL 2 | M4: NA | N4: Wash
B5: 1 | C5: 1.20615 | D5: 0.098644 | E5: 0.826378 | F5: 0.00346507 | G5: 0.988128 | I5: 1 | J5: -55.7462 | K5: -58.5514 | L5: -54.8811 | M5: -67.2409 | N5: -52.5521
B6: 2 | C6: 0.294374 | D6: 0.0349703 | E6: 0.373024 | F6: 0.172178 | G6: 0.541959 | I6: 2 | J6: -57.8809 | K6: -63.2234 | L6: -55.8868 | M6: -60.0342 | N6: -51.7189
B7: 3 | C7: 0.750053 | D7: 0.0891096 | E7: 1.64453 | F7: 0.0928857 | G7: 0.442505 | I7: 3 | J7: -47.4283 | K7: -54.7421 | L7: -43.2457 | M7: -49.9785 | N7: -43.069
B8: 4 | C8: 0.0757027 | D8: 0.00725058 | E8: 0.118892 | F8: 0.00447343 | G8: 0.114913 | I8: 4 | J8: -36.6789 | K8: -41.9476 | L8: -40.9145 | M8: -51.5917 | N8: -42.4061
B9: 5 | C9: 0.491742 | D9: 0.0232811 | E9: 0.641667 | F9: 0 | G9: 0.475 | I9: 5 | J9: -41.0754 | K9: -44.385 | L9: -39.078 | M9: -55.3164 | N9: -38.6932
B10: 6 | C10: 0.350047 | D10: 0.0716862 | E10: 0.435525 | F10: 0.00443887 | G10: 0.282698 | I10: 6 | J10: -40.1923 | K10: -41.804 | L10: -40.3966 | M10: -45.504 | N10: -41.1258
B11: 7 | C11: 0.233333 | D11: 0.0166667 | E11: 0.525 | F11: 0.05 | G11: 0.3 | I11: 7 | J11: -44.9691 | K11: -49.085 | L11: -51.4904 | M11: -53.0211 | N11: -46.7769
B12: 8 | C12: 0.158333 | D12: 0 | E12: 0.55 | F12: 0.15 | G12: 0.766667 | I12: 8 | J12: -43.116 | K12: -48.5501 | L12: -47.5768 | M12: -51.2762 | N12: -49.862
I13: 9 | J13: -34.4727 | K13: -37.3362 | L13: -27.2907 | M13: -34.6065 | N13: -31.1863
B14: n | C14: =(COUNT(C5:C12)) -> 8 | D14: =(COUNT(D5:D12)) -> 8 | E14: 8 | F14: 8 | G14: 8 | I14: 10 | J14: -36.8286 | K14: -40.2776 | L14: -37.6601 | M14: -40.2512 | N14: -36.5373
B15: Mean | C15: =AVERAGE(C5:C12) -> 0.4449668375 | D15: =AVERAGE(D5:D12) -> 0.04270106 | E15: 0.639377 | F15: 0.05968013375 | G15: 0.48898375
B16: ± SEM | C16: =STDEV(C5:C12)/SQRT(COUNT(C5:C12)) -> 0.1315876343 | D16: =STDEV(D5:D12)/SQRT(COUNT(D5:D12)) -> 0.0135740745 | E16: 0.1609004634 | F16: 0.02493956692 | G16: 0.09906822691 | I16: n | J16: =(COUNT(J5:J14)) -> 10 | K16: =(COUNT(K5:K14)) -> 10 | L16: 10 | M16: 10 | N16: 10
I17: Mean | J17: =AVERAGE(J5:J14) -> -43.83884 | K17: =AVERAGE(K5:K14) -> -47.99024 | L17: -43.84207 | M17: -50.88207 | N17: -43.39276
I18: ± SEM | J18: =STDEV(J5:J14)/SQRT(COUNT(J5:J14)) -> 2.500478884 | K18: =STDEV(K5:K14)/SQRT(COUNT(K5:K14)) -> 2.690437848 | L18: 2.778967466 | M18: 2.951308747 | N18: 2.187895676

Sheet Suppl.Fig7c left
A1: Cumulative sIPSCs int (s)
A2: ms | B2: 1 | C2: 2 | D2: 3 | E2: 4 | F2: 5 | G2: 6 | H2: 7 | I2: 8 | J2: 9 | L2: 1 | M2: 2 | N2: 3 | O2: 4 | P2: 5 | Q2: 6 | R2: 7 | S2: 8 | T2: 9 | V2: 1 | W2: 2 | X2: 3 | Y2: 4 | Z2: 5 | AA2: 6 | AB2: 7 | AC2: 8 | AG2: CTRL | AH2: Ox-A | AI2: Wash | AJ2: SE CTRL | AK2: SE Ox-A | AL2: SE Wash
A3: 0 | B3: 0 | C3: 0 | D3: 0 | E3: 0 | F3: 0 | G3: 0 | H3: 0 | I3: 0 | J3: 0 | L3: 0 | M3: 0 | N3: 0 | O3: 0 | P3: 0 | Q3: 0 | R3: 0 | S3: 0 | T3: 0 | V3: 0 | W3: 0 | X3: 0 | Y3: 0 | Z3: 0 | AA3: 0 | AB3: 0 | AC3: 0 | AF3: =A3 -> 0 | AG3: =AVERAGE(B3:J3) -> 0 | AH3: =AVERAGE(L3:T3) -> 0 | AI3: =AVERAGE(V3:AD3) -> 0 | AJ3: =STDEV(B3:J3)/SQRT(COUNT(B3:J3)) -> 0 | AK3: =STDEV(L3:T3)/SQRT(COUNT(L3:T3)) -> 0 | AL3: =STDEV(V3:AD3)/SQRT(COUNT(V3:AD3)) -> 0
A4: 100 | B4: 0.0106383 | C4: 3.45E-02 | D4: 4.76E-02 | E4: 0.05263158 | F4: 0.1101695 | G4: 3.77E-02 | H4: 0.008849557 | I4: 2.73E-02 | J4: 4.83E-02 | L4: 2.41E-02 | M4: 5.56E-02 | N4: 0.024 | O4: 1.30E-02 | P4: 8.19E-02 | Q4: 8.73E-02 | R4: 0.07936508 | S4: 3.68E-02 | T4: 3.19E-02 | V4: 2.83E-02 | W4: 5.83E-02 | X4: 2.55E-02 | Y4: 0.09203009 | Z4: 4.39E-02 | AA4: 3.70E-02 | AB4: 0.03658536 | AC4: 1.96E-02 | AF4: =A4 -> 100 | AG4: 0.04196390967 | AH4: 0.04821156889 | AI4: 0.04265411375 | AJ4: =STDEV(B4:J4)/SQRT(COUNT(B4:J4)) -> 0.0100035772 | AK4: =STDEV(L4:T4)/SQRT(COUNT(L4:T4)) -> 0.00949711598 | AL4: =STDEV(V4:AD4)/SQRT(COUNT(V4:AD4)) -> 0.00822214493
A5: 200 | B5: 4.26E-02 | C5: 0.0775862 | D5: 6.67E-02 | E5: 0.07368421 | F5: 0.161017 | G5: 0.1367925 | H5: 0.04424779 | I5: 4.55E-02 | J5: 8.28E-02 | L5: 7.83E-02 | M5: 0.1419753 | N5: 0.104 | O5: 0.07792208 | P5: 0.1896552 | Q5: 0.1859155 | R5: 0.1746032 | S5: 0.0882353 | T5: 9.57E-02 | V5: 5.66E-02 | W5: 0.1 | X5: 0.0700637 | Y5: 0.153984955 | Z5: 0.1140351 | AA5: 0.1152263 | AB5: 0.1097561 | AC5: 5.88E-02 | AF5: 200 | AG5: 0.08119563667 | AH5: 0.1262627233 | AI5: 0.09731168188 | AJ5: 0.01388506989 | AK5: 0.0156656831 | AL5: 0.01184383593
A6: 300 | B6: 0.106383 | C6: 0.1551724 | D6: 0.1047619 | E6: 0.09473684 | F6: 0.1694915 | G6: 0.1981132 | H6: 0.08849557 | I6: 8.18E-02 | J6: 0.1172414 | L6: 0.1325301 | M6: 0.2037037 | N6: 0.16 | O6: 0.1904762 | P6: 0.2887931 | Q6: 0.3098592 | R6: 0.2380952 | S6: 0.1323529 | T6: 0.1542553 | V6: 8.49E-02 | W6: 0.15 | X6: 0.1019108 | Y6: 0.21593987 | Z6: 0.1666667 | AA6: 0.218107 | AB6: 0.1463415 | AC6: 9.80E-02 | AF6: 300 | AG6: 0.1240237767 | AH6: 0.2011184111 | AI6: 0.1477388438 | AJ6: 0.01351763318 | AK6: 0.02183223928 | AL6: 0.01816917411
A7: 400 | B7: 0.1276596 | C7: 0.1724138 | D7: 0.1428571 | E7: 0.1578947 | F7: 0.2033898 | G7: 0.2830189 | H7: 0.1327434 | I7: 0.1090909 | J7: 0.1448276 | L7: 0.1506024 | M7: 0.2469136 | N7: 0.184 | O7: 0.3073593 | P7: 0.3491379 | Q7: 0.3746479 | R7: 0.2539683 | S7: 0.1764706 | T7: 0.2234043 | V7: 0.1132075 | W7: 0.1583333 | X7: 0.1656051 | Y7: 0.2760902 | Z7: 0.2105263 | AA7: 0.3004115 | AB7: 0.1829268 | AC7: 0.127451 | AF7: 400 | AG7: 0.1637662 | AH7: 0.2518338111 | AI7: 0.1918189625 | AJ7: 0.01746100488 | AK7: 0.02608754114 | AL7: 0.0236999354
A8: 500 | B8: 0.1489362 | C8: 0.1982759 | D8: 0.1619048 | E8: 0.1684211 | F8: 0.2372881 | G8: 0.3584906 | H8: 0.159292 | I8: 0.1363636 | J8: 0.2068966 | L8: 0.2108434 | M8: 0.2962963 | N8: 0.232 | O8: 0.3722944 | P8: 0.3965517 | Q8: 0.456338 | R8: 0.2857143 | S8: 0.2352941 | T8: 0.2553191 | V8: 0.1509434 | W8: 0.1916667 | X8: 0.2292994 | Y8: 0.2956391 | Z8: 0.2368421 | AA8: 0.3744856 | AB8: 0.1951219 | AC8: 0.1666667 | AF8: 500 | AG8: 0.1973187667 | AH8: 0.3045168111 | AI8: 0.2300831125 | AJ8: 0.02274808378 | AK8: 0.02832857835 | AL8: 0.0261106186
A9: 600 | B9: 0.2021277 | C9: 0.2241379 | D9: 0.2285714 | E9: 0.1894737 | F9: 0.2711864 | G9: 0.3867925 | H9: 0.1769911 | I9: 0.1454545 | J9: 0.262069 | L9: 0.2710843 | M9: 0.3271605 | N9: 0.288 | O9: 0.4718615 | P9: 0.4353448 | Q9: 0.4957747 | R9: 0.3174603 | S9: 0.2647059 | T9: 0.2925532 | V9: 0.1981132 | W9: 0.2333333 | X9: 0.2866242 | Y9: 0.32045115 | Z9: 0.2631579 | AA9: 0.4197531 | AB9: 0.2195122 | AC9: 0.1666667 | AF9: 600 | AG9: 0.2318671333 | AH9: 0.3515494667 | AI9: 0.2634514687 | AJ9: 0.02347894711 | AK9: 0.03018231557 | AL9: 0.0282496427
A10: 700 | B10: 0.2234043 | C10: 0.2758621 | D10: 0.247619 | E10: 0.1894737 | F10: 0.2711864 | G10: 0.4150943 | H10: 0.2123894 | I10: 0.1545455 | J10: 0.2827586 | L10: 0.3072289 | M10: 0.3641975 | N10: 0.312 | O10: 0.5454546 | P10: 0.4741379 | Q10: 0.543662 | R10: 0.3412699 | S10: 0.2867647 | T10: 0.3297872 | V10: 0.245283 | W10: 0.2583333 | X10: 0.3121019 | Y10: 0.34045115 | Z10: 0.2807018 | AA10: 0.4773663 | AB10: 0.2439024 | AC10: 0.1960784 | AF10: 700 | AG10: 0.2524814778 | AH10: 0.3893891889 | AI10: 0.2942772813 | AJ10: 0.02480314109 | AK10: 0.03438194908 | AL10: 0.03048087339
A11: 800 | B11: 0.2446809 | C11: 0.2844827 | D11: 0.2666667 | E11: 0.2105263 | F11: 0.279661 | G11: 0.4716981 | H11: 0.2477876 | I11: 0.1818182 | J11: 0.3103448 | L11: 0.3674699 | M11: 0.4135802 | N11: 0.336 | O11: 0.5930736 | P11: 0.5215517 | Q11: 0.6028169 | R11: 0.3968254 | S11: 0.3308823 | T11: 0.3670213 | V11: 0.2641509 | W11: 0.2833333 | X11: 0.343949 | Y11: 0.35954885 | Z11: 0.2982456 | AA11: 0.5144033 | AB11: 0.2804878 | AC11: 0.2352941 | AF11: 800 | AG11: 0.2775184778 | AH11: 0.4365801444 | AI11: 0.3224266063 | AJ11: 0.02752848819 | AK11: 0.03581540665 | AL11: 0.03092511926
A12: 900 | B12: 0.2765957 | C12: 0.2931035 | D12: 0.2857143 | E12: 0.2210526 | F12: 0.3474576 | G12: 0.5 | H12: 0.2743363 | I12: 0.2181818 | J12: 0.337931 | L12: 0.3855422 | M12: 0.462963 | N12: 0.36 | O12: 0.6406927 | P12: 0.5646552 | Q12: 0.6450704 | R12: 0.4126984 | S12: 0.3602941 | T12: 0.4095745 | V12: 0.2830189 | W12: 0.3166667 | X12: 0.4012739 | Y12: 0.37909775 | Z12: 0.3157895 | AA12: 0.5514404 | AB12: 0.3048781 | AC12: 0.254902 | AF12: 900 | AG12: 0.3060414222 | AH12: 0.4712767222 | AI12: 0.3508834062 | AJ12: 0.02832044683 | AK12: 0.03854710642 | AL12: 0.03324563177
A13: 1000 | B13: 0.3085106 | C13: 0.3017241 | D13: 0.3047619 | E13: 0.2421053 | F13: 0.3644068 | G13: 0.5518868 | H13: 0.2743363 | I13: 0.2363636 | J13: 0.3724138 | L13: 0.3915663 | M13: 0.4814815 | N13: 0.384 | O13: 0.6883117 | P13: 0.6034483 | Q13: 0.6929578 | R13: 0.4365079 | S13: 0.4264706 | T13: 0.4574468 | V13: 0.3018868 | W13: 0.35 | X13: 0.4585987 | Y13: 0.40676695 | Z13: 0.3333333 | AA13: 0.5761317 | AB13: 0.3048781 | AC13: 0.2843137 | AF13: 1000 | AG13: 0.3285010222 | AH13: 0.5069101 | AI13: 0.3769886562 | AJ13: 0.03199094308 | AK13: 0.04078589264 | AL13: 0.03516998117
A14: 1100 | B14: 0.3510638 | C14: 0.3103448 | D14: 0.3238095 | E14: 0.2526316 | F14: 0.3898305 | G14: 0.5660377 | H14: 0.2920354 | I14: 0.2818182 | J14: 0.3793103 | L14: 0.4216867 | M14: 0.5 | N14: 0.408 | O14: 0.7012987 | P14: 0.625 | Q14: 0.7408451 | R14: 0.4444444 | S14: 0.4411765 | T14: 0.4734043 | V14: 0.3584906 | W14: 0.4 | X14: 0.477707 | Y14: 0.4263158 | Z14: 0.368421 | AA14: 0.600823 | AB14: 0.3292683 | AC14: 0.3333333 | AF14: 1100 | AG14: 0.3496535333 | AH14: 0.5284284111 | AI14: 0.411794875 | AJ14: 0.03092680354 | AK14: 0.0422837457 | AL14: 0.03221454577
A15: 1200 | B15: 0.3617021 | C15: 0.3362069 | D15: 0.352381 | E15: 0.2526316 | F15: 0.4067796 | G15: 0.5990566 | H15: 0.300885 | I15: 0.3 | J15: 0.4206896 | L15: 0.4819277 | M15: 0.5432099 | N15: 0.424 | O15: 0.7316017 | P15: 0.6724138 | Q15: 0.7802817 | R15: 0.452381 | S15: 0.4632353 | T15: 0.5053192 | V15: 0.3773585 | W15: 0.4083333 | X15: 0.522293 | Y15: 0.44060155 | Z15: 0.3859649 | AA15: 0.6460905 | AB15: 0.3414634 | AC15: 0.3333333 | AF15: 1200 | AG15: 0.3700369333 | AH15: 0.5615967 | AI15: 0.4319298062 | AJ15: 0.03361600369 | AK15: 0.04400024082 | AL15: 0.03723922317
A16: 1300 | B16: 0.393617 | C16: 0.362069 | D16: 0.3619048 | E16: 0.3052632 | F16: 0.4152542 | G16: 0.6226415 | H16: 0.3097345 | I16: 0.3090909 | J16: 0.4482759 | L16: 0.5 | M16: 0.5617284 | N16: 0.432 | O16: 0.7489178 | P16: 0.6939655 | Q16: 0.8 | R16: 0.4603175 | S16: 0.4852941 | T16: 0.5478724 | V16: 0.4245283 | W16: 0.45 | X16: 0.5414013 | Y16: 0.47548875 | Z16: 0.4210526 | AA16: 0.6831276 | AB16: 0.3536585 | AC16: 0.3529412 | AF16: 1300 | AG16: 0.3919834444 | AH16: 0.5811217444 | AI16: 0.4627747813 | AJ16: 0.03330670564 | AK16: 0.04454603984 | AL16: 0.03832093012
A17: 1400 | B17: 0.4042553 | C17: 0.3793103 | D17: 0.3904762 | E17: 0.3473684 | F17: 0.4152542 | G17: 0.6650943 | H17: 0.3362832 | I17: 0.3545454 | J17: 0.4758621 | L17: 0.5361446 | M17: 0.5740741 | N17: 0.472 | O17: 0.7792208 | P17: 0.7155172 | Q17: 0.8253521 | R17: 0.468254 | S17: 0.4926471 | T17: 0.6276596 | V17: 0.4433962 | W17: 0.475 | X17: 0.5796179 | Y17: 0.50511275 | Z17: 0.4298246 | AA17: 0.7078189 | AB17: 0.3536585 | AC17: 0.372549 | AF17: 1400 | AG17: 0.4187166 | AH17: 0.6100966111 | AI17: 0.4833722312 | AJ17: 0.03385894911 | AK17: 0.04504793514 | AL17: 0.04091697884
A18: 1500 | B18: 0.4255319 | C18: 0.3965517 | D18: 0.4095238 | E18: 0.368421 | F18: 0.4322034 | G18: 0.6650943 | H18: 0.3451327 | I18: 0.3636364 | J18: 0.4827586 | L18: 0.5722892 | M18: 0.5987654 | N18: 0.48 | O18: 0.8051948 | P18: 0.7284483 | Q18: 0.8535211 | R18: 0.4761905 | S18: 0.4926471 | T18: 0.6595744 | V18: 0.4528302 | W18: 0.475 | X18: 0.5923567 | Y18: 0.5184962 | Z18: 0.4473684 | AA18: 0.7325103 | AB18: 0.3780488 | AC18: 0.3823529 | AF18: 1500 | AG18: 0.4320948667 | AH18: 0.6296256444 | AI18: 0.4973704375 | AJ18: 0.0322694268 | AK18: 0.04722135667 | AL18: 0.04166417674
A19: 1600 | B19: 0.4361702 | C19: 0.4396552 | D19: 0.4666667 | E19: 0.3894737 | F19: 0.4576271 | G19: 0.6886792 | H19: 0.3716814 | I19: 0.3727273 | J19: 0.5103448 | L19: 0.5783132 | M19: 0.6234568 | N19: 0.496 | O19: 0.8268398 | P19: 0.7327586 | Q19: 0.8732395 | R19: 0.4920635 | S19: 0.5294118 | T19: 0.6648936 | V19: 0.4716981 | W19: 0.4916667 | X19: 0.6050956 | Y19: 0.53473685 | Z19: 0.4912281 | AA19: 0.7654321 | AB19: 0.3780488 | AC19: 0.4117647 | AF19: 1600 | AG19: 0.4592250667 | AH19: 0.6463307556 | AI19: 0.5187088687 | AJ19: 0.03254182667 | AK19: 0.04671170669 | AL19: 0.04299308716
A20: 1700 | B20: 0.4680851 | C20: 0.4655173 | D20: 0.4857143 | E20: 0.4105263 | F20: 0.4576271 | G20: 0.7075472 | H20: 0.380531 | I20: 0.4181818 | J20: 0.537931 | L20: 0.6144578 | M20: 0.6358024 | N20: 0.544 | O20: 0.8658009 | P20: 0.7543104 | Q20: 0.8816901 | R20: 0.5396826 | S20: 0.5661765 | T20: 0.6914893 | V20: 0.4716981 | W20: 0.5083333 | X20: 0.6050956 | Y20: 0.5509774 | Z20: 0.4912281 | AA20: 0.7942387 | AB20: 0.3780488 | AC20: 0.4215686 | AF20: 1700 | AG20: 0.4812956778 | AH20: 0.6770455556 | AI20: 0.527648575 | AJ20: 0.03217696296 | AK20: 0.04380612614 | AL20: 0.04552778013
A21: 1800 | B21: 0.4787234 | C21: 0.4827586 | D21: 0.4857143 | E21: 0.4315789 | F21: 0.4915254 | G21: 0.7216981 | H21: 0.4070796 | I21: 0.4272727 | J21: 0.5724138 | L21: 0.6325301 | M21: 0.6728395 | N21: 0.544 | O21: 0.8744588 | P21: 0.7844828 | Q21: 0.8985916 | R21: 0.5793651 | S21: 0.5882353 | T21: 0.7074468 | V21: 0.5 | W21: 0.5083333 | X21: 0.6178344 | Y21: 0.57007515 | Z21: 0.4912281 | AA21: 0.8148148 | AB21: 0.3780488 | AC21: 0.4509804 | AF21: 1800 | AG21: 0.4998627556 | AH21: 0.6979944444 | AI21: 0.5414143687 | AJ21: 0.03206425925 | AK21: 0.04309245583 | AL21: 0.04659936345
A22: 1900 | B22: 0.4893617 | C22: 0.5 | D22: 0.5428572 | E22: 0.4421053 | F22: 0.5169492 | G22: 0.7311321 | H22: 0.4247788 | I22: 0.4545455 | J22: 0.5793104 | L22: 0.6566265 | M22: 0.691358 | N22: 0.552 | O22: 0.8787879 | P22: 0.8017241 | Q22: 0.912676 | R22: 0.5873016 | S22: 0.6029412 | T22: 0.7180851 | V22: 0.5 | W22: 0.525 | X22: 0.6369427 | Y22: 0.5839098 | Z22: 0.5 | AA22: 0.81893 | AB22: 0.402439 | AC22: 0.4705882 | AF22: 1900 | AG22: 0.5201155778 | AH22: 0.7112778222 | AI22: 0.5547262125 | AJ22: 0.03104293267 | AK22: 0.04293205853 | AL22: 0.04522938333
A23: 2000 | B23: 0.5212766 | C23: 0.5086207 | D23: 0.5428572 | E23: 0.4526316 | F23: 0.5593221 | G23: 0.759434 | H23: 0.4513274 | I23: 0.4909091 | J23: 0.6206896 | L23: 0.6686747 | M23: 0.7160494 | N23: 0.576 | O23: 0.8917749 | P23: 0.8103448 | Q23: 0.915493 | R23: 0.5873016 | S23: 0.6176471 | T23: 0.7340425 | V23: 0.5 | W23: 0.5416667 | X23: 0.6433121 | Y23: 0.59488725 | Z23: 0.508772 | AA23: 0.81893 | AB23: 0.402439 | AC23: 0.4901961 | AF23: 2000 | AG23: 0.5452298111 | AH23: 0.7241475556 | AI23: 0.5625253937 | AJ23: 0.03206734465 | AK23: 0.04206469211 | AL23: 0.04460345544
A24: 2100 | B24: 0.5425532 | C24: 0.5344828 | D24: 0.5428572 | E24: 0.4526316 | F24: 0.5593221 | G24: 0.7688679 | H24: 0.4513274 | I24: 0.5 | J24: 0.6344827 | L24: 0.686747 | M24: 0.728395 | N24: 0.592 | O24: 0.8917749 | P24: 0.8275862 | Q24: 0.9211268 | R24: 0.5952381 | S24: 0.6323529 | T24: 0.7553192 | V24: 0.5 | W24: 0.55 | X24: 0.6496815 | Y24: 0.5977444 | Z24: 0.5175439 | AA24: 0.8312757 | AB24: 0.4146341 | AC24: 0.5 | AF24: 2100 | AG24: 0.5540583222 | AH24: 0.7367266778 | AI24: 0.57010995 | AJ24: 0.0327115553 | AK24: 0.04100653579 | AL24: 0.04481589187
A25: 2200 | B25: 0.5638298 | C25: 0.5517241 | D25: 0.5809524 | E25: 0.4736842 | F25: 0.5847458 | G25: 0.7924528 | H25: 0.4778761 | I25: 0.5 | J25: 0.6482759 | L25: 0.7168674 | M25: 0.7469136 | N25: 0.6 | O25: 0.9004329 | P25: 0.8318965 | Q25: 0.9267606 | R25: 0.6031746 | S25: 0.6397059 | T25: 0.7659575 | V25: 0.5188679 | W25: 0.5583333 | X25: 0.6624204 | Y25: 0.61112785 | Z25: 0.5263158 | AA25: 0.8436214 | AB25: 0.4268293 | AC25: 0.509804 | AF25: 2200 | AG25: 0.5748379 | AH25: 0.7479676667 | AI25: 0.5821649937 | AJ25: 0.03307708529 | AK25: 0.04050525581 | AL25: 0.04486052293
A26: 2300 | B26: 0.5638298 | C26: 0.5862069 | D26: 0.5904762 | E26: 0.4947369 | F26: 0.5932204 | G26: 0.8066038 | H26: 0.4867257 | I26: 0.5181818 | J26: 0.6758621 | L26: 0.7289157 | M26: 0.7592593 | N26: 0.624 | O26: 0.9134199 | P26: 0.8318965 | Q26: 0.9352112 | R26: 0.6031746 | S26: 0.6911765 | T26: 0.7819149 | V26: 0.5566038 | W26: 0.575 | X26: 0.7006369 | Y26: 0.62736845 | Z26: 0.5526316 | AA26: 0.8518519 | AB26: 0.4512195 | AC26: 0.5392157 | AF26: 2300 | AG26: 0.5906492889 | AH26: 0.7632187333 | AI26: 0.6068159812 | AJ26: 0.03331125728 | AK26: 0.03883483907 | AL26: 0.04320154185
A27: 2400 | B27: 0.5744681 | C27: 0.5862069 | D27: 0.6 | E27: 0.5263158 | F27: 0.6101695 | G27: 0.8160377 | H27: 0.4955752 | I27: 0.5272727 | J27: 0.6827586 | L27: 0.7530121 | M27: 0.7654321 | N27: 0.624 | O27: 0.9264069 | P27: 0.8362069 | Q27: 0.943662 | R27: 0.6428571 | S27: 0.6985294 | T27: 0.7978724 | V27: 0.5660377 | W27: 0.5833333 | X27: 0.7261146 | Y27: 0.64601505 | Z27: 0.5526316 | AA27: 0.8600823 | AB27: 0.4512195 | AC27: 0.5588235 | AF27: 2400 | AG27: 0.6020893889 | AH27: 0.7764421 | AI27: 0.6180321937 | AJ27: 0.03250014752 | AK27: 0.03769525928 | AL27: 0.04443492899
A28: 2500 | B28: 0.5744681 | C28: 0.6034483 | D28: 0.6 | E28: 0.5368421 | F28: 0.6355932 | G28: 0.8207547 | H28: 0.5044248 | I28: 0.5363637 | J28: 0.7172414 | L28: 0.7590361 | M28: 0.771605 | N28: 0.64 | O28: 0.9307359 | P28: 0.8405172 | Q28: 0.9492958 | R28: 0.6666667 | S28: 0.7058824 | T28: 0.7978724 | V28: 0.5754717 | W28: 0.6166667 | X28: 0.7324841 | Y28: 0.6512782 | Z28: 0.6052632 | AA28: 0.8683128 | AB28: 0.4512195 | AC28: 0.5784314 | AF28: 2500 | AG28: 0.6143484778 | AH28: 0.7846235 | AI28: 0.63489095 | AJ28: 0.03327683473 | AK28: 0.0360592798 | AL28: 0.04349511085
A29: 2600 | B29: 0.5744681 | C29: 0.6206896 | D29: 0.6 | E29: 0.5473684 | F29: 0.6610169 | G29: 0.8301887 | H29: 0.5132743 | I29: 0.5545455 | J29: 0.7310345 | L29: 0.7771084 | M29: 0.7777778 | N29: 0.664 | O29: 0.9350649 | P29: 0.8663793 | Q29: 0.9521127 | R29: 0.6666667 | S29: 0.7058824 | T29: 0.8085107 | V29: 0.5849057 | W29: 0.6166667 | X29: 0.7388535 | Y29: 0.65654135 | Z29: 0.622807 | AA29: 0.872428 | AB29: 0.4512195 | AC29: 0.5980392 | AF29: 2600 | AG29: 0.6258428889 | AH29: 0.7948336556 | AI29: 0.6426826187 | AJ29: 0.03360446546 | AK29: 0.03570110627 | AL29: 0.0433600055
A30: 2700 | B30: 0.5744681 | C30: 0.6206896 | D30: 0.6 | E30: 0.5578948 | F30: 0.6694915 | G30: 0.8443396 | H30: 0.5221239 | I30: 0.5727273 | J30: 0.7586207 | L30: 0.7951807 | M30: 0.7777778 | N30: 0.696 | O30: 0.9350649 | P30: 0.8663793 | Q30: 0.9633803 | R30: 0.6825397 | S30: 0.7279412 | T30: 0.8351064 | V30: 0.5849057 | W30: 0.625 | X30: 0.7515923 | Y30: 0.6646617 | Z30: 0.622807 | AA30: 0.8806584 | AB30: 0.4634146 | AC30: 0.6176471 | AF30: 2700 | AG30: 0.6355950556 | AH30: 0.8088189222 | AI30: 0.65133585 | AJ30: 0.03495028926 | AK30: 0.03337430908 | AL30: 0.04333992121
A31: 2800 | B31: 0.5957447 | C31: 0.6293104 | D31: 0.6190476 | E31: 0.5684211 | F31: 0.6864407 | G31: 0.8537736 | H31: 0.5309734 | I31: 0.5909091 | J31: 0.7655172 | L31: 0.8253012 | M31: 0.7962963 | N31: 0.712 | O31: 0.9350649 | P31: 0.875 | Q31: 0.9690141 | R31: 0.6825397 | S31: 0.7352941 | T31: 0.8351064 | V31: 0.6132075 | W31: 0.6416667 | X31: 0.7707006 | Y31: 0.672782 | Z31: 0.6315789 | AA31: 0.8930041 | AB31: 0.5121951 | AC31: 0.627451 | AF31: 2800 | AG31: 0.6489042 | AH31: 0.8184018556 | AI31: 0.6703232375 | AJ31: 0.03432462516 | AK31: 0.03270230658 | AL31: 0.040553204
A32: 2900 | B32: 0.5957447 | C32: 0.6465517 | D32: 0.6476191 | E32: 0.5789474 | F32: 0.7033898 | G32: 0.8584906 | H32: 0.5663717 | I32: 0.6090909 | J32: 0.7724138 | L32: 0.8313253 | M32: 0.7962963 | N32: 0.712 | O32: 0.9350649 | P32: 0.8793104 | Q32: 0.9690141 | R32: 0.6904762 | S32: 0.7426471 | T32: 0.8351064 | V32: 0.6226415 | W32: 0.6833333 | X32: 0.7961783 | Y32: 0.67804515 | Z32: 0.6578947 | AA32: 0.8971193 | AB32: 0.5365854 | AC32: 0.6372549 | AF32: 2900 | AG32: 0.6642910778 | AH32: 0.8212489667 | AI32: 0.6886315687 | AJ32: 0.03251981049 | AK32: 0.03212195393 | AL32: 0.03924069981
A33: 3000 | B33: 0.5957447 | C33: 0.6551724 | D33: 0.6476191 | E33: 0.5894737 | F33: 0.7118644 | G33: 0.8632075 | H33: 0.5752212 | I33: 0.6454545 | J33: 0.7724138 | L33: 0.8373494 | M33: 0.7962963 | N33: 0.712 | O33: 0.9350649 | P33: 0.887931 | Q33: 0.9690141 | R33: 0.6984127 | S33: 0.75 | T33: 0.8404256 | V33: 0.6226415 | W33: 0.7083333 | X33: 0.8025478 | Y33: 0.6833083 | Z33: 0.6578947 | AA33: 0.8971193 | AB33: 0.5365854 | AC33: 0.6568627 | AF33: 3000 | AG33: 0.6729079222 | AH33: 0.825166 | AI33: 0.695661625 | AJ33: 0.03157857217 | AK33: 0.0317208111 | AL33: 0.03916355504
A34: 3100 | B34: 0.606383 | C34: 0.6637931 | D34: 0.6571429 | E34: 0.6105263 | F34: 0.720339 | G34: 0.8726415 | H34: 0.5840708 | I34: 0.6545454 | J34: 0.7862069 | L34: 0.8433735 | M34: 0.8024691 | N34: 0.728 | O34: 0.9480519 | P34: 0.8965517 | Q34: 0.971831 | R34: 0.7142857 | S34: 0.7647059 | T34: 0.8510638 | V34: 0.6320755 | W34: 0.725 | X34: 0.8025478 | Y34: 0.702406 | Z34: 0.6666667 | AA34: 0.8971193 | AB34: 0.5487805 | AC34: 0.6666667 | AF34: 3100 | AG34: 0.6839609889 | AH34: 0.8355925111 | AI34: 0.7051578125 | AJ34: 0.03134888788 | AK34: 0.03064979838 | AL34: 0.03767656693
A35: 3200 | B35: 0.606383 | C35: 0.6637931 | D35: 0.6571429 | E35: 0.6105263 | F35: 0.720339 | G35: 0.8773585 | H35: 0.6106195 | I35: 0.6727273 | J35: 0.7931035 | L35: 0.8493976 | M35: 0.8024691 | N35: 0.736 | O35: 0.9480519 | P35: 0.9051724 | Q35: 0.9746479 | R35: 0.7301587 | S35: 0.7647059 | T35: 0.8510638 | V35: 0.6320755 | W35: 0.7416667 | X35: 0.8025478 | Y35: 0.70526315 | Z35: 0.6842105 | AA35: 0.9012346 | AB35: 0.5609756 | AC35: 0.6764706 | AF35: 3200 | AG35: 0.6902214556 | AH35: 0.8401852556 | AI35: 0.7130555562 | AJ35: 0.03080571399 | AK35: 0.02986590554 | AL35: 0.03687723655
A36: 3300 | B36: 0.6170213 | C36: 0.6637931 | D36: 0.6761905 | E36: 0.6210526 | F36: 0.720339 | G36: 0.8867925 | H36: 0.6106195 | I36: 0.6818182 | J36: 0.8068966 | L36: 0.873494 | M36: 0.808642 | N36: 0.744 | O36: 0.95671 | P36: 0.9137931 | Q36: 0.9746479 | R36: 0.7460318 | S36: 0.7720588 | T36: 0.8670213 | V36: 0.6509434 | W36: 0.7583333 | X36: 0.8152866 | Y36: 0.7105263 | Z36: 0.7105263 | AA36: 0.9012346 | AB36: 0.5609756 | AC36: 0.6960784 | AF36: 3300 | AG36: 0.6982803667 | AH36: 0.8507109889 | AI36: 0.7254880625 | AJ36: 0.0311851153 | AK36: 0.02926448532 | AL36: 0.03634245018
A37: 3400 | B37: 0.6170213 | C37: 0.6810345 | D37: 0.6761905 | E37: 0.6210526 | F37: 0.7288136 | G37: 0.8915094 | H37: 0.6371682 | I37: 0.7090909 | J37: 0.8275862 | L37: 0.8855422 | M37: 0.8333333 | N37: 0.744 | O37: 0.965368 | P37: 0.9181035 | Q37: 0.9774648 | R37: 0.7619048 | S37: 0.7867647 | T37: 0.8670213 | V37: 0.6792453 | W37: 0.7666667 | X37: 0.821656 | Y37: 0.7105263 | Z37: 0.7280702 | AA37: 0.909465 | AB37: 0.5609756 | AC37: 0.7058824 | AF37: 3400 | AG37: 0.7099408 | AH37: 0.8599447333 | AI37: 0.7353109375 | AJ37: 0.03139580549 | AK37: 0.02841441263 | AL37: 0.0363114509
A38: 3500 | B38: 0.6276596 | C38: 0.7068965 | D38: 0.7142857 | E38: 0.6315789 | F38: 0.7372881 | G38: 0.9009434 | H38: 0.6371682 | I38: 0.7272727 | J38: 0.8344827 | L38: 0.8855422 | M38: 0.8333333 | N38: 0.752 | O38: 0.974026 | P38: 0.9181035 | Q38: 0.9774648 | R38: 0.7777778 | S38: 0.7867647 | T38: 0.8670213 | V38: 0.6792453 | W38: 0.7833334 | X38: 0.8471338 | Y38: 0.7186466 | Z38: 0.7456141 | AA38: 0.9218107 | AB38: 0.5731707 | AC38: 0.7058824 | AF38: 3500 | AG38: 0.7241750889 | AH38: 0.8635592889 | AI38: 0.746854625 | AJ38: 0.03105823233 | AK38: 0.02770444776 | AL38: 0.03760920375
A39: 3600 | B39: 0.6382979 | C39: 0.7413793 | D39: 0.7238095 | E39: 0.6526316 | F39: 0.7457627 | G39: 0.9056604 | H39: 0.6637168 | I39: 0.7454545 | J39: 0.8482758 | L39: 0.8915663 | M39: 0.8395061 | N39: 0.768 | O39: 0.974026 | P39: 0.9267241 | Q39: 0.9802817 | R39: 0.7857143 | S39: 0.7941176 | T39: 0.8670213 | V39: 0.6792453 | W39: 0.7916667 | X39: 0.8535032 | Y39: 0.72917295 | Z39: 0.7543859 | AA39: 0.9218107 | AB39: 0.597561 | AC39: 0.7156863 | AF39: 3600 | AG39: 0.7405542778 | AH39: 0.8696619333 | AI39: 0.7553790062 | AJ39: 0.02964768308 | AK39: 0.02658062439 | AL39: 0.03575980927
A40: 3700 | B40: 0.6382979 | C40: 0.7413793 | D40: 0.7238095 | E40: 0.6631579 | F40: 0.7542373 | G40: 0.9150943 | H40: 0.6725664 | I40: 0.7727273 | J40: 0.8551724 | L40: 0.8915663 | M40: 0.8518519 | N40: 0.784 | O40: 0.974026 | P40: 0.9267241 | Q40: 0.9802817 | R40: 0.7936508 | S40: 0.8014706 | T40: 0.8776596 | V40: 0.7169811 | W40: 0.7916667 | X40: 0.8598726 | Y40: 0.7344361 | Z40: 0.7719298 | AA40: 0.9218107 | AB40: 0.597561 | AC40: 0.7254902 | AF40: 3700 | AG40: 0.7484935889 | AH40: 0.8756923333 | AI40: 0.764968525 | AJ40: 0.03018612486 | AK40: 0.02491208679 | AL40: 0.03463749587
A41: 3800 | B41: 0.6702127 | C41: 0.7672414 | D41: 0.7238095 | E41: 0.6736842 | F41: 0.7542373 | G41: 0.9245283 | H41: 0.6725664 | I41: 0.7818182 | J41: 0.862069 | L41: 0.9096386 | M41: 0.8518519 | N41: 0.784 | O41: 0.974026 | P41: 0.9310345 | Q41: 0.9802817 | R41: 0.7936508 | S41: 0.8088235 | T41: 0.8882979 | V41: 0.7264151 | W41: 0.7916667 | X41: 0.8726115 | Y41: 0.73969925 | Z41: 0.7807018 | AA41: 0.9341564 | AB41: 0.597561 | AC41: 0.7352941 | AF41: 3800 | AG41: 0.7589074444 | AH41: 0.8801783222 | AI41: 0.7722632312 | AJ41: 0.02946399471 | AK41: 0.02499428763 | AL41: 0.0358012688
A42: 3900 | B42: 0.6914893 | C42: 0.7672414 | D42: 0.7428572 | E42: 0.6842105 | F42: 0.7542373 | G42: 0.9292453 | H42: 0.6725664 | I42: 0.7909091 | J42: 0.8689655 | L42: 0.9277108 | M42: 0.8703704 | N42: 0.784 | O42: 0.974026 | P42: 0.9353448 | Q42: 0.9830986 | R42: 0.7936508 | S42: 0.8161765 | T42: 0.8989362 | V42: 0.754717 | W42: 0.7916667 | X42: 0.8789809 | Y42: 0.7535338 | Z42: 0.7807018 | AA42: 0.9382716 | AB42: 0.597561 | AC42: 0.7647059 | AF42: 3900 | AG42: 0.766858 | AH42: 0.8870349 | AI42: 0.7825173375 | AJ42: 0.02874974774 | AK42: 0.02515537863 | AL42: 0.03530242163
A43: 4000 | B43: 0.6914893 | C43: 0.7672414 | D43: 0.7428572 | E43: 0.7052631 | F43: 0.7627119 | G43: 0.9339623 | H43: 0.6725664 | I43: 0.8090909 | J43: 0.8896552 | L43: 0.933735 | M43: 0.8765432 | N43: 0.784 | O43: 0.978355 | P43: 0.9396552 | Q43: 0.9859155 | R43: 0.8015873 | S43: 0.8235294 | T43: 0.9095744 | V43: 0.7641509 | W43: 0.8083333 | X43: 0.8853503 | Y43: 0.77263155 | Z43: 0.7894737 | AA43: 0.9423868 | AB43: 0.597561 | AC43: 0.7745098 | AF43: 4000 | AG43: 0.7749819667 | AH43: 0.8925438889 | AI43: 0.7917996687 | AJ43: 0.02961589329 | AK43: 0.02510033331 | AL43: 0.03557347702
A44: 4100 | B44: 0.6914893 | C44: 0.7672414 | D44: 0.752381 | E44: 0.7263158 | F44: 0.7711864 | G44: 0.9386792 | H44: 0.6814159 | I44: 0.8454546 | J44: 0.8896552 | L44: 0.933735 | M44: 0.8888889 | N44: 0.792 | O44: 0.978355 | P44: 0.9396552 | Q44: 0.9859155 | R44: 0.8095238 | S44: 0.8308824 | T44: 0.9148936 | V44: 0.7641509 | W44: 0.8166667 | X44: 0.8917198 | Y44: 0.78601505 | Z44: 0.7894737 | AA44: 0.9423868 | AB44: 0.6097561 | AC44: 0.7843137 | AF44: 4100 | AG44: 0.7848687556 | AH44: 0.8970943778 | AI44: 0.7980603438 | AJ44: 0.02951283754 | AK44: 0.02390026783 | AL44: 0.03458027528
A45: 4200 | B45: 0.7127659 | C45: 0.7672414 | D45: 0.752381 | E45: 0.7578948 | F45: 0.7966102 | G45: 0.9386792 | H45: 0.6814159 | I45: 0.8454546 | J45: 0.8965517 | L45: 0.933735 | M45: 0.9012346 | N45: 0.808 | O45: 0.978355 | P45: 0.9396552 | Q45: 0.9887324 | R45: 0.8333333 | S45: 0.8455882 | T45: 0.9148936 | V45: 0.7735849 | W45: 0.825 | X45: 0.8980892 | Y45: 0.80751885 | Z45: 0.7982456 | AA45: 0.9423868 | AB45: 0.6219512 | AC45: 0.8039216 | AF45: 4200 | AG45: 0.7943327444 | AH45: 0.9048363667 | AI45: 0.8088372687 | AJ45: 0.02816820077 | AK45: 0.02128035492 | AL45: 0.03337284934
A46: 4300 | B46: 0.7127659 | C46: 0.7931035 | D46: 0.752381 | E46: 0.7684211 | F46: 0.8050848 | G46: 0.9433962 | H46: 0.699115 | I46: 0.8636364 | J46: 0.8965517 | L46: 0.933735 | M46: 0.9197531 | N46: 0.808 | O46: 0.978355 | P46: 0.9396552 | Q46: 0.9915493 | R46: 0.8492063 | S46: 0.8455882 | T46: 0.930851 | V46: 0.7830189 | W46: 0.825 | X46: 0.9044586 | Y46: 0.82421055 | Z46: 0.8245614 | AA46: 0.9423868 | AB46: 0.6463414 | AC46: 0.8039216 | AF46: 4300 | AG46: 0.8038284 | AH46: 0.9107436778 | AI46: 0.8192374062 | AJ46: 0.02762048529 | AK46: 0.02092949111 | AL46: 0.03103974776
A47: 4400 | B47: 0.7234042 | C47: 0.7931035 | D47: 0.752381 | E47: 0.7684211 | F47: 0.8135593 | G47: 0.9433962 | H47: 0.7256637 | I47: 0.8636364 | J47: 0.8965517 | L47: 0.933735 | M47: 0.9197531 | N47: 0.816 | O47: 0.978355 | P47: 0.9396552 | Q47: 0.9915493 | R47: 0.8492063 | S47: 0.8529412 | T47: 0.930851 | V47: 0.7830189 | W47: 0.8416666 | X47: 0.9108281 | Y47: 0.8270677 | Z47: 0.8333333 | AA47: 0.9423868 | AB47: 0.6951219 | AC47: 0.8137255 | AF47: 4400 | AG47: 0.8089019 | AH47: 0.9124495667 | AI47: 0.8308936 | AJ47: 0.02584948754 | AK47: 0.02007933565 | AL47: 0.02671863655
A48: 4500 | B48: 0.7446808 | C48: 0.8103448 | D48: 0.752381 | E48: 0.7894737 | F48: 0.8305085 | G48: 0.9481132 | H48: 0.7345133 | I48: 0.8636364 | J48: 0.9034483 | L48: 0.939759 | M48: 0.9197531 | N48: 0.824 | O48: 0.982684 | P48: 0.9525862 | Q48: 0.9915493 | R48: 0.8492063 | S48: 0.8529412 | T48: 0.9468085 | V48: 0.7830189 | W48: 0.8416666 | X48: 0.9171975 | Y48: 0.837594 | Z48: 0.8333333 | AA48: 0.9506173 | AB48: 0.6951219 | AC48: 0.8137255 | AF48: 4500 | AG48: 0.8196777778 | AH48: 0.9176986222 | AI48: 0.834034375 | AJ48: 0.02471184071 | AK48: 0.02037720162 | AL48: 0.02767502802
A49: 4600 | B49: 0.7553192 | C49: 0.8189655 | D49: 0.752381 | E49: 0.8 | F49: 0.8389831 | G49: 0.9481132 | H49: 0.7522124 | I49: 0.8727273 | J49: 0.9034483 | L49: 0.939759 | M49: 0.9259259 | N49: 0.848 | O49: 0.982684 | P49: 0.9568965 | Q49: 0.9915493 | R49: 0.8571429 | S49: 0.8529412 | T49: 0.9468085 | V49: 0.7830189 | W49: 0.85 | X49: 0.9299363 | Y49: 0.8457143 | Z49: 0.8421053 | AA49: 0.9588478 | AB49: 0.6951219 | AC49: 0.8137255 | AF49: 4600 | AG49: 0.8269055556 | AH49: 0.9224119222 | AI49: 0.83980875 | AJ49: 0.02352307399 | AK49: 0.01868366388 | AL49: 0.02905566993
A50: 4700 | B50: 0.7765958 | C50: 0.8362069 | D50: 0.7714286 | E50: 0.8 | F50: 0.8644068 | G50: 0.9481132 | H50: 0.7522124 | I50: 0.8727273 | J50: 0.9034483 | L50: 0.9518072 | M50: 0.9320987 | N50: 0.856 | O50: 0.987013 | P50: 0.9568965 | Q50: 0.9915493 | R50: 0.8730159 | S50: 0.8602941 | T50: 0.9521276 | V50: 0.8018868 | W50: 0.85 | X50: 0.9299363 | Y50: 0.85142855 | Z50: 0.8421053 | AA50: 0.962963 | AB50: 0.6951219 | AC50: 0.8137255 | AF50: 4700 | AG50: 0.8361265889 | AH50: 0.9289780333 | AI50: 0.8433959188 | AJ50: 0.02213878849 | AK50: 0.01760070619 | AL50: 0.02881091453
A51: 4800 | B51: 0.7765958 | C51: 0.8534483 | D51: 0.7714286 | E51: 0.8105263 | F51: 0.8644068 | G51: 0.9528302 | H51: 0.761062 | I51: 0.8818182 | J51: 0.9034483 | L51: 0.9518072 | M51: 0.9320987 | N51: 0.864 | O51: 0.987013 | P51: 0.9568965 | Q51: 0.9915493 | R51: 0.8809524 | S51: 0.8676471 | T51: 0.9521276 | V51: 0.8018868 | W51: 0.8583333 | X51: 0.9363058 | Y51: 0.8566917 | Z51: 0.8421053 | AA51: 0.962963 | AB51: 0.6951219 | AC51: 0.8137255 | AF51: 4800 | AG51: 0.8417293889 | AH51: 0.9315657556 | AI51: 0.8458916625 | AJ51: 0.0220720948 | AK51: 0.01639753382 | AL51: 0.02923696206
A52: 4900 | B52: 0.7872341 | C52: 0.8706896 | D52: 0.7714286 | E52: 0.8105263 | F52: 0.8813559 | G52: 0.9622642 | H52: 0.7699115 | I52: 0.8818182 | J52: 0.9103448 | L52: 0.9518072 | M52: 0.9320987 | N52: 0.864 | O52: 0.987013 | P52: 0.9655172 | Q52: 0.9943662 | R52: 0.8968254 | S52: 0.875 | T52: 0.9574468 | V52: 0.8018868 | W52: 0.8583333 | X52: 0.9363058 | Y52: 0.85954885 | Z52: 0.8508772 | AA52: 0.9753087 | AB52: 0.7073171 | AC52: 0.8235294 | AF52: 4900 | AG52: 0.8495081333 | AH52: 0.9360082778 | AI52: 0.8516383938 | AJ52: 0.02259288909 | AK52: 0.01583109904 | AL52: 0.02886695567
A53: 5000 | B53: 0.7872341 | C53: 0.8706896 | D53: 0.8 | E53: 0.8105263 | F53: 0.8813559 | G53: 0.9622642 | H53: 0.7699115 | I53: 0.8818182 | J53: 0.9172414 | L53: 0.9518072 | M53: 0.9320987 | N53: 0.864 | O53: 0.987013 | P53: 0.9698276 | Q53: 0.9971831 | R53: 0.9047619 | S53: 0.875 | T53: 0.9680851 | V53: 0.8301887 | W53: 0.8583333 | X53: 0.9363058 | Y53: 0.85954885 | Z53: 0.8508772 | AA53: 0.9753087 | AB53: 0.7195122 | AC53: 0.8235294 | AF53: 5000 | AG53: 0.8534490222 | AH53: 0.9388640667 | AI53: 0.8567005188 | AJ53: 0.02168369317 | AK53: 0.01606909506 | AL53: 0.02708235651
A54: 5100 | B54: 0.7978724 | C54: 0.8793104 | D54: 0.8 | E54: 0.8105263 | F54: 0.8813559 | G54: 0.9622642 | H54: 0.7787611 | I54: 0.8818182 | J54: 0.9241379 | L54: 0.9518072 | M54: 0.9320987 | N54: 0.864 | O54: 0.987013 | P54: 0.9698276 | Q54: 1 | R54: 0.9047619 | S54: 0.8823529 | T54: 0.9734042 | V54: 0.8301887 | W54: 0.8583333 | X54: 0.9490446 | Y54: 0.85954885 | Z54: 0.8508772 | AA54: 0.9794239 | AB54: 0.7195122 | AC54: 0.8333333 | AF54: 5100 | AG54: 0.8573384889 | AH54: 0.9405850556 | AI54: 0.8600327563 | AJ54: 0.02118704021 | AK54: 0.01596672765 | AL54: 0.02790732605
A55: 5200 | B55: 0.8085107 | C55: 0.887931 | D55: 0.8 | E55: 0.8105263 | F55: 0.8813559 | G55: 0.9764151 | H55: 0.7787611 | I55: 0.8909091 | J55: 0.9241379 | L55: 0.9518072 | M55: 0.9320987 | N55: 0.872 | O55: 0.987013 | P55: 0.9784483 | Q55: 1 | R55: 0.9047619 | S55: 0.8970588 | T55: 0.9734042 | V55: 0.8490566 | W55: 0.8583333 | X55: 0.9490446 | Y55: 0.862406 | Z55: 0.8684211 | AA55: 0.9794239 | AB55: 0.7317073 | AC55: 0.8431373 | AF55: 5200 | AG55: 0.8620607889 | AH55: 0.9440657889 | AI55: 0.8676912625 | AJ55: 0.02208508346 | AK55: 0.0149847467 | AL55: 0.0262747746
A56: 5300 | B56: 0.819149 | C56: 0.8965517 | D56: 0.8 | E56: 0.8105263 | F56: 0.8813559 | G56: 0.9764151 | H56: 0.7876106 | I56: 0.8909091 | J56: 0.9241379 | L56: 0.9518072 | M56: 0.9320987 | N56: 0.88 | O56: 0.987013 | P56: 0.9827586 | Q56: 1 | R56: 0.9047619 | S56: 0.8970588 | T56: 0.9787234 | V56: 0.8584906 | W56: 0.8583333 | X56: 0.9490446 | Y56: 0.862406 | Z56: 0.8684211 | AA56: 0.9794239 | AB56: 0.7317073 | AC56: 0.8529412 | AF56: 5300 | AG56: 0.8651839556 | AH56: 0.9460246222 | AI56: 0.870096 | AJ56: 0.02145034165 | AK56: 0.01476617191 | AL56: 0.02603780851
A57: 5400 | B57: 0.819149 | C57: 0.9051724 | D57: 0.8 | E57: 0.8105263 | F57: 0.8813559 | G57: 0.9764151 | H57: 0.7876106 | I57: 0.8909091 | J57: 0.9241379 | L57: 0.9518072 | M57: 0.9320987 | N57: 0.88 | O57: 0.987013 | P57: 0.9827586 | Q57: 1 | R57: 0.9047619 | S57: 0.8970588 | T57: 0.9787234 | V57: 0.8584906 | W57: 0.8583333 | X57: 0.9490446 | Y57: 0.862406 | Z57: 0.8684211 | AA57: 0.9794239 | AB57: 0.7439024 | AC57: 0.8627451 | AF57: 5400 | AG57: 0.8661418111 | AH57: 0.9460246222 | AI57: 0.872845875 | AJ57: 0.02164592539 | AK57: 0.01476617191 | AL57: 0.02479877045
A58: 5500 | B58: 0.8510638 | C58: 0.9051724 | D58: 0.8 | E58: 0.8210526 | F58: 0.8898305 | G58: 0.9764151 | H58: 0.7876106 | I58: 0.8909091 | J58: 0.9310345 | L58: 0.9518072 | M58: 0.9382716 | N58: 0.88 | O58: 0.987013 | P58: 0.9827586 | Q58: 1 | R58: 0.9126984 | S58: 0.9044118 | T58: 0.9787234 | V58: 0.8679245 | W58: 0.8583333 | X58: 0.9490446 | Y58: 0.86766915 | Z58: 0.8684211 | AA58: 0.9794239 | AB58: 0.7560976 | AC58: 0.872549 | AF58: 5500 | AG58: 0.8725654 | AH58: 0.9484093333 | AI58: 0.8774328938 | AJ58: 0.02091654382 | AK58: 0.01407118038 | AL58: 0.02349325698
A59: 5600 | B59: 0.8617021 | C59: 0.9137931 | D59: 0.8190476 | E59: 0.831579 | F59: 0.8898305 | G59: 0.9764151 | H59: 0.7964602 | I59: 0.8909091 | J59: 0.9310345 | L59: 0.9518072 | M59: 0.9382716 | N59: 0.88 | O59: 0.987013 | P59: 0.9827586 | Q59: 1 | R59: 0.9126984 | S59: 0.9117647 | T59: 0.9787234 | V59: 0.8679245 | W59: 0.8666667 | X59: 0.9490446 | Y59: 0.87864665 | Z59: 0.8859649 | AA59: 0.9835391 | AB59: 0.7682927 | AC59: 0.8823529 | AF59: 5600 | AG59: 0.8789745778 | AH59: 0.9492263222 | AI59: 0.8853040062 | AJ59: 0.01922890212 | AK59: 0.01377240771 | AL59: 0.0224035653
A60: 5700 | B60: 0.8617021 | C60: 0.9224138 | D60: 0.8190476 | E60: 0.8631579 | F60: 0.8898305 | G60: 0.9811321 | H60: 0.8141593 | I60: 0.8909091 | J60: 0.9310345 | L60: 0.9518072 | M60: 0.9444444 | N60: 0.88 | O60: 0.987013 | P60: 0.9827586 | Q60: 1 | R60: 0.9126984 | S60: 0.9191176 | T60: 0.9787234 | V60: 0.8773585 | W60: 0.875 | X60: 0.9490446 | Y60: 0.8944361 | Z60: 0.8947368 | AA60: 0.9835391 | AB60: 0.7682927 | AC60: 0.8823529 | AF60: 5700 | AG60: 0.8859318778 | AH60: 0.9507291778 | AI60: 0.8905950875 | AJ60: 0.0179500763 | AK60: 0.01345909394 | AL60: 0.02217264393
A61: 5800 | B61: 0.8723404 | C61: 0.9224138 | D61: 0.8285714 | E61: 0.8736842 | F61: 0.8898305 | G61: 0.9858491 | H61: 0.8230088 | I61: 0.9 | J61: 0.9310345 | L61: 0.9518072 | M61: 0.9444444 | N61: 0.88 | O61: 0.987013 | P61: 0.9827586 | Q61: 1 | R61: 0.9126984 | S61: 0.9191176 | T61: 0.9840425 | V61: 0.8867925 | W61: 0.875 | X61: 0.9490446 | Y61: 0.89969925 | Z61: 0.8947368 | AA61: 0.9876543 | AB61: 0.7682927 | AC61: 0.8823529 | AF61: 5800 | AG61: 0.8918591889 | AH61: 0.9513201889 | AI61: 0.8929466313 | AJ61: 0.01700890888 | AK61: 0.0136247102 | AL61: 0.02243089061
A62: 5900 | B62: 0.8829787 | C62: 0.9224138 | D62: 0.8476191 | E62: 0.8736842 | F62: 0.8983051 | G62: 0.9858491 | H62: 0.8230088 | I62: 0.9 | J62: 0.9310345 | L62: 0.9518072 | M62: 0.9444444 | N62: 0.896 | O62: 0.991342 | P62: 0.987069 | Q62: 1 | R62: 0.9126984 | S62: 0.9191176 | T62: 0.9840425 | V62: 0.8867925 | W62: 0.8916667 | X62: 0.9490446 | Y62: 0.89969925 | Z62: 0.8947368 | AA62: 0.9917696 | AB62: 0.7804878 | AC62: 0.8823529 | AF62: 5900 | AG62: 0.8960992556 | AH62: 0.9540579 | AI62: 0.8970687687 | AJ62: 0.01596661733 | AK62: 0.01285022007 | AL62: 0.021391151
A63: 6000 | B63: 0.8829787 | C63: 0.9224138 | D63: 0.8476191 | E63: 0.8842105 | F63: 0.8983051 | G63: 0.9858491 | H63: 0.840708 | I63: 0.9090909 | J63: 0.9379311 | L63: 0.9518072 | M63: 0.9506173 | N63: 0.896 | O63: 0.991342 | P63: 0.987069 | Q63: 1 | R63: 0.9126984 | S63: 0.9264706 | T63: 0.9840425 | V63: 0.8867925 | W63: 0.8916667 | X63: 0.955414 | Y63: 0.90781955 | Z63: 0.8947368 | AA63: 0.9917696 | AB63: 0.7926829 | AC63: 0.8823529 | AF63: 6000 | AG63: 0.9010118111 | AH63: 0.9555607778 | AI63: 0.9004043687 | AJ63: 0.01499344809 | AK63: 0.01254356428 | AL63: 0.02055140395
A64: 6100 | B64: 0.893617 | C64: 0.9310345 | D64: 0.8857143 | E64: 0.8947368 | F64: 0.8983051 | G64: 0.9858491 | H64: 0.840708 | I64: 0.9090909 | J64: 0.9379311 | L64: 0.9578313 | M64: 0.9506173 | N64: 0.904 | O64: 0.991342 | P64: 0.987069 | Q64: 1 | R64: 0.9126984 | S64: 0.9338235 | T64: 0.9840425 | V64: 0.8962264 | W64: 0.9 | X64: 0.955414 | Y64: 0.9130827 | Z64: 0.8947368 | AA64: 0.9958848 | AB64: 0.7926829 | AC64: 0.8823529 | AF64: 6100 | AG64: 0.9085540889 | AH64: 0.957936 | AI64: 0.9037975625 | AJ64: 0.01343038025 | AK64: 0.01178873138 | AL64: 0.02078405677
A65: 6200 | B65: 0.893617 | C65: 0.9396552 | D65: 0.8857143 | E65: 0.8947368 | F65: 0.8983051 | G65: 0.9858491 | H65: 0.840708 | I65: 0.9090909 | J65: 0.9448276 | L65: 0.9578313 | M65: 0.9506173 | N65: 0.904 | O65: 0.991342 | P65: 0.987069 | Q65: 1 | R65: 0.9126984 | S65: 0.9338235 | T65: 0.9893617 | V65: 0.8962264 | W65: 0.9166667 | X65: 0.9617835 | Y65: 0.9130827 | Z65: 0.9035088 | AA65: 0.9958848 | AB65: 0.7926829 | AC65: 0.8921568 | AF65: 6200 | AG65: 0.9102782222 | AH65: 0.9585270222 | AI65: 0.908999075 | AJ65: 0.01388190444 | AK65: 0.01196582112 | AL65: 0.02088112286
A66: 6300 | B66: 0.9148936 | C66: 0.9396552 | D66: 0.8857143 | E66: 0.8947368 | F66: 0.8983051 | G66: 0.990566 | H66: 0.840708 | I66: 0.9090909 | J66: 0.9517241 | L66: 0.9638554 | M66: 0.9506173 | N66: 0.904 | O66: 0.991342 | P66: 0.987069 | Q66: 1 | R66: 0.9126984 | S66: 0.9338235 | T66: 0.9893617 | V66: 0.8962264 | W66: 0.9166667 | X66: 0.9617835 | Y66: 0.9130827 | Z66: 0.9035088 | AA66: 0.9958848 | AB66: 0.8048781 | AC66: 0.8921568 | AF66: 6300 | AG66: 0.9139326667 | AH66: 0.9591963667 | AI66: 0.910523475 | AJ66: 0.01431670799 | AK66: 0.01197966935 | AL66: 0.01968970309
A67: 6400 | B67: 0.9148936 | C67: 0.9482759 | D67: 0.8857143 | E67: 0.9052632 | F67: 0.9067796 | G67: 0.990566 | H67: 0.8495575 | I67: 0.9090909 | J67: 0.9517241 | L67: 0.9638554 | M67: 0.9506173 | N67: 0.904 | O67: 0.991342 | P67: 0.987069 | Q67: 1 | R67: 0.9126984 | S67: 0.9338235 | T67: 0.9893617 | V67: 0.9056604 | W67: 0.9166667 | X67: 0.9617835 | Y67: 0.921203 | Z67: 0.9035088 | AA67: 0.9958848 | AB67: 0.8048781 | AC67: 0.8921568 | AF67: 6400 | AG67: =AVERAGE(B67:J67) -> 0.9179850111 | AH67: =AVERAGE(L67:T67) -> 0.9591963667 | AI67: =AVERAGE(V67:AD67) -> 0.9127177625 | AJ67: 0.01365429056 | AK67: 0.01197966935 | AL67: 0.01963895247
A68: 6500 | B68: 0.9148936 | C68: 0.9482759 | D68: 0.8857143 | E68: 0.9052632 | F68: 0.9152542 | G68: 0.990566 | H68: 0.8495575 | I68: 0.9090909 | J68: 0.9517241 | L68: 0.9698795 | M68: 0.9506173 | N68: 0.912 | O68: 0.991342 | P68: 0.987069 | Q68: 1 | R68: 0.9206349 | S68: 0.9485294 | T68: 0.9893617 | V68: 0.9056604 | W68: 0.9166667 | X68: 0.9617835 | Y68: 0.921203 | Z68: 0.9122807 | AA68: 0.9958848 | AB68: 0.8048781 | AC68: 0.8921568 | AF68: =A68 -> 6500 | AG68: 0.9189266333 | AH68: 0.9632704222 | AI68: 0.91381425 | AJ68: =STDEV(B68:J68)/SQRT(COUNT(B68:J68)) -> 0.01359001424 | AK68: =STDEV(L68:T68)/SQRT(COUNT(L68:T68)) -> 0.01070547987 | AL68: =STDEV(V68:AD68)/SQRT(COUNT(V68:AD68)) -> 0.01959606428
A69: 6600 | B69: 0.9148936 | C69: 0.9482759 | D69: 0.8857143 | E69: 0.9157895 | F69: 0.9237288 | G69: 0.990566 | H69: 0.8584071 | I69: 0.9090909 | J69: 0.9517241 | L69: 0.9759036 | M69: 0.9506173 | N69: 0.92 | O69: 0.991342 | P69: 0.987069 | Q69: 1 | R69: 0.9206349 | S69: 0.9485294 | T69: 0.9893617 | V69: 0.9056604 | W69: 0.9166667 | X69: 0.9617835 | Y69: 0.9293233 | Z69: 0.9122807 | AA69: 1 | AB69: 0.8292683 | AC69: 0.9117647 | AF69: 6600 | AG69: 0.9220211333 | AH69: 0.9648286556 | AI69: 0.92084345 | AJ69: 0.01285315092 | AK69: 0.01026689883 | AL69: 0.0173223007
A70: 6700 | B70: 0.9148936 | C70: 0.9482759 | D70: 0.8952381 | E70: 0.9157895 | F70: 0.9322034 | G70: 0.990566 | H70: 0.8584071 | I70: 0.9090909 | J70: 0.9586207 | L70: 0.9759036 | M70: 0.9506173 | N70: 0.92 | O70: 0.991342 | P70: 0.987069 | Q70: 1 | R70: 0.9206349 | S70: 0.9485294 | T70: 0.9946808 | V70: 0.9056604 | W70: 0.9166667 | X70: 0.9617835 | Y70: 0.9350376 | Z70: 0.9122807 | AA70: 1 | AB70: 0.8536586 | AC70: 0.9117647 | AF70: 6700 | AG70: 0.9247872444 | AH70: 0.9654196667 | AI70: 0.924606525 | AJ70: 0.01279266177 | AK70: 0.01045864863 | AL70: 0.01520547002
A71: 6800 | B71: 0.9255319 | C71: 0.9655172 | D71: 0.9047619 | E71: 0.9157895 | F71: 0.9322034 | G71: 0.990566 | H71: 0.8584071 | I71: 0.9090909 | J71: 0.9655172 | L71: 0.9759036 | M71: 0.9506173 | N71: 0.92 | O71: 0.991342 | P71: 0.987069 | Q71: 1 | R71: 0.9206349 | S71: 0.9558824 | T71: 0.9946808 | V71: 0.9056604 | W71: 0.9166667 | X71: 0.9681529 | Y71: 0.9350376 | Z71: 0.9210526 | AA71: 1 | AB71: 0.8536586 | AC71: 0.9117647 | AF71: 6800 | AG71: 0.9297094556 | AH71: 0.9662366667 | AI71: 0.9264991875 | AJ71: 0.01323761281 | AK71: 0.01032477522 | AL71: 0.01540741947
A72: 6900 | B72: 0.9255319 | C72: 0.9741379 | D72: 0.9142857 | E72: 0.9157895 | F72: 0.9322034 | G72: 0.990566 | H72: 0.8584071 | I72: 0.9272727 | J72: 0.9655172 | L72: 0.9819277 | M72: 0.9506173 | N72: 0.92 | O72: 0.991342 | P72: 0.987069 | Q72: 1 | R72: 0.9206349 | S72: 0.9632353 | T72: 0.9946808 | V72: 0.9056604 | W72: 0.9166667 | X72: 0.9745223 | Y72: 0.9350376 | Z72: 0.9210526 | AA72: 1 | AB72: 0.8536586 | AC72: 0.9117647 | AF72: 6900 | AG72: 0.9337457111 | AH72: 0.967723 | AI72: 0.9272953625 | AJ72: 0.01310124614 | AK72: 0.01034807041 | AL72: 0.01573206269
A73: 7000 | B73: 0.9255319 | C73: 0.9741379 | D73: 0.9142857 | E73: 0.9263158 | F73: 0.9322034 | G73: 0.995283 | H73: 0.8672566 | I73: 0.9272727 | J73: 0.9655172 | L73: 0.9819277 | M73: 0.9567901 | N73: 0.928 | O73: 0.991342 | P73: 0.987069 | Q73: 1 | R73: 0.9206349 | S73: 0.9632353 | T73: 0.9946808 | V73: 0.9056604 | W73: 0.925 | X73: 0.9745223 | Y73: 0.94030075 | Z73: 0.9298246 | AA73: 1 | AB73: 0.8780488 | AC73: 0.9215686 | AF73: 7000 | AG73: 0.9364226889 | AH73: 0.9692977556 | AI73: 0.9343656812 | AJ73: 0.01254422248 | AK73: 0.00972895238 | AL73: 0.01351145668
A74: 7100 | B74: 0.9468085 | C74: 0.9741379 | D74: 0.9238095 | E74: 0.9263158 | F74: 0.9322034 | G74: 0.995283 | H74: 0.8672566 | I74: 0.9272727 | J74: 0.9724138 | L74: 0.9819277 | M74: 0.9567901 | N74: 0.928 | O74: 0.991342 | P74: 0.987069 | Q74: 1 | R74: 0.9206349 | S74: 0.9632353 | T74: 0.9946808 | V74: 0.9056604 | W74: 0.9333333 | X74: 0.9745223 | Y74: 0.9431579 | Z74: 0.9385965 | AA74: 1 | AB74: 0.8780488 | AC74: 0.9215686 | AF74: 7100 | AG74: 0.9406112444 | AH74: 0.9692977556 | AI74: 0.936860975 | AJ74: 0.01251611008 | AK74: 0.00972895238 | AL74: 0.01344713473
A75: 7200 | B75: 0.9468085 | C75: 0.9741379 | D75: 0.9238095 | E75: 0.9263158 | F75: 0.9322034 | G75: 0.995283 | H75: 0.8672566 | I75: 0.9272727 | J75: 0.9724138 | L75: 0.9819277 | M75: 0.9567901 | N75: 0.944 | O75: 0.991342 | P75: 0.987069 | Q75: 1 | R75: 0.9206349 | S75: 0.9632353 | T75: 0.9946808 | V75: 0.9056604 | W75: 0.9333333 | X75: 0.9808917 | Y75: 0.94601505 | Z75: 0.9385965 | AA75: 1 | AB75: 0.8780488 | AC75: 0.9215686 | AF75: 7200 | AG75: 0.9406112444 | AH75: 0.9710755333 | AI75: 0.9380142938 | AJ75: 0.01251611008 | AK75: 0.008913946949 | AL75: 0.01380997196
A76: 7300 | B76: 0.9468085 | C76: 0.9741379 | D76: 0.9238095 | E76: 0.9263158 | F76: 0.9322034 | G76: 1 | H76: 0.8672566 | I76: 0.9363636 | J76: 0.9724138 | L76: 0.9819277 | M76: 0.9567901 | N76: 0.944 | O76: 0.991342 | P76: 0.987069 | Q76: 1 | R76: 0.9206349 | S76: 0.9632353 | T76: 0.9946808 | V76: 0.9056604 | W76: 0.9333333 | X76: 0.9808917 | Y76: 0.95172935 | Z76: 0.9385965 | AA76: 1 | AB76: 0.8780488 | AC76: 0.9313725 | AF76: 7300 | AG76: 0.9421454556 | AH76: 0.9710755333 | AI76: 0.9399540687 | AJ76: 0.01271262591 | AK76: 0.008913946949 | AL76: 0.0137241313
A77: 7400 | B77: 0.9468085 | C77: 0.9741379 | D77: 0.9238095 | E77: 0.9263158 | F77: 0.9322034 | G77: 1 | H77: 0.8672566 | I77: 0.9363636 | J77: 0.9724138 | L77: 0.9879518 | M77: 0.9567901 | N77: 0.944 | O77: 0.991342 | P77: 0.987069 | Q77: 1 | R77: 0.9206349 | S77: 0.9632353 | T77: 0.9946808 | V77: 0.9056604 | W77: 0.9416667 | X77: 0.9808917 | Y77: 0.9545865 | Z77: 0.9385965 | AA77: 1 | AB77: 0.8780488 | AC77: 0.9313725 | AF77: 7400 | AG77: 0.9421454556 | AH77: 0.9717448778 | AI77: 0.9413528875 | AJ77: 0.01271262591 | AK77: 0.009040045994 | AL77: 0.0137364189
A78: 7500 | B78: 0.9468085 | C78: 0.9741379 | D78: 0.9238095 | E78: 0.9263158 | F78: 0.9322034 | G78: 1 | H78: 0.8761062 | I78: 0.9363636 | J78: 0.9724138 | L78: 0.9879518 | M78: 0.9567901 | N78: 0.952 | O78: 0.991342 | P78: 0.987069 | Q78: 1 | R78: 0.9206349 | S78: 0.9779412 | T78: 0.9946808 | V78: 0.9056604 | W78: 0.9416667 | X78: 0.9808917 | Y78: 0.9545865 | Z78: 0.9385965 | AA78: 1 | AB78: 0.8902439 | AC78: 0.9313725 | AF78: 7500 | AG78: 0.9431287444 | AH78: 0.9742677556 | AI78: 0.942877275 | AJ78: 0.01200701335 | AK78: 0.008670507413 | AL78: 0.01278442586
A79: 7600 | B79: 0.9468085 | C79: 0.9741379 | D79: 0.9333333 | E79: 0.9263158 | F79: 0.9322034 | G79: 1 | H79: 0.8761062 | I79: 0.9363636 | J79: 0.9793103 | L79: 0.9879518 | M79: 0.9567901 | N79: 0.96 | O79: 0.991342 | P79: 0.9913793 | Q79: 1 | R79: 0.9206349 | S79: 0.9779412 | T79: 0.9946808 | V79: 0.9056604 | W79: 0.9416667 | X79: 0.9808917 | Y79: 0.9545865 | Z79: 0.9385965 | AA79: 1 | AB79: 0.902439 | AC79: 0.9313725 | AF79: 7600 | AG79: 0.9449532222 | AH79: 0.9756355667 | AI79: 0.9444016625 | AJ79: 0.01209015449 | AK79: 0.008524967541 | AL79: 0.01195162747
A80: 7700 | B80: 0.9468085 | C80: 0.9741379 | D80: 0.9428571 | E80: 0.9263158 | F80: 0.9322034 | G80: 1 | H80: 0.8761062 | I80: 0.9363636 | J80: 0.9793103 | L80: 0.9879518 | M80: 0.9567901 | N80: 0.96 | O80: 0.991342 | P80: 0.9913793 | Q80: 1 | R80: 0.9206349 | S80: 0.9779412 | T80: 0.9946808 | V80: 0.9056604 | W80: 0.9416667 | X80: 0.9808917 | Y80: 0.9545865 | Z80: 0.9385965 | AA80: 1 | AB80: 0.902439 | AC80: 0.9313725 | AF80: 7700 | AG80: 0.9460114222 | AH80: 0.9756355667 | AI80: 0.9444016625 | AJ80: 0.01200906209 | AK80: 0.008524967541 | AL80: 0.01195162747
A81: 7800 | B81: 0.9468085 | C81: 0.9741379 | D81: 0.952381 | E81: 0.9368421 | F81: 0.9322034 | G81: 1 | H81: 0.8761062 | I81: 0.9545454 | J81: 0.9793103 | L81: 0.9879518 | M81: 0.9567901 | N81: 0.968 | O81: 0.991342 | P81: 0.9913793 | Q81: 1 | R81: 0.9206349 | S81: 0.9779412 | T81: 0.9946808 | V81: 0.9056604 | W81: 0.95 | X81: 0.9808917 | Y81: 0.95984965 | Z81: 0.9473684 | AA81: 1 | AB81: 0.902439 | AC81: 0.9411765 | AF81: 7800 | AG81: 0.9502594222 | AH81: 0.9765244556 | AI81: 0.9484232063 | AJ81: 0.01174248263 | AK81: 0.008366039963 | AL81: 0.01183536681
A82: 7900 | B82: 0.9468085 | C82: 0.9827586 | D82: 0.952381 | E82: 0.9368421 | F82: 0.9491525 | G82: 1 | H82: 0.8849558 | I82: 0.9545454 | J82: 0.9793103 | L82: 0.9879518 | M82: 0.9567901 | N82: 0.976 | O82: 0.991342 | P82: 0.9913793 | Q82: 1 | R82: 0.9285714 | S82: 0.9852941 | T82: 0.9946808 | V82: 0.9056604 | W82: 0.95 | X82: 0.9808917 | Y82: 0.95984965 | Z82: 0.9473684 | AA82: 1 | AB82: 0.902439 | AC82: 0.9411765 | AF82: 7900 | AG82: 0.9540838 | AH82: 0.9791121667 | AI82: 0.9484232063 | AJ82: 0.01100709039 | AK82: 0.007598812099 | AL82: 0.01183536681
A83: 8000 | B83: 0.9468085 | C83: 0.9827586 | D83: 0.952381 | E83: 0.9368421 | F83: 0.9491525 | G83: 1 | H83: 0.8849558 | I83: 0.9636363 | J83: 0.9793103 | L83: 0.9879518 | M83: 0.9567901 | N83: 0.976 | O83: 0.991342 | P83: 0.9913793 | Q83: 1 | R83: 0.9285714 | S83: 0.9852941 | T83: 0.9946808 | V83: 0.9150943 | W83: 0.9583333 | X83: 0.9808917 | Y83: 0.96270675 | Z83: 0.9473684 | AA83: 1 | AB83: 0.902439 | AC83: 0.9509804 | AF83: 8000 | AG83: 0.9550939 | AH83: 0.9791121667 | AI83: 0.9522267313 | AJ83: 0.01105861232 | AK83: 0.007598812099 | AL83: 0.01128674869
A84: 8100 | B84: 0.9468085 | C84: 0.9827586 | D84: 0.9619048 | E84: 0.9368421 | F84: 0.9491525 | G84: 1 | H84: 0.8849558 | I84: 0.9636363 | J84: 0.9793103 | L84: 0.9879518 | M84: 0.9567901 | N84: 0.976 | O84: 0.991342 | P84: 0.9913793 | Q84: 1 | R84: 0.9444444 | S84: 0.9852941 | T84: 0.9946808 | V84: 0.9245283 | W84: 0.9583333 | X84: 0.9808917 | Y84: 0.96270675 | Z84: 0.9473684 | AA84: 1 | AB84: 0.902439 | AC84: 0.9509804 | AF84: 8100 | AG84: 0.9561521 | AH84: 0.9808758333 | AI84: 0.9534059812 | AJ84: 0.01107677733 | AK84: 0.006210330028 | AL84: 0.01078287297
A85: 8200 | B85: 0.9468085 | C85: 0.9913793 | D85: 0.9619048 | E85: 0.9473684 | F85: 0.9491525 | G85: 1 | H85: 0.8849558 | I85: 0.9636363 | J85: 0.9793103 | L85: 0.9879518 | M85: 0.962963 | N85: 0.984 | O85: 0.991342 | P85: 0.9913793 | Q85: 1 | R85: 0.952381 | S85: 0.9852941 | T85: 0.9946808 | V85: 0.9245283 | W85: 0.9583333 | X85: 0.9808917 | Y85: 0.9679699 | Z85: 0.9473684 | AA85: 1 | AB85: 0.9146342 | AC85: 0.9509804 | AF85: 8200 | AG85: 0.9582795444 | AH85: 0.9833324444 | AI85: 0.955588275 | AJ85: 0.01119935055 | AK85: 0.005182818564 | AL85: 0.009914150779
A86: 8300 | B86: 0.9468085 | C86: 0.9913793 | D86: 0.9714286 | E86: 0.9473684 | F86: 0.9491525 | G86: 1 | H86: 0.8849558 | I86: 0.9636363 | J86: 0.9862069 | L86: 0.9879518 | M86: 0.962963 | N86: 0.984 | O86: 0.991342 | P86: 0.9913793 | Q86: 1 | R86: 0.9603174 | S86: 0.9852941 | T86: 0.9946808 | V86: 0.9339623 | W86: 0.9583333 | X86: 0.9808917 | Y86: 0.9679699 | Z86: 0.9561403 | AA86: 1 | AB86: 0.9146342 | AC86: 0.9607843 | AF86: 8300 | AG86: 0.9601040333 | AH86: 0.9842142667 | AI86: 0.9590895 | AJ86: 0.01148554251 | AK86: 0.004562433651 | AL86: 0.00930404893
A87: 8400 | B87: 0.9574468 | C87: 0.9913793 | D87: 0.9714286 | E87: 0.9473684 | F87: 0.9576271 | G87: 1 | H87: 0.8849558 | I87: 0.9636363 | J87: 0.9862069 | L87: 0.9879518 | M87: 0.9753087 | N87: 0.984 | O87: 0.991342 | P87: 0.9913793 | Q87: 1 | R87: 0.9603174 | S87: 0.9852941 | T87: 0.9946808 | V87: 0.9433962 | W87: 0.9583333 | X87: 0.9808917 | Y87: 0.9679699 | Z87: 0.9561403 | AA87: 1 | AB87: 0.9146342 | AC87: 0.9607843 | AF87: 8400 | AG87: 0.9622276889 | AH87: 0.9855860111 | AI87: 0.9602687375 | AJ87: 0.01128788253 | AK87: 0.003925513584 | AL87: 0.008915713416
A88: 8500 | B88: 0.9574468 | C88: 0.9913793 | D88: 0.9714286 | E88: 0.9473684 | F88: 0.9576271 | G88: 1 | H88: 0.8849558 | I88: 0.9636363 | J88: 0.9931034 | L88: 0.9879518 | M88: 0.9814815 | N88: 0.984 | O88: 0.991342 | P88: 0.9913793 | Q88: 1 | R88: 0.968254 | S88: 0.9852941 | T88: 0.9946808 | V88: 0.9433962 | W88: 0.9666666 | X88: 0.9808917 | Y88: 0.9679699 | Z88: 0.9561403 | AA88: 1 | AB88: 0.9146342 | AC88: 0.9607843 | AF88: 8500 | AG88: 0.9629939667 | AH88: 0.9871537222 | AI88: 0.9613104 | AJ88: 0.01151508393 | AK88: 0.003028786938 | AL88: 0.008944215209
A89: 8600 | B89: 0.9574468 | C89: 0.9913793 | D89: 0.9809524 | E89: 0.9473684 | F89: 0.9576271 | G89: 1 | H89: 0.8849558 | I89: 0.9636363 | J89: 0.9931034 | L89: 0.9879518 | M89: 0.9814815 | N89: 0.984 | O89: 0.991342 | P89: 0.9913793 | Q89: 1 | R89: 0.968254 | S89: 0.9852941 | T89: 0.9946808 | V89: 0.9528302 | W89: 0.9666666 | X89: 0.9808917 | Y89: 0.97082705 | Z89: 0.9561403 | AA89: 1 | AB89: 0.9268293 | AC89: 0.9607843 | AF89: 8600 | AG89: 0.9640521667 | AH89: 0.9871537222 | AI89: 0.9643711812 | AJ89: 0.01165968813 | AK89: 0.003028786938 | AL89: 0.007574024776
A90: 8700 | B90: 0.9574468 | C90: 0.9913793 | D90: 0.9809524 | E90: 0.9473684 | F90: 0.9576271 | G90: 1 | H90: 0.8849558 | I90: 0.9636363 | J90: 0.9931034 | L90: 0.9879518 | M90: 0.9814815 | N90: 0.984 | O90: 0.991342 | P90: 0.9913793 | Q90: 1 | R90: 0.9761904 | S90: 0.9852941 | T90: 0.9946808 | V90: 0.9528302 | W90: 0.975 | X90: 0.9808917 | Y90: 0.97082705 | Z90: 0.9649123 | AA90: 1 | AB90: 0.9268293 | AC90: 0.9607843 | AF90: 8700 | AG90: 0.9640521667 | AH90: 0.9880355444 | AI90: 0.9665093563 | AJ90: 0.01165968813 | AK90: 0.002405122031 | AL90: 0.007578354489
A91: 8800 | B91: 0.9574468 | C91: 0.9913793 | D91: 0.9809524 | E91: 0.9473684 | F91: 0.9576271 | G91: 1 | H91: 0.8849558 | I91: 0.9636363 | J91: 0.9931034 | L91: 0.9879518 | M91: 0.9814815 | N91: 0.984 | O91: 0.991342 | P91: 0.9956896 | Q91: 1 | R91: 0.9761904 | S91: 0.9852941 | T91: 1 | V91: 0.9528302 | W91: 0.975 | X91: 0.9808917 | Y91: 0.97082705 | Z91: 0.9736842 | AA91: 1 | AB91: 0.9268293 | AC91: 0.9607843 | AF91: 8800 | AG91: 0.9640521667 | AH91: 0.9891054889 | AI91: 0.9676058437 | AJ91: 0.01165968813 | AK91: 0.002770333096 | AL91: 0.007624527028
A92: 8900 | B92: 0.9574468 | C92: 1 | D92: 0.9809524 | E92: 0.9473684 | F92: 0.9576271 | G92: 1 | H92: 0.8938053 | I92: 0.9636363 | J92: 0.9931034 | L92: 0.9879518 | M92: 0.9814815 | N92: 0.984 | O92: 0.991342 | P92: 0.9956896 | Q92: 1 | R92: 0.9761904 | S92: 0.9852941 | T92: 1 | V92: 0.9528302 | W92: 0.975 | X92: 0.9808917 | Y92: 0.97082705 | Z92: 0.9736842 | AA92: 1 | AB92: 0.9268293 | AC92: 0.9607843 | AF92: 8900 | AG92: 0.9659933 | AH92: 0.9891054889 | AI92: 0.9676058437 | AJ92: 0.01116680917 | AK92: 0.002770333096 | AL92: 0.007624527028
A93: 9000 | B93: 0.9574468 | C93: 1 | D93: 0.9809524 | E93: 0.9578947 | F93: 0.9661017 | G93: 1 | H93: 0.8938053 | I93: 0.9636363 | J93: 0.9931034 | L93: 0.9879518 | M93: 0.9814815 | N93: 0.984 | O93: 0.995671 | P93: 0.9956896 | Q93: 1 | R93: 0.9761904 | S93: 0.9852941 | T93: 1 | V93: 0.9528302 | W93: 0.9833333 | X93: 0.9872612 | Y93: 0.9760902 | Z93: 0.9736842 | AA93: 1 | AB93: 0.9390244 | AC93: 0.9607843 | AF93: 9000 | AG93: 0.9681045111 | AH93: 0.9895864889 | AI93: 0.971625975 | AJ93: 0.01092069461 | AK93: 0.002859203897 | AL93: 0.007000584639
A94: 9100 | B94: 0.9574468 | C94: 1 | D94: 0.9809524 | E94: 0.968421 | F94: 0.9661017 | G94: 1 | H94: 0.8938053 | I94: 0.9636363 | J94: 0.9931034 | L94: 0.9879518 | M94: 0.9814815 | N94: 0.992 | O94: 0.995671 | P94: 0.9956896 | Q94: 1 | R94: 0.9761904 | S94: 0.9852941 | T94: 1 | V94: 0.9528302 | W94: 0.9833333 | X94: 0.9872612 | Y94: 0.98135335 | Z94: 0.9736842 | AA94: 1 | AB94: 0.9390244 | AC94: 0.9607843 | AF94: 9100 | AG94: 0.9692741 | AH94: 0.9904753778 | AI94: 0.9722838688 | AJ94: 0.01084639058 | AK94: 0.002779159659 | AL94: 0.007090849615
A95: 9200 | B95: 0.9574468 | C95: 1 | D95: 0.9809524 | E95: 0.968421 | F95: 0.9661017 | G95: 1 | H95: 0.8938053 | I95: 0.9636363 | J95: 0.9931034 | L95: 0.9879518 | M95: 0.9814815 | N95: 0.992 | O95: 0.995671 | P95: 0.9956896 | Q95: 1 | R95: 0.9761904 | S95: 0.9852941 | T95: 1 | V95: 0.9528302 | W95: 0.9916667 | X95: 0.9872612 | Y95: 0.98135335 | Z95: 0.9736842 | AA95: 1 | AB95: 0.9390244 | AC95: 0.9607843 | AF95: 9200 | AG95: 0.9692741 | AH95: 0.9904753778 | AI95: 0.9733255438 | AJ95: 0.01084639058 | AK95: 0.002779159659 | AL95: 0.007392819663
A96: 9300 | B96: 0.9574468 | C96: 1 | D96: 0.9809524 | E96: 0.968421 | F96: 0.9661017 | G96: 1 | H96: 0.8938053 | I96: 0.9636363 | J96: 0.9931034 | L96: 0.9879518 | M96: 0.9814815 | N96: 0.992 | O96: 0.995671 | P96: 0.9956896 | Q96: 1 | R96: 0.9761904 | S96: 0.9852941 | T96: 1 | V96: 0.9528302 | W96: 0.9916667 | X96: 0.9872612 | Y96: 0.98135335 | Z96: 0.9736842 | AA96: 1 | AB96: 0.9390244 | AC96: 0.9607843 | AF96: 9300 | AG96: 0.9692741 | AH96: 0.9904753778 | AI96: 0.9733255438 | AJ96: 0.01084639058 | AK96: 0.002779159659 | AL96: 0.007392819663
A97: 9400 | B97: 0.9574468 | C97: 1 | D97: 0.9809524 | E97: 0.968421 | F97: 0.9661017 | G97: 1 | H97: 0.9026549 | I97: 0.9636363 | J97: 0.9931034 | L97: 0.9939759 | M97: 0.9876543 | N97: 0.992 | O97: 0.995671 | P97: 0.9956896 | Q97: 1 | R97: 0.9761904 | S97: 0.9852941 | T97: 1 | V97: 0.9528302 | W97: 0.9916667 | X97: 0.9936306 | Y97: 0.98135335 | Z97: 0.9736842 | AA97: 1 | AB97: 0.9390244 | AC97: 0.9607843 | AF97: 9400 | AG97: 0.9702573889 | AH97: 0.9918305889 | AI97: 0.9741217187 | AJ97: 0.01000295644 | AK97: 0.002561826942 | AL97: 0.007645766174
A98: 9500 | B98: 0.9574468 | C98: 1 | D98: 0.9809524 | E98: 0.968421 | F98: 0.9661017 | G98: 1 | H98: 0.9026549 | I98: 0.9727273 | J98: 0.9931034 | L98: 0.9939759 | M98: 0.9876543 | N98: 0.992 | O98: 0.995671 | P98: 0.9956896 | Q98: 1 | R98: 0.9761904 | S98: 0.9852941 | T98: 1 | V98: 0.9622642 | W98: 0.9916667 | X98: 0.9936306 | Y98: 0.98135335 | Z98: 0.9736842 | AA98: 1 | AB98: 0.9390244 | AC98: 0.9607843 | AF98: 9500 | AG98: 0.9712675 | AH98: 0.9918305889 | AI98: 0.9753009688 | AJ98: 0.009970328636 | AK98: 0.002561826942 | AL98: 0.007257730358
A99: 9600 | B99: 0.9574468 | C99: 1 | D99: 0.9809524 | E99: 0.968421 | F99: 0.9661017 | G99: 1 | H99: 0.9026549 | I99: 0.9727273 | J99: 0.9931034 | L99: 0.9939759 | M99: 0.9876543 | N99: 0.992 | O99: 0.995671 | P99: 0.9956896 | Q99: 1 | R99: 0.9761904 | S99: 0.9852941 | T99: 1 | V99: 0.9622642 | W99: 0.9916667 | X99: 0.9936306 | Y99: 0.98135335 | Z99: 0.9736842 | AA99: 1 | AB99: 0.9390244 | AC99: 0.9607843 | AF99: 9600 | AG99: 0.9712675 | AH99: 0.9918305889 | AI99: 0.9753009688 | AJ99: 0.009970328636 | AK99: 0.002561826942 | AL99: 0.007257730358
A100: 9700 | B100: 0.9574468 | C100: 1 | D100: 0.9809524 | E100: 0.968421 | F100: 0.9661017 | G100: 1 | H100: 0.9026549 | I100: 0.9727273 | J100: 0.9931034 | L100: 0.9939759 | M100: 0.9876543 | N100: 0.992 | O100: 0.995671 | P100: 0.9956896 | Q100: 1 | R100: 0.9761904 | S100: 0.9852941 | T100: 1 | V100: 0.9622642 | W100: 0.9916667 | X100: 0.9936306 | Y100: 0.98135335 | Z100: 0.9736842 | AA100: 1 | AB100: 0.9390244 | AC100: 0.9607843 | AF100: 9700 | AG100: 0.9712675 | AH100: 0.9918305889 | AI100: 0.9753009688 | AJ100: 0.009970328636 | AK100: 0.002561826942 | AL100: 0.007257730358
A101: 9800 | B101: 0.9574468 | C101: 1 | D101: 0.9809524 | E101: 0.968421 | F101: 0.9661017 | G101: 1 | H101: 0.9026549 | I101: 0.9727273 | J101: 0.9931034 | L101: 0.9939759 | M101: 0.9876543 | N101: 0.992 | O101: 0.995671 | P101: 0.9956896 | Q101: 1 | R101: 0.9761904 | S101: 0.9852941 | T101: 1 | V101: 0.9716981 | W101: 0.9916667 | X101: 0.9936306 | Y101: 0.98135335 | Z101: 0.9736842 | AA101: 1 | AB101: 0.9390244 | AC101: 0.9607843 | AF101: 9800 | AG101: 0.9712675 | AH101: 0.9918305889 | AI101: 0.9764802062 | AJ101: 0.009970328636 | AK101: 0.002561826942 | AL101: 0.007047895978
A102: 9900 | B102: 0.9574468 | C102: 1 | D102: 0.9809524 | E102: 0.968421 | F102: 0.9661017 | G102: 1 | H102: 0.9026549 | I102: 0.9727273 | J102: 0.9931034 | L102: 0.9939759 | M102: 0.9938272 | N102: 0.992 | O102: 0.995671 | P102: 0.9956896 | Q102: 1 | R102: 0.9761904 | S102: 0.9852941 | T102: 1 | V102: 0.9716981 | W102: 0.9916667 | X102: 0.9936306 | Y102: 0.98135335 | Z102: 0.9736842 | AA102: 1 | AB102: 0.9390244 | AC102: 0.9607843 | AF102: 9900 | AG102: 0.9712675 | AH102: 0.9925164667 | AI102: 0.9764802062 | AJ102: 0.009970328636 | AK102: 0.002513419916 | AL102: 0.007047895978
A103: 10000 | B103: 0.9574468 | C103: 1 | D103: 0.9809524 | E103: 0.968421 | F103: 0.9661017 | G103: 1 | H103: 0.9026549 | I103: 0.9727273 | J103: 0.9931034 | L103: 0.9939759 | M103: 0.9938272 | N103: 0.992 | O103: 0.995671 | P103: 0.9956896 | Q103: 1 | R103: 0.9761904 | S103: 0.9852941 | T103: 1 | V103: 0.9716981 | W103: 0.9916667 | X103: 0.9936306 | Y103: 0.98135335 | Z103: 0.9736842 | AA103: 1 | AB103: 0.9512195 | AC103: 0.9607843 | AF103: 10000 | AG103: 0.9712675 | AH103: 0.9925164667 | AI103: 0.9780045937 | AJ103: 0.009970328636 | AK103: 0.002513419916 | AL103: 0.005973534956
A104: 10100 | B104: 0.9574468 | C104: 1 | D104: 0.9809524 | E104: 0.968421 | F104: 0.9661017 | G104: 1 | H104: 0.9026549 | I104: 0.9909091 | J104: 0.9931034 | L104: 0.9939759 | M104: 0.9938272 | N104: 0.992 | O104: 0.995671 | P104: 0.9956896 | Q104: 1 | R104: 0.9761904 | S104: 0.9852941 | T104: 1 | V104: 0.9716981 | W104: 0.9916667 | X104: 0.9936306 | Y104: 0.98135335 | Z104: 0.9736842 | AA104: 1 | AB104: 0.9512195 | AC104: 0.9607843 | AF104: 10100 | AG104: 0.9732877 | AH104: 0.9925164667 | AI104: 0.9780045937 | AJ104: 0.0102091103 | AK104: 0.002513419916 | AL104: 0.005973534956
A105: 10200 | B105: 0.9574468 | C105: 1 | D105: 0.9809524 | E105: 0.9789473 | F105: 0.9661017 | G105: 1 | H105: 0.9026549 | I105: 0.9909091 | J105: 1 | L105: 0.9939759 | M105: 0.9938272 | N105: 0.992 | O105: 0.995671 | P105: 0.9956896 | Q105: 1 | R105: 0.9761904 | S105: 0.9852941 | T105: 1 | V105: 0.9716981 | W105: 0.9916667 | X105: 0.9936306 | Y105: 0.9866165 | Z105: 0.9736842 | AA105: 1 | AB105: 0.9512195 | AC105: 0.9607843 | AF105: 10200 | AG105: 0.9752235778 | AH105: 0.9925164667 | AI105: 0.9786624875 | AJ105: 0.01040817647 | AK105: 0.002513419916 | AL105: 0.00606179912
A106: 10300 | B106: 0.9574468 | C106: 1 | D106: 0.9809524 | E106: 0.9789473 | F106: 0.9661017 | G106: 1 | H106: 0.9026549 | I106: 0.9909091 | J106: 1 | L106: 0.9939759 | M106: 0.9938272 | N106: 0.992 | O106: 0.995671 | P106: 0.9956896 | Q106: 1 | R106: 0.9761904 | S106: 0.9852941 | T106: 1 | V106: 0.9716981 | W106: 0.9916667 | X106: 0.9936306 | Y106: 0.9866165 | Z106: 0.9736842 | AA106: 1 | AB106: 0.9512195 | AC106: 0.9607843 | AF106: 10300 | AG106: 0.9752235778 | AH106: 0.9925164667 | AI106: 0.9786624875 | AJ106: 0.01040817647 | AK106: 0.002513419916 | AL106: 0.00606179912
A107: 10400 | B107: 0.9574468 | C107: 1 | D107: 0.9809524 | E107: 0.9789473 | F107: 0.9661017 | G107: 1 | H107: 0.9115044 | I107: 1 | J107: 1 | L107: 0.9939759 | M107: 0.9938272 | N107: 0.992 | O107: 0.995671 | P107: 0.9956896 | Q107: 1 | R107: 0.9761904 | S107: 0.9852941 | T107: 1 | V107: 0.9811321 | W107: 1 | X107: 0.9936306 | Y107: 0.9866165 | Z107: 0.9736842 | AA107: 1 | AB107: 0.9512195 | AC107: 0.9607843 | AF107: 10400 | AG107: 0.9772169556 | AH107: 0.9925164667 | AI107: 0.9808834 | AJ107: 0.009807709558 | AK107: 0.002513419916 | AL107: 0.006355621037
A108: 10500 | B108: 0.9574468 | C108: 1 | D108: 0.9809524 | E108: 0.9789473 | F108: 0.9661017 | G108: 1 | H108: 0.9115044 | I108: 1 | J108: 1 | L108: 0.9939759 | M108: 0.9938272 | N108: 0.992 | O108: 0.995671 | P108: 0.9956896 | Q108: 1 | R108: 0.9761904 | S108: 0.9852941 | T108: 1 | V108: 0.990566 | W108: 1 | X108: 0.9936306 | Y108: 0.9866165 | Z108: 0.9736842 | AA108: 1 | AB108: 0.9512195 | AC108: 0.9607843 | AF108: 10500 | AG108: 0.9772169556 | AH108: 0.9925164667 | AI108: 0.9820626375 | AJ108: 0.009807709558 | AK108: 0.002513419916 | AL108: 0.006470572857
A109: 10600 | B109: 0.9574468 | C109: 1 | D109: 0.9809524 | E109: 0.9789473 | F109: 0.9661017 | G109: 1 | H109: 0.9115044 | I109: 1 | J109: 1 | L109: 0.9939759 | M109: 0.9938272 | N109: 0.992 | O109: 0.995671 | P109: 0.9956896 | Q109: 1 | R109: 0.9761904 | S109: 0.9852941 | T109: 1 | V109: 0.990566 | W109: 1 | X109: 0.9936306 | Y109: 0.9866165 | Z109: 0.9736842 | AA109: 1 | AB109: 0.9512195 | AC109: 0.9607843 | AF109: 10600 | AG109: 0.9772169556 | AH109: 0.9925164667 | AI109: 0.9820626375 | AJ109: 0.009807709558 | AK109: 0.002513419916 | AL109: 0.006470572857
A110: 10700 | B110: 0.9574468 | C110: 1 | D110: 0.9809524 | E110: 0.9789473 | F110: 0.9745763 | G110: 1 | H110: 0.9115044 | I110: 1 | J110: 1 | L110: 0.9939759 | M110: 0.9938272 | N110: 0.992 | O110: 0.995671 | P110: 0.9956896 | Q110: 1 | R110: 0.9761904 | S110: 0.9852941 | T110: 1 | V110: 0.990566 | W110: 1 | X110: 0.9936306 | Y110: 0.9866165 | Z110: 0.9736842 | AA110: 1 | AB110: 0.9512195 | AC110: 0.9607843 | AF110: 10700 | AG110: 0.9781585778 | AH110: 0.9925164667 | AI110: 0.9820626375 | AJ110: 0.009719116538 | AK110: 0.002513419916 | AL110: 0.006470572857
A111: 10800 | B111: 0.9574468 | C111: 1 | D111: 0.9809524 | E111: 0.9789473 | F111: 0.9745763 | G111: 1 | H111: 0.9115044 | I111: 1 | J111: 1 | L111: 0.9939759 | M111: 0.9938272 | N111: 0.992 | O111: 0.995671 | P111: 0.9956896 | Q111: 1 | R111: 0.9761904 | S111: 0.9852941 | T111: 1 | V111: 0.990566 | W111: 1 | X111: 0.9936306 | Y111: 0.9866165 | Z111: 0.9736842 | AA111: 1 | AB111: 0.9512195 | AC111: 0.9607843 | AF111: 10800 | AG111: 0.9781585778 | AH111: 0.9925164667 | AI111: 0.9820626375 | AJ111: 0.009719116538 | AK111: 0.002513419916 | AL111: 0.006470572857
A112: 10900 | B112: 0.9574468 | C112: 1 | D112: 0.9809524 | E112: 0.9789473 | F112: 0.9745763 | G112: 1 | H112: 0.9115044 | I112: 1 | J112: 1 | L112: 0.9939759 | M112: 0.9938272 | N112: 0.992 | O112: 0.995671 | P112: 0.9956896 | Q112: 1 | R112: 0.9761904 | S112: 0.9852941 | T112: 1 | V112: 0.990566 | W112: 1 | X112: 0.9936306 | Y112: 0.9866165 | Z112: 0.9736842 | AA112: 1 | AB112: 0.9512195 | AC112: 0.9607843 | AF112: 10900 | AG112: 0.9781585778 | AH112: 0.9925164667 | AI112: 0.9820626375 | AJ112: 0.009719116538 | AK112: 0.002513419916 | AL112: 0.006470572857
A113: 11000 | B113: 0.9574468 | C113: 1 | D113: 0.9809524 | E113: 0.9789473 | F113: 0.9745763 | G113: 1 | H113: 0.9115044 | I113: 1 | J113: 1 | L113: 0.9939759 | M113: 0.9938272 | N113: 0.992 | O113: 0.995671 | P113: 0.9956896 | Q113: 1 | R113: 0.9761904 | S113: 0.9852941 | T113: 1 | V113: 0.990566 | W113: 1 | X113: 0.9936306 | Y113: 0.9866165 | Z113: 0.9736842 | AA113: 1 | AB113: 0.9512195 | AC113: 0.9607843 | AF113: 11000 | AG113: 0.9781585778 | AH113: 0.9925164667 | AI113: 0.9820626375 | AJ113: 0.009719116538 | AK113: 0.002513419916 | AL113: 0.006470572857
A114: 11100 | B114: 0.9574468 | C114: 1 | D114: 0.9809524 | E114: 0.9789473 | F114: 0.9745763 | G114: 1 | H114: 0.920354 | I114: 1 | J114: 1 | L114: 0.9939759 | M114: 0.9938272 | N114: 1 | O114: 0.995671 | P114: 0.9956896 | Q114: 1 | R114: 0.9761904 | S114: 0.9852941 | T114: 1 | V114: 1 | W114: 1 | X114: 0.9936306 | Y114: 0.9866165 | Z114: 0.9736842 | AA114: 1 | AB114: 0.9512195 | AC114: 0.9607843 | AF114: 11100 | AG114: 0.9791418667 | AH114: 0.9934053556 | AI114: 0.9832418875 | AJ114: 0.008890613321 | AK114: 0.002644358667 | AL114: 0.006791462982
A115: 11200 | B115: 0.9574468 | C115: 1 | D115: 0.9809524 | E115: 0.9789473 | F115: 0.9830508 | G115: 1 | H115: 0.9292035 | I115: 1 | J115: 1 | L115: 0.9939759 | M115: 0.9938272 | N115: 1 | O115: 0.995671 | P115: 0.9956896 | Q115: 1 | R115: 0.9761904 | S115: 0.9852941 | T115: 1 | V115: 1 | W115: 1 | X115: 0.9936306 | Y115: 0.9866165 | Z115: 0.9824561 | AA115: 1 | AB115: 0.9512195 | AC115: 0.9607843 | AF115: 11200 | AG115: 0.9810667556 | AH115: 0.9934053556 | AI115: 0.984338375 | AJ115: 0.008070877138 | AK115: 0.002644358667 | AL115: 0.006658228102
A116: 11300 | B116: 0.9574468 | C116: 1 | D116: 0.9809524 | E116: 0.9789473 | F116: 0.9830508 | G116: 1 | H116: 0.9292035 | I116: 1 | J116: 1 | L116: 0.9939759 | M116: 0.9938272 | N116: 1 | O116: 0.995671 | P116: 0.9956896 | Q116: 1 | R116: 0.9761904 | S116: 0.9852941 | T116: 1 | V116: 1 | W116: 1 | X116: 0.9936306 | Y116: 0.9866165 | Z116: 0.9824561 | AA116: 1 | AB116: 0.9512195 | AC116: 0.9607843 | AF116: 11300 | AG116: 0.9810667556 | AH116: 0.9934053556 | AI116: 0.984338375 | AJ116: 0.008070877138 | AK116: 0.002644358667 | AL116: 0.006658228102
A117: 11400 | B117: 0.9574468 | C117: 1 | D117: 0.9809524 | E117: 0.9789473 | F117: 0.9830508 | G117: 1 | H117: 0.9292035 | I117: 1 | J117: 1 | L117: 0.9939759 | M117: 0.9938272 | N117: 1 | O117: 0.995671 | P117: 0.9956896 | Q117: 1 | R117: 0.9761904 | S117: 0.9852941 | T117: 1 | V117: 1 | W117: 1 | X117: 1 | Y117: 0.9866165 | Z117: 0.9824561 | AA117: 1 | AB117: 0.9512195 | AC117: 0.9607843 | AF117: 11400 | AG117: 0.9810667556 | AH117: 0.9934053556 | AI117: 0.98513455 | AJ117: 0.008070877138 | AK117: 0.002644358667 | AL117: 0.006861463266
A118: 11500 | B118: 0.9680851 | C118: 1 | D118: 0.9809524 | E118: 0.9789473 | F118: 0.9830508 | G118: 1 | H118: 0.9292035 | I118: 1 | J118: 1 | L118: 0.9939759 | M118: 0.9938272 | N118: 1 | O118: 1 | P118: 0.9956896 | Q118: 1 | R118: 0.9761904 | S118: 0.9852941 | T118: 1 | V118: 1 | W118: 1 | X118: 1 | Y118: 0.9866165 | Z118: 0.9824561 | AA118: 1 | AB118: 0.9512195 | AC118: 0.9705882 | AF118: 11500 | AG118: 0.9822487889 | AH118: 0.9938863556 | AI118: 0.9863600375 | AJ118: 0.007717277167 | AK118: 0.00273796229 | AL118: 0.006328942931
A119: 11600 | B119: 0.9680851 | C119: 1 | D119: 0.9809524 | E119: 0.9789473 | F119: 0.9830508 | G119: 1 | H119: 0.9292035 | I119: 1 | J119: 1 | L119: 0.9939759 | M119: 0.9938272 | N119: 1 | O119: 1 | P119: 0.9956896 | Q119: 1 | R119: 0.9761904 | S119: 0.9852941 | T119: 1 | V119: 1 | W119: 1 | X119: 1 | Y119: 0.9866165 | Z119: 0.9824561 | AA119: 1 | AB119: 0.9512195 | AC119: 0.9705882 | AF119: 11600 | AG119: 0.9822487889 | AH119: 0.9938863556 | AI119: 0.9863600375 | AJ119: 0.007717277167 | AK119: 0.00273796229 | AL119: 0.006328942931
A120: 11700 | B120: 0.9680851 | C120: 1 | D120: 0.9809524 | E120: 0.9789473 | F120: 0.9830508 | G120: 1 | H120: 0.9292035 | I120: 1 | J120: 1 | L120: 0.9939759 | M120: 0.9938272 | N120: 1 | O120: 1 | P120: 0.9956896 | Q120: 1 | R120: 0.9761904 | S120: 0.9852941 | T120: 1 | V120: 1 | W120: 1 | X120: 1 | Y120: 0.9866165 | Z120: 0.991228 | AA120: 1 | AB120: 0.9512195 | AC120: 0.9705882 | AF120: 11700 | AG120: 0.9822487889 | AH120: 0.9938863556 | AI120: 0.987456525 | AJ120: 0.007717277167 | AK120: 0.00273796229 | AL120: 0.006327303498
A121: 11800 | B121: 0.9680851 | C121: 1 | D121: 0.9904762 | E121: 0.9789473 | F121: 0.9830508 | G121: 1 | H121: 0.9292035 | I121: 1 | J121: 1 | L121: 0.9939759 | M121: 0.9938272 | N121: 1 | O121: 1 | P121: 0.9956896 | Q121: 1 | R121: 0.9761904 | S121: 0.9852941 | T121: 1 | V121: 1 | W121: 1 | X121: 1 | Y121: 0.9866165 | Z121: 0.991228 | AA121: 1 | AB121: 0.9512195 | AC121: 0.9803922 | AF121: 11800 | AG121: 0.9833069889 | AH121: 0.9938863556 | AI121: 0.988682025 | AJ121: 0.007767444524 | AK121: 0.00273796229 | AL121: 0.005969111851
A122: 11900 | B122: 0.9680851 | C122: 1 | D122: 0.9904762 | E122: 0.9789473 | F122: 0.9830508 | G122: 1 | H122: 0.9292035 | I122: 1 | J122: 1 | L122: 0.9939759 | M122: 0.9938272 | N122: 1 | O122: 1 | P122: 0.9956896 | Q122: 1 | R122: 0.9761904 | S122: 0.9852941 | T122: 1 | V122: 1 | W122: 1 | X122: 1 | Y122: 0.98947365 | Z122: 0.991228 | AA122: 1 | AB122: 0.9512195 | AC122: 0.9803922 | AF122: 11900 | AG122: 0.9833069889 | AH122: 0.9938863556 | AI122: 0.9890391687 | AJ122: 0.007767444524 | AK122: 0.00273796229 | AL122: 0.005962137165
A123: 12000 | B123: 0.9680851 | C123: 1 | D123: 0.9904762 | E123: 0.9789473 | F123: 0.9830508 | G123: 1 | H123: 0.9292035 | I123: 1 | J123: 1 | L123: 0.9939759 | M123: 0.9938272 | N123: 1 | O123: 1 | P123: 0.9956896 | Q123: 1 | R123: 0.9761904 | S123: 0.9852941 | T123: 1 | V123: 1 | W123: 1 | X123: 1 | Y123: 0.98947365 | Z123: 0.991228 | AA123: 1 | AB123: 0.9512195 | AC123: 0.9803922 | AF123: 12000 | AG123: 0.9833069889 | AH123: 0.9938863556 | AI123: 0.9890391687 | AJ123: 0.007767444524 | AK123: 0.00273796229 | AL123: 0.005962137165
A124: 12100 | B124: 0.9680851 | C124: 1 | D124: 0.9904762 | E124: 0.9789473 | F124: 0.9830508 | G124: 1 | H124: 0.9292035 | I124: 1 | J124: 1 | L124: 0.9939759 | M124: 0.9938272 | N124: 1 | O124: 1 | P124: 0.9956896 | Q124: 1 | R124: 0.9761904 | S124: 0.9852941 | T124: 1 | V124: 1 | W124: 1 | X124: 1 | Y124: 0.98947365 | Z124: 0.991228 | AA124: 1 | AB124: 0.9512195 | AC124: 0.9803922 | AF124: 12100 | AG124: 0.9833069889 | AH124: 0.9938863556 | AI124: 0.9890391687 | AJ124: 0.007767444524 | AK124: 0.00273796229 | AL124: 0.005962137165
A125: 12200 | B125: 0.9680851 | C125: 1 | D125: 0.9904762 | E125: 0.9789473 | F125: 0.9830508 | G125: 1 | H125: 0.9380531 | I125: 1 | J125: 1 | L125: 0.9939759 | M125: 0.9938272 | N125: 1 | O125: 1 | P125: 0.9956896 | Q125: 1 | R125: 0.9761904 | S125: 0.9852941 | T125: 1 | V125: 1 | W125: 1 | X125: 1 | Y125: 0.98947365 | Z125: 0.991228 | AA125: 1 | AB125: 0.9512195 | AC125: 0.9803922 | AF125: 12200 | AG125: 0.9842902778 | AH125: 0.9938863556 | AI125: 0.9890391687 | AJ125: 0.006928218501 | AK125: 0.00273796229 | AL125: 0.005962137165
A126: 12300 | B126: 0.9680851 | C126: 1 | D126: 0.9904762 | E126: 0.9789473 | F126: 0.9830508 | G126: 1 | H126: 0.9380531 | I126: 1 | J126: 1 | L126: 0.9939759 | M126: 0.9938272 | N126: 1 | O126: 1 | P126: 0.9956896 | Q126: 1 | R126: 0.9761904 | S126: 0.9852941 | T126: 1 | V126: 1 | W126: 1 | X126: 1 | Y126: 0.98947365 | Z126: 0.991228 | AA126: 1 | AB126: 0.9512195 | AC126: 0.9803922 | AF126: 12300 | AG126: 0.9842902778 | AH126: 0.9938863556 | AI126: 0.9890391687 | AJ126: 0.006928218501 | AK126: 0.00273796229 | AL126: 0.005962137165
A127: 12400 | B127: 0.9680851 | C127: 1 | D127: 0.9904762 | E127: 0.9789473 | F127: 0.9830508 | G127: 1 | H127: 0.9380531 | I127: 1 | J127: 1 | L127: 0.9939759 | M127: 1 | N127: 1 | O127: 1 | P127: 0.9956896 | Q127: 1 | R127: 0.9761904 | S127: 0.9852941 | T127: 1 | V127: 1 | W127: 1 | X127: 1 | Y127: 0.98947365 | Z127: 1 | AA127: 1 | AB127: 0.9512195 | AC127: 0.9803922 | AF127: 12400 | AG127: 0.9842902778 | AH127: 0.9945722222 | AI127: 0.9901356687 | AJ127: 0.006928218501 | AK127: 0.002820763617 | AL127: 0.006118424747
A128: 12500 | B128: 0.9680851 | C128: 1 | D128: 0.9904762 | E128: 0.9894737 | F128: 0.9830508 | G128: 1 | H128: 0.9380531 | I128: 1 | J128: 1 | L128: 0.9939759 | M128: 1 | N128: 1 | O128: 1 | P128: 0.9956896 | Q128: 1 | R128: 0.9761904 | S128: 0.9852941 | T128: 1 | V128: 1 | W128: 1 | X128: 1 | Y128: 0.99473685 | Z128: 1 | AA128: 1 | AB128: 0.9512195 | AC128: 0.9803922 | AF128: 12500 | AG128: 0.9854598778 | AH128: 0.9945722222 | AI128: 0.9907935687 | AJ128: 0.006914180288 | AK128: 0.002820763617 | AL128: 0.006143574951
A129: 12600 | B129: 0.9680851 | C129: 1 | D129: 0.9904762 | E129: 0.9894737 | F129: 0.9830508 | G129: 1 | H129: 0.9380531 | I129: 1 | J129: 1 | L129: 0.9939759 | M129: 1 | N129: 1 | O129: 1 | P129: 0.9956896 | Q129: 1 | R129: 0.9761904 | S129: 0.9852941 | T129: 1 | V129: 1 | W129: 1 | X129: 1 | Y129: 0.99473685 | Z129: 1 | AA129: 1 | AB129: 0.9512195 | AC129: 0.9803922 | AF129: 12600 | AG129: 0.9854598778 | AH129: 0.9945722222 | AI129: 0.9907935687 | AJ129: 0.006914180288 | AK129: 0.002820763617 | AL129: 0.006143574951
A130: 12700 | B130: 0.9680851 | C130: 1 | D130: 0.9904762 | E130: 0.9894737 | F130: 0.9830508 | G130: 1 | H130: 0.9380531 | I130: 1 | J130: 1 | L130: 0.9939759 | M130: 1 | N130: 1 | O130: 1 | P130: 0.9956896 | Q130: 1 | R130: 0.9761904 | S130: 0.9852941 | T130: 1 | V130: 1 | W130: 1 | X130: 1 | Y130: 0.99473685 | Z130: 1 | AA130: 1 | AB130: 0.9512195 | AC130: 0.9803922 | AF130: 12700 | AG130: 0.9854598778 | AH130: 0.9945722222 | AI130: 0.9907935687 | AJ130: 0.006914180288 | AK130: 0.002820763617 | AL130: 0.006143574951
A131: 12800 | B131: 0.9680851 | C131: 1 | D131: 0.9904762 | E131: 0.9894737 | F131: 1 | G131: 1 | H131: 0.9380531 | I131: 1 | J131: 1 | L131: 0.9939759 | M131: 1 | N131: 1 | O131: 1 | P131: 0.9956896 | Q131: 1 | R131: 0.9761904 | S131: 0.9852941 | T131: 1 | V131: 1 | W131: 1 | X131: 1 | Y131: 0.99473685 | Z131: 1 | AA131: 1 | AB131: 0.9512195 | AC131: 0.9803922 | AF131: 12800 | AG131: =AVERAGE(B131:J131) -> 0.9873431222 | AH131: =AVERAGE(L131:T131) -> 0.9945722222 | AI131: =AVERAGE(V131:AD131) -> 0.9907935687 | AJ131: 0.007086485597 | AK131: 0.002820763617 | AL131: 0.006143574951
A132: 12900 | B132: 0.9680851 | C132: 1 | D132: 0.9904762 | E132: 0.9894737 | F132: 1 | G132: 1 | H132: 0.9380531 | I132: 1 | J132: 1 | L132: 0.9939759 | M132: 1 | N132: 1 | O132: 1 | P132: 0.9956896 | Q132: 1 | R132: 0.9761904 | S132: 0.9852941 | T132: 1 | V132: 1 | W132: 1 | X132: 1 | Y132: 0.99473685 | Z132: 1 | AA132: 1 | AB132: 0.9512195 | AC132: 0.9803922 | AF132: =A132 -> 12900 | AG132: 0.9873431222 | AH132: 0.9945722222 | AI132: 0.9907935687 | AJ132: =STDEV(B132:J132)/SQRT(COUNT(B132:J132)) -> 0.007086485597 | AK132: =STDEV(L132:T132)/SQRT(COUNT(L132:T132)) -> 0.002820763617 | AL132: =STDEV(V132:AD132)/SQRT(COUNT(V132:AD132)) -> 0.006143574951
A133: 13000 | B133: 0.9680851 | C133: 1 | D133: 0.9904762 | E133: 0.9894737 | F133: 1 | G133: 1 | H133: 0.9380531 | I133: 1 | J133: 1 | L133: 0.9939759 | M133: 1 | N133: 1 | O133: 1 | P133: 0.9956896 | Q133: 1 | R133: 0.9761904 | S133: 0.9926471 | T133: 1 | V133: 1 | W133: 1 | X133: 1 | Y133: 0.99473685 | Z133: 1 | AA133: 1 | AB133: 0.9512195 | AC133: 0.9803922 | AF133: 13000 | AG133: 0.9873431222 | AH133: 0.9953892222 | AI133: 0.9907935687 | AJ133: 0.007086485597 | AK133: 0.00259405858 | AL133: 0.006143574951
A134: 13100 | B134: 0.9680851 | C134: 1 | D134: 0.9904762 | E134: 0.9894737 | F134: 1 | G134: 1 | H134: 0.9380531 | I134: 1 | J134: 1 | L134: 0.9939759 | M134: 1 | N134: 1 | O134: 1 | P134: 0.9956896 | Q134: 1 | R134: 0.984127 | S134: 0.9926471 | T134: 1 | V134: 1 | W134: 1 | X134: 1 | Y134: 0.99473685 | Z134: 1 | AA134: 1 | AB134: 0.9512195 | AC134: 0.9803922 | AF134: 13100 | AG134: 0.9873431222 | AH134: 0.9962710667 | AI134: 0.9907935687 | AJ134: 0.007086485597 | AK134: 0.001809473919 | AL134: 0.006143574951
A135: 13200 | B135: 0.9680851 | C135: 1 | D135: 1 | E135: 0.9894737 | F135: 1 | G135: 1 | H135: 0.9380531 | I135: 1 | J135: 1 | L135: 0.9939759 | M135: 1 | N135: 1 | O135: 1 | P135: 0.9956896 | Q135: 1 | R135: 0.9920635 | S135: 0.9926471 | T135: 1 | V135: 1 | W135: 1 | X135: 1 | Y135: 0.99473685 | Z135: 1 | AA135: 1 | AB135: 0.9634146 | AC135: 0.9803922 | AF135: 13200 | AG135: 0.9884013222 | AH135: 0.9971529 | AI135: 0.9923179562 | AJ135: 0.007222667172 | AK135: 0.001172418523 | AL135: 0.004778201418
A136: 13300 | B136: 0.9680851 | C136: 1 | D136: 0.9991405 | E136: 0.9894737 | F136: 1 | G136: 1 | H136: 0.9380531 | I136: 1 | J136: 1 | L136: 1 | M136: 1 | N136: 1 | O136: 1 | P136: 0.9956896 | Q136: 1 | R136: 0.9920635 | S136: 0.9926471 | T136: 1 | V136: 1 | W136: 1 | X136: 1 | Y136: 0.99473685 | Z136: 1 | AA136: 1 | AB136: 0.9634146 | AC136: 0.9803922 | AF136: 13300 | AG136: 0.9883058222 | AH136: 0.9978222444 | AI136: 0.9923179562 | AJ136: 0.007204104587 | AK136: 0.001136204363 | AL136: 0.004778201418
A137: 13400 | B137: 0.9680851 | C137: 1 | D137: 0.9991405 | E137: 0.9894737 | F137: 1 | G137: 1 | H137: 0.9380531 | I137: 1 | J137: 1 | L137: 1 | M137: 1 | N137: 1 | O137: 1 | P137: 0.9956896 | Q137: 1 | R137: 1 | S137: 0.9926471 | T137: 1 | V137: 1 | W137: 1 | X137: 1 | Y137: 0.99473685 | Z137: 1 | AA137: 1 | AB137: 0.9634146 | AC137: 0.9803922 | AF137: 13400 | AG137: 0.9883058222 | AH137: 0.9987040778 | AI137: 0.9923179562 | AJ137: 0.007204104587 | AK137: 0.0008938832023 | AL137: 0.004778201418
A138: 13500 | B138: 0.9680851 | C138: 1 | D138: 0.9991405 | E138: 0.9894737 | F138: 1 | G138: 1 | H138: 0.9380531 | I138: 1 | J138: 1 | L138: 1 | M138: 1 | N138: 1 | O138: 1 | P138: 0.9956896 | Q138: 1 | R138: 1 | S138: 0.9926471 | T138: 1 | V138: 1 | W138: 1 | X138: 1 | Y138: 0.99473685 | Z138: 1 | AA138: 1 | AB138: 0.9634146 | AC138: 0.9803922 | AF138: 13500 | AG138: 0.9883058222 | AH138: 0.9987040778 | AI138: 0.9923179562 | AJ138: 0.007204104587 | AK138: 0.0008938832023 | AL138: 0.004778201418
A139: 13600 | B139: 0.9680851 | C139: 1 | D139: 0.9991405 | E139: 0.9894737 | F139: 1 | G139: 1 | H139: 0.9380531 | I139: 1 | J139: 1 | L139: 1 | M139: 1 | N139: 1 | O139: 1 | P139: 0.9956896 | Q139: 1 | R139: 1 | S139: 0.9926471 | T139: 1 | V139: 1 | W139: 1 | X139: 1 | Y139: 0.99473685 | Z139: 1 | AA139: 1 | AB139: 0.9634146 | AC139: 0.9803922 | AF139: 13600 | AG139: 0.9883058222 | AH139: 0.9987040778 | AI139: 0.9923179562 | AJ139: 0.007204104587 | AK139: 0.0008938832023 | AL139: 0.004778201418
A140: 13700 | B140: 0.9680851 | C140: 1 | D140: 0.9991405 | E140: 0.9894737 | F140: 1 | G140: 1 | H140: 0.9380531 | I140: 1 | J140: 1 | L140: 1 | M140: 1 | N140: 1 | O140: 1 | P140: 0.9956896 | Q140: 1 | R140: 1 | S140: 0.9926471 | T140: 1 | V140: 1 | W140: 1 | X140: 1 | Y140: 0.99473685 | Z140: 1 | AA140: 1 | AB140: 0.9634146 | AC140: 0.9803922 | AF140: 13700 | AG140: 0.9883058222 | AH140: 0.9987040778 | AI140: 0.9923179562 | AJ140: 0.007204104587 | AK140: 0.0008938832023 | AL140: 0.004778201418
A141: 13800 | B141: 0.9680851 | C141: 1 | D141: 0.9991405 | E141: 0.9894737 | F141: 1 | G141: 1 | H141: 0.9380531 | I141: 1 | J141: 1 | L141: 1 | M141: 1 | N141: 1 | O141: 1 | P141: 0.9956896 | Q141: 1 | R141: 1 | S141: 0.9926471 | T141: 1 | V141: 1 | W141: 1 | X141: 1 | Y141: 0.99473685 | Z141: 1 | AA141: 1 | AB141: 0.9756098 | AC141: 0.9803922 | AF141: 13800 | AG141: 0.9883058222 | AH141: 0.9987040778 | AI141: 0.9938423562 | AJ141: 0.007204104587 | AK141: 0.0008938832023 | AL141: 0.003544905329
A142: 13900 | B142: 0.9680851 | C142: 1 | D142: 0.9991405 | E142: 0.9894737 | F142: 1 | G142: 1 | H142: 0.9380531 | I142: 1 | J142: 1 | L142: 1 | M142: 1 | N142: 1 | O142: 1 | P142: 0.9956896 | Q142: 1 | R142: 1 | S142: 0.9926471 | T142: 1 | V142: 1 | W142: 1 | X142: 1 | Y142: 0.99473685 | Z142: 1 | AA142: 1 | AB142: 0.9756098 | AC142: 0.9803922 | AF142: 13900 | AG142: 0.9883058222 | AH142: 0.9987040778 | AI142: 0.9938423562 | AJ142: 0.007204104587 | AK142: 0.0008938832023 | AL142: 0.003544905329
A143: 14000 | B143: 0.9680851 | C143: 1 | D143: 0.9991405 | E143: 0.9894737 | F143: 1 | G143: 1 | H143: 0.9380531 | I143: 1 | J143: 1 | L143: 1 | M143: 1 | N143: 1 | O143: 1 | P143: 0.9956896 | Q143: 1 | R143: 1 | S143: 0.9926471 | T143: 1 | V143: 1 | W143: 1 | X143: 1 | Y143: 0.99473685 | Z143: 1 | AA143: 1 | AB143: 0.9756098 | AC143: 0.9803922 | AF143: 14000 | AG143: 0.9883058222 | AH143: 0.9987040778 | AI143: 0.9938423562 | AJ143: 0.007204104587 | AK143: 0.0008938832023 | AL143: 0.003544905329
A144: 14100 | B144: 0.9680851 | C144: 1 | D144: 0.9991405 | E144: 0.9894737 | F144: 1 | G144: 1 | H144: 0.9380531 | I144: 1 | J144: 1 | L144: 1 | M144: 1 | N144: 1 | O144: 1 | P144: 0.9956896 | Q144: 1 | R144: 1 | S144: 0.9926471 | T144: 1 | V144: 1 | W144: 1 | X144: 1 | Y144: 0.99473685 | Z144: 1 | AA144: 1 | AB144: 0.9756098 | AC144: 0.9803922 | AF144: 14100 | AG144: 0.9883058222 | AH144: 0.9987040778 | AI144: 0.9938423562 | AJ144: 0.007204104587 | AK144: 0.0008938832023 | AL144: 0.003544905329
A145: 14200 | B145: 0.9787234 | C145: 1 | D145: 0.9991405 | E145: 0.9894737 | F145: 1 | G145: 1 | H145: 0.9380531 | I145: 1 | J145: 1 | L145: 1 | M145: 1 | N145: 1 | O145: 1 | P145: 0.9956896 | Q145: 1 | R145: 1 | S145: 0.9926471 | T145: 1 | V145: 1 | W145: 1 | X145: 1 | Y145: 0.99473685 | Z145: 1 | AA145: 1 | AB145: 0.9878049 | AC145: 0.9803922 | AF145: 14200 | AG145: 0.9894878556 | AH145: 0.9987040778 | AI145: 0.9953667437 | AJ145: 0.00687902128 | AK145: 0.0008938832023 | AL145: 0.002636117698
A146: 14300 | B146: 0.9787234 | C146: 1 | D146: 0.9991405 | E146: 0.9894737 | F146: 1 | G146: 1 | H146: 0.9380531 | I146: 1 | J146: 1 | L146: 1 | M146: 1 | N146: 1 | O146: 1 | P146: 0.9956896 | Q146: 1 | R146: 1 | S146: 0.9926471 | T146: 1 | V146: 1 | W146: 1 | X146: 1 | Y146: 0.99473685 | Z146: 1 | AA146: 1 | AB146: 0.9878049 | AC146: 0.9803922 | AF146: 14300 | AG146: 0.9894878556 | AH146: 0.9987040778 | AI146: 0.9953667437 | AJ146: 0.00687902128 | AK146: 0.0008938832023 | AL146: 0.002636117698
A147: 14400 | B147: 0.9787234 | C147: 1 | D147: 0.9991405 | E147: 0.9894737 | F147: 1 | G147: 1 | H147: 0.9380531 | I147: 1 | J147: 1 | L147: 1 | M147: 1 | N147: 1 | O147: 1 | P147: 0.9956896 | Q147: 1 | R147: 1 | S147: 0.9926471 | T147: 1 | V147: 1 | W147: 1 | X147: 1 | Y147: 0.99473685 | Z147: 1 | AA147: 1 | AB147: 0.9878049 | AC147: 0.9803922 | AF147: 14400 | AG147: 0.9894878556 | AH147: 0.9987040778 | AI147: 0.9953667437 | AJ147: 0.00687902128 | AK147: 0.0008938832023 | AL147: 0.002636117698
A148: 14500 | B148: 0.9787234 | C148: 1 | D148: 0.9991405 | E148: 0.9894737 | F148: 1 | G148: 1 | H148: 0.9380531 | I148: 1 | J148: 1 | L148: 1 | M148: 1 | N148: 1 | O148: 1 | P148: 0.9956896 | Q148: 1 | R148: 1 | S148: 0.9926471 | T148: 1 | V148: 1 | W148: 1 | X148: 1 | Y148: 0.99473685 | Z148: 1 | AA148: 1 | AB148: 1 | AC148: 0.9803922 | AF148: 14500 | AG148: 0.9894878556 | AH148: 0.9987040778 | AI148: 0.9968911312 | AJ148: 0.00687902128 | AK148: 0.0008938832023 | AL148: 0.00244527989
A149: 14600 | B149: 0.9787234 | C149: 1 | D149: 0.9991405 | E149: 0.9894737 | F149: 1 | G149: 1 | H149: 0.9380531 | I149: 1 | J149: 1 | L149: 1 | M149: 1 | N149: 1 | O149: 1 | P149: 0.9956896 | Q149: 1 | R149: 1 | S149: 1 | T149: 1 | V149: 1 | W149: 1 | X149: 1 | Y149: 0.99473685 | Z149: 1 | AA149: 1 | AB149: 1 | AC149: 0.9803922 | AF149: 14600 | AG149: 0.9894878556 | AH149: 0.9995210667 | AI149: 0.9968911312 | AJ149: 0.00687902128 | AK149: 0.0004789333333 | AL149: 0.00244527989
A150: 14700 | B150: 0.9787234 | C150: 1 | D150: 0.9991405 | E150: 0.9894737 | F150: 1 | G150: 1 | H150: 0.9380531 | I150: 1 | J150: 1 | L150: 1 | M150: 1 | N150: 1 | O150: 1 | P150: 0.9956896 | Q150: 1 | R150: 1 | S150: 1 | T150: 1 | V150: 1 | W150: 1 | X150: 1 | Y150: 0.99473685 | Z150: 1 | AA150: 1 | AB150: 1 | AC150: 0.9803922 | AF150: 14700 | AG150: 0.9894878556 | AH150: 0.9995210667 | AI150: 0.9968911312 | AJ150: 0.00687902128 | AK150: 0.0004789333333 | AL150: 0.00244527989
A151: 14800 | B151: 0.9787234 | C151: 1 | D151: 0.9991405 | E151: 0.9894737 | F151: 1 | G151: 1 | H151: 0.9380531 | I151: 1 | J151: 1 | L151: 1 | M151: 1 | N151: 1 | O151: 1 | P151: 0.9956896 | Q151: 1 | R151: 1 | S151: 1 | T151: 1 | V151: 1 | W151: 1 | X151: 1 | Y151: 0.99473685 | Z151: 1 | AA151: 1 | AB151: 1 | AC151: 0.9803922 | AF151: 14800 | AG151: 0.9894878556 | AH151: 0.9995210667 | AI151: 0.9968911312 | AJ151: 0.00687902128 | AK151: 0.0004789333333 | AL151: 0.00244527989
A152: 14900 | B152: 0.9787234 | C152: 1 | D152: 0.9991405 | E152: 0.9894737 | F152: 1 | G152: 1 | H152: 0.9380531 | I152: 1 | J152: 1 | L152: 1 | M152: 1 | N152: 1 | O152: 1 | P152: 0.9956896 | Q152: 1 | R152: 1 | S152: 1 | T152: 1 | V152: 1 | W152: 1 | X152: 1 | Y152: 0.99473685 | Z152: 1 | AA152: 1 | AB152: 1 | AC152: 0.9803922 | AF152: 14900 | AG152: 0.9894878556 | AH152: 0.9995210667 | AI152: 0.9968911312 | AJ152: 0.00687902128 | AK152: 0.0004789333333 | AL152: 0.00244527989
A153: 15000 | B153: 0.9787234 | C153: 1 | D153: 0.9991405 | E153: 0.9894737 | F153: 1 | G153: 1 | H153: 0.9380531 | I153: 1 | J153: 1 | L153: 1 | M153: 1 | N153: 1 | O153: 1 | P153: 0.9956896 | Q153: 1 | R153: 1 | S153: 1 | T153: 1 | V153: 1 | W153: 1 | X153: 1 | Y153: 0.99473685 | Z153: 1 | AA153: 1 | AB153: 1 | AC153: 0.9803922 | AF153: 15000 | AG153: 0.9894878556 | AH153: 0.9995210667 | AI153: 0.9968911312 | AJ153: 0.00687902128 | AK153: 0.0004789333333 | AL153: 0.00244527989
A154: 15100 | B154: 0.9787234 | C154: 1 | D154: 0.9991405 | E154: 0.9894737 | F154: 1 | G154: 1 | H154: 0.9380531 | I154: 1 | J154: 1 | L154: 1 | M154: 1 | N154: 1 | O154: 1 | P154: 0.9956896 | Q154: 1 | R154: 1 | S154: 1 | T154: 1 | V154: 1 | W154: 1 | X154: 1 | Y154: 0.99473685 | Z154: 1 | AA154: 1 | AB154: 1 | AC154: 0.990196 | AF154: 15100 | AG154: 0.9894878556 | AH154: 0.9995210667 | AI154: 0.9981166062 | AJ154: 0.00687902128 | AK154: 0.0004789333333 | AL154: 0.00130549517
A155: 15200 | B155: 0.9787234 | C155: 1 | D155: 0.9991405 | E155: 0.9894737 | F155: 1 | G155: 1 | H155: 0.9380531 | I155: 1 | J155: 1 | L155: 1 | M155: 1 | N155: 1 | O155: 1 | P155: 0.9956896 | Q155: 1 | R155: 1 | S155: 1 | T155: 1 | V155: 1 | W155: 1 | X155: 1 | Y155: 0.99473685 | Z155: 1 | AA155: 1 | AB155: 1 | AC155: 0.990196 | AF155: 15200 | AG155: 0.9894878556 | AH155: 0.9995210667 | AI155: 0.9981166062 | AJ155: 0.00687902128 | AK155: 0.0004789333333 | AL155: 0.00130549517
A156: 15300 | B156: 0.9787234 | C156: 1 | D156: 0.9991405 | E156: 0.9894737 | F156: 1 | G156: 1 | H156: 0.9380531 | I156: 1 | J156: 1 | L156: 1 | M156: 1 | N156: 1 | O156: 1 | P156: 0.9956896 | Q156: 1 | R156: 1 | S156: 1 | T156: 1 | V156: 1 | W156: 1 | X156: 1 | Y156: 0.99473685 | Z156: 1 | AA156: 1 | AB156: 1 | AC156: 0.990196 | AF156: 15300 | AG156: 0.9894878556 | AH156: 0.9995210667 | AI156: 0.9981166062 | AJ156: 0.00687902128 | AK156: 0.0004789333333 | AL156: 0.00130549517
A157: 15400 | B157: 0.9787234 | C157: 1 | D157: 0.9991405 | E157: 0.9894737 | F157: 1 | G157: 1 | H157: 0.9380531 | I157: 1 | J157: 1 | L157: 1 | M157: 1 | N157: 1 | O157: 1 | P157: 0.9956896 | Q157: 1 | R157: 1 | S157: 1 | T157: 1 | V157: 1 | W157: 1 | X157: 1 | Y157: 0.99473685 | Z157: 1 | AA157: 1 | AB157: 1 | AC157: 0.990196 | AF157: 15400 | AG157: 0.9894878556 | AH157: 0.9995210667 | AI157: 0.9981166062 | AJ157: 0.00687902128 | AK157: 0.0004789333333 | AL157: 0.00130549517
A158: 15500 | B158: 0.9787234 | C158: 1 | D158: 0.9991405 | E158: 0.9894737 | F158: 1 | G158: 1 | H158: 0.9380531 | I158: 1 | J158: 1 | L158: 1 | M158: 1 | N158: 1 | O158: 1 | P158: 0.9956896 | Q158: 1 | R158: 1 | S158: 1 | T158: 1 | V158: 1 | W158: 1 | X158: 1 | Y158: 0.99473685 | Z158: 1 | AA158: 1 | AB158: 1 | AC158: 0.990196 | AF158: 15500 | AG158: 0.9894878556 | AH158: 0.9995210667 | AI158: 0.9981166062 | AJ158: 0.00687902128 | AK158: 0.0004789333333 | AL158: 0.00130549517
A159: 15600 | B159: 0.9787234 | C159: 1 | D159: 0.9991405 | E159: 1 | F159: 1 | G159: 1 | H159: 0.9469026 | I159: 1 | J159: 1 | L159: 1 | M159: 1 | N159: 1 | O159: 1 | P159: 0.9956896 | Q159: 1 | R159: 1 | S159: 1 | T159: 1 | V159: 1 | W159: 1 | X159: 1 | Y159: 1 | Z159: 1 | AA159: 1 | AB159: 1 | AC159: 0.990196 | AF159: 15600 | AG159: 0.9916407222 | AH159: 0.9995210667 | AI159: 0.9987745 | AJ159: 0.00605973575 | AK159: 0.0004789333333 | AL159: 0.0012255
A160: 15700 | B160: 0.9787234 | C160: 1 | D160: 0.9991405 | E160: 1 | F160: 1 | G160: 1 | H160: 0.9469026 | I160: 1 | J160: 1 | L160: 1 | M160: 1 | N160: 1 | O160: 1 | P160: 0.9956896 | Q160: 1 | R160: 1 | S160: 1 | T160: 1 | V160: 1 | W160: 1 | X160: 1 | Y160: 1 | Z160: 1 | AA160: 1 | AB160: 1 | AC160: 1 | AF160: 15700 | AG160: 0.9916407222 | AH160: 0.9995210667 | AI160: 1 | AJ160: 0.00605973575 | AK160: 0.0004789333333 | AL160: 0
A161: 15800 | B161: 0.9787234 | C161: 1 | D161: 0.9991405 | E161: 1 | F161: 1 | G161: 1 | H161: 0.9469026 | I161: 1 | J161: 1 | L161: 1 | M161: 1 | N161: 1 | O161: 1 | P161: 0.9956896 | Q161: 1 | R161: 1 | S161: 1 | T161: 1 | V161: 1 | W161: 1 | X161: 1 | Y161: 1 | Z161: 1 | AA161: 1 | AB161: 1 | AC161: 1 | AF161: 15800 | AG161: 0.9916407222 | AH161: 0.9995210667 | AI161: 1 | AJ161: 0.00605973575 | AK161: 0.0004789333333 | AL161: 0
A162: 15900 | B162: 0.9787234 | C162: 1 | D162: 0.9991405 | E162: 1 | F162: 1 | G162: 1 | H162: 0.9469026 | I162: 1 | J162: 1 | L162: 1 | M162: 1 | N162: 1 | O162: 1 | P162: 0.9956896 | Q162: 1 | R162: 1 | S162: 1 | T162: 1 | V162: 1 | W162: 1 | X162: 1 | Y162: 1 | Z162: 1 | AA162: 1 | AB162: 1 | AC162: 1 | AF162: 15900 | AG162: 0.9916407222 | AH162: 0.9995210667 | AI162: 1 | AJ162: 0.00605973575 | AK162: 0.0004789333333 | AL162: 0
A163: 16000 | B163: 0.9787234 | C163: 1 | D163: 0.9991405 | E163: 1 | F163: 1 | G163: 1 | H163: 0.9469026 | I163: 1 | J163: 1 | L163: 1 | M163: 1 | N163: 1 | O163: 1 | P163: 0.9956896 | Q163: 1 | R163: 1 | S163: 1 | T163: 1 | V163: 1 | W163: 1 | X163: 1 | Y163: 1 | Z163: 1 | AA163: 1 | AB163: 1 | AC163: 1 | AF163: 16000 | AG163: 0.9916407222 | AH163: 0.9995210667 | AI163: 1 | AJ163: 0.00605973575 | AK163: 0.0004789333333 | AL163: 0
A164: 16100 | B164: 0.9787234 | C164: 1 | D164: 0.9991405 | E164: 1 | F164: 1 | G164: 1 | H164: 0.9469026 | I164: 1 | J164: 1 | L164: 1 | M164: 1 | N164: 1 | O164: 1 | P164: 0.9956896 | Q164: 1 | R164: 1 | S164: 1 | T164: 1 | V164: 1 | W164: 1 | X164: 1 | Y164: 1 | Z164: 1 | AA164: 1 | AB164: 1 | AC164: 1 | AF164: 16100 | AG164: 0.9916407222 | AH164: 0.9995210667 | AI164: 1 | AJ164: 0.00605973575 | AK164: 0.0004789333333 | AL164: 0
A165: 16200 | B165: 0.9787234 | C165: 1 | D165: 0.9991405 | E165: 1 | F165: 1 | G165: 1 | H165: 0.9469026 | I165: 1 | J165: 1 | L165: 1 | M165: 1 | N165: 1 | O165: 1 | P165: 0.9956896 | Q165: 1 | R165: 1 | S165: 1 | T165: 1 | V165: 1 | W165: 1 | X165: 1 | Y165: 1 | Z165: 1 | AA165: 1 | AB165: 1 | AC165: 1 | AF165: 16200 | AG165: 0.9916407222 | AH165: 0.9995210667 | AI165: 1 | AJ165: 0.00605973575 | AK165: 0.0004789333333 | AL165: 0
A166: 16300 | B166: 0.9787234 | C166: 1 | D166: 0.9991405 | E166: 1 | F166: 1 | G166: 1 | H166: 0.9469026 | I166: 1 | J166: 1 | L166: 1 | M166: 1 | N166: 1 | O166: 1 | P166: 0.9956896 | Q166: 1 | R166: 1 | S166: 1 | T166: 1 | V166: 1 | W166: 1 | X166: 1 | Y166: 1 | Z166: 1 | AA166: 1 | AB166: 1 | AC166: 1 | AF166: 16300 | AG166: 0.9916407222 | AH166: 0.9995210667 | AI166: 1 | AJ166: 0.00605973575 | AK166: 0.0004789333333 | AL166: 0
A167: 16400 | B167: 0.9787234 | C167: 1 | D167: 0.9991405 | E167: 1 | F167: 1 | G167: 1 | H167: 0.9469026 | I167: 1 | J167: 1 | L167: 1 | M167: 1 | N167: 1 | O167: 1 | P167: 0.9956896 | Q167: 1 | R167: 1 | S167: 1 | T167: 1 | V167: 1 | W167: 1 | X167: 1 | Y167: 1 | Z167: 1 | AA167: 1 | AB167: 1 | AC167: 1 | AF167: 16400 | AG167: 0.9916407222 | AH167: 0.9995210667 | AI167: 1 | AJ167: 0.00605973575 | AK167: 0.0004789333333 | AL167: 0
A168: 16500 | B168: 0.9787234 | C168: 1 | D168: 0.9991405 | E168: 1 | F168: 1 | G168: 1 | H168: 0.9469026 | I168: 1 | J168: 1 | L168: 1 | M168: 1 | N168: 1 | O168: 1 | P168: 0.9956896 | Q168: 1 | R168: 1 | S168: 1 | T168: 1 | V168: 1 | W168: 1 | X168: 1 | Y168: 1 | Z168: 1 | AA168: 1 | AB168: 1 | AC168: 1 | AF168: 16500 | AG168: 0.9916407222 | AH168: 0.9995210667 | AI168: 1 | AJ168: 0.00605973575 | AK168: 0.0004789333333 | AL168: 0
A169: 16600 | B169: 0.9787234 | C169: 1 | D169: 0.9991405 | E169: 1 | F169: 1 | G169: 1 | H169: 0.9469026 | I169: 1 | J169: 1 | L169: 1 | M169: 1 | N169: 1 | O169: 1 | P169: 0.9956896 | Q169: 1 | R169: 1 | S169: 1 | T169: 1 | V169: 1 | W169: 1 | X169: 1 | Y169: 1 | Z169: 1 | AA169: 1 | AB169: 1 | AC169: 1 | AF169: 16600 | AG169: 0.9916407222 | AH169: 0.9995210667 | AI169: 1 | AJ169: 0.00605973575 | AK169: 0.0004789333333 | AL169: 0
A170: 16700 | B170: 0.9787234 | C170: 1 | D170: 0.9991405 | E170: 1 | F170: 1 | G170: 1 | H170: 0.9469026 | I170: 1 | J170: 1 | L170: 1 | M170: 1 | N170: 1 | O170: 1 | P170: 0.9956896 | Q170: 1 | R170: 1 | S170: 1 | T170: 1 | V170: 1 | W170: 1 | X170: 1 | Y170: 1 | Z170: 1 | AA170: 1 | AB170: 1 | AC170: 1 | AF170: 16700 | AG170: 0.9916407222 | AH170: 0.9995210667 | AI170: 1 | AJ170: 0.00605973575 | AK170: 0.0004789333333 | AL170: 0
A171: 16800 | B171: 0.9787234 | C171: 1 | D171: 0.9991405 | E171: 1 | F171: 1 | G171: 1 | H171: 0.9469026 | I171: 1 | J171: 1 | L171: 1 | M171: 1 | N171: 1 | O171: 1 | P171: 0.9956896 | Q171: 1 | R171: 1 | S171: 1 | T171: 1 | V171: 1 | W171: 1 | X171: 1 | Y171: 1 | Z171: 1 | AA171: 1 | AB171: 1 | AC171: 1 | AF171: 16800 | AG171: 0.9916407222 | AH171: 0.9995210667 | AI171: 1 | AJ171: 0.00605973575 | AK171: 0.0004789333333 | AL171: 0
A172: 16900 | B172: 0.9787234 | C172: 1 | D172: 0.9991405 | E172: 1 | F172: 1 | G172: 1 | H172: 0.9469026 | I172: 1 | J172: 1 | L172: 1 | M172: 1 | N172: 1 | O172: 1 | P172: 0.9956896 | Q172: 1 | R172: 1 | S172: 1 | T172: 1 | V172: 1 | W172: 1 | X172: 1 | Y172: 1 | Z172: 1 | AA172: 1 | AB172: 1 | AC172: 1 | AF172: 16900 | AG172: 0.9916407222 | AH172: 0.9995210667 | AI172: 1 | AJ172: 0.00605973575 | AK172: 0.0004789333333 | AL172: 0
A173: 17000 | B173: 0.9787234 | C173: 1 | D173: 0.9991405 | E173: 1 | F173: 1 | G173: 1 | H173: 0.9469026 | I173: 1 | J173: 1 | L173: 1 | M173: 1 | N173: 1 | O173: 1 | P173: 0.9956896 | Q173: 1 | R173: 1 | S173: 1 | T173: 1 | V173: 1 | W173: 1 | X173: 1 | Y173: 1 | Z173: 1 | AA173: 1 | AB173: 1 | AC173: 1 | AF173: 17000 | AG173: 0.9916407222 | AH173: 0.9995210667 | AI173: 1 | AJ173: 0.00605973575 | AK173: 0.0004789333333 | AL173: 0
A174: 17100 | B174: 0.9787234 | C174: 1 | D174: 0.9991405 | E174: 1 | F174: 1 | G174: 1 | H174: 0.9469026 | I174: 1 | J174: 1 | L174: 1 | M174: 1 | N174: 1 | O174: 1 | P174: 0.9956896 | Q174: 1 | R174: 1 | S174: 1 | T174: 1 | V174: 1 | W174: 1 | X174: 1 | Y174: 1 | Z174: 1 | AA174: 1 | AB174: 1 | AC174: 1 | AF174: 17100 | AG174: 0.9916407222 | AH174: 0.9995210667 | AI174: 1 | AJ174: 0.00605973575 | AK174: 0.0004789333333 | AL174: 0
A175: 17200 | B175: 0.9787234 | C175: 1 | D175: 0.9991405 | E175: 1 | F175: 1 | G175: 1 | H175: 0.9469026 | I175: 1 | J175: 1 | L175: 1 | M175: 1 | N175: 1 | O175: 1 | P175: 0.9956896 | Q175: 1 | R175: 1 | S175: 1 | T175: 1 | V175: 1 | W175: 1 | X175: 1 | Y175: 1 | Z175: 1 | AA175: 1 | AB175: 1 | AC175: 1 | AF175: 17200 | AG175: 0.9916407222 | AH175: 0.9995210667 | AI175: 1 | AJ175: 0.00605973575 | AK175: 0.0004789333333 | AL175: 0
A176: 17300 | B176: 0.9787234 | C176: 1 | D176: 0.9991405 | E176: 1 | F176: 1 | G176: 1 | H176: 0.9469026 | I176: 1 | J176: 1 | L176: 1 | M176: 1 | N176: 1 | O176: 1 | P176: 0.9956896 | Q176: 1 | R176: 1 | S176: 1 | T176: 1 | V176: 1 | W176: 1 | X176: 1 | Y176: 1 | Z176: 1 | AA176: 1 | AB176: 1 | AC176: 1 | AF176: 17300 | AG176: 0.9916407222 | AH176: 0.9995210667 | AI176: 1 | AJ176: 0.00605973575 | AK176: 0.0004789333333 | AL176: 0
A177: 17400 | B177: 0.9787234 | C177: 1 | D177: 0.9991405 | E177: 1 | F177: 1 | G177: 1 | H177: 0.9469026 | I177: 1 | J177: 1 | L177: 1 | M177: 1 | N177: 1 | O177: 1 | P177: 0.9956896 | Q177: 1 | R177: 1 | S177: 1 | T177: 1 | V177: 1 | W177: 1 | X177: 1 | Y177: 1 | Z177: 1 | AA177: 1 | AB177: 1 | AC177: 1 | AF177: 17400 | AG177: 0.9916407222 | AH177: 0.9995210667 | AI177: 1 | AJ177: 0.00605973575 | AK177: 0.0004789333333 | AL177: 0
A178: 17500 | B178: 0.9787234 | C178: 1 | D178: 0.9991405 | E178: 1 | F178: 1 | G178: 1 | H178: 0.9469026 | I178: 1 | J178: 1 | L178: 1 | M178: 1 | N178: 1 | O178: 1 | P178: 0.9956896 | Q178: 1 | R178: 1 | S178: 1 | T178: 1 | V178: 1 | W178: 1 | X178: 1 | Y178: 1 | Z178: 1 | AA178: 1 | AB178: 1 | AC178: 1 | AF178: 17500 | AG178: 0.9916407222 | AH178: 0.9995210667 | AI178: 1 | AJ178: 0.00605973575 | AK178: 0.0004789333333 | AL178: 0
A179: 17600 | B179: 0.9787234 | C179: 1 | D179: 0.9991405 | E179: 1 | F179: 1 | G179: 1 | H179: 0.9469026 | I179: 1 | J179: 1 | L179: 1 | M179: 1 | N179: 1 | O179: 1 | P179: 0.9956896 | Q179: 1 | R179: 1 | S179: 1 | T179: 1 | V179: 1 | W179: 1 | X179: 1 | Y179: 1 | Z179: 1 | AA179: 1 | AB179: 1 | AC179: 1 | AF179: 17600 | AG179: 0.9916407222 | AH179: 0.9995210667 | AI179: 1 | AJ179: 0.00605973575 | AK179: 0.0004789333333 | AL179: 0
A180: 17700 | B180: 0.9787234 | C180: 1 | D180: 0.9991405 | E180: 1 | F180: 1 | G180: 1 | H180: 0.9469026 | I180: 1 | J180: 1 | L180: 1 | M180: 1 | N180: 1 | O180: 1 | P180: 0.9956896 | Q180: 1 | R180: 1 | S180: 1 | T180: 1 | V180: 1 | W180: 1 | X180: 1 | Y180: 1 | Z180: 1 | AA180: 1 | AB180: 1 | AC180: 1 | AF180: 17700 | AG180: 0.9916407222 | AH180: 0.9995210667 | AI180: 1 | AJ180: 0.00605973575 | AK180: 0.0004789333333 | AL180: 0
A181: 17800 | B181: 0.9787234 | C181: 1 | D181: 0.9991405 | E181: 1 | F181: 1 | G181: 1 | H181: 0.9469026 | I181: 1 | J181: 1 | L181: 1 | M181: 1 | N181: 1 | O181: 1 | P181: 0.9956896 | Q181: 1 | R181: 1 | S181: 1 | T181: 1 | V181: 1 | W181: 1 | X181: 1 | Y181: 1 | Z181: 1 | AA181: 1 | AB181: 1 | AC181: 1 | AF181: 17800 | AG181: 0.9916407222 | AH181: 0.9995210667 | AI181: 1 | AJ181: 0.00605973575 | AK181: 0.0004789333333 | AL181: 0
A182: 17900 | B182: 0.9787234 | C182: 1 | D182: 0.9991405 | E182: 1 | F182: 1 | G182: 1 | H182: 0.9469026 | I182: 1 | J182: 1 | L182: 1 | M182: 1 | N182: 1 | O182: 1 | P182: 0.9956896 | Q182: 1 | R182: 1 | S182: 1 | T182: 1 | V182: 1 | W182: 1 | X182: 1 | Y182: 1 | Z182: 1 | AA182: 1 | AB182: 1 | AC182: 1 | AF182: 17900 | AG182: 0.9916407222 | AH182: 0.9995210667 | AI182: 1 | AJ182: 0.00605973575 | AK182: 0.0004789333333 | AL182: 0
A183: 18000 | B183: 0.9787234 | C183: 1 | D183: 0.9991405 | E183: 1 | F183: 1 | G183: 1 | H183: 0.9469026 | I183: 1 | J183: 1 | L183: 1 | M183: 1 | N183: 1 | O183: 1 | P183: 0.9956896 | Q183: 1 | R183: 1 | S183: 1 | T183: 1 | V183: 1 | W183: 1 | X183: 1 | Y183: 1 | Z183: 1 | AA183: 1 | AB183: 1 | AC183: 1 | AF183: 18000 | AG183: 0.9916407222 | AH183: 0.9995210667 | AI183: 1 | AJ183: 0.00605973575 | AK183: 0.0004789333333 | AL183: 0
A184: 18100 | B184: 0.9787234 | C184: 1 | D184: 0.9991405 | E184: 1 | F184: 1 | G184: 1 | H184: 0.9469026 | I184: 1 | J184: 1 | L184: 1 | M184: 1 | N184: 1 | O184: 1 | P184: 0.9956896 | Q184: 1 | R184: 1 | S184: 1 | T184: 1 | V184: 1 | W184: 1 | X184: 1 | Y184: 1 | Z184: 1 | AA184: 1 | AB184: 1 | AC184: 1 | AF184: 18100 | AG184: 0.9916407222 | AH184: 0.9995210667 | AI184: 1 | AJ184: 0.00605973575 | AK184: 0.0004789333333 | AL184: 0
A185: 18200 | B185: 0.9787234 | C185: 1 | D185: 0.9991405 | E185: 1 | F185: 1 | G185: 1 | H185: 0.9469026 | I185: 1 | J185: 1 | L185: 1 | M185: 1 | N185: 1 | O185: 1 | P185: 0.9956896 | Q185: 1 | R185: 1 | S185: 1 | T185: 1 | V185: 1 | W185: 1 | X185: 1 | Y185: 1 | Z185: 1 | AA185: 1 | AB185: 1 | AC185: 1 | AF185: 18200 | AG185: 0.9916407222 | AH185: 0.9995210667 | AI185: 1 | AJ185: 0.00605973575 | AK185: 0.0004789333333 | AL185: 0
A186: 18300 | B186: 0.9787234 | C186: 1 | D186: 0.9991405 | E186: 1 | F186: 1 | G186: 1 | H186: 0.9469026 | I186: 1 | J186: 1 | L186: 1 | M186: 1 | N186: 1 | O186: 1 | P186: 0.9956896 | Q186: 1 | R186: 1 | S186: 1 | T186: 1 | V186: 1 | W186: 1 | X186: 1 | Y186: 1 | Z186: 1 | AA186: 1 | AB186: 1 | AC186: 1 | AF186: 18300 | AG186: 0.9916407222 | AH186: 0.9995210667 | AI186: 1 | AJ186: 0.00605973575 | AK186: 0.0004789333333 | AL186: 0
A187: 18400 | B187: 0.9787234 | C187: 1 | D187: 0.9991405 | E187: 1 | F187: 1 | G187: 1 | H187: 0.9469026 | I187: 1 | J187: 1 | L187: 1 | M187: 1 | N187: 1 | O187: 1 | P187: 0.9956896 | Q187: 1 | R187: 1 | S187: 1 | T187: 1 | V187: 1 | W187: 1 | X187: 1 | Y187: 1 | Z187: 1 | AA187: 1 | AB187: 1 | AC187: 1 | AF187: 18400 | AG187: 0.9916407222 | AH187: 0.9995210667 | AI187: 1 | AJ187: 0.00605973575 | AK187: 0.0004789333333 | AL187: 0
A188: 18500 | B188: 0.9787234 | C188: 1 | D188: 0.9991405 | E188: 1 | F188: 1 | G188: 1 | H188: 0.9557522 | I188: 1 | J188: 1 | L188: 1 | M188: 1 | N188: 1 | O188: 1 | P188: 0.9956896 | Q188: 1 | R188: 1 | S188: 1 | T188: 1 | V188: 1 | W188: 1 | X188: 1 | Y188: 1 | Z188: 1 | AA188: 1 | AB188: 1 | AC188: 1 | AF188: 18500 | AG188: 0.9926240111 | AH188: 0.9995210667 | AI188: 1 | AJ188: 0.00516620071 | AK188: 0.0004789333333 | AL188: 0
A189: 18600 | B189: 0.9787234 | C189: 1 | D189: 0.9991405 | E189: 1 | F189: 1 | G189: 1 | H189: 0.9557522 | I189: 1 | J189: 1 | L189: 1 | M189: 1 | N189: 1 | O189: 1 | P189: 0.9956896 | Q189: 1 | R189: 1 | S189: 1 | T189: 1 | V189: 1 | W189: 1 | X189: 1 | Y189: 1 | Z189: 1 | AA189: 1 | AB189: 1 | AC189: 1 | AF189: 18600 | AG189: 0.9926240111 | AH189: 0.9995210667 | AI189: 1 | AJ189: 0.00516620071 | AK189: 0.0004789333333 | AL189: 0
A190: 18700 | B190: 0.9787234 | C190: 1 | D190: 0.9991405 | E190: 1 | F190: 1 | G190: 1 | H190: 0.9557522 | I190: 1 | J190: 1 | L190: 1 | M190: 1 | N190: 1 | O190: 1 | P190: 0.9956896 | Q190: 1 | R190: 1 | S190: 1 | T190: 1 | V190: 1 | W190: 1 | X190: 1 | Y190: 1 | Z190: 1 | AA190: 1 | AB190: 1 | AC190: 1 | AF190: 18700 | AG190: 0.9926240111 | AH190: 0.9995210667 | AI190: 1 | AJ190: 0.00516620071 | AK190: 0.0004789333333 | AL190: 0
A191: 18800 | B191: 0.9787234 | C191: 1 | D191: 0.9991405 | E191: 1 | F191: 1 | G191: 1 | H191: 0.9557522 | I191: 1 | J191: 1 | L191: 1 | M191: 1 | N191: 1 | O191: 1 | P191: 0.9956896 | Q191: 1 | R191: 1 | S191: 1 | T191: 1 | V191: 1 | W191: 1 | X191: 1 | Y191: 1 | Z191: 1 | AA191: 1 | AB191: 1 | AC191: 1 | AF191: 18800 | AG191: 0.9926240111 | AH191: 0.9995210667 | AI191: 1 | AJ191: 0.00516620071 | AK191: 0.0004789333333 | AL191: 0
A192: 18900 | B192: 0.9787234 | C192: 1 | D192: 0.9991405 | E192: 1 | F192: 1 | G192: 1 | H192: 0.9557522 | I192: 1 | J192: 1 | L192: 1 | M192: 1 | N192: 1 | O192: 1 | P192: 0.9956896 | Q192: 1 | R192: 1 | S192: 1 | T192: 1 | V192: 1 | W192: 1 | X192: 1 | Y192: 1 | Z192: 1 | AA192: 1 | AB192: 1 | AC192: 1 | AF192: 18900 | AG192: 0.9926240111 | AH192: 0.9995210667 | AI192: 1 | AJ192: 0.00516620071 | AK192: 0.0004789333333 | AL192: 0
A193: 19000 | B193: 0.9787234 | C193: 1 | D193: 0.9991405 | E193: 1 | F193: 1 | G193: 1 | H193: 0.9646018 | I193: 1 | J193: 1 | L193: 1 | M193: 1 | N193: 1 | O193: 1 | P193: 1 | Q193: 1 | R193: 1 | S193: 1 | T193: 1 | V193: 1 | W193: 1 | X193: 1 | Y193: 1 | Z193: 1 | AA193: 1 | AB193: 1 | AC193: 1 | AF193: 19000 | AG193: 0.9936073 | AH193: 1 | AI193: 1 | AJ193: 0.004311910977 | AK193: 0 | AL193: 0
A194: 19100 | B194: 0.9787234 | C194: 1 | D194: 0.9991405 | E194: 1 | F194: 1 | G194: 1 | H194: 0.9646018 | I194: 1 | J194: 1 | L194: 1 | M194: 1 | N194: 1 | O194: 1 | P194: 1 | Q194: 1 | R194: 1 | S194: 1 | T194: 1 | V194: 1 | W194: 1 | X194: 1 | Y194: 1 | Z194: 1 | AA194: 1 | AB194: 1 | AC194: 1 | AF194: 19100 | AG194: 0.9936073 | AH194: 1 | AI194: 1 | AJ194: 0.004311910977 | AK194: 0 | AL194: 0
A195: 19200 | B195: 0.9787234 | C195: 1 | D195: 0.9991405 | E195: 1 | F195: 1 | G195: 1 | H195: 0.9646018 | I195: 1 | J195: 1 | L195: 1 | M195: 1 | N195: 1 | O195: 1 | P195: 1 | Q195: 1 | R195: 1 | S195: 1 | T195: 1 | V195: 1 | W195: 1 | X195: 1 | Y195: 1 | Z195: 1 | AA195: 1 | AB195: 1 | AC195: 1 | AF195: 19200 | AG195: =AVERAGE(B195:J195) -> 0.9936073 | AH195: =AVERAGE(L195:T195) -> 1 | AI195: =AVERAGE(V195:AD195) -> 1 | AJ195: 0.004311910977 | AK195: 0 | AL195: 0
A196: 19300 | B196: 0.9787234 | C196: 1 | D196: 0.9991405 | E196: 1 | F196: 1 | G196: 1 | H196: 0.9646018 | I196: 1 | J196: 1 | L196: 1 | M196: 1 | N196: 1 | O196: 1 | P196: 1 | Q196: 1 | R196: 1 | S196: 1 | T196: 1 | V196: 1 | W196: 1 | X196: 1 | Y196: 1 | Z196: 1 | AA196: 1 | AB196: 1 | AC196: 1 | AF196: =A196 -> 19300 | AG196: 0.9936073 | AH196: 1 | AI196: 1 | AJ196: =STDEV(B196:J196)/SQRT(COUNT(B196:J196)) -> 0.004311910977 | AK196: =STDEV(L196:T196)/SQRT(COUNT(L196:T196)) -> 0 | AL196: =STDEV(V196:AD196)/SQRT(COUNT(V196:AD196)) -> 0
A197: 19400 | B197: 0.9787234 | C197: 1 | D197: 0.9991405 | E197: 1 | F197: 1 | G197: 1 | H197: 0.9646018 | I197: 1 | J197: 1 | L197: 1 | M197: 1 | N197: 1 | O197: 1 | P197: 1 | Q197: 1 | R197: 1 | S197: 1 | T197: 1 | V197: 1 | W197: 1 | X197: 1 | Y197: 1 | Z197: 1 | AA197: 1 | AB197: 1 | AC197: 1 | AF197: 19400 | AG197: 0.9936073 | AH197: 1 | AI197: 1 | AJ197: 0.004311910977 | AK197: 0 | AL197: 0
A198: 19500 | B198: 0.9787234 | C198: 1 | D198: 0.9991405 | E198: 1 | F198: 1 | G198: 1 | H198: 0.9646018 | I198: 1 | J198: 1 | L198: 1 | M198: 1 | N198: 1 | O198: 1 | P198: 1 | Q198: 1 | R198: 1 | S198: 1 | T198: 1 | V198: 1 | W198: 1 | X198: 1 | Y198: 1 | Z198: 1 | AA198: 1 | AB198: 1 | AC198: 1 | AF198: 19500 | AG198: 0.9936073 | AH198: 1 | AI198: 1 | AJ198: 0.004311910977 | AK198: 0 | AL198: 0
A199: 19600 | B199: 0.9787234 | C199: 1 | D199: 0.9991405 | E199: 1 | F199: 1 | G199: 1 | H199: 0.9646018 | I199: 1 | J199: 1 | L199: 1 | M199: 1 | N199: 1 | O199: 1 | P199: 1 | Q199: 1 | R199: 1 | S199: 1 | T199: 1 | V199: 1 | W199: 1 | X199: 1 | Y199: 1 | Z199: 1 | AA199: 1 | AB199: 1 | AC199: 1 | AF199: 19600 | AG199: 0.9936073 | AH199: 1 | AI199: 1 | AJ199: 0.004311910977 | AK199: 0 | AL199: 0
A200: 19700 | B200: 0.9787234 | C200: 1 | D200: 0.9991405 | E200: 1 | F200: 1 | G200: 1 | H200: 0.9646018 | I200: 1 | J200: 1 | L200: 1 | M200: 1 | N200: 1 | O200: 1 | P200: 1 | Q200: 1 | R200: 1 | S200: 1 | T200: 1 | V200: 1 | W200: 1 | X200: 1 | Y200: 1 | Z200: 1 | AA200: 1 | AB200: 1 | AC200: 1 | AF200: 19700 | AG200: 0.9936073 | AH200: 1 | AI200: 1 | AJ200: 0.004311910977 | AK200: 0 | AL200: 0
... 2050 more rows

Sheet Suppl.Fig7c right
A1: Cumulative sIPSCs Amp
A2: pA | B2: 1 | C2: 2 | D2: 3 | E2: 4 | F2: 5 | G2: 6 | H2: 7 | I2: 8 | J2: 9 | L2: 1 | M2: 2 | N2: 3 | O2: 4 | P2: 5 | Q2: 6 | R2: 7 | S2: 8 | T2: 9 | V2: 1 | W2: 2 | X2: 3 | Y2: 4 | Z2: 5 | AA2: 6 | AB2: 7 | AC2: 8 | AG2: CTRL | AH2: Ox-A | AI2: Wash | AJ2: SE CTRL | AK2: SE Ox-A | AL2: SE Wash
A3: 0 | B3: 0 | C3: 0 | D3: 0 | E3: 0 | F3: 0 | G3: 0 | H3: 0 | I3: 0 | J3: 0 | L3: 0 | M3: 0 | N3: 0 | O3: 0 | P3: 0 | Q3: 0 | R3: 0 | S3: 0 | T3: 0 | V3: 0 | W3: 0 | X3: 0 | Y3: 0 | Z3: 0 | AA3: 0 | AB3: 0 | AC3: 0 | AF3: =A3 -> 0 | AG3: =AVERAGE(B3:J3) -> 0 | AH3: =AVERAGE(L3:T3) -> 0 | AI3: =AVERAGE(V3:AD3) -> 0 | AJ3: =STDEV(B3:J3)/SQRT(COUNT(B3:J3)) -> 0 | AK3: =STDEV(L3:T3)/SQRT(COUNT(L3:T3)) -> 0 | AL3: =STDEV(V3:AD3)/SQRT(COUNT(V3:AD3)) -> 0
A4: 0.25 | B4: 0 | C4: 0 | D4: 0 | E4: 0 | F4: 0 | G4: 0 | H4: 0 | I4: 0 | J4: 0 | L4: 0 | M4: 0 | N4: 0 | O4: 0 | P4: 0 | Q4: 0 | R4: 0 | S4: 0 | T4: 0 | V4: 0 | W4: 0 | X4: 0 | Y4: 0 | Z4: 0 | AA4: 0 | AB4: 0 | AC4: 0 | AF4: 0.25 | AG4: 0 | AH4: 0 | AI4: 0 | AJ4: 0 | AK4: 0 | AL4: 0
A5: 0.5 | B5: 0 | C5: 0 | D5: 0 | E5: 0 | F5: 0 | G5: 0 | H5: 0 | I5: 0 | J5: 0 | L5: 0 | M5: 0 | N5: 0 | O5: 0 | P5: 0 | Q5: 0 | R5: 0 | S5: 0 | T5: 0 | V5: 0 | W5: 0 | X5: 0 | Y5: 0 | Z5: 0 | AA5: 0 | AB5: 0 | AC5: 0 | AF5: 0.5 | AG5: 0 | AH5: 0 | AI5: 0 | AJ5: 0 | AK5: 0 | AL5: 0
A6: 0.75 | B6: 0 | C6: 0 | D6: 0 | E6: 0 | F6: 0 | G6: 0 | H6: 0 | I6: 0 | J6: 0 | L6: 0 | M6: 0 | N6: 0 | O6: 0 | P6: 0 | Q6: 0 | R6: 0 | S6: 0 | T6: 0 | V6: 0 | W6: 0 | X6: 0 | Y6: 0 | Z6: 0 | AA6: 0 | AB6: 0 | AC6: 0 | AF6: 0.75 | AG6: 0 | AH6: 0 | AI6: 0 | AJ6: 0 | AK6: 0 | AL6: 0
A7: 1 | B7: 0 | C7: 0 | D7: 0 | E7: 0 | F7: 0 | G7: 0 | H7: 0 | I7: 0 | J7: 0 | L7: 0 | M7: 0 | N7: 0 | O7: 0 | P7: 0 | Q7: 0 | R7: 0 | S7: 0 | T7: 0 | V7: 0 | W7: 0 | X7: 0 | Y7: 0 | Z7: 0 | AA7: 0 | AB7: 0 | AC7: 0 | AF7: 1 | AG7: 0 | AH7: 0 | AI7: 0 | AJ7: 0 | AK7: 0 | AL7: 0
A8: 1.25 | B8: 0 | C8: 0 | D8: 0 | E8: 0 | F8: 0 | G8: 0 | H8: 0 | I8: 0 | J8: 0 | L8: 0 | M8: 0 | N8: 0 | O8: 0 | P8: 0 | Q8: 0 | R8: 0 | S8: 0 | T8: 0 | V8: 0 | W8: 0 | X8: 0 | Y8: 0 | Z8: 0 | AA8: 0 | AB8: 0 | AC8: 0 | AF8: 1.25 | AG8: 0 | AH8: 0 | AI8: 0 | AJ8: 0 | AK8: 0 | AL8: 0
A9: 1.5 | B9: 0 | C9: 0 | D9: 0 | E9: 0 | F9: 0 | G9: 0 | H9: 0 | I9: 0 | J9: 0 | L9: 0 | M9: 0 | N9: 0 | O9: 0 | P9: 0 | Q9: 0 | R9: 0 | S9: 0 | T9: 0 | V9: 0 | W9: 0 | X9: 0 | Y9: 0 | Z9: 0 | AA9: 0 | AB9: 0 | AC9: 0 | AF9: 1.5 | AG9: 0 | AH9: 0 | AI9: 0 | AJ9: 0 | AK9: 0 | AL9: 0
A10: 1.75 | B10: 0 | C10: 0 | D10: 0 | E10: 0 | F10: 0 | G10: 0 | H10: 0 | I10: 0 | J10: 0 | L10: 0 | M10: 0 | N10: 0 | O10: 0 | P10: 0 | Q10: 0 | R10: 0 | S10: 0 | T10: 0 | V10: 0 | W10: 0 | X10: 0 | Y10: 0 | Z10: 0 | AA10: 0 | AB10: 0 | AC10: 0 | AF10: 1.75 | AG10: 0 | AH10: 0 | AI10: 0 | AJ10: 0 | AK10: 0 | AL10: 0
A11: 2 | B11: 0 | C11: 0 | D11: 0 | E11: 0 | F11: 0 | G11: 0 | H11: 0 | I11: 0 | J11: 0 | L11: 0 | M11: 0 | N11: 0 | O11: 0 | P11: 0 | Q11: 0 | R11: 0 | S11: 0 | T11: 0 | V11: 0 | W11: 0 | X11: 0 | Y11: 0 | Z11: 0 | AA11: 0 | AB11: 0 | AC11: 0 | AF11: 2 | AG11: 0 | AH11: 0 | AI11: 0 | AJ11: 0 | AK11: 0 | AL11: 0
A12: 2.25 | B12: 0 | C12: 0 | D12: 0 | E12: 0 | F12: 0 | G12: 0 | H12: 0 | I12: 0 | J12: 0 | L12: 0 | M12: 0 | N12: 0 | O12: 0 | P12: 0 | Q12: 0 | R12: 0 | S12: 0 | T12: 0 | V12: 0 | W12: 0 | X12: 0 | Y12: 0 | Z12: 0 | AA12: 0 | AB12: 0 | AC12: 0 | AF12: 2.25 | AG12: 0 | AH12: 0 | AI12: 0 | AJ12: 0 | AK12: 0 | AL12: 0
A13: 2.5 | B13: 0 | C13: 0 | D13: 0 | E13: 0 | F13: 0 | G13: 0 | H13: 0 | I13: 0 | J13: 0 | L13: 0 | M13: 0 | N13: 0 | O13: 0 | P13: 0 | Q13: 0 | R13: 0 | S13: 0 | T13: 0 | V13: 0 | W13: 0 | X13: 0 | Y13: 0 | Z13: 0 | AA13: 0 | AB13: 0 | AC13: 0 | AF13: 2.5 | AG13: 0 | AH13: 0 | AI13: 0 | AJ13: 0 | AK13: 0 | AL13: 0
A14: 2.75 | B14: 0 | C14: 0 | D14: 0 | E14: 0 | F14: 0 | G14: 0 | H14: 0.4424779 | I14: 0 | J14: 0 | L14: 0 | M14: 0 | N14: 0 | O14: 0 | P14: 0 | Q14: 0 | R14: 0.1825397 | S14: 0 | T14: 0 | V14: 0 | W14: 0 | X14: 0 | Y14: 0 | Z14: 0 | AA14: 0 | AB14: 0.2317073 | AC14: 0 | AF14: 2.75 | AG14: 0.04916421111 | AH14: 0.02028218889 | AI14: 0.0289634125 | AJ14: 0.04916421111 | AK14: 0.02028218889 | AL14: 0.0289634125
A15: 3 | B15: 0 | C15: 0 | D15: 0 | E15: 0 | F15: 0 | G15: 0 | H15: 0.6106195 | I15: 0 | J15: 0 | L15: 0 | M15: 0 | N15: 0 | O15: 0 | P15: 0 | Q15: 0 | R15: 0.2539683 | S15: 0 | T15: 0 | V15: 0 | W15: 0 | X15: 0 | Y15: 0 | Z15: 0 | AA15: 0 | AB15: 0.3170732 | AC15: 0 | AF15: 3 | AG15: 0.06784661111 | AH15: 0.0282187 | AI15: 0.03963415 | AJ15: 0.06784661111 | AK15: 0.0282187 | AL15: 0.03963415
A16: 3.25 | B16: 0 | C16: 0 | D16: 0 | E16: 0 | F16: 0 | G16: 0 | H16: 0.6814159 | I16: 0 | J16: 0 | L16: 0 | M16: 0 | N16: 0 | O16: 0 | P16: 0 | Q16: 0 | R16: 0.3095238 | S16: 0 | T16: 0 | V16: 0 | W16: 0 | X16: 0 | Y16: 0 | Z16: 0 | AA16: 0 | AB16: 0.3170732 | AC16: 0 | AF16: 3.25 | AG16: 0.07571287778 | AH16: 0.03439153333 | AI16: 0.03963415 | AJ16: 0.07571287778 | AK16: 0.03439153333 | AL16: 0.03963415
A17: 3.5 | B17: 0 | C17: 0 | D17: 0 | E17: 0 | F17: 0 | G17: 0 | H17: 0.7168142 | I17: 0 | J17: 0 | L17: 0 | M17: 0 | N17: 0 | O17: 0 | P17: 0 | Q17: 0 | R17: 0.3492064 | S17: 0 | T17: 0 | V17: 0 | W17: 0 | X17: 0 | Y17: 0 | Z17: 0 | AA17: 0 | AB17: 0.3170732 | AC17: 0 | AF17: 3.5 | AG17: 0.07964602222 | AH17: 0.03880071111 | AI17: 0.03963415 | AJ17: 0.07964602222 | AK17: 0.03880071111 | AL17: 0.03963415
A18: 3.75 | B18: 0 | C18: 0 | D18: 0 | E18: 0 | F18: 0 | G18: 0 | H18: 0.7876106 | I18: 0 | J18: 0 | L18: 0 | M18: 0 | N18: 0 | O18: 0 | P18: 0 | Q18: 0 | R18: 0.3809524 | S18: 0 | T18: 0 | V18: 0 | W18: 0 | X18: 0 | Y18: 0 | Z18: 0 | AA18: 0 | AB18: 0.3536585 | AC18: 0 | AF18: 3.75 | AG18: 0.08751228889 | AH18: 0.04232804444 | AI18: 0.0442073125 | AJ18: 0.08751228889 | AK18: 0.04232804444 | AL18: 0.0442073125
A19: 4 | B19: 0 | C19: 0 | D19: 0 | E19: 0 | F19: 0 | G19: 0 | H19: 0.8318584 | I19: 0 | J19: 0 | L19: 0 | M19: 0 | N19: 0 | O19: 0 | P19: 0 | Q19: 0 | R19: 0.3888889 | S19: 0 | T19: 0 | V19: 0 | W19: 0 | X19: 0 | Y19: 0 | Z19: 0 | AA19: 0 | AB19: 0.3658537 | AC19: 0 | AF19: 4 | AG19: 0.09242871111 | AH19: 0.04320987778 | AI19: 0.0457317125 | AJ19: 0.09242871111 | AK19: 0.04320987778 | AL19: 0.0457317125
A20: 4.25 | B20: 0 | C20: 0 | D20: 5.71E-02 | E20: 6.32E-02 | F20: 0 | G20: 0 | H20: 0.8318584 | I20: 0 | J20: 0 | L20: 0 | M20: 0 | N20: 0.072 | O20: 0.031578945 | P20: 0 | Q20: 0 | R20: 0.4047619 | S20: 0 | T20: 0 | V20: 0 | W20: 0 | X20: 3.82E-02 | Y20: 0.04 | Z20: 0 | AA20: 0 | AB20: 0.3658537 | AC20: 0 | AF20: 4.25 | AG20: 0.1057954611 | AH20: 0.05648231611 | AI20: 0.0555087825 | AJ20: 0.09117356059 | AK20: 0.04430029426 | AL20: 0.04477316555
A21: 4.5 | B21: 0 | C21: 0 | D21: 0.0952381 | E21: 8.42E-02 | F21: 0 | G21: 0 | H21: 0.8318584 | I21: 0 | J21: 0 | L21: 0 | M21: 0 | N21: 0.128 | O21: 0.042105265 | P21: 0 | Q21: 0 | R21: 0.4206349 | S21: 0 | T21: 0 | V21: 0 | W21: 0 | X21: 8.92E-02 | Y21: 0.1028571 | Z21: 0 | AA21: 0 | AB21: 0.3780488 | AC21: 0 | AF21: 4.5 | AG21: 0.1123674478 | AH21: 0.06563779611 | AI21: 0.071259735 | AJ21: 0.0908686565 | AK21: 0.04659454098 | AL21: 0.04645053467
A22: 4.75 | B22: 8.51E-02 | C22: 0 | D22: 0.1428571 | E22: 0.1368421 | F22: 0 | G22: 0 | H22: 0.8318584 | I22: 0 | J22: 0 | L22: 9.04E-02 | M22: 0 | N22: 0.192 | O22: 0.06842105 | P22: 0 | Q22: 0 | R22: 0.4206349 | S22: 0 | T22: 0 | V22: 0.1320755 | W22: 0 | X22: 0.1082803 | Y22: 0.12 | Z22: 0 | AA22: 0 | AB22: 0.402439 | AC22: 0 | AF22: 4.75 | AG22: 0.1329626644 | AH22: 0.08571304444 | AI22: 0.09534935 | AJ22: 0.08969499039 | AK22: 0.04721755455 | AL22: 0.04869616467
A23: 5 | B23: 0.1914894 | C23: 0 | D23: 0.2095238 | E23: 0.1789474 | F23: 0 | G23: 0 | H23: 0.8495575 | I23: 0 | J23: 0 | L23: 0.1746988 | M23: 0 | N23: 0.264 | O23: 0.0894737 | P23: 0 | Q23: 0 | R23: 0.4365079 | S23: 0 | T23: 0 | V23: 0.2169811 | W23: 0 | X23: 0.1656051 | Y23: 0.1542857 | Z23: 0 | AA23: 0 | AB23: 0.402439 | AC23: 0 | AF23: 5 | AG23: 0.1588353444 | AH23: 0.1071867111 | AI23: 0.1174138625 | AJ23: 0.09183927167 | AK23: 0.05208959177 | AL23: 0.0517512857
A24: 5.25 | B24: 0.287234 | C24: 0 | D24: 0.2285714 | E24: 0.1894737 | F24: 0 | G24: 0 | H24: 0.8495575 | I24: 2.73E-02 | J24: 0 | L24: 0.246988 | M24: 0 | N24: 0.288 | O24: 0.09473685 | P24: 0 | Q24: 0 | R24: 0.452381 | S24: 5.15E-02 | T24: 0 | V24: 0.3396226 | W24: 0 | X24: 0.2356688 | Y24: 0.16 | Z24: 0 | AA24: 0 | AB24: 0.402439 | AC24: 6.86E-02 | AF24: 5.25 | AG24: 0.1757899256 | AH24: 0.1259529378 | AI24: 0.1507947313 | AJ24: 0.09242274589 | AK24: 0.05495486164 | AL24: 0.05688926612
A25: 5.5 | B25: 0.3297872 | C25: 0 | D25: 0.2761905 | E25: 0.2421053 | F25: 0 | G25: 0 | H25: 0.8495575 | I25: 4.55E-02 | J25: 0 | L25: 0.313253 | M25: 0 | N25: 0.32 | O25: 0.12105265 | P25: 0 | Q25: 0 | R25: 0.4603175 | S25: 0.1029412 | T25: 0 | V25: 0.4339623 | W25: 0 | X25: 0.2802548 | Y25: 0.1942857 | Z25: 0 | AA25: 0 | AB25: 0.4268293 | AC25: 0.0882353 | AF25: 5.5 | AG25: 0.1936772278 | AH25: 0.1463960389 | AI25: 0.177945925 | AJ25: 0.09353193236 | AK25: 0.0583076224 | AL25: 0.06563748734
A26: 5.75 | B26: 0.4148936 | C26: 0 | D26: 0.2952381 | E26: 0.2421053 | F26: 0 | G26: 0 | H26: 0.8495575 | I26: 9.09E-02 | J26: 0 | L26: 0.3674699 | M26: 0 | N26: 0.352 | O26: 0.12105265 | P26: 0 | Q26: 0 | R26: 0.4603175 | S26: 0.1323529 | T26: 0 | V26: 0.4811321 | W26: 0 | X26: 0.3184713 | Y26: 0.2457143 | Z26: 0 | AA26: 0 | AB26: 0.4512195 | AC26: 0.0882353 | AF26: 5.75 | AG26: 0.2103003989 | AH26: 0.1592436611 | AI26: 0.1980965625 | AJ26: 0.09500681992 | AK26: 0.06177630681 | AL26: 0.07205331664
A27: 6 | B27: 0.4680851 | C27: 0 | D27: 0.3238095 | E27: 0.2736842 | F27: 0 | G27: 0 | H27: 0.8495575 | I27: 0.1181818 | J27: 0 | L27: 0.4216867 | M27: 0 | N27: 0.4 | O27: 0.1368421 | P27: 0 | Q27: 0 | R27: 0.468254 | S27: 0.1397059 | T27: 0 | V27: 0.5471698 | W27: 0 | X27: 0.3566879 | Y27: 0.2628571 | Z27: 0 | AA27: 0 | AB27: 0.4756097 | AC27: 0.1176471 | AF27: 6 | AG27: 0.2259242333 | AH27: 0.1740543 | AI27: 0.21999645 | AJ27: 0.09683880831 | AK27: 0.06694430585 | AL27: 0.07889559396
A28: 6.25 | B28: 0.5425532 | C28: 0 | D28: 0.3428572 | E28: 0.3263158 | F28: 5.08E-02 | G28: 0 | H28: 0.8495575 | I28: 0.1363636 | J28: 0 | L28: 0.4759036 | M28: 0 | N28: 0.44 | O28: 1.91E-01 | P28: 1.72E-02 | Q28: 0 | R28: 0.484127 | S28: 0.1470588 | T28: 0 | V28: 0.5754717 | W28: 0 | X28: 0.3694268 | Y28: 0.3085714 | Z28: 0 | AA28: 0 | AB28: 0.5 | AC28: 0.1470588 | AF28: 6.25 | AG28: 0.2498327511 | AH28: 0.19506969 | AI28: 0.2375660875 | AJ28: 0.09857159309 | AK28: 0.07173556891 | AL28: 0.08269838379
A29: 6.5 | B29: 0.5744681 | C29: 0 | D29: 0.3714286 | E29: 0.3578947 | F29: 8.47E-02 | G29: 0 | H29: 0.8672566 | I29: 0.1545455 | J29: 0 | L29: 0.5301205 | M29: 0 | N29: 0.456 | O29: 0.2417179 | P29: 4.74E-02 | Q29: 0 | R29: 0.515873 | S29: 0.1544118 | T29: 2.66E-02 | V29: 0.6037736 | W29: 0 | X29: 0.3821656 | Y29: 0.3257143 | Z29: 0 | AA29: 0 | AB29: 0.5 | AC29: 0.1568628 | AF29: 6.5 | AG29: 0.2678154733 | AH29: 0.21912586 | AI29: 0.2460645375 | AJ29: 0.1009493434 | AK29: 0.07529288761 | AL29: 0.08524196613
A30: 6.75 | B30: 0.6489362 | C30: 0.0775862 | D30: 0.4 | E30: 0.4 | F30: 0.161017 | G30: 0 | H30: 0.8672566 | I30: 0.1727273 | J30: 0 | L30: 0.5722892 | M30: 7.41E-02 | N30: 0.496 | O30: 0.3125541 | P30: 9.05E-02 | Q30: 0 | R30: 0.5238096 | S30: 0.1911765 | T30: 5.32E-02 | V30: 0.6320755 | W30: 0.03 | X30: 0.4012739 | Y30: 0.3485714 | Z30: 3.51E-02 | AA30: 0 | AB30: 0.5 | AC30: 0.2156863 | AF30: 6.75 | AG30: 0.3030581444 | AH30: 0.2570680222 | AI30: 0.2703368525 | AJ30: 0.1005840489 | AK30: 0.07489807016 | AL30: 0.08409580198
A31: 7 | B31: 0.6702127 | C31: 0.1465517 | D31: 0.4380952 | E31: 0.4421053 | F31: 0.1949152 | G31: 0 | H31: 0.8672566 | I31: 0.1909091 | J31: 0 | L31: 0.6024097 | M31: 0.1481481 | N31: 0.512 | O31: 0.3639098 | P31: 0.125 | Q31: 0 | R31: 0.5238096 | S31: 0.1911765 | T31: 6.91E-02 | V31: 0.6415094 | W31: 0.12999996 | X31: 0.4522293 | Y31: 0.3771428 | Z31: 9.65E-02 | AA31: 0 | AB31: 0.5243902 | AC31: 0.254902 | AF31: 7 | AG31: 0.3277828667 | AH31: 0.2817336267 | AI31: 0.3095831112 | AJ31: 0.09983630528 | AK31: 0.07419818135 | AL31: 0.07992400163
A32: 7.25 | B32: 0.7127659 | C32: 0.1982759 | D32: 0.4571429 | E32: 0.4631579 | F32: 0.220339 | G32: 0 | H32: 0.8672566 | I32: 0.2 | J32: 6.21E-02 | L32: 0.626506 | M32: 0.1975309 | N32: 0.52 | O32: 0.43720665 | P32: 0.1853448 | Q32: 0 | R32: 0.531746 | S32: 0.2132353 | T32: 0.1010638 | V32: 0.6603774 | W32: 0.15999996 | X32: 0.4904459 | Y32: 0.4057143 | Z32: 0.1140351 | AA32: 0 | AB32: 0.5243902 | AC32: 0.2647059 | AF32: 7.25 | AG32: 0.3534452411 | AH32: 0.3125148278 | AI32: 0.327458595 | AJ32: 0.09797019304 | AK32: 0.07330282597 | AL32: 0.08096128038
A33: 7.5 | B33: 0.7127659 | C33: 0.2758621 | D33: 0.4857143 | E33: 0.4631579 | F33: 0.2542373 | G33: 0 | H33: 0.8672566 | I33: 0.2 | J33: 0.1172414 | L33: 0.6746988 | M33: 0.2592593 | N33: 0.552 | O33: 0.4869902 | P33: 0.1939655 | Q33: 0 | R33: 0.5396826 | S33: 0.2132353 | T33: 0.1117021 | V33: 0.6698113 | W33: 0.24 | X33: 0.4968153 | Y33: 0.4457143 | Z33: 0.1403509 | AA33: 0 | AB33: 0.5365854 | AC33: 0.3137255 | AF33: 7.5 | AG33: 0.3751372778 | AH33: 0.3368370889 | AI33: 0.3553753375 | AJ33: 0.09417279583 | AK33: 0.07727933338 | AL33: 0.07876805565
A34: 7.75 | B34: 0.7765958 | C34: 0.3103448 | D34: 0.5142857 | E34: 0.4736842 | F34: 0.2881356 | G34: 0 | H34: 0.8672566 | I34: 0.2181818 | J34: 0.1310345 | L34: 0.6987952 | M34: 0.3148148 | N34: 0.568 | O34: 0.5290499 | P34: 0.2112069 | Q34: 0 | R34: 0.547619 | S34: 0.2352941 | T34: 0.1382979 | V34: 0.7075472 | W34: 0.24999996 | X34: 0.5159236 | Y34: 0.5085714 | Z34: 0.1491228 | AA34: 0 | AB34: 0.5731707 | AC34: 0.3333333 | AF34: 7.75 | AG34: 0.3977243333 | AH34: 0.3603419778 | AI34: 0.37970862 | AJ34: 0.09607210099 | AK34: 0.07820098433 | AL34: 0.08413311212
A35: 8 | B35: 0.8510638 | C35: 0.3706897 | D35: 0.552381 | E35: 0.5157894 | F35: 0.3135593 | G35: 0 | H35: 0.8672566 | I35: 0.2727273 | J35: 0.1793104 | L35: 0.7409639 | M35: 0.3888889 | N35: 0.584 | O35: 0.58257 | P35: 0.2672414 | Q35: 0 | R35: 0.5555556 | S35: 0.2720588 | T35: 1.76E-01 | V35: 0.7358491 | W35: 0.33999996 | X35: 0.5477707 | Y35: 0.56 | Z35: 0.1754386 | AA35: 0 | AB35: 0.5853658 | AC35: 0.372549 | AF35: 8 | AG35: 0.4358641667 | AH35: 0.3963122778 | AI35: 0.414621645 | AJ35: 0.09718764912 | AK35: 0.07923440243 | AL35: 0.08532106612
A36: 8.25 | B36: 0.8510638 | C36: 0.3965517 | D36: 0.552381 | E36: 0.5473684 | F36: 0.3559322 | G36: 9.43E-03 | H36: 0.8672566 | I36: 0.2909091 | J36: 0.2206897 | L36: 0.7831326 | M36: 0.4506173 | N36: 0.6 | O36: 0.62649805 | P36: 0.3060345 | Q36: 1.41E-02 | R36: 0.5714286 | S36: 0.3014706 | T36: 2.18E-01 | V36: 0.7735849 | W36: 0.39999996 | X36: 0.566879 | Y36: 0.5942857 | Z36: 0.1754386 | AA36: 4.12E-02 | AB36: 0.5853658 | AC36: 0.3823529 | AF36: 8.25 | AG36: 0.454620718 | AH36: 0.43015014 | AI36: 0.43988239 | AJ36: 0.09416464532 | AK36: 0.08014066691 | AL36: 0.08517920122
A37: 8.5 | B37: 0.8723404 | C37: 0.4310345 | D37: 0.5714286 | E37: 0.5578948 | F37: 0.3898305 | G37: 3.77E-02 | H37: 0.8672566 | I37: 0.3272727 | J37: 0.2344828 | L37: 0.813253 | M37: 0.4753087 | N37: 0.608 | O37: 0.6534063 | P37: 0.3362069 | Q37: 3.10E-02 | R37: 0.5793651 | S37: 0.3308823 | T37: 2.23E-01 | V37: 0.7830189 | W37: 0.42 | X37: 0.5923567 | Y37: 0.6285715 | Z37: 0.1929825 | AA37: 7.82E-02 | AB37: 0.5853658 | AC37: 0.4019608 | AF37: 8.5 | AG37: 0.4765863056 | AH37: 0.45009028 | AI37: 0.4603056875 | AJ37: 0.09188992763 | AK37: 0.08077084849 | AL37: 0.08324211646
A38: 8.75 | B38: 0.893617 | C38: 0.4741379 | D38: 0.5904762 | E38: 0.5578948 | F38: 0.4067796 | G38: 5.19E-02 | H38: 0.8672566 | I38: 0.3636364 | J38: 0.2482759 | L38: 0.8373494 | M38: 0.5246913 | N38: 0.632 | O38: 0.6793803 | P38: 0.387931 | Q38: 5.07E-02 | R38: 0.5952381 | S38: 0.3382353 | T38: 2.34E-01 | V38: 0.8113208 | W38: 0.48999996 | X38: 0.5987261 | Y38: 0.6571429 | Z38: 0.2105263 | AA38: 1.15E-01 | AB38: 0.597561 | AC38: 0.4117647 | AF38: 8.75 | AG38: 0.4948845767 | AH38: 0.4755080256 | AI38: 0.4865335075 | AJ38: 0.0907712624 | AK38: 0.08156579322 | AL38: 0.08228435495
A39: 9 | B39: 0.9148936 | C39: 0.5086207 | D39: 0.5904762 | E39: 0.5578948 | F39: 0.4322034 | G39: 7.08E-02 | H39: 0.8761062 | I39: 0.3818182 | J39: 0.2551724 | L39: 0.8554217 | M39: 0.5617284 | N39: 0.64 | O39: 0.7053543 | P39: 0.4353448 | Q39: 7.04E-02 | R39: 0.5952381 | S39: 0.3602941 | T39: 0.2712766 | V39: 0.8301887 | W39: 0.51 | X39: 0.611465 | Y39: 0.68 | Z39: 0.245614 | AA39: 1.52E-01 | AB39: 0.597561 | AC39: 0.4705882 | AF39: 9 | AG39: 0.5097711344 | AH39: 0.4994533933 | AI39: 0.5122100375 | AJ39: 0.0903004825 | AK39: 0.08006266614 | AL39: 0.07891819073
A40: 9.25 | B40: 0.9255319 | C40: 0.5689655 | D40: 0.6 | E40: 0.5684211 | F40: 0.4576271 | G40: 0.0990566 | H40: 0.8761062 | I40: 0.4 | J40: 0.2965517 | L40: 0.8614458 | M40: 0.5925926 | N40: 0.656 | O40: 0.7322625 | P40: 0.487069 | Q40: 8.73E-02 | R40: 0.6190476 | S40: 0.3676471 | T40: 0.2712766 | V40: 0.8301887 | W40: 0.54 | X40: 0.6369427 | Y40: 0.7028571 | Z40: 0.2631579 | AA40: 1.77E-01 | AB40: 0.6097561 | AC40: 0.4705882 | AF40: 9.25 | AG40: 0.5324733444 | AH40: 0.5194072378 | AI40: 0.528805675 | AJ40: 0.08711602889 | AK40: 0.08067263348 | AL40: 0.07760415237
A41: 9.5 | B41: 0.9468085 | C41: 0.6206896 | D41: 0.6285715 | E41: 0.5789474 | F41: 0.4576271 | G41: 0.1320755 | H41: 0.8849558 | I41: 0.4 | J41: 0.3172414 | L41: 0.8795181 | M41: 0.6172839 | N41: 0.696 | O41: 0.74401915 | P41: 0.5043104 | Q41: 9.86E-02 | R41: 0.6269841 | S41: 0.4044118 | T41: 0.2978723 | V41: 0.8584906 | W41: 0.54 | X41: 0.6369427 | Y41: 0.7314286 | Z41: 0.2719298 | AA41: 2.06E-01 | AB41: 0.6219512 | AC41: 0.509804 | AF41: 9.5 | AG41: 0.5518796444 | AH41: 0.5409990333 | AI41: 0.547038525 | AJ41: 0.08672267697 | AK41: 0.08061289155 | AL41: 0.07772291328
A42: 9.75 | B42: 0.9574468 | C42: 0.6551724 | D42: 0.6571429 | E42: 0.6210526 | F42: 0.4661017 | G42: 0.1556604 | H42: 0.8849558 | I42: 0.4181818 | J42: 0.3310345 | L42: 0.8855422 | M42: 0.6296296 | N42: 0.712 | O42: 0.77156525 | P42: 0.5258621 | Q42: 0.1126761 | R42: 0.6349207 | S42: 0.4338235 | T42: 0.3191489 | V42: 0.8773585 | W42: 0.57999996 | X42: 0.6433121 | Y42: 0.7485715 | Z42: 0.3157895 | AA42: 0.2345679 | AB42: 0.6219512 | AC42: 0.5392157 | AF42: 9.75 | AG42: 0.5718609889 | AH42: 0.5583520389 | AI42: 0.570095795 | AJ42: 0.08574518426 | AK42: 0.07988467023 | AL42: 0.07471563833
A43: 10 | B43: 0.9574468 | C43: 0.6724138 | D43: 0.6857143 | E43: 0.6315789 | F43: 0.4830509 | G43: 0.1745283 | H43: 0.8849558 | I43: 0.4272727 | J43: 0.3448276 | L43: 0.8975903 | M43: 0.6728395 | N43: 0.712 | O43: 0.7854864 | P43: 0.5474138 | Q43: 0.1323944 | R43: 0.6428571 | S43: 0.4411765 | T43: 0.3351064 | V43: 0.9056604 | W43: 0.59000004 | X43: 0.6687898 | Y43: 0.7828571 | Z43: 0.3157895 | AA43: 0.2757202 | AB43: 0.6219512 | AC43: 0.5490196 | AF43: 10 | AG43: 0.5846432333 | AH43: 0.5740960444 | AI43: 0.58872348 | AJ43: 0.08416950574 | AK43: 0.07935733267 | AL43: 0.07555669691
A44: 10.25 | B44: 0.9574468 | C44: 0.6896552 | D44: 0.7142857 | E44: 0.6421053 | F44: 0.5 | G44: 0.2028302 | H44: 0.8849558 | I44: 0.4272727 | J44: 0.3448276 | L44: 0.9096386 | M44: 0.6790124 | N44: 0.72 | O44: 0.79291415 | P44: 0.5732759 | Q44: 0.1549296 | R44: 0.6587301 | S44: 0.4558823 | T44: 0.3351064 | V44: 0.9150943 | W44: 0.62000004 | X44: 0.6751592 | Y44: 0.7942857 | Z44: 0.3333333 | AA44: 0.3292181 | AB44: 0.6219512 | AC44: 0.5588235 | AF44: 10.25 | AG44: 0.5959310333 | AH44: 0.5866099389 | AI44: 0.6059831675 | AJ44: 0.08286390035 | AK44: 0.07864396225 | AL44: 0.07188845493
A45: 10.5 | B45: 0.9574468 | C45: 0.7155172 | D45: 0.7142857 | E45: 0.6842105 | F45: 0.5169492 | G45: 0.2216981 | H45: 0.8849558 | I45: 0.4727273 | J45: 0.3586207 | L45: 0.9156626 | M45: 0.7037037 | N45: 0.736 | O45: 0.81829575 | P45: 0.5991379 | Q45: 0.1633803 | R45: 0.6746032 | S45: 0.4779412 | T45: 0.356383 | V45: 0.9339623 | W45: 0.63 | X45: 0.7006369 | Y45: 0.8114285 | Z45: 0.3333333 | AA45: 0.3786008 | AB45: 0.6463414 | AC45: 0.6078432 | AF45: 10.5 | AG45: 0.6140457 | AH45: 0.6050119611 | AI45: 0.6302683 | AJ45: 0.08037770301 | AK45: 0.07877279455 | AL45: 0.07099660832
A46: 10.75 | B46: 0.9680851 | C46: 0.7155172 | D46: 0.7238095 | E46: 0.7263158 | F46: 0.5423729 | G46: 0.259434 | H46: 0.8938053 | I46: 0.4909091 | J46: 0.4206896 | L46: 0.9156626 | M46: 0.7160494 | N46: 0.744 | O46: 0.8415129 | P46: 0.612069 | Q46: 0.1690141 | R46: 0.7301587 | S46: 0.5073529 | T46: 0.3776596 | V46: 0.9433962 | W46: 0.69 | X46: 0.7133758 | Y46: 0.84 | Z46: 0.3421053 | AA46: 0.4074074 | AB46: 0.6951219 | AC46: 0.627451 | AF46: 10.75 | AG46: 0.6378820556 | AH46: 0.6237199111 | AI46: 0.6573572 | AJ46: 0.07609210136 | AK46: 0.0788780393 | AL46: 0.07115872025
A47: 11 | B47: 0.9680851 | C47: 0.7413793 | D47: 0.7428572 | E47: 0.7684211 | F47: 0.5423729 | G47: 0.2783019 | H47: 0.8938053 | I47: 0.5 | J47: 0.4413793 | L47: 0.9277108 | M47: 0.7222222 | N47: 0.76 | O47: 0.86689455 | P47: 0.625 | Q47: 0.1830986 | R47: 0.7698413 | S47: 0.5220588 | T47: 0.393617 | V47: 0.9433962 | W47: 0.74000004 | X47: 0.7261146 | Y47: 0.8571429 | Z47: 0.368421 | AA47: 0.4444444 | AB47: 0.7073171 | AC47: 0.6372549 | AF47: 11 | AG47: 0.6529557889 | AH47: 0.6411603611 | AI47: 0.6780113925 | AJ47: 0.07521288164 | AK47: 0.07957040692 | AL47: 0.06834698385
A48: 11.25 | B48: 0.9680851 | C48: 0.7586207 | D48: 0.752381 | E48: 0.7789474 | F48: 0.5508475 | G48: 0.3018868 | H48: 0.9026549 | I48: 0.5181818 | J48: 0.4689655 | L48: 0.939759 | M48: 0.7469136 | N48: 0.776 | O48: 0.8721577 | P48: 0.6508621 | Q48: 0.2140845 | R48: 0.7936508 | S48: 0.5441176 | T48: 0.4308511 | V48: 0.9528302 | W48: 0.71875 | X48: 0.7452229 | Y48: 0.88 | Z48: 0.377193 | AA48: 0.4691358 | AB48: 0.7195122 | AC48: 0.6764706 | AF48: 11.25 | AG48: 0.6667300778 | AH48: 0.6631551556 | AI48: 0.6923893375 | AJ48: 0.0728930794 | AK48: 0.07700297489 | AL48: 0.06770384596
A49: 11.5 | B49: 0.9680851 | C49: 0.7672414 | D49: 0.7619048 | E49: 0.7894737 | F49: 0.5762712 | G49: 0.3396226 | H49: 0.9026549 | I49: 0.5636364 | J49: 0.4827586 | L49: 0.939759 | M49: 0.7592593 | N49: 0.792 | O49: 0.87958535 | P49: 0.6594828 | Q49: 0.2169014 | R49: 0.8253968 | S49: 0.5735294 | T49: 0.462766 | V49: 0.9528302 | W49: 0.7475 | X49: 0.7579618 | Y49: 0.8857143 | Z49: 0.4122807 | AA49: 0.5102881 | AB49: 0.7926829 | AC49: 0.7058824 | AF49: 11.5 | AG49: 0.6835165222 | AH49: 0.6787422278 | AI49: 0.72064255 | AJ49: 0.06849797045 | AK49: 0.07643706075 | AL49: 0.06381020067
A50: 11.75 | B50: 0.9680851 | C50: 0.7672414 | D50: 0.7619048 | E50: 0.8 | F50: 0.6271186 | G50: 0.3632075 | H50: 0.9026549 | I50: 0.5727273 | J50: 0.4965517 | L50: 0.9518072 | M50: 0.7777778 | N50: 0.816 | O50: 0.887013 | P50: 0.6724138 | Q50: 0.2450704 | R50: 0.8253968 | S50: 0.6102941 | T50: 0.4840426 | V50: 0.9716981 | W50: 0.7475 | X50: 0.77707 | Y50: 0.8914286 | Z50: 0.4298246 | AA50: 0.5308642 | AB50: 0.8170732 | AC50: 0.7549019 | AF50: 11.75 | AG50: 0.6954990333 | AH50: 0.6966461889 | AI50: 0.740045075 | AJ50: 0.06534527406 | AK50: 0.07415411184 | AL50: 0.06326728384
A51: 12 | B51: 0.9787234 | C51: 0.7844828 | D51: 0.7619048 | E51: 0.8210526 | F51: 0.6440678 | G51: 0.4056604 | H51: 0.9026549 | I51: 0.5818182 | J51: 0.537931 | L51: 0.9698795 | M51: 0.7962963 | N51: 0.824 | O51: 0.8975393 | P51: 0.6982759 | Q51: 0.2535211 | R51: 0.8412699 | S51: 0.625 | T51: 0.4946809 | V51: 0.9716981 | W51: 0.7475 | X51: 0.7898089 | Y51: 0.9028571 | Z51: 0.4385965 | AA51: 0.5596708 | AB51: 0.8414634 | AC51: 0.7745098 | AF51: 12 | AG51: 0.7131439889 | AH51: 0.7111625444 | AI51: 0.753263075 | AJ51: 0.06155639371 | AK51: 0.07476525982 | AL51: 0.06213246015
A52: 12.25 | B52: 0.9787234 | C52: 0.8017241 | D52: 0.7619048 | E52: 0.831579 | F52: 0.6440678 | G52: 0.4386792 | H52: 0.9292035 | I52: 0.6090909 | J52: 0.5655172 | L52: 0.9698795 | M52: 0.8024691 | N52: 0.824 | O52: 0.904967 | P52: 0.7068965 | Q52: 0.2619718 | R52: 0.8412699 | S52: 0.6617647 | T52: 0.5053192 | V52: 0.9716981 | W52: 0.77625 | X52: 0.7898089 | Y52: 0.92 | Z52: 0.4385965 | AA52: 0.600823 | AB52: 0.9146342 | AC52: 0.7843137 | AF52: 12.25 | AG52: 0.7289433222 | AH52: 0.7198375222 | AI52: 0.77451555 | AJ52: 0.05915394517 | AK52: 0.07344845026 | AL52: 0.06310755105
A53: 12.5 | B53: 0.9787234 | C53: 0.8017241 | D53: 0.7809524 | E53: 0.8421053 | F53: 0.6610169 | G53: 0.4481132 | H53: 0.9469026 | I53: 0.6363636 | J53: 0.5931035 | L53: 0.9698795 | M53: 0.808642 | N53: 0.832 | O53: 0.91239465 | P53: 0.7155172 | Q53: 0.2704225 | R53: 0.8809524 | S53: 0.6691176 | T53: 0.5106383 | V53: 0.9716981 | W53: 0.75166663 | X53: 0.7961783 | Y53: 0.92 | Z53: 0.4649123 | AA53: 0.6378601 | AB53: 0.9268293 | AC53: 0.7941176 | AF53: 12.5 | AG53: 0.7432227778 | AH53: 0.7299515722 | AI53: 0.7829077912 | AJ53: 0.05765942223 | AK53: 0.07392118598 | AL53: 0.0595499785
A54: 12.75 | B54: 0.9787234 | C54: 0.8017241 | D54: 0.7809524 | E54: 0.8421053 | F54: 0.6610169 | G54: 0.4669811 | H54: 0.9557522 | I54: 0.6545454 | J54: 0.6 | L54: 0.9698795 | M54: 0.808642 | N54: 0.832 | O54: 0.91455915 | P54: 0.7198276 | Q54: 0.2901408 | R54: 0.8968254 | S54: 0.6764706 | T54: 0.5265958 | V54: 0.9716981 | W54: 0.76083337 | X54: 0.8025478 | Y54: 0.9257143 | Z54: 0.4824561 | AA54: 0.6625515 | AB54: 0.9390244 | AC54: 0.8235294 | AF54: 12.75 | AG54: 0.7490889778 | AH54: 0.73721565 | AI54: 0.7960443713 | AJ54: 0.05607373398 | AK54: 0.0720120747 | AL54: 0.05767942472
A55: 13 | B55: 0.9787234 | C55: 0.8017241 | D55: 0.7809524 | E55: 0.8526316 | F55: 0.6779661 | G55: 0.4858491 | H55: 0.9557522 | I55: 0.6545454 | J55: 0.6068966 | L55: 0.9698795 | M55: 0.808642 | N55: 0.856 | O55: 0.9198223 | P55: 0.7327586 | Q55: 0.3239437 | R55: 0.9206349 | S55: 0.6764706 | T55: 0.5372341 | V55: 0.9716981 | W55: 0.76083337 | X55: 0.8152866 | Y55: 0.9371428 | Z55: 0.4912281 | AA55: 0.6790124 | AB55: 0.9512195 | AC55: 0.8235294 | AF55: 13 | AG55: 0.7550045444 | AH55: 0.7494873 | AI55: 0.8037437837 | AJ55: 0.0544089933 | AK55: 0.07006668779 | AL55: 0.05721872481
A56: 13.25 | B56: 0.9787234 | C56: 0.8017241 | D56: 0.7904762 | E56: 0.8631579 | F56: 0.6864407 | G56: 0.5 | H56: 0.9557522 | I56: 0.6727273 | J56: 0.6137931 | L56: 0.9698795 | M56: 0.8271605 | N56: 0.88 | O56: 0.92508545 | P56: 0.7413793 | Q56: 0.3408451 | R56: 0.9285714 | S56: 0.6911765 | T56: 0.5585107 | V56: 0.9716981 | W56: 0.78833326 | X56: 0.821656 | Y56: 0.9485714 | Z56: 0.4912281 | AA56: 0.7078189 | AB56: 0.9756098 | AC56: 0.8333333 | AF56: 13.25 | AG56: 0.7625327667 | AH56: 0.76251205 | AI56: 0.8172811075 | AJ56: 0.05289091491 | AK56: 0.06871285251 | AL56: 0.05756317219
A57: 13.5 | B57: 0.9787234 | C57: 0.8189655 | D57: 0.7904762 | E57: 0.8736842 | F57: 0.7118644 | G57: 0.5141509 | H57: 0.9646018 | I57: 0.6818182 | J57: 0.6344827 | L57: 0.9698795 | M57: 0.8333333 | N57: 0.88 | O57: 0.9303486 | P57: 0.7456896 | Q57: 0.343662 | R57: 0.9365079 | S57: 0.6911765 | T57: 0.5904256 | V57: 0.9811321 | W57: 0.7975 | X57: 0.821656 | Y57: 0.9485714 | Z57: 0.5 | AA57: 0.7160494 | AB57: 0.9878049 | AC57: 0.8333333 | AF57: 13.5 | AG57: 0.7743074778 | AH57: 0.7690025556 | AI57: 0.8232558875 | AJ57: 0.05134511711 | AK57: 0.06773167205 | AL57: 0.05739280895
A58: 13.75 | B58: 0.9787234 | C58: 0.8189655 | D58: 0.8 | E58: 0.8842105 | F58: 0.720339 | G58: 0.5471698 | H58: 0.9646018 | I58: 0.7090909 | J58: 0.6482759 | L58: 0.9759036 | M58: 0.8395061 | N58: 0.88 | O58: 0.93561175 | P58: 0.75 | Q58: 0.3577465 | R58: 0.9444444 | S58: 0.6911765 | T58: 0.6010638 | V58: 0.9811321 | W58: 0.81583337 | X58: 0.821656 | Y58: 0.9542857 | Z58: 0.508772 | AA58: 0.7325103 | AB58: 0.9878049 | AC58: 0.8333333 | AF58: 13.75 | AG58: 0.7857085333 | AH58: 0.7750502944 | AI58: 0.8294159587 | AJ58: 0.04804545627 | AK58: 0.06688105878 | AL58: 0.05608676326
A59: 14 | B59: 0.9787234 | C59: 0.8275862 | D59: 0.8095238 | E59: 0.8842105 | F59: 0.7457627 | G59: 0.5707547 | H59: 0.9646018 | I59: 0.7545455 | J59: 0.6827586 | L59: 0.9879518 | M59: 0.845679 | N59: 0.88 | O59: 0.93561175 | P59: 0.75 | Q59: 0.3774648 | R59: 0.952381 | S59: 0.7058824 | T59: 0.6223404 | V59: 0.9811321 | W59: 0.825 | X59: 0.8280255 | Y59: 0.9542857 | Z59: 0.5350877 | AA59: 0.7448559 | AB59: 0.9878049 | AC59: 0.8431373 | AF59: 14 | AG59: 0.8020519111 | AH59: 0.7841456833 | AI59: 0.8374161375 | AJ59: 0.0438190364 | AK59: 0.06504461964 | AL59: 0.05297818121
A60: 14.25 | B60: 0.9787234 | C60: 0.8362069 | D60: 0.8190476 | E60: 0.8842105 | F60: 0.7542373 | G60: 0.5943396 | H60: 0.9646018 | I60: 0.7545455 | J60: 0.6965517 | L60: 0.9939759 | M60: 0.8518519 | N60: 0.888 | O60: 0.93561175 | P60: 0.7543104 | Q60: 0.3859155 | R60: 0.952381 | S60: 0.7205882 | T60: 0.6276596 | V60: 0.9811321 | W60: 0.825 | X60: 0.8407643 | Y60: 0.9542857 | Z60: 0.5438597 | AA60: 0.7736626 | AB60: 0.9878049 | AC60: 0.872549 | AF60: 14.25 | AG60: 0.8091627 | AH60: 0.7900326944 | AI60: 0.8473822875 | AJ60: 0.0415336973 | AK60: 0.06437052258 | AL60: 0.05136955454
A61: 14.5 | B61: 0.9893617 | C61: 0.8448276 | D61: 0.8285714 | E61: 0.8842105 | F61: 0.7542373 | G61: 0.6084906 | H61: 0.9646018 | I61: 0.7727273 | J61: 0.6965517 | L61: 0.9939759 | M61: 0.8580247 | N61: 0.896 | O61: 0.93561175 | P61: 0.7586207 | Q61: 0.3971831 | R61: 0.9603174 | S61: 0.7426471 | T61: 0.6329787 | V61: 0.9811321 | W61: 0.825 | X61: 0.8471338 | Y61: 0.96 | Z61: 0.5526316 | AA61: 0.7983539 | AB61: 0.9878049 | AC61: 0.872549 | AF61: 14.5 | AG61: 0.8159533222 | AH61: 0.79726215 | AI61: 0.8530756625 | AJ61: 0.04095961806 | AK61: 0.0633983701 | AL61: 0.05007977528
A62: 14.75 | B62: 0.9893617 | C62: 0.8534483 | D62: 0.8285714 | E62: 0.8947368 | F62: 0.7542373 | G62: 0.6132075 | H62: 0.9646018 | I62: 0.8 | J62: 0.6965517 | L62: 0.9939759 | M62: 0.8641976 | N62: 0.896 | O62: 0.9408749 | P62: 0.7672414 | Q62: 0.4028169 | R62: 0.968254 | S62: 0.7573529 | T62: 0.6542553 | V62: 0.990566 | W62: 0.8525 | X62: 0.8535032 | Y62: 0.96 | Z62: 0.5614035 | AA62: 0.8065844 | AB62: 0.9878049 | AC62: 0.8823529 | AF62: 14.75 | AG62: 0.8216351667 | AH62: 0.8049965444 | AI62: 0.8618393625 | AJ62: 0.04066704278 | AK62: 0.0624480086 | AL62: 0.04927432566
A63: 15 | B63: 0.9893617 | C63: 0.8534483 | D63: 0.8285714 | E63: 0.9052632 | F63: 0.7542373 | G63: 0.6179245 | H63: 0.9646018 | I63: 0.8090909 | J63: 0.7103449 | L63: 1 | M63: 0.8703704 | N63: 0.904 | O63: 0.9461381 | P63: 0.7672414 | Q63: 0.4028169 | R63: 0.968254 | S63: 0.7720588 | T63: 0.6542553 | V63: 0.990566 | W63: 0.86166674 | X63: 0.8535032 | Y63: 0.9657143 | Z63: 0.5701754 | AA63: 0.8353909 | AB63: 0.9878049 | AC63: 0.9117647 | AF63: 15 | AG63: 0.8258715556 | AH63: 0.8094594333 | AI63: 0.8720732675 | AJ63: 0.03997348953 | AK63: 0.06296804603 | AL63: 0.04831434512
A64: 15.25 | B64: 0.9893617 | C64: 0.8793104 | D64: 0.8380952 | E64: 0.9157895 | F64: 0.7542373 | G64: 0.6226415 | H64: 0.9646018 | I64: 0.8090909 | J64: 0.7103449 | L64: 1 | M64: 0.8765432 | N64: 0.912 | O64: 0.95140125 | P64: 0.7715517 | Q64: 0.4197183 | R64: 0.9761904 | S64: 0.7794118 | T64: 0.6542553 | V64: 0.990566 | W64: 0.87083337 | X64: 0.8535032 | Y64: 0.9714286 | Z64: 0.5701754 | AA64: 0.8353909 | AB64: 0.9878049 | AC64: 0.9215686 | AF64: 15.25 | AG64: 0.8314970222 | AH64: 0.8156746611 | AI64: 0.8751588712 | AJ64: 0.04028416081 | AK64: 0.06205350186 | AL64: 0.048644803
A65: 15.5 | B65: 1 | C65: 0.8793104 | D65: 0.8476191 | E65: 0.9157895 | F65: 0.7711864 | G65: 0.6273585 | H65: 0.9646018 | I65: 0.8090909 | J65: 0.7310345 | L65: 1 | M65: 0.8888889 | N65: 0.912 | O65: 0.95140125 | P65: 0.7758621 | Q65: 0.4338028 | R65: 0.9761904 | S65: 0.8014706 | T65: 0.6648936 | V65: 0.990566 | W65: 0.88 | X65: 0.8535032 | Y65: 0.9714286 | Z65: 0.5701754 | AA65: 0.8353909 | AB65: 0.9878049 | AC65: 0.9313725 | AF65: 15.5 | AG65: 0.8384434556 | AH65: 0.8227232944 | AI65: 0.8775301875 | AJ65: 0.03930503596 | AK65: 0.06040401346 | AL65: 0.04882175939
A66: 15.75 | B66: 1 | C66: 0.887931 | D66: 0.8476191 | E66: 0.9157895 | F66: 0.7881356 | G66: 0.6367925 | H66: 0.9646018 | I66: 0.8181818 | J66: 0.737931 | L66: 1 | M66: 0.8950617 | N66: 0.912 | O66: 0.95140125 | P66: 0.7758621 | Q66: 0.4394366 | R66: 0.984127 | S66: 0.8088235 | T66: 0.6702127 | V66: 0.990566 | W66: 0.88916663 | X66: 0.8535032 | Y66: 0.9771429 | Z66: 0.5789474 | AA66: 0.8477366 | AB66: 0.9878049 | AC66: 0.9313725 | AF66: 15.75 | AG66: 0.8441091444 | AH66: 0.8263249833 | AI66: 0.8820300163 | AJ66: 0.03799679105 | AK66: 0.06005552705 | AL66: 0.04787434228
A67: 16 | B67: 1 | C67: 0.8965517 | D67: 0.8476191 | E67: 0.9157895 | F67: 0.7881356 | G67: 0.6415094 | H67: 0.9646018 | I67: 0.8272727 | J67: 0.7448276 | L67: 1 | M67: 0.9135802 | N67: 0.92 | O67: 0.95140125 | P67: 0.7844828 | Q67: 0.4507042 | R67: 0.984127 | S67: 0.8088235 | T67: 0.680851 | V67: 0.990566 | W67: 0.88916663 | X67: 0.8598726 | Y67: 0.9771429 | Z67: 0.5877193 | AA67: 0.8477366 | AB67: 0.9878049 | AC67: 0.9411765 | AF67: =A67 -> 16 | AG67: =AVERAGE(B67:J67) -> 0.8473674889 | AH67: =AVERAGE(L67:T67) -> 0.8326633278 | AI67: =AVERAGE(V67:AD67) -> 0.8851481788 | AJ67: =STDEV(B67:J67)/SQRT(COUNT(B67:J67)) -> 0.03744356633 | AK67: =STDEV(L67:T67)/SQRT(COUNT(L67:T67)) -> 0.05904873145 | AL67: =STDEV(V67:AD67)/SQRT(COUNT(V67:AD67)) -> 0.04701293286
A68: 16.25 | B68: 1 | C68: 0.8965517 | D68: 0.8571429 | E68: 0.9157895 | F68: 0.7881356 | G68: 0.6509434 | H68: 0.9646018 | I68: 0.8363636 | J68: 0.7655172 | L68: 1 | M68: 0.9197531 | N68: 0.928 | O68: 0.95140125 | P68: 0.7844828 | Q68: 0.4619718 | R68: 0.984127 | S68: 0.8088235 | T68: 0.680851 | V68: 0.990566 | W68: 0.89833337 | X68: 0.8662421 | Y68: 0.9771429 | Z68: 0.5964912 | AA68: 0.8600823 | AB68: 0.9878049 | AC68: 0.9509804 | AF68: 16.25 | AG68: 0.8527828556 | AH68: 0.83549005 | AI68: 0.8909553962 | AJ68: 0.03591739036 | AK68: 0.0583324034 | AL68: 0.04603199161
A69: 16.5 | B69: 1 | C69: 0.9051724 | D69: 0.8571429 | E69: 0.9263158 | F69: 0.7966102 | G69: 0.6509434 | H69: 0.9646018 | I69: 0.8454546 | J69: 0.7655172 | L69: 1 | M69: 0.9197531 | N69: 0.928 | O69: 0.9588289 | P69: 0.7931035 | Q69: 0.4676056 | R69: 0.984127 | S69: 0.8088235 | T69: 0.680851 | V69: 0.990566 | W69: 0.91666663 | X69: 0.8662421 | Y69: 0.9771429 | Z69: 0.6140351 | AA69: 0.8683128 | AB69: 0.9878049 | AC69: 0.9607843 | AF69: 16.5 | AG69: 0.8568620333 | AH69: 0.8378991778 | AI69: 0.8976943413 | AJ69: 0.03608649063 | AK69: 0.05794333735 | AL69: 0.04426230771
A70: 16.75 | B70: 1 | C70: 0.9051724 | D70: 0.8571429 | E70: 0.9368421 | F70: 0.7966102 | G70: 0.6556604 | H70: 0.9646018 | I70: 0.8545455 | J70: 0.7793103 | L70: 1 | M70: 0.9197531 | N70: 0.928 | O70: 0.96625655 | P70: 0.7974138 | Q70: 0.4788733 | R70: 0.984127 | S70: 0.8161765 | T70: 0.6861702 | V70: 1 | W70: 0.91666663 | X70: 0.8726115 | Y70: 0.9771429 | Z70: 0.6315789 | AA70: 0.872428 | AB70: 0.9878049 | AC70: 0.9607843 | AF70: 16.75 | AG70: 0.8610984 | AH70: 0.8418633833 | AI70: 0.9023771413 | AJ70: 0.03551165955 | AK70: 0.05686776329 | AL70: 0.04249963462
A71: 17 | B71: 1 | C71: 0.9137931 | D71: 0.8571429 | E71: 0.9368421 | F71: 0.7966102 | G71: 0.6603774 | H71: 0.9646018 | I71: 0.8727273 | J71: 0.7931035 | L71: 1 | M71: 0.9259259 | N71: 0.928 | O71: 0.96625655 | P71: 0.8146552 | Q71: 0.4957747 | R71: 0.9920635 | S71: 0.8308824 | T71: 0.7021276 | V71: 1 | W71: 0.91666663 | X71: 0.8726115 | Y71: 0.9771429 | Z71: 0.6403509 | AA71: 0.8765432 | AB71: 0.9878049 | AC71: 0.9607843 | AF71: 17 | AG71: 0.8661331444 | AH71: 0.8506317611 | AI71: 0.9039880413 | AJ71: 0.03486365137 | AK71: 0.05489881108 | AL71: 0.04145221128
A72: 17.25 | B72: 1 | C72: 0.9224138 | D72: 0.8571429 | E72: 0.9368421 | F72: 0.7966102 | G72: 0.6698113 | H72: 0.9646018 | I72: 0.8727273 | J72: 0.7931035 | L72: 1 | M72: 0.9259259 | N72: 0.936 | O72: 0.96625655 | P72: 0.8189655 | Q72: 0.5042254 | R72: 0.9920635 | S72: 0.8455882 | T72: 0.7127659 | V72: 1 | W72: 0.91666663 | X72: 0.8726115 | Y72: 0.9771429 | Z72: 0.6578947 | AA72: 0.8806584 | AB72: 0.9878049 | AC72: 0.9607843 | AF72: 17.25 | AG72: 0.8681392111 | AH72: 0.85575455 | AI72: 0.9066954163 | AJ72: 0.03427438381 | AK72: 0.05380471485 | AL72: 0.03941849867
A73: 17.5 | B73: 1 | C73: 0.9224138 | D73: 0.8666667 | E73: 0.9578947 | F73: 0.7966102 | G73: 0.6792453 | H73: 0.9646018 | I73: 0.8727273 | J73: 0.8 | L73: 1 | M73: 0.9259259 | N73: 0.936 | O73: 0.97678285 | P73: 0.8189655 | Q73: 0.5211267 | R73: 0.9920635 | S73: 0.8455882 | T73: 0.7127659 | V73: 1 | W73: 0.91666663 | X73: 0.8789809 | Y73: 0.9771429 | Z73: 0.6578947 | AA73: 0.8847737 | AB73: 0.9878049 | AC73: 0.9607843 | AF73: 17.5 | AG73: 0.8733510889 | AH73: 0.8588020611 | AI73: 0.9080060038 | AJ73: 0.03393479951 | AK73: 0.05259816678 | AL73: 0.03928128541
A74: 17.75 | B74: 1 | C74: 0.9224138 | D74: 0.8761905 | E74: 0.968421 | F74: 0.7966102 | G74: 0.6886792 | H74: 0.9646018 | I74: 0.8818182 | J74: 0.8 | L74: 1 | M74: 0.9259259 | N74: 0.936 | O74: 0.9842105 | P74: 0.8275862 | Q74: 0.5380282 | R74: 0.9920635 | S74: 0.8529412 | T74: 0.7340425 | V74: 1 | W74: 0.92583326 | X74: 0.8789809 | Y74: 0.9771429 | Z74: 0.6578947 | AA74: 0.8888889 | AB74: 0.9878049 | AC74: 0.9607843 | AF74: 17.75 | AG74: 0.8776371889 | AH74: 0.8656442222 | AI74: 0.9096662325 | AJ74: 0.03356166541 | AK74: 0.05040614743 | AL74: 0.03929184824
A75: 18 | B75: 1 | C75: 0.9224138 | D75: 0.8857143 | E75: 0.968421 | F75: 0.7966102 | G75: 0.6886792 | H75: 0.9646018 | I75: 0.8818182 | J75: 0.8137931 | L75: 1 | M75: 0.9320987 | N75: 0.936 | O75: 0.9842105 | P75: 0.8275862 | Q75: 0.5521127 | R75: 0.9920635 | S75: 0.8602941 | T75: 0.75 | V75: 1 | W75: 0.92583326 | X75: 0.8853503 | Y75: 0.9771429 | Z75: 0.6578947 | AA75: 0.8930041 | AB75: 0.9878049 | AC75: 0.9607843 | AF75: 18 | AG75: 0.8802279556 | AH75: 0.8704850778 | AI75: 0.9109768075 | AJ75: 0.03315599085 | AK75: 0.04864827529 | AL75: 0.03917393132
A76: 18.25 | B76: 1 | C76: 0.9310345 | D76: 0.8857143 | E76: 0.968421 | F76: 0.7966102 | G76: 0.6981132 | H76: 0.9646018 | I76: 0.8818182 | J76: 0.8275862 | L76: 1 | M76: 0.9320987 | N76: 0.936 | O76: 0.9842105 | P76: 0.8362069 | Q76: 0.5633803 | R76: 1 | S76: 0.875 | T76: 0.75 | V76: 1 | W76: 0.935 | X76: 0.8917198 | Y76: 0.9771429 | Z76: 0.6666667 | AA76: 0.8971193 | AB76: 0.9878049 | AC76: 0.9607843 | AF76: 18.25 | AG76: 0.8837666 | AH76: 0.8752107111 | AI76: 0.9145297375 | AJ76: 0.03220429681 | AK76: 0.04778344339 | AL76: 0.03812873904
A77: 18.5 | B77: 1 | C77: 0.9396552 | D77: 0.8857143 | E77: 0.968421 | F77: 0.8050848 | G77: 0.7028302 | H77: 0.9646018 | I77: 0.8818182 | J77: 0.8344827 | L77: 1 | M77: 0.9320987 | N77: 0.944 | O77: 0.9842105 | P77: 0.8362069 | Q77: 0.5802817 | R77: 1 | S77: 0.875 | T77: 0.7553192 | V77: 1 | W77: 0.935 | X77: 0.9044586 | Y77: 0.9828572 | Z77: 0.6666667 | AA77: 0.8971193 | AB77: 0.9878049 | AC77: 0.9607843 | AF77: 18.5 | AG77: 0.8869564667 | AH77: 0.8785685556 | AI77: 0.916836375 | AJ77: 0.03153660962 | AK77: 0.04621370324 | AL77: 0.03819584061
A78: 18.75 | B78: 1 | C78: 0.9568965 | D78: 0.8857143 | E78: 0.968421 | F78: 0.8135593 | G78: 0.7075472 | H78: 0.9734513 | I78: 0.8818182 | J78: 0.8413793 | L78: 1 | M78: 0.9382716 | N78: 0.944 | O78: 0.9842105 | P78: 0.8405172 | Q78: 0.5887324 | R78: 1 | S78: 0.8823529 | T78: 0.7659575 | V78: 1 | W78: 0.935 | X78: 0.9108281 | Y78: 0.9828572 | Z78: 0.6754386 | AA78: 0.8971193 | AB78: 0.9878049 | AC78: 0.9705882 | AF78: 18.75 | AG78: 0.8920874556 | AH78: 0.8826713444 | AI78: 0.9199545375 | AJ78: 0.03145353354 | AK78: 0.04510698966 | AL78: 0.03735701551
A79: 19 | B79: 1 | C79: 0.9568965 | D79: 0.8952381 | E79: 0.968421 | F79: 0.8135593 | G79: 0.7122642 | H79: 0.9734513 | I79: 0.8818182 | J79: 0.8482758 | L79: 1 | M79: 0.9444444 | N79: 0.952 | O79: 0.9842105 | P79: 0.8405172 | Q79: 0.6028169 | R79: 1 | S79: 0.9044118 | T79: 0.7765958 | V79: 1 | W79: 0.935 | X79: 0.9108281 | Y79: 0.9828572 | Z79: 0.6754386 | AA79: 0.8971193 | AB79: 0.9878049 | AC79: 0.9705882 | AF79: 19 | AG79: 0.8944360444 | AH79: 0.8894440667 | AI79: 0.9199545375 | AJ79: 0.03090767876 | AK79: 0.04375943111 | AL79: 0.03735701551
A80: 19.25 | B80: 1 | C80: 0.9655172 | D80: 0.9047619 | E80: 0.968421 | F80: 0.8220339 | G80: 0.7216981 | H80: 0.9734513 | I80: 0.8909091 | J80: 0.8482758 | L80: 1 | M80: 0.9444444 | N80: 0.952 | O80: 0.9842105 | P80: 0.8448276 | Q80: 0.6084507 | R80: 1 | S80: 0.9117647 | T80: 0.7765958 | V80: 1 | W80: 0.94416663 | X80: 0.9108281 | Y80: 0.9828572 | Z80: 0.6929824 | AA80: 0.8971193 | AB80: 0.9878049 | AC80: 0.9705882 | AF80: 19.25 | AG80: 0.8994520333 | AH80: 0.8913659667 | AI80: 0.9232933412 | AJ80: 0.03005026371 | AK80: 0.04322290208 | AL80: 0.03539309763
A81: 19.5 | B81: 1 | C81: 0.9655172 | D81: 0.9047619 | E81: 0.968421 | F81: 0.8220339 | G81: 0.740566 | H81: 0.9734513 | I81: 0.9090909 | J81: 0.862069 | L81: 1 | M81: 0.9444444 | N81: 0.952 | O81: 0.9842105 | P81: 0.8448276 | Q81: 0.6309859 | R81: 1 | S81: 0.9117647 | T81: 0.7925532 | V81: 1 | W81: 0.9625 | X81: 0.9108281 | Y81: 0.9828572 | Z81: 0.6929824 | AA81: 0.9012346 | AB81: 0.9878049 | AC81: 0.9705882 | AF81: 19.5 | AG81: 0.9051012444 | AH81: 0.8956429222 | AI81: 0.926099425 | AJ81: 0.0281801792 | AK81: 0.04060234985 | AL81: 0.03560436842
A82: 19.75 | B82: 1 | C82: 0.9655172 | D82: 0.9047619 | E82: 0.968421 | F82: 0.8305085 | G82: 0.754717 | H82: 0.9734513 | I82: 0.9090909 | J82: 0.8758621 | L82: 1 | M82: 0.9444444 | N82: 0.96 | O82: 0.9842105 | P82: 0.8491379 | Q82: 0.6535211 | R82: 1 | S82: 0.9117647 | T82: 0.8085107 | V82: 1 | W82: 0.9625 | X82: 0.9235669 | Y82: 0.9828572 | Z82: 0.6929824 | AA82: 0.9012346 | AB82: 0.9878049 | AC82: 0.9705882 | AF82: 19.75 | AG82: 0.9091477667 | AH82: 0.9012877 | AI82: 0.927691775 | AJ82: 0.02641550274 | AK82: 0.03809696893 | AL82: 0.03554235264
A83: 20 | B83: 1 | C83: 0.9741379 | D83: 0.9142857 | E83: 0.968421 | F83: 0.8389831 | G83: 0.754717 | H83: 0.9734513 | I83: 0.9090909 | J83: 0.8827586 | L83: 1 | M83: 0.9444444 | N83: 0.96 | O83: 0.9842105 | P83: 0.8491379 | Q83: 0.6676056 | R83: 1 | S83: 0.9264706 | T83: 0.8085107 | V83: 1 | W83: 0.9625 | X83: 0.9299363 | Y83: 0.9828572 | Z83: 0.7105263 | AA83: 0.9012346 | AB83: 0.9878049 | AC83: 0.9705882 | AF83: 20 | AG83: 0.9128717222 | AH83: 0.9044866333 | AI83: 0.9306809375 | AJ83: 0.02621916908 | AK83: 0.03692158341 | AL83: 0.03346943966
A84: 20.25 | B84: 1 | C84: 0.9741379 | D84: 0.9142857 | E84: 0.968421 | F84: 0.8474576 | G84: 0.754717 | H84: 0.9734513 | I84: 0.9090909 | J84: 0.8827586 | L84: 1 | M84: 0.9444444 | N84: 0.96 | O84: 0.9842105 | P84: 0.8534483 | Q84: 0.6788732 | R84: 1 | S84: 0.9264706 | T84: 0.8085107 | V84: 1 | W84: 0.9625 | X84: 0.9299363 | Y84: 0.9828572 | Z84: 0.7105263 | AA84: 0.9053498 | AB84: 0.9878049 | AC84: 0.9705882 | AF84: 20.25 | AG84: 0.9138133333 | AH84: 0.9062175222 | AI84: 0.9311953375 | AJ84: 0.02590246845 | AK84: 0.03583408951 | AL84: 0.03340868492
A85: 20.5 | B85: 1 | C85: 0.9913793 | D85: 0.9238095 | E85: 0.968421 | F85: 0.8474576 | G85: 0.759434 | H85: 0.9734513 | I85: 0.9181818 | J85: 0.8896552 | L85: 1 | M85: 0.9567901 | N85: 0.96 | O85: 0.9842105 | P85: 0.8577586 | Q85: 0.6901408 | R85: 1 | S85: 0.9264706 | T85: 0.8138298 | V85: 1 | W85: 0.97166663 | X85: 0.9299363 | Y85: 0.9828572 | Z85: 0.7192982 | AA85: 0.9176955 | AB85: 0.9878049 | AC85: 0.990196 | AF85: 20.5 | AG85: 0.9190877444 | AH85: 0.9099111556 | AI85: 0.9374318412 | AJ85: 0.02599989703 | AK85: 0.03475782495 | AL85: 0.03286871931
A86: 20.75 | B86: 1 | C86: 0.9913793 | D86: 0.9238095 | E86: 0.968421 | F86: 0.8559322 | G86: 0.7688679 | H86: 0.9734513 | I86: 0.9181818 | J86: 0.8896552 | L86: 1 | M86: 0.9567901 | N86: 0.96 | O86: 0.9842105 | P86: 0.8663793 | Q86: 0.712676 | R86: 1 | S86: 0.9338235 | T86: 0.8138298 | V86: 1 | W86: 0.97166663 | X86: 0.9299363 | Y86: 0.9828572 | Z86: 0.7192982 | AA86: 0.9176955 | AB86: 0.9878049 | AC86: 0.990196 | AF86: 20.75 | AG86: 0.9210775778 | AH86: 0.9141899111 | AI86: 0.9374318412 | AJ86: 0.0248803828 | AK86: 0.03267990942 | AL86: 0.03286871931
A87: 21 | B87: 1 | C87: 0.9913793 | D87: 0.9238095 | E87: 0.968421 | F87: 0.8644068 | G87: 0.7735849 | H87: 0.9734513 | I87: 0.9181818 | J87: 0.8965517 | L87: 1 | M87: 0.962963 | N87: 0.96 | O87: 0.9842105 | P87: 0.8663793 | Q87: 0.7323943 | R87: 1 | S87: 0.9411765 | T87: 0.8138298 | V87: 1 | W87: 0.97166663 | X87: 0.9299363 | Y87: 0.9828572 | Z87: 0.7192982 | AA87: 0.9176955 | AB87: 0.9878049 | AC87: 0.990196 | AF87: 21 | AG87: 0.9233095889 | AH87: 0.9178837111 | AI87: 0.9374318412 | AJ87: 0.0240640595 | AK87: 0.03120722255 | AL87: 0.03286871931
A88: 21.25 | B88: 1 | C88: 0.9913793 | D88: 0.9333333 | E88: 0.968421 | F88: 0.8813559 | G88: 0.7877358 | H88: 0.9734513 | I88: 0.9181818 | J88: 0.8965517 | L88: 1 | M88: 0.962963 | N88: 0.96 | O88: 0.9842105 | P88: 0.8706896 | Q88: 0.7380282 | R88: 1 | S88: 0.9485294 | T88: 0.819149 | V88: 1 | W88: 0.97166663 | X88: 0.9299363 | Y88: 0.9885714 | Z88: 0.7368421 | AA88: 0.9176955 | AB88: 0.9878049 | AC88: 0.990196 | AF88: 21.25 | AG88: 0.9278233444 | AH88: 0.9203966333 | AI88: 0.9403391038 | AJ88: 0.0223183679 | AK88: 0.03048166439 | AL88: 0.03094865691
A89: 21.5 | B89: 1 | C89: 0.9913793 | D89: 0.9333333 | E89: 0.968421 | F89: 0.8813559 | G89: 0.8018868 | H89: 0.9734513 | I89: 0.9181818 | J89: 0.8965517 | L89: 1 | M89: 0.9691358 | N89: 0.968 | O89: 0.9842105 | P89: 0.8706896 | Q89: 0.7492958 | R89: 1 | S89: 0.9485294 | T89: 0.8297873 | V89: 1 | W89: 0.97166663 | X89: 0.9299363 | Y89: 0.9885714 | Z89: 0.7368421 | AA89: 0.9300411 | AB89: 0.9878049 | AC89: 0.990196 | AF89: 21.5 | AG89: 0.9293956778 | AH89: 0.9244053778 | AI89: 0.9418823038 | AJ89: 0.02110724281 | AK89: 0.02934241013 | AL89: 0.03082558908
A90: 21.75 | B90: 1 | C90: 0.9913793 | D90: 0.9333333 | E90: 0.968421 | F90: 0.8983051 | G90: 0.8113208 | H90: 0.9823009 | I90: 0.9181818 | J90: 0.8965517 | L90: 1 | M90: 0.9691358 | N90: 0.968 | O90: 0.9842105 | P90: 0.8706896 | Q90: 0.7633803 | R90: 1 | S90: 0.9485294 | T90: 0.8351064 | V90: 1 | W90: 0.97166663 | X90: 0.9363058 | Y90: 0.9885714 | Z90: 0.7368421 | AA90: 0.9341564 | AB90: 0.9878049 | AC90: 0.990196 | AF90: 21.75 | AG90: 0.9333104333 | AH90: 0.9265613333 | AI90: 0.9431929038 | AJ90: 0.0201174447 | AK90: 0.02794735906 | AL90: 0.03076589986
A91: 22 | B91: 1 | C91: 0.9913793 | D91: 0.9333333 | E91: 0.968421 | F91: 0.8983051 | G91: 0.8301887 | H91: 0.9823009 | I91: 0.9272727 | J91: 0.8965517 | L91: 1 | M91: 0.9753087 | N91: 0.968 | O91: 0.9842105 | P91: 0.875 | Q91: 0.7746479 | R91: 1 | S91: 0.9485294 | T91: 0.8404256 | V91: 1 | W91: 0.97166663 | X91: 0.9363058 | Y91: 0.9885714 | Z91: 0.7368421 | AA91: 0.9341564 | AB91: 0.9878049 | AC91: 0.990196 | AF91: 22 | AG91: 0.9364169667 | AH91: 0.9295691222 | AI91: 0.9431929038 | AJ91: 0.01848895272 | AK91: 0.02681214808 | AL91: 0.03076589986
A92: 22.25 | B92: 1 | C92: 0.9913793 | D92: 0.9333333 | E92: 0.968421 | F92: 0.8983051 | G92: 0.8349057 | H92: 0.9823009 | I92: 0.9272727 | J92: 0.8965517 | L92: 1 | M92: 0.9753087 | N92: 0.968 | O92: 0.9842105 | P92: 0.875 | Q92: 0.7859155 | R92: 1 | S92: 0.9558824 | T92: 0.8404256 | V92: 1 | W92: 0.97166663 | X92: 0.9490446 | Y92: 0.9885714 | Z92: 0.7368421 | AA92: 0.9341564 | AB92: 0.9878049 | AC92: 0.990196 | AF92: 22.25 | AG92: 0.9369410778 | AH92: 0.9316380778 | AI92: 0.9447852537 | AJ92: 0.01811621404 | AK92: 0.02600489319 | AL92: 0.0307561837
A93: 22.5 | B93: 1 | C93: 0.9913793 | D93: 0.9428571 | E93: 0.968421 | F93: 0.9152542 | G93: 0.8349057 | H93: 0.9823009 | I93: 0.9272727 | J93: 0.9034483 | L93: 1 | M93: 0.9753087 | N93: 0.968 | O93: 0.9842105 | P93: 0.8793104 | Q93: 0.7943662 | R93: 1 | S93: 0.9558824 | T93: 0.8404256 | V93: 1 | W93: 0.97166663 | X93: 0.955414 | Y93: 0.9885714 | Z93: 0.7456141 | AA93: 0.9341564 | AB93: 0.9878049 | AC93: 1 | AF93: 22.5 | AG93: 0.9406488 | AH93: 0.9330559778 | AI93: 0.9479034287 | AJ93: 0.01747875848 | AK93: 0.025224283 | AL93: 0.03000153821
A94: 22.75 | B94: 1 | C94: 0.9913793 | D94: 0.9428571 | E94: 0.968421 | F94: 0.9152542 | G94: 0.8396226 | H94: 0.9823009 | I94: 0.9363636 | J94: 0.9034483 | L94: 1 | M94: 0.9753087 | N94: 0.968 | O94: 0.9842105 | P94: 0.8793104 | Q94: 0.8056338 | R94: 1 | S94: 0.9558824 | T94: 0.8404256 | V94: 1 | W94: 0.97166663 | X94: 0.9617835 | Y94: 0.9885714 | Z94: 0.7456141 | AA94: 0.9341564 | AB94: 0.9878049 | AC94: 1 | AF94: 22.75 | AG94: 0.942183 | AH94: 0.9343079333 | AI94: 0.9486996163 | AJ94: 0.01701284347 | AK94: 0.02438080159 | AL94: 0.03004055143
A95: 23 | B95: 1 | C95: 0.9913793 | D95: 0.9428571 | E95: 0.968421 | F95: 0.9237288 | G95: 0.8537736 | H95: 0.9823009 | I95: 0.9363636 | J95: 0.9103448 | L95: 1 | M95: 0.9753087 | N95: 0.968 | O95: 0.9842105 | P95: 0.8836207 | Q95: 0.8197183 | R95: 1 | S95: 0.9558824 | T95: 0.856383 | V95: 1 | W95: 0.97166663 | X95: 0.9617835 | Y95: 0.9885714 | Z95: 0.7631579 | AA95: 0.9382716 | AB95: 0.9878049 | AC95: 1 | AF95: 23 | AG95: 0.9454632333 | AH95: 0.9381248444 | AI95: 0.9514069913 | AJ95: 0.01544204708 | AK95: 0.02237433825 | AL95: 0.02788911263
A96: 23.25 | B96: 1 | C96: 0.9913793 | D96: 0.952381 | E96: 0.968421 | F96: 0.9237288 | G96: 0.8632075 | H96: 0.9823009 | I96: 0.9363636 | J96: 0.9103448 | L96: 1 | M96: 0.9814815 | N96: 0.968 | O96: 0.9842105 | P96: 0.8836207 | Q96: 0.8338028 | R96: 1 | S96: 0.9558824 | T96: 0.856383 | V96: 1 | W96: 0.99 | X96: 0.9617835 | Y96: 0.9885714 | Z96: 0.7807018 | AA96: 0.9423868 | AB96: 0.9878049 | AC96: 1 | AF96: 23.25 | AG96: 0.9475696556 | AH96: 0.9403756556 | AI96: 0.95640605 | AJ96: 0.01468608475 | AK96: 0.02152470711 | AL96: 0.02606563
A97: 23.5 | B97: 1 | C97: 0.9913793 | D97: 0.9619048 | E97: 0.968421 | F97: 0.9237288 | G97: 0.8679245 | H97: 0.9823009 | I97: 0.9363636 | J97: 0.9103448 | L97: 1 | M97: 0.9814815 | N97: 0.968 | O97: 0.9842105 | P97: 0.8922414 | Q97: 0.8450704 | R97: 1 | S97: 0.9632353 | T97: 0.856383 | V97: 1 | W97: 0.99916674 | X97: 0.9617835 | Y97: 0.9885714 | Z97: 0.8070176 | AA97: 0.9423868 | AB97: 0.9878049 | AC97: 1 | AF97: 23.5 | AG97: 0.9491519667 | AH97: 0.9434024556 | AI97: 0.9608413675 | AJ97: 0.01439291377 | AK97: 0.02054104546 | AL97: 0.02315893382
A98: 23.75 | B98: 1 | C98: 0.9913793 | D98: 0.9619048 | E98: 0.968421 | F98: 0.9322034 | G98: 0.8726415 | H98: 0.9823009 | I98: 0.9363636 | J98: 0.9103448 | L98: 1 | M98: 0.9814815 | N98: 0.968 | O98: 0.9842105 | P98: 0.8965517 | Q98: 0.8619719 | R98: 1 | S98: 0.9705882 | T98: 0.8617021 | V98: 1 | W98: 0.99916674 | X98: 0.9617835 | Y98: 0.9885714 | Z98: 0.8070176 | AA98: 0.9423868 | AB98: 0.9878049 | AC98: 1 | AF98: 23.75 | AG98: 0.9506177 | AH98: 0.9471673222 | AI98: 0.9608413675 | AJ98: 0.01384074145 | AK98: 0.01909016867 | AL98: 0.02315893382
A99: 24 | B99: 1 | C99: 0.9913793 | D99: 0.9619048 | E99: 0.968421 | F99: 0.9322034 | G99: 0.8773585 | H99: 0.9823009 | I99: 0.9454545 | J99: 0.9241379 | L99: 1 | M99: 0.9814815 | N99: 0.968 | O99: 0.9842105 | P99: 0.8965517 | Q99: 0.8788732 | R99: 1 | S99: 0.9779412 | T99: 0.8617021 | V99: 1 | W99: 0.99916674 | X99: 0.9617835 | Y99: 0.9885714 | Z99: 0.8245614 | AA99: 0.946502 | AB99: 0.9878049 | AC99: 1 | AF99: 24 | AG99: 0.9536844778 | AH99: 0.9498622444 | AI99: 0.9635487425 | AJ99: 0.01285468462 | AK99: 0.01824914177 | AL99: 0.02102367439
A100: 24.25 | B100: 1 | C100: 0.9913793 | D100: 0.9714286 | E100: 0.9789473 | F100: 0.9322034 | G100: 0.8820755 | H100: 0.9823009 | I100: 0.9454545 | J100: 0.9310345 | L100: 1 | M100: 0.9814815 | N100: 0.968 | O100: 0.98947365 | P100: 0.9008621 | Q100: 0.8845071 | R100: 1 | S100: 0.9779412 | T100: 0.8670213 | V100: 1 | W100: 0.99916674 | X100: 0.9617835 | Y100: 0.9885714 | Z100: 0.8245614 | AA100: 0.9547325 | AB100: 1 | AC100: 1 | AF100: 24.25 | AG100: 0.9572026667 | AH100: 0.9521429833 | AI100: 0.9661019425 | AJ100: 0.01258119654 | AK100: 0.01756019448 | AL100: 0.02122457748
A101: 24.5 | B101: 1 | C101: 0.9913793 | D101: 0.9714286 | E101: 0.9789473 | F101: 0.9406779 | G101: 0.8915094 | H101: 0.9823009 | I101: 0.9454545 | J101: 0.9310345 | L101: 1 | M101: 0.9814815 | N101: 0.976 | O101: 0.98947365 | P101: 0.9008621 | Q101: 0.8901408 | R101: 1 | S101: 0.9779412 | T101: 0.8670213 | V101: 1 | W101: 0.99916674 | X101: 0.9617835 | Y101: 0.9885714 | Z101: 0.8333333 | AA101: 0.9588478 | AB101: 1 | AC101: 1 | AF101: 24.5 | AG101: 0.9591924889 | AH101: 0.9536578389 | AI101: 0.9677128425 | AJ101: 0.01159538499 | AK101: 0.017388002 | AL101: 0.02014386482
A102: 24.75 | B102: 1 | C102: 0.9913793 | D102: 0.9714286 | E102: 0.9894737 | F102: 0.9406779 | G102: 0.9103774 | H102: 0.9823009 | I102: 0.9545454 | J102: 0.9310345 | L102: 1 | M102: 0.9814815 | N102: 0.976 | O102: 0.99473685 | P102: 0.9008621 | Q102: 0.9042253 | R102: 1 | S102: 0.9779412 | T102: 0.8670213 | V102: 1 | W102: 0.99916674 | X102: 0.9617835 | Y102: 0.9885714 | Z102: 0.8421053 | AA102: 0.962963 | AB102: 1 | AC102: 1 | AF102: 24.75 | AG102: 0.9634686333 | AH102: 0.9558075833 | AI102: 0.9693237425 | AJ102: 0.01032628696 | AK102: 0.0168905587 | AL102: 0.01907036854
A103: 25 | B103: 1 | C103: 0.9913793 | D103: 0.9714286 | E103: 1 | F103: 0.9406779 | G103: 0.9103774 | H103: 0.9823009 | I103: 0.9636363 | J103: 0.9310345 | L103: 1 | M103: 0.9814815 | N103: 0.976 | O103: 1 | P103: 0.9008621 | Q103: 0.912676 | R103: 1 | S103: 0.9852941 | T103: 0.8670213 | V103: 1 | W103: 1 | X103: 0.9617835 | Y103: 0.9885714 | Z103: 0.8421053 | AA103: 0.9711934 | AB103: 1 | AC103: 1 | AF103: 25 | AG103: 0.9656483222 | AH103: 0.9581483333 | AI103: 0.9704567 | AJ103: 0.01068061618 | AK103: 0.01687712092 | AL103: 0.01907186487
A104: 25.25 | B104: 1 | C104: 0.9913793 | D104: 0.9714286 | E104: 1 | F104: 0.9406779 | G104: 0.9103774 | H104: 0.9823009 | I104: 0.9727273 | J104: 0.9310345 | L104: 1 | M104: 0.9814815 | N104: 0.976 | O104: 1 | P104: 0.9008621 | Q104: 0.9267606 | R104: 1 | S104: 0.9852941 | T104: 0.8670213 | V104: 1 | W104: 1 | X104: 0.9617835 | Y104: 0.9885714 | Z104: 0.8508772 | AA104: 0.9711934 | AB104: 1 | AC104: 1 | AF104: 25.25 | AG104: 0.9666584333 | AH104: 0.9597132889 | AI104: 0.9715531875 | AJ104: 0.01070456888 | AK104: 0.01641632575 | AL104: 0.01802021401
A105: 25.5 | B105: 1 | C105: 0.9913793 | D105: 0.9714286 | E105: 1 | F105: 0.9406779 | G105: 0.9198113 | H105: 0.9823009 | I105: 0.9727273 | J105: 0.9310345 | L105: 1 | M105: 0.9876543 | N105: 0.976 | O105: 1 | P105: 0.9008621 | Q105: 0.9267606 | R105: 1 | S105: 0.9852941 | T105: 0.8723404 | V105: 1 | W105: 1 | X105: 0.9617835 | Y105: 0.9885714 | Z105: 0.8508772 | AA105: 0.9711934 | AB105: 1 | AC105: 1 | AF105: 25.5 | AG105: 0.9677066444 | AH105: 0.9609901667 | AI105: 0.9715531875 | AJ105: 0.01004678756 | AK105: 0.01613230125 | AL105: 0.01802021401
A106: 25.75 | B106: 1 | C106: 0.9913793 | D106: 0.9714286 | E106: 1 | F106: 0.9406779 | G106: 0.9198113 | H106: 0.9823009 | I106: 0.9818182 | J106: 0.9310345 | L106: 1 | M106: 0.9876543 | N106: 0.976 | O106: 1 | P106: 0.9051724 | Q106: 0.9267606 | R106: 1 | S106: 0.9852941 | T106: 0.8776596 | V106: 1 | W106: 1 | X106: 0.9617835 | Y106: 0.9885714 | Z106: 0.8508772 | AA106: 0.9711934 | AB106: 1 | AC106: 1 | AF106: 25.75 | AG106: 0.9687167444 | AH106: 0.9620601111 | AI106: 0.9715531875 | AJ106: 0.01016002379 | AK106: 0.01550681758 | AL106: 0.01802021401
A107: 26 | B107: 1 | C107: 0.9913793 | D107: 0.9714286 | E107: 1 | F107: 0.9406779 | G107: 0.9245283 | H107: 0.9823009 | I107: 0.9818182 | J107: 0.9448276 | L107: 1 | M107: 0.9876543 | N107: 0.976 | O107: 1 | P107: 0.9051724 | Q107: 0.9323944 | R107: 1 | S107: 0.9852941 | T107: 0.8829787 | V107: 1 | W107: 1 | X107: 0.9681529 | Y107: 0.9885714 | Z107: 0.8596491 | AA107: 0.9711934 | AB107: 1 | AC107: 1 | AF107: 26 | AG107: 0.9707734222 | AH107: 0.9632771 | AI107: 0.97344585 | AJ107: 0.009208860839 | AK107: 0.01493704979 | AL107: 0.01692001296
A108: 26.25 | B108: 1 | C108: 0.9913793 | D108: 0.9714286 | E108: 1 | F108: 0.9406779 | G108: 0.9245283 | H108: 0.9911504 | I108: 0.9818182 | J108: 0.9448276 | L108: 1 | M108: 0.9938272 | N108: 0.984 | O108: 1 | P108: 0.9094828 | Q108: 0.9380282 | R108: 1 | S108: 0.9926471 | T108: 0.8829787 | V108: 1 | W108: 1 | X108: 0.9745223 | Y108: 0.9885714 | Z108: 0.8684211 | AA108: 0.9794239 | AB108: 1 | AC108: 1 | AF108: 26.25 | AG108: 0.9717567 | AH108: 0.9667737778 | AI108: 0.9763673375 | AJ108: 0.009412950192 | AK108: 0.01497228187 | AL108: 0.0158385194
A109: 26.5 | B109: 1 | C109: 0.9913793 | D109: 0.9714286 | E109: 1 | F109: 0.9491525 | G109: 0.9339623 | H109: 0.9911504 | I109: 0.9818182 | J109: 0.9448276 | L109: 1 | M109: 0.9938272 | N109: 0.984 | O109: 1 | P109: 0.9094828 | Q109: 0.9408451 | R109: 1 | S109: 0.9926471 | T109: 0.8829787 | V109: 1 | W109: 1 | X109: 0.9745223 | Y109: 0.9885714 | Z109: 0.8684211 | AA109: 0.9794239 | AB109: 1 | AC109: 1 | AF109: 26.5 | AG109: 0.9737465444 | AH109: 0.9670867667 | AI109: 0.9763673375 | AJ109: 0.008405338151 | AK109: 0.01490026593 | AL109: 0.0158385194
A110: 26.75 | B110: 1 | C110: 0.9913793 | D110: 0.9714286 | E110: 1 | F110: 0.9491525 | G110: 0.9386792 | H110: 0.9911504 | I110: 0.9909091 | J110: 0.9448276 | L110: 1 | M110: 1 | N110: 0.984 | O110: 1 | P110: 0.9094828 | Q110: 0.9464788 | R110: 1 | S110: 0.9926471 | T110: 0.8882979 | V110: 1 | W110: 1 | X110: 0.9745223 | Y110: 0.9885714 | Z110: 0.8684211 | AA110: 0.9876543 | AB110: 1 | AC110: 1 | AF110: 26.75 | AG110: 0.9752807444 | AH110: 0.9689896222 | AI110: 0.9773961375 | AJ110: 0.008284799822 | AK110: 0.01452512902 | AL110: 0.0159001755
A111: 27 | B111: 1 | C111: 0.9913793 | D111: 0.9809524 | E111: 1 | F111: 0.9491525 | G111: 0.9386792 | H111: 0.9911504 | I111: 0.9909091 | J111: 0.9517241 | L111: 1 | M111: 1 | N111: 0.984 | O111: 1 | P111: 0.9181035 | Q111: 0.9492958 | R111: 1 | S111: 0.9926471 | T111: 0.8882979 | V111: 1 | W111: 1 | X111: 0.9745223 | Y111: 0.9885714 | Z111: 0.8684211 | AA111: 0.9876543 | AB111: 1 | AC111: 1 | AF111: 27 | AG111: 0.9771052222 | AH111: 0.9702604778 | AI111: 0.9773961375 | AJ111: 0.007955449793 | AK111: 0.01399673784 | AL111: 0.0159001755
A112: 27.25 | B112: 1 | C112: 0.9913793 | D112: 0.9809524 | E112: 1 | F112: 0.9491525 | G112: 0.9433962 | H112: 0.9911504 | I112: 0.9909091 | J112: 0.9517241 | L112: 1 | M112: 1 | N112: 0.984 | O112: 1 | P112: 0.9181035 | Q112: 0.9521127 | R112: 1 | S112: 0.9926471 | T112: 0.893617 | V112: 1 | W112: 1 | X112: 0.9808917 | Y112: 0.9885714 | Z112: 0.877193 | AA112: 0.9917696 | AB112: 1 | AC112: 1 | AF112: 27.25 | AG112: 0.9776293333 | AH112: 0.9711644778 | AI112: 0.9798032125 | AJ112: 0.007650424666 | AK112: 0.01351144164 | AL112: 0.01486952598
A113: 27.5 | B113: 1 | C113: 0.9913793 | D113: 0.9809524 | E113: 1 | F113: 0.9491525 | G113: 0.9481132 | H113: 0.9911504 | I113: 0.9909091 | J113: 0.9517241 | L113: 1 | M113: 1 | N113: 0.984 | O113: 1 | P113: 0.9181035 | Q113: 0.9577465 | R113: 1 | S113: 0.9926471 | T113: 0.8989362 | V113: 1 | W113: 1 | X113: 0.9808917 | Y113: 0.9942857 | Z113: 0.8947368 | AA113: 0.9917696 | AB113: 1 | AC113: 1 | AF113: 27.5 | AG113: 0.9781534444 | AH113: 0.9723814778 | AI113: 0.982710475 | AJ113: 0.007370088102 | AK113: 0.01299107966 | AL113: 0.01278562231
A114: 27.75 | B114: 1 | C114: 0.9913793 | D114: 0.9809524 | E114: 1 | F114: 0.9491525 | G114: 0.9575472 | H114: 0.9911504 | I114: 0.9909091 | J114: 0.9517241 | L114: 1 | M114: 1 | N114: 0.992 | O114: 1 | P114: 0.9181035 | Q114: 0.9577465 | R114: 1 | S114: 0.9926471 | T114: 0.8989362 | V114: 1 | W114: 1 | X114: 0.9808917 | Y114: 0.9942857 | Z114: 0.8947368 | AA114: 0.9917696 | AB114: 1 | AC114: 1 | AF114: 27.75 | AG114: 0.9792016667 | AH114: 0.9732703667 | AI114: 0.982710475 | AJ114: 0.006895270518 | AK114: 0.01312021982 | AL114: 0.01278562231
A115: 28 | B115: 1 | C115: 0.9913793 | D115: 0.9809524 | E115: 1 | F115: 0.9491525 | G115: 0.9575472 | H115: 0.9911504 | I115: 0.9909091 | J115: 0.9586207 | L115: 1 | M115: 1 | N115: 1 | O115: 1 | P115: 0.9224138 | Q115: 0.9605634 | R115: 1 | S115: 0.9926471 | T115: 0.8989362 | V115: 1 | W115: 1 | X115: 0.9872612 | Y115: 0.9942857 | Z115: 0.9035088 | AA115: 0.9917696 | AB115: 1 | AC115: 1 | AF115: 28 | AG115: 0.9799679556 | AH115: 0.9749511667 | AI115: 0.9846031625 | AJ115: 0.006547367079 | AK115: 0.01301485487 | AL115: 0.0117083003
A116: 28.25 | B116: 1 | C116: 0.9913793 | D116: 0.9809524 | E116: 1 | F116: 0.9491525 | G116: 0.9575472 | H116: 0.9911504 | I116: 0.9909091 | J116: 0.9586207 | L116: 1 | M116: 1 | N116: 1 | O116: 1 | P116: 0.9353448 | Q116: 0.9661972 | R116: 1 | S116: 0.9926471 | T116: 0.8989362 | V116: 1 | W116: 1 | X116: 0.9872612 | Y116: 0.9942857 | Z116: 0.9035088 | AA116: 0.9917696 | AB116: 1 | AC116: 1 | AF116: 28.25 | AG116: 0.9799679556 | AH116: 0.9770139222 | AI116: 0.9846031625 | AJ116: 0.006547367079 | AK116: 0.01226764208 | AL116: 0.0117083003
A117: 28.5 | B117: 1 | C117: 0.9913793 | D117: 0.9809524 | E117: 1 | F117: 0.9491525 | G117: 0.9669811 | H117: 0.9911504 | I117: 0.9909091 | J117: 0.9586207 | L117: 1 | M117: 1 | N117: 1 | O117: 1 | P117: 0.9353448 | Q117: 0.9746479 | R117: 1 | S117: 0.9926471 | T117: 0.8989362 | V117: 1 | W117: 1 | X117: 0.9872612 | Y117: 0.9942857 | Z117: 0.9035088 | AA117: 0.9917696 | AB117: 1 | AC117: 1 | AF117: 28.5 | AG117: 0.9810161667 | AH117: 0.9779528889 | AI117: 0.9846031625 | AJ117: 0.006171818284 | AK117: 0.01219990021 | AL117: 0.0117083003
A118: 28.75 | B118: 1 | C118: 0.9913793 | D118: 0.9809524 | E118: 1 | F118: 0.9491525 | G118: 0.9669811 | H118: 0.9911504 | I118: 0.9909091 | J118: 0.9586207 | L118: 1 | M118: 1 | N118: 1 | O118: 1 | P118: 0.9353448 | Q118: 0.9746479 | R118: 1 | S118: 0.9926471 | T118: 0.9042553 | V118: 1 | W118: 1 | X118: 0.9872612 | Y118: 0.9942857 | Z118: 0.9122807 | AA118: 0.9917696 | AB118: 1 | AC118: 1 | AF118: 28.75 | AG118: 0.9810161667 | AH118: 0.9785439 | AI118: 0.98569965 | AJ118: 0.006171818284 | AK118: 0.01172654783 | AL118: 0.01062455482
A119: 29 | B119: 1 | C119: 0.9913793 | D119: 0.9809524 | E119: 1 | F119: 0.9491525 | G119: 0.9669811 | H119: 1 | I119: 0.9909091 | J119: 0.9586207 | L119: 1 | M119: 1 | N119: 1 | O119: 1 | P119: 0.9396552 | Q119: 0.9746479 | R119: 1 | S119: 1 | T119: 0.9042553 | V119: 1 | W119: 1 | X119: 0.9872612 | Y119: 0.9942857 | Z119: 0.9122807 | AA119: 0.9917696 | AB119: 1 | AC119: 1 | AF119: 29 | AG119: 0.9819994556 | AH119: 0.9798398222 | AI119: 0.98569965 | AJ119: 0.006445883782 | AK119: 0.01166272346 | AL119: 0.01062455482
A120: 29.25 | B120: 1 | C120: 0.9913793 | D120: 0.9809524 | E120: 1 | F120: 0.9491525 | G120: 0.9669811 | H120: 1 | I120: 0.9909091 | J120: 0.9586207 | L120: 1 | M120: 1 | N120: 1 | O120: 1 | P120: 0.9396552 | Q120: 0.9746479 | R120: 1 | S120: 1 | T120: 0.9042553 | V120: 1 | W120: 1 | X120: 0.9872612 | Y120: 0.9942857 | Z120: 0.9122807 | AA120: 0.9917696 | AB120: 1 | AC120: 1 | AF120: 29.25 | AG120: 0.9819994556 | AH120: 0.9798398222 | AI120: 0.98569965 | AJ120: 0.006445883782 | AK120: 0.01166272346 | AL120: 0.01062455482
A121: 29.5 | B121: 1 | C121: 0.9913793 | D121: 0.9809524 | E121: 1 | F121: 0.9576271 | G121: 0.9716981 | H121: 1 | I121: 0.9909091 | J121: 0.9586207 | L121: 1 | M121: 1 | N121: 1 | O121: 1 | P121: 0.9439655 | Q121: 0.9746479 | R121: 1 | S121: 1 | T121: 0.9042553 | V121: 1 | W121: 1 | X121: 0.9872612 | Y121: 0.9942857 | Z121: 0.9122807 | AA121: 0.9917696 | AB121: 1 | AC121: 1 | AF121: 29.5 | AG121: 0.9834651889 | AH121: 0.9803187444 | AI121: 0.98569965 | AJ121: 0.005734736816 | AK121: 0.01146460456 | AL121: 0.01062455482
A122: 29.75 | B122: 1 | C122: 0.9913793 | D122: 0.9809524 | E122: 1 | F122: 0.9576271 | G122: 0.9716981 | H122: 1 | I122: 0.9909091 | J122: 0.9586207 | L122: 1 | M122: 1 | N122: 1 | O122: 1 | P122: 0.9439655 | Q122: 0.9746479 | R122: 1 | S122: 1 | T122: 0.9148936 | V122: 1 | W122: 1 | X122: 0.9872612 | Y122: 0.9942857 | Z122: 0.9122807 | AA122: 0.9917696 | AB122: 1 | AC122: 1 | AF122: 29.75 | AG122: 0.9834651889 | AH122: 0.9815007778 | AI122: 0.98569965 | AJ122: 0.005734736816 | AK122: 0.010505093 | AL122: 0.01062455482
A123: 30 | B123: 1 | C123: 0.9913793 | D123: 0.9904762 | E123: 1 | F123: 0.9661017 | G123: 0.9764151 | H123: 1 | I123: 0.9909091 | J123: 0.9586207 | L123: 1 | M123: 1 | N123: 1 | O123: 1 | P123: 0.9482759 | Q123: 0.9746479 | R123: 1 | S123: 1 | T123: 0.9148936 | V123: 1 | W123: 1 | X123: 0.9872612 | Y123: 0.9942857 | Z123: 0.9122807 | AA123: 0.9917696 | AB123: 1 | AC123: 1 | AF123: 30 | AG123: 0.9859891222 | AH123: 0.9819797111 | AI123: 0.98569965 | AJ123: 0.005134997231 | AK123: 0.0103001035 | AL123: 0.01062455482
A124: 30.25 | B124: 1 | C124: 0.9913793 | D124: 0.9904762 | E124: 1 | F124: 0.9745763 | G124: 0.9764151 | H124: 1 | I124: 0.9909091 | J124: 0.9655172 | L124: 1 | M124: 1 | N124: 1 | O124: 1 | P124: 0.9525862 | Q124: 0.9774648 | R124: 1 | S124: 1 | T124: 0.9148936 | V124: 1 | W124: 1 | X124: 0.9936306 | Y124: 0.9942857 | Z124: 0.9122807 | AA124: 0.9917696 | AB124: 1 | AC124: 1 | AF124: 30.25 | AG124: 0.9876970222 | AH124: 0.9827716222 | AI124: 0.986495825 | AJ124: 0.004211541456 | AK124: 0.01008825636 | AL124: 0.01067100178
A125: 30.5 | B125: 1 | C125: 0.9913793 | D125: 0.9904762 | E125: 1 | F125: 0.9745763 | G125: 0.9811321 | H125: 1 | I125: 0.9909091 | J125: 0.9655172 | L125: 1 | M125: 1 | N125: 1 | O125: 1 | P125: 0.9568965 | Q125: 0.9774648 | R125: 1 | S125: 1 | T125: 0.9148936 | V125: 1 | W125: 1 | X125: 0.9936306 | Y125: 0.9942857 | Z125: 0.9122807 | AA125: 0.9917696 | AB125: 1 | AC125: 1 | AF125: 30.5 | AG125: 0.9882211333 | AH125: 0.9832505444 | AI125: 0.986495825 | AJ125: 0.004066144205 | AK125: 0.009919080882 | AL125: 0.01067100178
A126: 30.75 | B126: 1 | C126: 0.9913793 | D126: 0.9904762 | E126: 1 | F126: 0.9745763 | G126: 0.9811321 | H126: 1 | I126: 0.9909091 | J126: 0.9655172 | L126: 1 | M126: 1 | N126: 1 | O126: 1 | P126: 0.9568965 | Q126: 0.9774648 | R126: 1 | S126: 1 | T126: 0.9148936 | V126: 1 | W126: 1 | X126: 1 | Y126: 0.9942857 | Z126: 0.9122807 | AA126: 0.9917696 | AB126: 1 | AC126: 1 | AF126: 30.75 | AG126: 0.9882211333 | AH126: 0.9832505444 | AI126: 0.987292 | AJ126: 0.004066144205 | AK126: 0.009919080882 | AL126: 0.01077623227
A127: 31 | B127: 1 | C127: 0.9913793 | D127: 0.9904762 | E127: 1 | F127: 0.9745763 | G127: 0.9811321 | H127: 1 | I127: 0.9909091 | J127: 0.9724138 | L127: 1 | M127: 1 | N127: 1 | O127: 1 | P127: 0.9568965 | Q127: 0.9802817 | R127: 1 | S127: 1 | T127: 0.9148936 | V127: 1 | W127: 1 | X127: 1 | Y127: 0.9942857 | Z127: 0.9122807 | AA127: 0.9917696 | AB127: 1 | AC127: 1 | AF127: 31 | AG127: 0.9889874222 | AH127: 0.9835635333 | AI127: 0.987292 | AJ127: 0.003573693383 | AK127: 0.00990118221 | AL127: 0.01077623227
A128: 31.25 | B128: 1 | C128: 0.9913793 | D128: 0.9904762 | E128: 1 | F128: 0.9745763 | G128: 0.9811321 | H128: 1 | I128: 0.9909091 | J128: 0.9862069 | L128: 1 | M128: 1 | N128: 1 | O128: 1 | P128: 0.9612069 | Q128: 0.9802817 | R128: 1 | S128: 1 | T128: 0.9148936 | V128: 1 | W128: 1 | X128: 1 | Y128: 0.9942857 | Z128: 0.9122807 | AA128: 0.9917696 | AB128: 1 | AC128: 1 | AF128: 31.25 | AG128: 0.9905199889 | AH128: 0.9840424667 | AI128: 0.987292 | AJ128: 0.002961418535 | AK128: 0.009750377096 | AL128: 0.01077623227
A129: 31.5 | B129: 1 | C129: 0.9913793 | D129: 0.9904762 | E129: 1 | F129: 0.9745763 | G129: 0.9811321 | H129: 1 | I129: 0.9909091 | J129: 0.9862069 | L129: 1 | M129: 1 | N129: 1 | O129: 1 | P129: 0.9612069 | Q129: 0.9802817 | R129: 1 | S129: 1 | T129: 0.9202127 | V129: 1 | W129: 1 | X129: 1 | Y129: 0.9942857 | Z129: 0.9122807 | AA129: 0.9917696 | AB129: 1 | AC129: 1 | AF129: 31.5 | AG129: 0.9905199889 | AH129: 0.9846334778 | AI129: 0.987292 | AJ129: 0.002961418535 | AK129: 0.009230504348 | AL129: 0.01077623227
A130: 31.75 | B130: 1 | C130: 0.9913793 | D130: 0.9904762 | E130: 1 | F130: 0.9745763 | G130: 0.9811321 | H130: 1 | I130: 0.9909091 | J130: 0.9862069 | L130: 1 | M130: 1 | N130: 1 | O130: 1 | P130: 0.9612069 | Q130: 0.9802817 | R130: 1 | S130: 1 | T130: 0.9202127 | V130: 1 | W130: 1 | X130: 1 | Y130: 0.9942857 | Z130: 0.9122807 | AA130: 0.9917696 | AB130: 1 | AC130: 1 | AF130: 31.75 | AG130: 0.9905199889 | AH130: 0.9846334778 | AI130: 0.987292 | AJ130: 0.002961418535 | AK130: 0.009230504348 | AL130: 0.01077623227
A131: 32 | B131: 1 | C131: 0.9913793 | D131: 0.9904762 | E131: 1 | F131: 0.9745763 | G131: 0.9811321 | H131: 1 | I131: 0.9909091 | J131: 0.9862069 | L131: 1 | M131: 1 | N131: 1 | O131: 1 | P131: 0.9655172 | Q131: 0.9802817 | R131: 1 | S131: 1 | T131: 0.9202127 | V131: 1 | W131: 1 | X131: 1 | Y131: 0.9942857 | Z131: 0.9122807 | AA131: 0.9958848 | AB131: 1 | AC131: 1 | AF131: =A131 -> 32 | AG131: =AVERAGE(B131:J131) -> 0.9905199889 | AH131: =AVERAGE(L131:T131) -> 0.9851124 | AI131: =AVERAGE(V131:AD131) -> 0.9878064 | AJ131: =STDEV(B131:J131)/SQRT(COUNT(B131:J131)) -> 0.002961418535 | AK131: =STDEV(L131:T131)/SQRT(COUNT(L131:T131)) -> 0.009089922983 | AL131: =STDEV(V131:AD131)/SQRT(COUNT(V131:AD131)) -> 0.01081895876
A132: 32.25 | B132: 1 | C132: 0.9913793 | D132: 0.9904762 | E132: 1 | F132: 0.9745763 | G132: 0.9811321 | H132: 1 | I132: 0.9909091 | J132: 0.9931034 | L132: 1 | M132: 1 | N132: 1 | O132: 1 | P132: 0.9655172 | Q132: 0.9802817 | R132: 1 | S132: 1 | T132: 0.9255319 | V132: 1 | W132: 1 | X132: 1 | Y132: 0.9942857 | Z132: 0.9122807 | AA132: 0.9958848 | AB132: 1 | AC132: 1 | AF132: 32.25 | AG132: 0.9912862667 | AH132: 0.9857034222 | AI132: 0.9878064 | AJ132: 0.002920774783 | AK132: 0.008566604688 | AL132: 0.01081895876
A133: 32.5 | B133: 1 | C133: 1 | D133: 0.9904762 | E133: 1 | F133: 0.9830508 | G133: 0.9811321 | H133: 1 | I133: 0.9909091 | J133: 0.9931034 | L133: 1 | M133: 1 | N133: 1 | O133: 1 | P133: 0.9655172 | Q133: 0.9802817 | R133: 1 | S133: 1 | T133: 0.9255319 | V133: 1 | W133: 1 | X133: 1 | Y133: 0.9942857 | Z133: 0.9122807 | AA133: 0.9958848 | AB133: 1 | AC133: 1 | AF133: 32.5 | AG133: 0.9931857333 | AH133: 0.9857034222 | AI133: 0.9878064 | AJ133: 0.002489632057 | AK133: 0.008566604688 | AL133: 0.01081895876
A134: 32.75 | B134: 1 | C134: 1 | D134: 0.9904762 | E134: 1 | F134: 0.9830508 | G134: 0.9858491 | H134: 1 | I134: 0.9909091 | J134: 0.9931034 | L134: 1 | M134: 1 | N134: 1 | O134: 1 | P134: 0.9655172 | Q134: 0.9802817 | R134: 1 | S134: 1 | T134: 0.9255319 | V134: 1 | W134: 1 | X134: 1 | Y134: 0.9942857 | Z134: 0.9122807 | AA134: 0.9958848 | AB134: 1 | AC134: 1 | AF134: 32.75 | AG134: 0.9937098444 | AH134: 0.9857034222 | AI134: 0.9878064 | AJ134: 0.002212148152 | AK134: 0.008566604688 | AL134: 0.01081895876
A135: 33 | B135: 1 | C135: 1 | D135: 0.9904762 | E135: 1 | F135: 0.9830508 | G135: 0.9858491 | H135: 1 | I135: 0.9909091 | J135: 0.9931034 | L135: 1 | M135: 1 | N135: 1 | O135: 1 | P135: 0.9655172 | Q135: 0.9830986 | R135: 1 | S135: 1 | T135: 0.9255319 | V135: 1 | W135: 1 | X135: 1 | Y135: 0.9942857 | Z135: 0.9122807 | AA135: 0.9958848 | AB135: 1 | AC135: 1 | AF135: 33 | AG135: 0.9937098444 | AH135: 0.9860164111 | AI135: 0.9878064 | AJ135: 0.002212148152 | AK135: 0.008547540185 | AL135: 0.01081895876
A136: 33.25 | B136: 1 | C136: 1 | D136: 0.9904762 | E136: 1 | F136: 0.9830508 | G136: 0.9858491 | H136: 1 | I136: 0.9909091 | J136: 0.9931034 | L136: 1 | M136: 1 | N136: 1 | O136: 1 | P136: 0.9655172 | Q136: 0.9859155 | R136: 1 | S136: 1 | T136: 0.9255319 | V136: 1 | W136: 1 | X136: 1 | Y136: 0.9942857 | Z136: 0.9210526 | AA136: 0.9958848 | AB136: 1 | AC136: 1 | AF136: 33.25 | AG136: 0.9937098444 | AH136: 0.9863294 | AI136: 0.9889028875 | AJ136: 0.002212148152 | AK136: 0.008539911864 | AL136: 0.009725805894
A137: 33.5 | B137: 1 | C137: 1 | D137: 0.9904762 | E137: 1 | F137: 0.9830508 | G137: 0.9858491 | H137: 1 | I137: 0.9909091 | J137: 0.9931034 | L137: 1 | M137: 1 | N137: 1 | O137: 1 | P137: 0.9655172 | Q137: 0.9859155 | R137: 1 | S137: 1 | T137: 0.930851 | V137: 1 | W137: 1 | X137: 1 | Y137: 0.9942857 | Z137: 0.9210526 | AA137: 0.9958848 | AB137: 1 | AC137: 1 | AF137: 33.5 | AG137: 0.9937098444 | AH137: 0.9869204111 | AI137: 0.9889028875 | AJ137: 0.002212148152 | AK137: 0.008018502932 | AL137: 0.009725805894
A138: 33.75 | B138: 1 | C138: 1 | D138: 0.9904762 | E138: 1 | F138: 0.9830508 | G138: 0.990566 | H138: 1 | I138: 0.9909091 | J138: 0.9931034 | L138: 1 | M138: 1 | N138: 1 | O138: 1 | P138: 0.9698276 | Q138: 0.9859155 | R138: 1 | S138: 1 | T138: 0.9361702 | V138: 1 | W138: 1 | X138: 1 | Y138: 0.9942857 | Z138: 0.9210526 | AA138: 0.9958848 | AB138: 1 | AC138: 1 | AF138: 33.75 | AG138: 0.9942339444 | AH138: 0.9879903667 | AI138: 0.9889028875 | AJ138: 0.002034287643 | AK138: 0.00734554721 | AL138: 0.009725805894
A139: 34 | B139: 1 | C139: 1 | D139: 0.9904762 | E139: 1 | F139: 0.9830508 | G139: 0.990566 | H139: 1 | I139: 0.9909091 | J139: 0.9931034 | L139: 1 | M139: 1 | N139: 1 | O139: 1 | P139: 0.9698276 | Q139: 0.9859155 | R139: 1 | S139: 1 | T139: 0.9361702 | V139: 1 | W139: 1 | X139: 1 | Y139: 0.9942857 | Z139: 0.9210526 | AA139: 0.9958848 | AB139: 1 | AC139: 1 | AF139: 34 | AG139: 0.9942339444 | AH139: 0.9879903667 | AI139: 0.9889028875 | AJ139: 0.002034287643 | AK139: 0.00734554721 | AL139: 0.009725805894
A140: 34.25 | B140: 1 | C140: 1 | D140: 0.9904762 | E140: 1 | F140: 0.9830508 | G140: 0.990566 | H140: 1 | I140: 0.9909091 | J140: 0.9931034 | L140: 1 | M140: 1 | N140: 1 | O140: 1 | P140: 0.9698276 | Q140: 0.9887324 | R140: 1 | S140: 1 | T140: 0.9361702 | V140: 1 | W140: 1 | X140: 1 | Y140: 0.9942857 | Z140: 0.9210526 | AA140: 0.9958848 | AB140: 1 | AC140: 1 | AF140: 34.25 | AG140: 0.9942339444 | AH140: 0.9883033556 | AI140: 0.9889028875 | AJ140: 0.002034287643 | AK140: 0.00734116294 | AL140: 0.009725805894
A141: 34.5 | B141: 1 | C141: 1 | D141: 0.9904762 | E141: 1 | F141: 0.9830508 | G141: 0.990566 | H141: 1 | I141: 0.9909091 | J141: 0.9931034 | L141: 1 | M141: 1 | N141: 1 | O141: 1 | P141: 0.9698276 | Q141: 0.9887324 | R141: 1 | S141: 1 | T141: 0.9361702 | V141: 1 | W141: 1 | X141: 1 | Y141: 0.9942857 | Z141: 0.9210526 | AA141: 0.9958848 | AB141: 1 | AC141: 1 | AF141: 34.5 | AG141: 0.9942339444 | AH141: 0.9883033556 | AI141: 0.9889028875 | AJ141: 0.002034287643 | AK141: 0.00734116294 | AL141: 0.009725805894
A142: 34.75 | B142: 1 | C142: 1 | D142: 0.9904762 | E142: 1 | F142: 0.9830508 | G142: 0.990566 | H142: 1 | I142: 0.9909091 | J142: 0.9931034 | L142: 1 | M142: 1 | N142: 1 | O142: 1 | P142: 0.9698276 | Q142: 0.9887324 | R142: 1 | S142: 1 | T142: 0.9361702 | V142: 1 | W142: 1 | X142: 1 | Y142: 0.9942857 | Z142: 0.9210526 | AA142: 0.9958848 | AB142: 1 | AC142: 1 | AF142: 34.75 | AG142: 0.9942339444 | AH142: 0.9883033556 | AI142: 0.9889028875 | AJ142: 0.002034287643 | AK142: 0.00734116294 | AL142: 0.009725805894
A143: 35 | B143: 1 | C143: 1 | D143: 0.9904762 | E143: 1 | F143: 0.9830508 | G143: 0.990566 | H143: 1 | I143: 0.9909091 | J143: 0.9931034 | L143: 1 | M143: 1 | N143: 1 | O143: 1 | P143: 0.9698276 | Q143: 0.9887324 | R143: 1 | S143: 1 | T143: 0.9414893 | V143: 1 | W143: 1 | X143: 1 | Y143: 0.9942857 | Z143: 0.9298246 | AA143: 0.9958848 | AB143: 1 | AC143: 1 | AF143: 35 | AG143: 0.9942339444 | AH143: 0.9888943667 | AI143: 0.9899993875 | AJ143: 0.002034287643 | AK143: 0.006821960781 | AL143: 0.008633486361
A144: 35.25 | B144: 1 | C144: 1 | D144: 0.9904762 | E144: 1 | F144: 0.9830508 | G144: 0.990566 | H144: 1 | I144: 0.9909091 | J144: 0.9931034 | L144: 1 | M144: 1 | N144: 1 | O144: 1 | P144: 0.9698276 | Q144: 0.9887324 | R144: 1 | S144: 1 | T144: 0.9414893 | V144: 1 | W144: 1 | X144: 1 | Y144: 0.9942857 | Z144: 0.9298246 | AA144: 0.9958848 | AB144: 1 | AC144: 1 | AF144: 35.25 | AG144: 0.9942339444 | AH144: 0.9888943667 | AI144: 0.9899993875 | AJ144: 0.002034287643 | AK144: 0.006821960781 | AL144: 0.008633486361
A145: 35.5 | B145: 1 | C145: 1 | D145: 0.9904762 | E145: 1 | F145: 0.9830508 | G145: 0.990566 | H145: 1 | I145: 0.9909091 | J145: 0.9931034 | L145: 1 | M145: 1 | N145: 1 | O145: 1 | P145: 0.9698276 | Q145: 0.9887324 | R145: 1 | S145: 1 | T145: 0.9414893 | V145: 1 | W145: 1 | X145: 1 | Y145: 0.9942857 | Z145: 0.9298246 | AA145: 0.9958848 | AB145: 1 | AC145: 1 | AF145: 35.5 | AG145: 0.9942339444 | AH145: 0.9888943667 | AI145: 0.9899993875 | AJ145: 0.002034287643 | AK145: 0.006821960781 | AL145: 0.008633486361
A146: 35.75 | B146: 1 | C146: 1 | D146: 0.9904762 | E146: 1 | F146: 0.9830508 | G146: 0.990566 | H146: 1 | I146: 0.9909091 | J146: 0.9931034 | L146: 1 | M146: 1 | N146: 1 | O146: 1 | P146: 0.9698276 | Q146: 0.9887324 | R146: 1 | S146: 1 | T146: 0.9414893 | V146: 1 | W146: 1 | X146: 1 | Y146: 0.9942857 | Z146: 0.9298246 | AA146: 0.9958848 | AB146: 1 | AC146: 1 | AF146: 35.75 | AG146: 0.9942339444 | AH146: 0.9888943667 | AI146: 0.9899993875 | AJ146: 0.002034287643 | AK146: 0.006821960781 | AL146: 0.008633486361
A147: 36 | B147: 1 | C147: 1 | D147: 0.9904762 | E147: 1 | F147: 0.9830508 | G147: 0.990566 | H147: 1 | I147: 0.9909091 | J147: 0.9931034 | L147: 1 | M147: 1 | N147: 1 | O147: 1 | P147: 0.9698276 | Q147: 0.9887324 | R147: 1 | S147: 1 | T147: 0.9414893 | V147: 1 | W147: 1 | X147: 1 | Y147: 0.9942857 | Z147: 0.9298246 | AA147: 0.9958848 | AB147: 1 | AC147: 1 | AF147: 36 | AG147: 0.9942339444 | AH147: 0.9888943667 | AI147: 0.9899993875 | AJ147: 0.002034287643 | AK147: 0.006821960781 | AL147: 0.008633486361
A148: 36.25 | B148: 1 | C148: 1 | D148: 0.9904762 | E148: 1 | F148: 0.9830508 | G148: 0.990566 | H148: 1 | I148: 0.9909091 | J148: 0.9931034 | L148: 1 | M148: 1 | N148: 1 | O148: 1 | P148: 0.9698276 | Q148: 0.9887324 | R148: 1 | S148: 1 | T148: 0.9468085 | V148: 1 | W148: 1 | X148: 1 | Y148: 0.9942857 | Z148: 0.9385965 | AA148: 0.9958848 | AB148: 1 | AC148: 1 | AF148: 36.25 | AG148: 0.9942339444 | AH148: 0.9894853889 | AI148: 0.991095875 | AJ148: 0.002034287643 | AK148: 0.006315385515 | AL148: 0.007542392539
A149: 36.5 | B149: 1 | C149: 1 | D149: 0.9904762 | E149: 1 | F149: 0.9830508 | G149: 0.990566 | H149: 1 | I149: 0.9909091 | J149: 0.9931034 | L149: 1 | M149: 1 | N149: 1 | O149: 1 | P149: 0.9698276 | Q149: 0.9887324 | R149: 1 | S149: 1 | T149: 0.9468085 | V149: 1 | W149: 1 | X149: 1 | Y149: 0.9942857 | Z149: 0.9385965 | AA149: 0.9958848 | AB149: 1 | AC149: 1 | AF149: 36.5 | AG149: 0.9942339444 | AH149: 0.9894853889 | AI149: 0.991095875 | AJ149: 0.002034287643 | AK149: 0.006315385515 | AL149: 0.007542392539
A150: 36.75 | B150: 1 | C150: 1 | D150: 0.9904762 | E150: 1 | F150: 0.9830508 | G150: 0.990566 | H150: 1 | I150: 0.9909091 | J150: 0.9931034 | L150: 1 | M150: 1 | N150: 1 | O150: 1 | P150: 0.9741379 | Q150: 0.9887324 | R150: 1 | S150: 1 | T150: 0.9468085 | V150: 1 | W150: 1 | X150: 1 | Y150: 0.9942857 | Z150: 0.9385965 | AA150: 0.9958848 | AB150: 1 | AC150: 1 | AF150: 36.75 | AG150: 0.9942339444 | AH150: 0.9899643111 | AI150: 0.991095875 | AJ150: 0.002034287643 | AK150: 0.006144902173 | AL150: 0.007542392539
A151: 37 | B151: 1 | C151: 1 | D151: 0.9904762 | E151: 1 | F151: 0.9830508 | G151: 0.990566 | H151: 1 | I151: 0.9909091 | J151: 0.9931034 | L151: 1 | M151: 1 | N151: 1 | O151: 1 | P151: 0.9741379 | Q151: 0.9887324 | R151: 1 | S151: 1 | T151: 0.9521276 | V151: 1 | W151: 1 | X151: 1 | Y151: 0.9942857 | Z151: 0.9385965 | AA151: 0.9958848 | AB151: 1 | AC151: 1 | AF151: 37 | AG151: 0.9942339444 | AH151: 0.9905553222 | AI151: 0.991095875 | AJ151: 0.002034287643 | AK151: 0.005633180796 | AL151: 0.007542392539
A152: 37.25 | B152: 1 | C152: 1 | D152: 0.9904762 | E152: 1 | F152: 0.9830508 | G152: 0.990566 | H152: 1 | I152: 0.9909091 | J152: 0.9931034 | L152: 1 | M152: 1 | N152: 1 | O152: 1 | P152: 0.9741379 | Q152: 0.9887324 | R152: 1 | S152: 1 | T152: 0.9521276 | V152: 1 | W152: 1 | X152: 1 | Y152: 0.9942857 | Z152: 0.9385965 | AA152: 0.9958848 | AB152: 1 | AC152: 1 | AF152: 37.25 | AG152: 0.9942339444 | AH152: 0.9905553222 | AI152: 0.991095875 | AJ152: 0.002034287643 | AK152: 0.005633180796 | AL152: 0.007542392539
A153: 37.5 | B153: 1 | C153: 1 | D153: 0.9904762 | E153: 1 | F153: 0.9830508 | G153: 0.990566 | H153: 1 | I153: 0.9909091 | J153: 0.9931034 | L153: 1 | M153: 1 | N153: 1 | O153: 1 | P153: 0.9741379 | Q153: 0.9887324 | R153: 1 | S153: 1 | T153: 0.9521276 | V153: 1 | W153: 1 | X153: 1 | Y153: 0.9942857 | Z153: 0.9385965 | AA153: 0.9958848 | AB153: 1 | AC153: 1 | AF153: 37.5 | AG153: 0.9942339444 | AH153: 0.9905553222 | AI153: 0.991095875 | AJ153: 0.002034287643 | AK153: 0.005633180796 | AL153: 0.007542392539
A154: 37.75 | B154: 1 | C154: 1 | D154: 0.9904762 | E154: 1 | F154: 0.9830508 | G154: 0.990566 | H154: 1 | I154: 0.9909091 | J154: 0.9931034 | L154: 1 | M154: 1 | N154: 1 | O154: 1 | P154: 0.9827586 | Q154: 0.9887324 | R154: 1 | S154: 1 | T154: 0.9521276 | V154: 1 | W154: 1 | X154: 1 | Y154: 0.9942857 | Z154: 0.9561403 | AA154: 0.9958848 | AB154: 1 | AC154: 1 | AF154: 37.75 | AG154: 0.9942339444 | AH154: 0.9915131778 | AI154: 0.99328885 | AJ154: 0.002034287643 | AK154: 0.005358995556 | AL154: 0.005366804558
A155: 38 | B155: 1 | C155: 1 | D155: 0.9904762 | E155: 1 | F155: 0.9830508 | G155: 0.990566 | H155: 1 | I155: 0.9909091 | J155: 0.9931034 | L155: 1 | M155: 1 | N155: 1 | O155: 1 | P155: 0.9827586 | Q155: 0.9887324 | R155: 1 | S155: 1 | T155: 0.9521276 | V155: 1 | W155: 1 | X155: 1 | Y155: 0.9942857 | Z155: 0.9561403 | AA155: 0.9958848 | AB155: 1 | AC155: 1 | AF155: 38 | AG155: 0.9942339444 | AH155: 0.9915131778 | AI155: 0.99328885 | AJ155: 0.002034287643 | AK155: 0.005358995556 | AL155: 0.005366804558
A156: 38.25 | B156: 1 | C156: 1 | D156: 0.9904762 | E156: 1 | F156: 0.9830508 | G156: 0.990566 | H156: 1 | I156: 0.9909091 | J156: 0.9931034 | L156: 1 | M156: 1 | N156: 1 | O156: 1 | P156: 0.9827586 | Q156: 0.9887324 | R156: 1 | S156: 1 | T156: 0.9521276 | V156: 1 | W156: 1 | X156: 1 | Y156: 0.9942857 | Z156: 0.9561403 | AA156: 0.9958848 | AB156: 1 | AC156: 1 | AF156: 38.25 | AG156: 0.9942339444 | AH156: 0.9915131778 | AI156: 0.99328885 | AJ156: 0.002034287643 | AK156: 0.005358995556 | AL156: 0.005366804558
A157: 38.5 | B157: 1 | C157: 1 | D157: 0.9904762 | E157: 1 | F157: 0.9830508 | G157: 0.990566 | H157: 1 | I157: 0.9909091 | J157: 0.9931034 | L157: 1 | M157: 1 | N157: 1 | O157: 1 | P157: 0.9827586 | Q157: 0.9887324 | R157: 1 | S157: 1 | T157: 0.9521276 | V157: 1 | W157: 1 | X157: 1 | Y157: 0.9942857 | Z157: 0.9561403 | AA157: 0.9958848 | AB157: 1 | AC157: 1 | AF157: 38.5 | AG157: 0.9942339444 | AH157: 0.9915131778 | AI157: 0.99328885 | AJ157: 0.002034287643 | AK157: 0.005358995556 | AL157: 0.005366804558
A158: 38.75 | B158: 1 | C158: 1 | D158: 0.9904762 | E158: 1 | F158: 0.9830508 | G158: 0.990566 | H158: 1 | I158: 1 | J158: 0.9931034 | L158: 1 | M158: 1 | N158: 1 | O158: 1 | P158: 0.9827586 | Q158: 0.9887324 | R158: 1 | S158: 1 | T158: 0.9521276 | V158: 1 | W158: 1 | X158: 1 | Y158: 0.9942857 | Z158: 0.9561403 | AA158: 0.9958848 | AB158: 1 | AC158: 1 | AF158: 38.75 | AG158: 0.9952440444 | AH158: 0.9915131778 | AI158: 0.99328885 | AJ158: 0.002078225657 | AK158: 0.005358995556 | AL158: 0.005366804558
A159: 39 | B159: 1 | C159: 1 | D159: 0.9904762 | E159: 1 | F159: 0.9830508 | G159: 0.990566 | H159: 1 | I159: 1 | J159: 0.9931034 | L159: 1 | M159: 1 | N159: 1 | O159: 1 | P159: 0.9827586 | Q159: 0.9915493 | R159: 1 | S159: 1 | T159: 0.9521276 | V159: 1 | W159: 1 | X159: 1 | Y159: 0.9942857 | Z159: 0.9561403 | AA159: 0.9958848 | AB159: 1 | AC159: 1 | AF159: 39 | AG159: 0.9952440444 | AH159: 0.9918261667 | AI159: 0.99328885 | AJ159: 0.002078225657 | AK159: 0.005347822667 | AL159: 0.005366804558
A160: 39.25 | B160: 1 | C160: 1 | D160: 0.9904762 | E160: 1 | F160: 0.9830508 | G160: 0.990566 | H160: 1 | I160: 1 | J160: 0.9931034 | L160: 1 | M160: 1 | N160: 1 | O160: 1 | P160: 0.9827586 | Q160: 0.9943662 | R160: 1 | S160: 1 | T160: 0.9521276 | V160: 1 | W160: 1 | X160: 1 | Y160: 0.9942857 | Z160: 0.9561403 | AA160: 0.9958848 | AB160: 1 | AC160: 1 | AF160: 39.25 | AG160: 0.9952440444 | AH160: 0.9921391556 | AI160: 0.99328885 | AJ160: 0.002078225657 | AK160: 0.005354951473 | AL160: 0.005366804558
A161: 39.5 | B161: 1 | C161: 1 | D161: 0.9904762 | E161: 1 | F161: 0.9830508 | G161: 0.990566 | H161: 1 | I161: 1 | J161: 0.9931034 | L161: 1 | M161: 1 | N161: 1 | O161: 1 | P161: 0.9827586 | Q161: 0.9971831 | R161: 1 | S161: 1 | T161: 0.9521276 | V161: 1 | W161: 1 | X161: 1 | Y161: 0.9942857 | Z161: 0.9649123 | AA161: 0.9958848 | AB161: 1 | AC161: 1 | AF161: 39.5 | AG161: 0.9952440444 | AH161: 0.9924521444 | AI161: 0.99438535 | AJ161: 0.002078225657 | AK161: 0.005380309225 | AL161: 0.004285649705
A162: 39.75 | B162: 1 | C162: 1 | D162: 0.9904762 | E162: 1 | F162: 0.9830508 | G162: 0.990566 | H162: 1 | I162: 1 | J162: 0.9931034 | L162: 1 | M162: 1 | N162: 1 | O162: 1 | P162: 0.9827586 | Q162: 0.9971831 | R162: 1 | S162: 1 | T162: 0.9521276 | V162: 1 | W162: 1 | X162: 1 | Y162: 0.9942857 | Z162: 0.9649123 | AA162: 0.9958848 | AB162: 1 | AC162: 1 | AF162: 39.75 | AG162: 0.9952440444 | AH162: 0.9924521444 | AI162: 0.99438535 | AJ162: 0.002078225657 | AK162: 0.005380309225 | AL162: 0.004285649705
A163: 40 | B163: 1 | C163: 1 | D163: 0.9904762 | E163: 1 | F163: 0.9830508 | G163: 0.990566 | H163: 1 | I163: 1 | J163: 0.9931034 | L163: 1 | M163: 1 | N163: 1 | O163: 1 | P163: 0.9827586 | Q163: 0.9971831 | R163: 1 | S163: 1 | T163: 0.9521276 | V163: 1 | W163: 1 | X163: 1 | Y163: 0.9942857 | Z163: 0.9649123 | AA163: 0.9958848 | AB163: 1 | AC163: 1 | AF163: 40 | AG163: 0.9952440444 | AH163: 0.9924521444 | AI163: 0.99438535 | AJ163: 0.002078225657 | AK163: 0.005380309225 | AL163: 0.004285649705
A164: 40.25 | B164: 1 | C164: 1 | D164: 1 | E164: 1 | F164: 0.9830508 | G164: 0.995283 | H164: 1 | I164: 1 | J164: 0.9931034 | L164: 1 | M164: 1 | N164: 1 | O164: 1 | P164: 0.9827586 | Q164: 0.9971831 | R164: 1 | S164: 1 | T164: 0.9521276 | V164: 1 | W164: 1 | X164: 1 | Y164: 0.9942857 | Z164: 0.9649123 | AA164: 0.9958848 | AB164: 1 | AC164: 1 | AF164: 40.25 | AG164: 0.9968263556 | AH164: 0.9924521444 | AI164: 0.99438535 | AJ164: 0.001923684217 | AK164: 0.005380309225 | AL164: 0.004285649705
A165: 40.5 | B165: 1 | C165: 1 | D165: 1 | E165: 1 | F165: 0.9830508 | G165: 0.995283 | H165: 1 | I165: 1 | J165: 0.9931034 | L165: 1 | M165: 1 | N165: 1 | O165: 1 | P165: 0.9827586 | Q165: 0.9971831 | R165: 1 | S165: 1 | T165: 0.9521276 | V165: 1 | W165: 1 | X165: 1 | Y165: 0.9942857 | Z165: 0.9649123 | AA165: 0.9958848 | AB165: 1 | AC165: 1 | AF165: 40.5 | AG165: 0.9968263556 | AH165: 0.9924521444 | AI165: 0.99438535 | AJ165: 0.001923684217 | AK165: 0.005380309225 | AL165: 0.004285649705
A166: 40.75 | B166: 1 | C166: 1 | D166: 1 | E166: 1 | F166: 0.9830508 | G166: 0.995283 | H166: 1 | I166: 1 | J166: 0.9931034 | L166: 1 | M166: 1 | N166: 1 | O166: 1 | P166: 0.987069 | Q166: 0.9971831 | R166: 1 | S166: 1 | T166: 0.9521276 | V166: 1 | W166: 1 | X166: 1 | Y166: 0.9942857 | Z166: 0.9649123 | AA166: 0.9958848 | AB166: 1 | AC166: 1 | AF166: 40.75 | AG166: 0.9968263556 | AH166: 0.9929310778 | AI166: 0.99438535 | AJ166: 0.001923684217 | AK166: 0.005293058106 | AL166: 0.004285649705
A167: 41 | B167: 1 | C167: 1 | D167: 1 | E167: 1 | F167: 0.9830508 | G167: 0.995283 | H167: 1 | I167: 1 | J167: 0.9931034 | L167: 1 | M167: 1 | N167: 1 | O167: 1 | P167: 0.987069 | Q167: 0.9971831 | R167: 1 | S167: 1 | T167: 0.9521276 | V167: 1 | W167: 1 | X167: 1 | Y167: 0.9942857 | Z167: 0.9649123 | AA167: 0.9958848 | AB167: 1 | AC167: 1 | AF167: 41 | AG167: 0.9968263556 | AH167: 0.9929310778 | AI167: 0.99438535 | AJ167: 0.001923684217 | AK167: 0.005293058106 | AL167: 0.004285649705
A168: 41.25 | B168: 1 | C168: 1 | D168: 1 | E168: 1 | F168: 0.9830508 | G168: 0.995283 | H168: 1 | I168: 1 | J168: 0.9931034 | L168: 1 | M168: 1 | N168: 1 | O168: 1 | P168: 0.9913793 | Q168: 0.9971831 | R168: 1 | S168: 1 | T168: 0.9521276 | V168: 1 | W168: 1 | X168: 1 | Y168: 0.9942857 | Z168: 0.9649123 | AA168: 0.9958848 | AB168: 1 | AC168: 1 | AF168: 41.25 | AG168: 0.9968263556 | AH168: 0.99341 | AI168: 0.99438535 | AJ168: 0.001923684217 | AK168: 0.005248234063 | AL168: 0.004285649705
A169: 41.5 | B169: 1 | C169: 1 | D169: 1 | E169: 1 | F169: 0.9830508 | G169: 0.995283 | H169: 1 | I169: 1 | J169: 0.9931034 | L169: 1 | M169: 1 | N169: 1 | O169: 1 | P169: 0.9913793 | Q169: 0.9971831 | R169: 1 | S169: 1 | T169: 0.9521276 | V169: 1 | W169: 1 | X169: 1 | Y169: 0.9942857 | Z169: 0.9649123 | AA169: 0.9958848 | AB169: 1 | AC169: 1 | AF169: 41.5 | AG169: 0.9968263556 | AH169: 0.99341 | AI169: 0.99438535 | AJ169: 0.001923684217 | AK169: 0.005248234063 | AL169: 0.004285649705
A170: 41.75 | B170: 1 | C170: 1 | D170: 1 | E170: 1 | F170: 0.9830508 | G170: 0.995283 | H170: 1 | I170: 1 | J170: 0.9931034 | L170: 1 | M170: 1 | N170: 1 | O170: 1 | P170: 0.9913793 | Q170: 0.9971831 | R170: 1 | S170: 1 | T170: 0.9521276 | V170: 1 | W170: 1 | X170: 1 | Y170: 0.9942857 | Z170: 0.9649123 | AA170: 0.9958848 | AB170: 1 | AC170: 1 | AF170: 41.75 | AG170: 0.9968263556 | AH170: 0.99341 | AI170: 0.99438535 | AJ170: 0.001923684217 | AK170: 0.005248234063 | AL170: 0.004285649705
A171: 42 | B171: 1 | C171: 1 | D171: 1 | E171: 1 | F171: 0.9830508 | G171: 0.995283 | H171: 1 | I171: 1 | J171: 0.9931034 | L171: 1 | M171: 1 | N171: 1 | O171: 1 | P171: 0.9913793 | Q171: 0.9971831 | R171: 1 | S171: 1 | T171: 0.9521276 | V171: 1 | W171: 1 | X171: 1 | Y171: 0.9942857 | Z171: 0.9649123 | AA171: 0.9958848 | AB171: 1 | AC171: 1 | AF171: 42 | AG171: 0.9968263556 | AH171: 0.99341 | AI171: 0.99438535 | AJ171: 0.001923684217 | AK171: 0.005248234063 | AL171: 0.004285649705
A172: 42.25 | B172: 1 | C172: 1 | D172: 1 | E172: 1 | F172: 0.9830508 | G172: 0.995283 | H172: 1 | I172: 1 | J172: 0.9931034 | L172: 1 | M172: 1 | N172: 1 | O172: 1 | P172: 0.9913793 | Q172: 0.9971831 | R172: 1 | S172: 1 | T172: 0.9521276 | V172: 1 | W172: 1 | X172: 1 | Y172: 0.9942857 | Z172: 0.9649123 | AA172: 0.9958848 | AB172: 1 | AC172: 1 | AF172: 42.25 | AG172: 0.9968263556 | AH172: 0.99341 | AI172: 0.99438535 | AJ172: 0.001923684217 | AK172: 0.005248234063 | AL172: 0.004285649705
A173: 42.5 | B173: 1 | C173: 1 | D173: 1 | E173: 1 | F173: 0.9830508 | G173: 0.995283 | H173: 1 | I173: 1 | J173: 0.9931034 | L173: 1 | M173: 1 | N173: 1 | O173: 1 | P173: 0.9913793 | Q173: 0.9971831 | R173: 1 | S173: 1 | T173: 0.9521276 | V173: 1 | W173: 1 | X173: 1 | Y173: 0.9942857 | Z173: 0.9649123 | AA173: 0.9958848 | AB173: 1 | AC173: 1 | AF173: 42.5 | AG173: 0.9968263556 | AH173: 0.99341 | AI173: 0.99438535 | AJ173: 0.001923684217 | AK173: 0.005248234063 | AL173: 0.004285649705
A174: 42.75 | B174: 1 | C174: 1 | D174: 1 | E174: 1 | F174: 0.9830508 | G174: 0.995283 | H174: 1 | I174: 1 | J174: 0.9931034 | L174: 1 | M174: 1 | N174: 1 | O174: 1 | P174: 0.9913793 | Q174: 0.9971831 | R174: 1 | S174: 1 | T174: 0.9521276 | V174: 1 | W174: 1 | X174: 1 | Y174: 0.9942857 | Z174: 0.9649123 | AA174: 0.9958848 | AB174: 1 | AC174: 1 | AF174: 42.75 | AG174: 0.9968263556 | AH174: 0.99341 | AI174: 0.99438535 | AJ174: 0.001923684217 | AK174: 0.005248234063 | AL174: 0.004285649705
A175: 43 | B175: 1 | C175: 1 | D175: 1 | E175: 1 | F175: 0.9830508 | G175: 0.995283 | H175: 1 | I175: 1 | J175: 0.9931034 | L175: 1 | M175: 1 | N175: 1 | O175: 1 | P175: 0.9913793 | Q175: 0.9971831 | R175: 1 | S175: 1 | T175: 0.9574468 | V175: 1 | W175: 1 | X175: 1 | Y175: 0.9942857 | Z175: 0.9649123 | AA175: 0.9958848 | AB175: 1 | AC175: 1 | AF175: 43 | AG175: 0.9968263556 | AH175: 0.9940010222 | AI175: 0.99438535 | AJ175: 0.001923684217 | AK175: 0.004668357752 | AL175: 0.004285649705
A176: 43.25 | B176: 1 | C176: 1 | D176: 1 | E176: 1 | F176: 0.9830508 | G176: 0.995283 | H176: 1 | I176: 1 | J176: 0.9931034 | L176: 1 | M176: 1 | N176: 1 | O176: 1 | P176: 0.9913793 | Q176: 0.9971831 | R176: 1 | S176: 1 | T176: 0.9574468 | V176: 1 | W176: 1 | X176: 1 | Y176: 0.9942857 | Z176: 0.9649123 | AA176: 0.9958848 | AB176: 1 | AC176: 1 | AF176: 43.25 | AG176: 0.9968263556 | AH176: 0.9940010222 | AI176: 0.99438535 | AJ176: 0.001923684217 | AK176: 0.004668357752 | AL176: 0.004285649705
A177: 43.5 | B177: 1 | C177: 1 | D177: 1 | E177: 1 | F177: 0.9830508 | G177: 0.995283 | H177: 1 | I177: 1 | J177: 0.9931034 | L177: 1 | M177: 1 | N177: 1 | O177: 1 | P177: 0.9913793 | Q177: 0.9971831 | R177: 1 | S177: 1 | T177: 0.9574468 | V177: 1 | W177: 1 | X177: 1 | Y177: 0.9942857 | Z177: 0.9649123 | AA177: 0.9958848 | AB177: 1 | AC177: 1 | AF177: 43.5 | AG177: 0.9968263556 | AH177: 0.9940010222 | AI177: 0.99438535 | AJ177: 0.001923684217 | AK177: 0.004668357752 | AL177: 0.004285649705
A178: 43.75 | B178: 1 | C178: 1 | D178: 1 | E178: 1 | F178: 0.9830508 | G178: 0.995283 | H178: 1 | I178: 1 | J178: 0.9931034 | L178: 1 | M178: 1 | N178: 1 | O178: 1 | P178: 0.9913793 | Q178: 0.9971831 | R178: 1 | S178: 1 | T178: 0.9680851 | V178: 1 | W178: 1 | X178: 1 | Y178: 0.9942857 | Z178: 0.9649123 | AA178: 0.9958848 | AB178: 1 | AC178: 1 | AF178: 43.75 | AG178: 0.9968263556 | AH178: 0.9951830556 | AI178: 0.99438535 | AJ178: 0.001923684217 | AK178: 0.003519757039 | AL178: 0.004285649705
A179: 44 | B179: 1 | C179: 1 | D179: 1 | E179: 1 | F179: 0.9830508 | G179: 0.995283 | H179: 1 | I179: 1 | J179: 0.9931034 | L179: 1 | M179: 1 | N179: 1 | O179: 1 | P179: 0.9913793 | Q179: 0.9971831 | R179: 1 | S179: 1 | T179: 0.9680851 | V179: 1 | W179: 1 | X179: 1 | Y179: 0.9942857 | Z179: 0.9649123 | AA179: 0.9958848 | AB179: 1 | AC179: 1 | AF179: 44 | AG179: 0.9968263556 | AH179: 0.9951830556 | AI179: 0.99438535 | AJ179: 0.001923684217 | AK179: 0.003519757039 | AL179: 0.004285649705
A180: 44.25 | B180: 1 | C180: 1 | D180: 1 | E180: 1 | F180: 0.9830508 | G180: 0.995283 | H180: 1 | I180: 1 | J180: 0.9931034 | L180: 1 | M180: 1 | N180: 1 | O180: 1 | P180: 0.9913793 | Q180: 0.9971831 | R180: 1 | S180: 1 | T180: 0.9680851 | V180: 1 | W180: 1 | X180: 1 | Y180: 0.9942857 | Z180: 0.9649123 | AA180: 0.9958848 | AB180: 1 | AC180: 1 | AF180: 44.25 | AG180: 0.9968263556 | AH180: 0.9951830556 | AI180: 0.99438535 | AJ180: 0.001923684217 | AK180: 0.003519757039 | AL180: 0.004285649705
A181: 44.5 | B181: 1 | C181: 1 | D181: 1 | E181: 1 | F181: 0.9830508 | G181: 0.995283 | H181: 1 | I181: 1 | J181: 0.9931034 | L181: 1 | M181: 1 | N181: 1 | O181: 1 | P181: 0.9913793 | Q181: 0.9971831 | R181: 1 | S181: 1 | T181: 0.9680851 | V181: 1 | W181: 1 | X181: 1 | Y181: 0.9942857 | Z181: 0.9649123 | AA181: 0.9958848 | AB181: 1 | AC181: 1 | AF181: 44.5 | AG181: 0.9968263556 | AH181: 0.9951830556 | AI181: 0.99438535 | AJ181: 0.001923684217 | AK181: 0.003519757039 | AL181: 0.004285649705
A182: 44.75 | B182: 1 | C182: 1 | D182: 1 | E182: 1 | F182: 0.9830508 | G182: 0.995283 | H182: 1 | I182: 1 | J182: 0.9931034 | L182: 1 | M182: 1 | N182: 1 | O182: 1 | P182: 0.9913793 | Q182: 0.9971831 | R182: 1 | S182: 1 | T182: 0.9680851 | V182: 1 | W182: 1 | X182: 1 | Y182: 0.9942857 | Z182: 0.9649123 | AA182: 0.9958848 | AB182: 1 | AC182: 1 | AF182: 44.75 | AG182: 0.9968263556 | AH182: 0.9951830556 | AI182: 0.99438535 | AJ182: 0.001923684217 | AK182: 0.003519757039 | AL182: 0.004285649705
A183: 45 | B183: 1 | C183: 1 | D183: 1 | E183: 1 | F183: 0.9830508 | G183: 0.995283 | H183: 1 | I183: 1 | J183: 0.9931034 | L183: 1 | M183: 1 | N183: 1 | O183: 1 | P183: 0.9913793 | Q183: 0.9971831 | R183: 1 | S183: 1 | T183: 0.9680851 | V183: 1 | W183: 1 | X183: 1 | Y183: 0.9942857 | Z183: 0.9649123 | AA183: 0.9958848 | AB183: 1 | AC183: 1 | AF183: 45 | AG183: 0.9968263556 | AH183: 0.9951830556 | AI183: 0.99438535 | AJ183: 0.001923684217 | AK183: 0.003519757039 | AL183: 0.004285649705
A184: 45.25 | B184: 1 | C184: 1 | D184: 1 | E184: 1 | F184: 0.9830508 | G184: 0.995283 | H184: 1 | I184: 1 | J184: 0.9931034 | L184: 1 | M184: 1 | N184: 1 | O184: 1 | P184: 0.9913793 | Q184: 0.9971831 | R184: 1 | S184: 1 | T184: 0.9680851 | V184: 1 | W184: 1 | X184: 1 | Y184: 0.9942857 | Z184: 0.9649123 | AA184: 0.9958848 | AB184: 1 | AC184: 1 | AF184: 45.25 | AG184: 0.9968263556 | AH184: 0.9951830556 | AI184: 0.99438535 | AJ184: 0.001923684217 | AK184: 0.003519757039 | AL184: 0.004285649705
A185: 45.5 | B185: 1 | C185: 1 | D185: 1 | E185: 1 | F185: 0.9830508 | G185: 0.995283 | H185: 1 | I185: 1 | J185: 0.9931034 | L185: 1 | M185: 1 | N185: 1 | O185: 1 | P185: 0.9913793 | Q185: 0.9971831 | R185: 1 | S185: 1 | T185: 0.9680851 | V185: 1 | W185: 1 | X185: 1 | Y185: 0.9942857 | Z185: 0.9649123 | AA185: 0.9958848 | AB185: 1 | AC185: 1 | AF185: 45.5 | AG185: 0.9968263556 | AH185: 0.9951830556 | AI185: 0.99438535 | AJ185: 0.001923684217 | AK185: 0.003519757039 | AL185: 0.004285649705
A186: 45.75 | B186: 1 | C186: 1 | D186: 1 | E186: 1 | F186: 0.9830508 | G186: 0.995283 | H186: 1 | I186: 1 | J186: 0.9931034 | L186: 1 | M186: 1 | N186: 1 | O186: 1 | P186: 0.9913793 | Q186: 0.9971831 | R186: 1 | S186: 1 | T186: 0.9680851 | V186: 1 | W186: 1 | X186: 1 | Y186: 0.9942857 | Z186: 0.9649123 | AA186: 0.9958848 | AB186: 1 | AC186: 1 | AF186: 45.75 | AG186: 0.9968263556 | AH186: 0.9951830556 | AI186: 0.99438535 | AJ186: 0.001923684217 | AK186: 0.003519757039 | AL186: 0.004285649705
A187: 46 | B187: 1 | C187: 1 | D187: 1 | E187: 1 | F187: 0.9830508 | G187: 0.995283 | H187: 1 | I187: 1 | J187: 0.9931034 | L187: 1 | M187: 1 | N187: 1 | O187: 1 | P187: 0.9913793 | Q187: 0.9971831 | R187: 1 | S187: 1 | T187: 0.9680851 | V187: 1 | W187: 1 | X187: 1 | Y187: 0.9942857 | Z187: 0.9649123 | AA187: 0.9958848 | AB187: 1 | AC187: 1 | AF187: 46 | AG187: 0.9968263556 | AH187: 0.9951830556 | AI187: 0.99438535 | AJ187: 0.001923684217 | AK187: 0.003519757039 | AL187: 0.004285649705
A188: 46.25 | B188: 1 | C188: 1 | D188: 1 | E188: 1 | F188: 0.9830508 | G188: 0.995283 | H188: 1 | I188: 1 | J188: 0.9931034 | L188: 1 | M188: 1 | N188: 1 | O188: 1 | P188: 0.9913793 | Q188: 0.9971831 | R188: 1 | S188: 1 | T188: 0.9734042 | V188: 1 | W188: 1 | X188: 1 | Y188: 0.9942857 | Z188: 0.9649123 | AA188: 0.9958848 | AB188: 1 | AC188: 1 | AF188: 46.25 | AG188: 0.9968263556 | AH188: 0.9957740667 | AI188: 0.99438535 | AJ188: 0.001923684217 | AK188: 0.002955365551 | AL188: 0.004285649705
A189: 46.5 | B189: 1 | C189: 1 | D189: 1 | E189: 1 | F189: 0.9830508 | G189: 0.995283 | H189: 1 | I189: 1 | J189: 1 | L189: 1 | M189: 1 | N189: 1 | O189: 1 | P189: 0.9913793 | Q189: 0.9971831 | R189: 1 | S189: 1 | T189: 0.9734042 | V189: 1 | W189: 1 | X189: 1 | Y189: 0.9942857 | Z189: 0.9649123 | AA189: 0.9958848 | AB189: 1 | AC189: 1 | AF189: 46.5 | AG189: 0.9975926444 | AH189: 0.9957740667 | AI189: 0.99438535 | AJ189: 0.001890646651 | AK189: 0.002955365551 | AL189: 0.004285649705
A190: 46.75 | B190: 1 | C190: 1 | D190: 1 | E190: 1 | F190: 0.9830508 | G190: 0.995283 | H190: 1 | I190: 1 | J190: 1 | L190: 1 | M190: 1 | N190: 1 | O190: 1 | P190: 0.9913793 | Q190: 0.9971831 | R190: 1 | S190: 1 | T190: 0.9734042 | V190: 1 | W190: 1 | X190: 1 | Y190: 0.9942857 | Z190: 0.9649123 | AA190: 0.9958848 | AB190: 1 | AC190: 1 | AF190: 46.75 | AG190: 0.9975926444 | AH190: 0.9957740667 | AI190: 0.99438535 | AJ190: 0.001890646651 | AK190: 0.002955365551 | AL190: 0.004285649705
A191: 47 | B191: 1 | C191: 1 | D191: 1 | E191: 1 | F191: 0.9830508 | G191: 0.995283 | H191: 1 | I191: 1 | J191: 1 | L191: 1 | M191: 1 | N191: 1 | O191: 1 | P191: 0.9913793 | Q191: 0.9971831 | R191: 1 | S191: 1 | T191: 0.9787234 | V191: 1 | W191: 1 | X191: 1 | Y191: 0.9942857 | Z191: 0.9649123 | AA191: 0.9958848 | AB191: 1 | AC191: 1 | AF191: 47 | AG191: 0.9975926444 | AH191: 0.9963650889 | AI191: 0.99438535 | AJ191: 0.001890646651 | AK191: 0.002403792988 | AL191: 0.004285649705
A192: 47.25 | B192: 1 | C192: 1 | D192: 1 | E192: 1 | F192: 0.9830508 | G192: 0.995283 | H192: 1 | I192: 1 | J192: 1 | L192: 1 | M192: 1 | N192: 1 | O192: 1 | P192: 0.9913793 | Q192: 0.9971831 | R192: 1 | S192: 1 | T192: 0.9787234 | V192: 1 | W192: 1 | X192: 1 | Y192: 0.9942857 | Z192: 0.9649123 | AA192: 0.9958848 | AB192: 1 | AC192: 1 | AF192: 47.25 | AG192: 0.9975926444 | AH192: 0.9963650889 | AI192: 0.99438535 | AJ192: 0.001890646651 | AK192: 0.002403792988 | AL192: 0.004285649705
